Workbook

Sheet Menu

Sheet Liste (hidden)
J1: =$V$1 -> Planche - N° 102 | V1: =CONCATENATE(" Planche - ",," N° ",V3) -> Planche - N° 102
D2: =Parametres!$B$19 -> Stage vol à voile luchon Automne 2018 | V2: =TODAY() -> 2018-06-20
V3: 102
D4: Planche des vols du | G4: 19/06/2018 | V4: Planche du
A6: Nbr | B6: Type | C6: Cdbl | D6: Instructeur / éléves | E6: Décollage | F6: Atterissage | G6: Nbr Heures effectuées | H6: Type de lancer | I6: Vol mutuel | J6: Observations
A7: 1 | B7: PEGASE EU | C7: BIL Bill | E7: 10:00 | F7: 12:00 | G7: 02:00:00 | H7: T

Sheet Licencies (hidden)
CW1: 101
B2: =MAX(A:A) -> 3 | D2: =Parametres!$AJ$16 -> 2018-10-20 | F2: =DATE(Parametres!$A$2,Parametres!$A$3,Parametres!A4)+MOD(-DATE(Parametres!A2,Parametres!A3,-5),7) -> 2018-10-20 | K2: =1+F2 -> 2018-10-21 | P2: =1+K2 -> 2018-10-22 | U2: =1+P2 -> 2018-10-23 | Z2: =1+U2 -> 2018-10-24 | AE2: =1+Z2 -> 2018-10-25 | AJ2: =1+AE2 -> 2018-10-26 | AO2: =1+AJ2 -> 2018-10-27 | AT2: =1+AO2 -> 2018-10-28 | AY2: =1+AT2 -> 2018-10-29 | BD2: =1+AY2 -> 2018-10-30 | BI2: =1+BD2 -> 2018-10-31 | BN2: =1+BI2 -> 2018-11-01 | BS2: =1+BN2 -> 2018-11-02 | BX2: =1+BS2 -> 2018-11-03 | CC2: =1+BX2 -> 2018-11-04 | CH2: =1+CC2 -> 2018-11-05 | CM2: =1+CH2 -> 2018-11-06 | CR2: =SUM(CR4:CR22) -> 5 | CS2: =SUM(CS4:CS22) -> 0 | CT2: =SUM(CT4:CT22) -> 5 | CU2: =SUM(CU4:CU22) -> 3 | CV2: =SUM(CV4:CV22) -> 0 | CX2: Suite renseignements | DI2: Statut Stagiaire
A3: N° | B3: Code_inscrits | C3: Sexe | D3: Nom | E3: Prénom | F3: Journée de vol | G3: Petit dej | H3: Repas du midi | I3: Repas du soir | J3: Nuitée | K3: Journée de vol | L3: Petit dej | M3: Repas du midi | N3: Repas du soir | O3: Nuitée | P3: Journée de vol | Q3: Petit dej | R3: Repas du midi | S3: Repas du soir | T3: Nuitée | U3: Journée de vol | V3: Petit dej | W3: Repas du midi | X3: Repas du soir | Y3: Nuitée | Z3: Journée de vol | AA3: Petit dej | AB3: Repas du midi | AC3: Repas du soir | AD3: Nuitée | AE3: Journée de vol | AF3: Petit dej | AG3: Repas du midi | AH3: Repas du soir | AI3: Nuitée | AJ3: Journée de vol | AK3: Petit dej | AL3: Repas du midi | AM3: Repas du soir | AN3: Nuitée | AO3: Journée de vol | AP3: Petit dej | AQ3: Repas du midi | AR3: Repas du soir | AS3: Nuitée | AT3: Journée de vol | AU3: Petit dej | AV3: Repas du midi | AW3: Repas du soir | AX3: Nuitée | AY3: Journée de vol | AZ3: Petit dej | BA3: Repas du midi | BB3: Repas du soir | BC3: Nuitée | BD3: Journée de vol | BE3: Petit dej | BF3: Repas du midi | BG3: Repas du soir | BH3: Nuitée | BI3: Journée de vol | BJ3: Petit dej | BK3: Repas du midi | BL3: Repas du soir | BM3: Nuitée | BN3: Journée de vol | BO3: Petit dej | BP3: Repas du midi | BQ3: Repas du soir | BR3: Nuitée | BS3: Journée de vol | BT3: Petit dej | BU3: Repas du midi | BV3: Repas du soir | BW3: Nuitée | BX3: Journée de vol | BY3: Petit dej | BZ3: Repas du midi | CA3: Repas du soir | CB3: Nuitée | CC3: Journée de vol | CD3: Petit dej | CE3: Repas du midi | CF3: Repas du soir | CG3: Nuitée | CH3: Journée de vol | CI3: Petit dej | CJ3: Repas du midi | CK3: Repas du soir | CL3: Nuitée | CM3: Journée de vol | CN3: Petit dej | CO3: Repas du midi | CP3: Repas du soir | CQ3: Nuitée | CR3: Total Journée | CS3: Total petit dejeunée | CT3: Total midi | CU3: Total Repas soir | CV3: Total Nuitées | CW3: Observations | CX3: Adresse1 | CY3: Mail | CZ3: CP | DA3: Ville | DB3: TéléphoneF | DC3: TelephoneP | DD3: Date de naissance | DE3: Début du vol à voile | DF3: Profession | DG3: Réserve | DH3: Réserve | DI3: Eleve pilote | DJ3: laché solo | DK3: BPP | DL3: Campagne | DM3: Montagne | DN3: Planeur | DO3: Avion | DP3: ULM | DQ3: Instructeur ITP/ITV | DR3: Instructeur Avion/ULM | DS3: Accompagnat | DT3: Invité | DU3: Passage | DV3: Boule remorque | DW3: Démontage Aire/Luchon | DX3: Convoyage Air | DY3: N° licence pilote et instructeur | EC3: Visite oui/non | ED3: Visite Médicale début | EE3: Visite Médicale fin | EF3: N° instructeur | EG3: Reserve | EH3: Nbr d'heure montagne | EI3: Reserve | EJ3: Reserve | EK3: Reserve | EL3: NBr JOURS volés | EP3: Nombre de cases remplies par J,P,M,N,S
A4: 1 | B4: BIL Bill | C4: M | D4: BIL | E4: Bill | F4: J | H4: M | K4: J | M4: M | CR4: =COUNTIF(F4:CQ4,"J") -> 2 | CS4: =COUNTIF(F4:CQ4,"P") -> 0 | CT4: =COUNTIF(F4:CQ4,"M") -> 2 | CU4: =COUNTIF(F4:CQ4,"S") -> 0 | CV4: =COUNTIF(F4:CQ4,"N") -> 0 | CZ4: 64000 | DA4: PAU | DF4: Géométre | DI4: x | DJ4: x | DK4: x | DN4: x | EL4: =COUNTIF(F4:CQ4,"*J*") -> 2 | FA4: P
A5: 2 | B5: XX Xx | C5: M | D5: XX | E5: Xx | F5: J | H5: M | I5: S | K5: J | M5: M | N5: S | P5: J | R5: M | S5: S | CR5: =COUNTIF(F5:CQ5,"J") -> 3 | CS5: =COUNTIF(F5:CQ5,"P") -> 0 | CT5: =COUNTIF(F5:CQ5,"M") -> 3 | CU5: =COUNTIF(F5:CQ5,"S") -> 3 | CV5: =COUNTIF(F5:CQ5,"N") -> 0 | CX5: 79 | CZ5: 64000 | DA5: PAU | EL5: 3 | FA5: M
A6: 3 | B6: YYY Yy | C6: M | D6: YYY | E6: Yy | CR6: =COUNTIF(F6:CQ6,"J") -> 0 | CS6: =COUNTIF(F6:CQ6,"P") -> 0 | CT6: =COUNTIF(F6:CQ6,"M") -> 0 | CU6: =COUNTIF(F6:CQ6,"S") -> 0 | CV6: =COUNTIF(F6:CQ6,"N") -> 0 | CX6: 79 | CZ6: 64000 | DA6: PAU | DB6: 05.59. | DD6: 1946 | DE6: 1997 | DI6: x | DJ6: x | DK6: x | DM6: x | DT6: x | DU6: x | EL6: 0 | FA6: S
CR7: =COUNTIF(F7:CQ7,"J") -> 0 | CS7: =COUNTIF(F7:CQ7,"P") -> 0 | CT7: =COUNTIF(F7:CQ7,"M") -> 0 | CU7: =COUNTIF(F7:CQ7,"S") -> 0 | CV7: =COUNTIF(F7:CQ7,"N") -> 0 | EL7: 0 | FA7: N
CR8: 0 | CS8: 0 | CT8: 0 | CU8: 0 | CV8: 0 | EL8: 0
CR9: 0 | CS9: 0 | CT9: 0 | CU9: 0 | CV9: 0 | EL9: 0
CR10: 0 | CS10: 0 | CT10: 0 | CU10: 0 | CV10: 0 | EL10: 0
CR11: 0 | CS11: 0 | CT11: 0 | CU11: 0 | CV11: 0 | EL11: 0
CR12: 0 | CS12: 0 | CT12: 0 | CU12: 0 | CV12: 0 | EL12: 0
CR13: 0 | CS13: 0 | CT13: 0 | CU13: 0 | CV13: 0 | EL13: 0
CR14: 0 | CS14: 0 | CT14: 0 | CU14: 0 | CV14: 0 | EL14: 0
CR15: 0 | CS15: 0 | CT15: 0 | CU15: 0 | CV15: 0 | EL15: 0
CR16: 0 | CS16: 0 | CT16: 0 | CU16: 0 | CV16: 0 | EL16: 0
CR17: 0 | CS17: 0 | CT17: 0 | CU17: 0 | CV17: 0 | EL17: 0
CR18: 0 | CS18: 0 | CT18: 0 | CU18: 0 | CV18: 0 | EL18: 0
CR19: 0 | CS19: 0 | CT19: 0 | CU19: 0 | CV19: 0
CR20: 0 | CS20: 0 | CT20: 0 | CU20: 0 | CV20: 0
CR21: 0 | CS21: 0 | CT21: 0 | CU21: 0 | CV21: 0
CR22: 0 | CS22: 0 | CT22: 0 | CU22: 0 | CV22: 0

Sheet VentillationJournées (hidden)
AP1: 7 | CL1: 15 | DH1: RECAPITULATION PAR LIGNES
C2: =DATE(Parametres!$A$2,Parametres!$A$3,Parametres!A4)+MOD(-DATE(Parametres!A2,Parametres!A3,-5),7) -> 2018-10-20 | I2: =1+C2 -> 2018-10-21 | O2: =1+I2 -> 2018-10-22 | U2: =1+O2 -> 2018-10-23 | AA2: =1+U2 -> 2018-10-24 | AG2: =1+AA2 -> 2018-10-25 | AM2: =1+AG2 -> 2018-10-26 | AS2: =1+AM2 -> 2018-10-27 | AY2: =1+AS2 -> 2018-10-28 | BE2: =1+AY2 -> 2018-10-29 | BK2: =1+BE2 -> 2018-10-30 | BQ2: =1+BK2 -> 2018-10-31 | BW2: =1+BQ2 -> 2018-11-01 | CC2: =1+BW2 -> 2018-11-02 | CI2: =1+CC2 -> 2018-11-03 | CO2: =1+CI2 -> 2018-11-04 | CU2: =1+CO2 -> 2018-11-05 | DA2: =1+CU2 -> 2018-11-06 | DH2: =SUM(DH4:DH38) -> 80 | DI2: 114 | DJ2: 123 | DK2: 86 | DL2: 47 | DM2: 1784.84 | DO2: Extraction pour ventillation compta
A3: NBR | B3: Noms | C3: Matin | D3: Midi | E3: Soir | F3: Nuit | G3: Jour de vol Club | H3: Frais Dépensé par pilote | I3: Matin | J3: Midi | K3: Soir | L3: Nuit | M3: Jour de vol Club | N3: Frais Dépensé par pilote | O3: Matin | P3: Midi | Q3: Soir | R3: Nuit | S3: Jour de vol Club | T3: Frais Dépensé par pilote | U3: Matin | V3: Midi | W3: Soir | X3: Nuit | Y3: Jour de vol Club | Z3: Frais Dépensé par pilote | AA3: Matin | AB3: Midi | AC3: Soir | AD3: Nuit | AE3: Jour de vol Club | AF3: Frais Dépensé par pilote | AG3: Matin | AH3: Midi | AI3: Soir | AJ3: Nuit | AK3: Jour de vol Club | AL3: Frais Dépensé par pilote | AM3: Matin | AN3: Midi | AO3: Soir | AP3: Nuit | AQ3: Jour de vol Club | AR3: Frais Dépensé par pilote | AS3: Matin | AT3: Midi | AU3: Soir | AV3: Nuit | AW3: Jour de vol Club | AX3: Frais Dépensé par pilote | AY3: Matin | AZ3: Midi | BA3: Soir | BB3: Nuit | BC3: Cotis Jour de vol Club | BD3: Frais Dépensé par pilote | BE3: Matin | BF3: Midi | BG3: Soir | BH3: Nuit | BI3: Cotis Jour de vol Club | BJ3: Frais Dépensé par pilote | BK3: Matin | BL3: Midi | BM3: Soir | BN3: Nuit | BO3: Cotis Jour de vol Club | BP3: Frais Dépensé par pilote | BQ3: Matin | BR3: Midi | BS3: Soir | BT3: Nuit | BU3: Cotis Jour de vol Club | BV3: Frais Dépensé par pilote | BW3: Matin | BX3: Midi | BY3: Soir | BZ3: Nuit | CA3: Cotis Jour de vol Club | CB3: Frais Dépensé par pilote | CC3: Matin | CD3: Midi | CE3: Soir | CF3: Nuit | CG3: Cotis Jour de vol Club | CH3: Frais Dépensé par pilote | CI3: Matin | CJ3: Midi | CK3: Soir | CL3: Nuit | CM3: Cotis Jour de vol Club | CN3: Frais Dépensé par pilote | CO3: Matin | CP3: Midi | CQ3: Soir | CR3: Nuit | CS3: Cotis Jour de vol Club | CT3: Frais Dépensé par pilote | CU3: Matin | CV3: Midi | CW3: Soir | CX3: Nuit | CY3: Cotis Jour de vol Club | CZ3: Frais Dépensé par pilote | DA3: Matin | DB3: Midi | DC3: Soir | DD3: Nuit | DE3: Cotis Jour de vol Club | DF3: Frais Dépensé par pilote | DH3: Matin | DI3: Midi | DJ3: Soir | DK3: Nuit | DL3: Jour de vol Club | DM3: Frais Dépensé par pilote | DN3: Satut stage | DO3: Paye le | DP3: Par CH ou Esp | DQ3: Caisse | DR3: Solde payé | DS3: Solde définitif
A4: 1 | B4: FERDINAND Jean claude | C4: 0 | D4: 0 | E4: 0 | F4: 0 | G4: 0 | H4: 0 | I4: 0 | J4: 0 | K4: 0 | L4: 0 | M4: 0 | N4: 0 | O4: 0 | P4: 0 | Q4: 0 | R4: 0 | S4: 0 | T4: 0 | U4: 0 | V4: 0 | W4: 0 | X4: 0 | Y4: 0 | Z4: 0 | AA4: 1 | AB4: 0 | AC4: 0 | AD4: 0 | AE4: 0 | AG4: 1 | AH4: 1 | AI4: 2 | AJ4: 1 | AK4: 0 | AM4: 0 | AN4: 1 | AO4: 1 | AP4: 1 | AQ4: 0 | AS4: 1 | AT4: 1 | AU4: 1 | AV4: 1 | AW4: 0 | AY4: 1 | AZ4: 1 | BA4: 0 | BB4: 0 | BC4: 0 | BE4: 0 | BF4: 0 | BG4: 0 | BH4: 0 | BI4: 0 | BO4: 0 | BU4: 0 | CA4: 0 | CG4: 0 | CM4: 0 | CS4: 0 | CY4: 0 | DE4: 0 | DH4: =SUM(C4,I4,O4,U4,AA4,AG4,AM4,AS4,AY4,BE4,BK4,BQ4,BW4,CC4,CI4,CN4,CO4,CU4,DA4) -> 4 | DI4: =SUM(D4,J4,P4,V4,AB4,AH4,AN4,AT4,AZ4,BF4,BL4,BR4,BX4,CD4,CJ4,CP4,CV4,DB4) -> 4 | DJ4: 4 | DK4: 3 | DL4: 0 | DM4: 0 | DN4: P | DO4: 13/11/2014 | DP4: CH | DQ4: 0 | DR4: 90 | DS4: =[1]VentillationCompta!X4 -> 13/11/2014
A5: 2 | B5: BOUZIGUES Patrick | C5: 0 | D5: 0 | E5: 0 | F5: 0 | G5: 0 | H5: 0 | I5: 0 | J5: 0 | K5: 0 | L5: 0 | M5: 0 | N5: 0 | O5: 0 | P5: 0 | Q5: 0 | R5: 0 | S5: 0 | T5: 0 | W5: 1 | X5: 0 | AC5: 1 | AD5: 0 | AI5: 1 | AJ5: 0 | AO5: 1 | AP5: 0 | AU5: 1 | BA5: 1 | BG5: 1 | BL5: 1 | BM5: 1 | BS5: 1 | BY5: 1 | DH5: 0 | DI5: 1 | DJ5: 10 | DK5: 0 | DL5: 0 | DM5: 0 | DN5: V | DO5: 30/10/2014 | DP5: CH | DQ5: 0 | DR5: 53 | DS5: =[1]VentillationCompta!X5 -> 30/10/2014
A6: 3 | B6: BIL Bill | C6: 0 | D6: 4 | E6: 0 | F6: 0 | G6: 1 | H6: 0 | I6: 0 | J6: 4 | K6: 0 | L6: 0 | M6: 1 | N6: 0 | O6: 0 | P6: 0 | Q6: 0 | R6: 0 | S6: 0 | T6: 0 | AC6: 1 | AH6: 1 | AI6: 1 | AN6: 1 | AO6: 1 | AR6: 23.79 | AT6: 1 | AU6: 1 | BA6: 1 | BF6: 1 | BG6: 1 | BL6: 1 | BM6: 1 | BR6: 1 | BS6: 1 | BX6: 1 | BY6: 1 | CD6: 1 | CE6: 1 | DH6: 0 | DI6: 16 | DJ6: 10 | DK6: 0 | DL6: 2 | DM6: 23.79 | DN6: P | DO6: 0 | DP6: CH | DQ6: 0 | DR6: 50.21 | DS6: =[1]VentillationCompta!X6 -> 23/11/2014
A7: 4 | B7: XX Xx | C7: 0 | D7: 0 | E7: 0 | F7: 0 | G7: 1 | H7: 40 | I7: 0 | J7: 0 | K7: 0 | L7: 0 | M7: 0 | N7: 0 | O7: 0 | P7: 0 | Q7: 0 | R7: 0 | S7: 0 | T7: 0 | W7: 1 | AB7: 1 | AC7: 1 | AH7: 1 | AI7: 1 | AN7: 1 | AO7: 1 | AT7: 1 | AU7: 1 | BA7: 1 | BF7: 1 | BG7: 1 | BL7: 1 | BM7: 1 | BR7: 1 | BS7: 1 | BX7: 1 | BY7: 1 | DH7: 0 | DI7: 8 | DJ7: 10 | DK7: 0 | DL7: 1 | DM7: 40 | DN7: V | DO7: 0 | DP7: 0 | DQ7: 0 | DR7: 74 | DS7: =[1]VentillationCompta!X7 -> 23/11/2014
A8: 5 | B8: YYY Yy | C8: 0 | D8: 0 | E8: 0 | F8: 0 | G8: 0 | H8: 0 | I8: 0 | J8: 0 | K8: 0 | L8: 0 | M8: 0 | N8: 0 | O8: 0 | P8: 0 | Q8: 0 | R8: 0 | S8: 0 | T8: 0 | U8: 0 | V8: 0 | W8: 0 | X8: 0 | Y8: 0 | Z8: 0 | AA8: 0 | AB8: 0 | AC8: 0 | AD8: 0 | AE8: 0 | AF8: 0 | AG8: 0 | AH8: 0 | AI8: 0 | AJ8: 0 | AK8: 0 | AL8: 0 | AM8: 0 | AN8: 0 | AO8: 0 | AP8: 0 | AQ8: 0 | AR8: 0 | AS8: 0 | AT8: 0 | AU8: 0 | AV8: 0 | AW8: 0 | AX8: 0 | AY8: 0 | AZ8: 0 | BA8: 0 | BB8: 0 | BC8: 0 | BD8: 0 | BE8: 0 | BF8: 0 | BG8: 0 | BH8: 0 | BI8: 0 | BJ8: 0 | BK8: 0 | BL8: 0 | BM8: 0 | BN8: 0 | BO8: 0 | BP8: 0 | BQ8: 0 | BR8: 0 | BS8: 0 | BT8: 0 | BU8: 0 | BV8: 0 | BW8: 0 | BX8: 0 | BY8: 0 | BZ8: 0 | CA8: 0 | CB8: 0 | CC8: 0 | CD8: 0 | CE8: 0 | CF8: 0 | CG8: 0 | CH8: 0 | CI8: 0 | CJ8: 0 | CK8: 0 | CL8: 0 | CM8: 0 | CN8: 0 | CO8: 0 | CP8: 0 | CQ8: 0 | CR8: 0 | CS8: 0 | CT8: 0 | CU8: 0 | CV8: 0 | CW8: 0 | CX8: 0 | CY8: 0 | CZ8: 0 | DA8: 0 | DB8: 0 | DC8: 0 | DD8: 0 | DE8: 0 | DF8: 0 | DH8: 0 | DI8: 0 | DJ8: 0 | DK8: 0 | DL8: 0 | DM8: 0 | DN8: P | DO8: 2014-11-05 | DP8: CH | DQ8: 0 | DR8: 69 | DS8: =[1]VentillationCompta!X8 -> 40308
A9: 6 | B9: BIENVENUE Jean | C9: 0 | D9: 0 | E9: 0 | F9: 0 | G9: 0 | H9: 0 | I9: 0 | J9: 0 | K9: 0 | L9: 0 | M9: 0 | N9: 0 | O9: 0 | P9: 0 | Q9: 0 | R9: 0 | S9: 0 | T9: 0 | BA9: 1 | BB9: 1 | BE9: 1 | BF9: 1 | BG9: 1 | BH9: 1 | BK9: 1 | BL9: 1 | BM9: 1 | BN9: 1 | BQ9: 1 | BR9: 1 | BS9: 1 | BT9: 1 | BW9: 1 | BX9: 1 | BY9: 0 | BZ9: 0 | CC9: 0 | CD9: 0 | DH9: 4 | DI9: 4 | DJ9: 4 | DK9: 4 | DL9: 0 | DM9: 0 | DN9: V | DO9: 0 | DP9: 0 | DQ9: 0 | DR9: 0 | DS9: =[1]VentillationCompta!X9 -> 0
A10: 7 | B10: BIENVENUE Manuel | C10: 0 | D10: 0 | E10: 0 | F10: 0 | G10: 0 | H10: 0 | I10: 0 | J10: 0 | K10: 0 | L10: 0 | M10: 0 | N10: 0 | O10: 0 | P10: 0 | Q10: 0 | R10: 0 | S10: 0 | T10: 0 | BS10: 1 | BT10: 1 | BW10: 1 | BX10: 1 | BY10: 0 | BZ10: 0 | DH10: 1 | DI10: 1 | DJ10: 1 | DK10: 1 | DL10: 0 | DM10: 0 | DN10: V | DO10: 0 | DP10: 0 | DQ10: 0 | DR10: 0 | DS10: =[1]VentillationCompta!X10 -> 0
A11: 8 | B11: JONQUET Alain | C11: 0 | D11: 0 | E11: 0 | F11: 0 | G11: 0 | H11: 0 | I11: 0 | J11: 0 | K11: 0 | L11: 0 | M11: 0 | N11: 0 | O11: 0 | P11: 0 | Q11: 0 | R11: 0 | S11: 0 | T11: 0 | U11: 0 | V11: 0 | W11: 0 | X11: 0 | Y11: 0 | Z11: 0 | AE11: 0 | AI11: 1 | AJ11: 1 | AK11: 0 | AM11: 1 | AN11: 1 | AO11: 1 | AP11: 1 | AQ11: 0 | AS11: 1 | AT11: 1 | AU11: 1 | AV11: 1 | AX11: 59.73 | AY11: 1 | AZ11: 1 | BA11: 1 | BB11: 1 | BE11: 1 | BF11: 1 | BG11: 1 | BH11: 1 | BK11: 1 | BL11: 1 | BM11: 1 | BN11: 1 | BQ11: 1 | BR11: 1 | BS11: 1 | BT11: 1 | BW11: 1 | BX11: 1 | BZ11: 1 | DH11: =SUM(C11,I11,O11,U11,AA11,AG11,AM11,AS11,AY11,BE11,BK11,BQ11,BW11,CC11,CI11,CN11,CO11,CU11,DA11) -> 7 | DI11: =SUM(D11,J11,P11,V11,AB11,AH11,AN11,AT11,AZ11,BF11,BL11,BR11,BX11,CD11,CJ11,CP11,CV11,DB11) -> 7 | DJ11: =SUM(E11,K11,Q11,W11,AC11,AI11,AO11,AU11,BA11,BG11,BM11,BS11,BY11,CE11,CK11,CQ11,CW11,DC11) -> 7 | DK11: =SUM(F11,L11,R11,X11,AD11,AJ11,AP11,AV11,BB11,BH11,BN11,BT11,BZ11,CF11,CL11,CR11,CX11,DD11) -> 8 | DL11: =SUM(G11,M11,S11,Y11,AE11,AK11,AQ11,AW11,BC11,BI11,BO11,BU11,CA11,CG11,CM11,CS11,CY11,DE11) -> 0 | DM11: =SUM(H11,N11,T11,Z11,AF11,AL11,AR11,AX11,BD11,BJ11,BP11,BV11,CB11,CH11,CN11,CT11,CZ11,DF11) -> 59.73 | DN11: P | DO11: 0 | DP11: CH | DQ11: 0 | DR11: 62.4 | DS11: =[1]VentillationCompta!X11 -> 23/11/2014
A12: 9 | B12: FABERES Robert | C12: 0 | D12: 0 | E12: 0 | F12: 0 | G12: 0 | H12: 0 | I12: 0 | J12: 0 | K12: 0 | L12: 0 | M12: 0 | N12: 0 | O12: 0 | P12: 0 | Q12: 0 | R12: 0 | S12: 0 | T12: 0 | U12: 0 | V12: 0 | W12: 0 | X12: 0 | Z12: 0 | BF12: 1 | DH12: 0 | DI12: 1 | DJ12: 0 | DK12: 0 | DL12: =SUM(G12,M12,S12,Y12,AE12,AK12,AQ12,AW12,BC12,BI12,BO12,BU12,CA12,CG12,CM12,CS12,CY12,DE12) -> 0 | DM12: 0 | DN12: V | DO12: 0 | DP12: 0 | DQ12: 0 | DR12: 3 | DS12: =[1]VentillationCompta!X12 -> 23/11/2014
A13: 10 | B13: PEREZ Michel | C13: 0 | D13: 0 | E13: 0 | F13: 0 | G13: 0 | H13: 0 | I13: 0 | J13: 0 | K13: 0 | L13: 0 | M13: 0 | N13: 0 | O13: 0 | P13: 0 | Q13: 0 | R13: 0 | S13: 0 | T13: 0 | BF13: 1 | DH13: 0 | DI13: 1 | DJ13: 0 | DK13: 0 | DL13: 0 | DM13: 0 | DN13: V | DO13: 0 | DP13: 0 | DQ13: 0 | DR13: 3 | DS13: =[1]VentillationCompta!X13 -> 23/11/2014
A14: 11 | B14: BOUZIGUES Patrick | C14: 0 | D14: 0 | E14: 0 | F14: 0 | G14: 0 | H14: 0 | I14: 0 | J14: 1 | K14: 1 | L14: 1 | M14: 0 | N14: 92.94 | O14: 1 | P14: 1 | Q14: 1 | R14: 1 | S14: 1 | T14: 79.59 | U14: 1 | V14: 1 | W14: 1 | X14: 1 | Y14: 1 | Z14: 11.23 | AA14: 1 | AB14: 1 | AC14: 1 | AD14: 1 | AE14: 1 | AF14: 714 | AG14: 1 | AH14: 1 | AI14: 1 | AJ14: 1 | AK14: 1 | AL14: 25.29 | AM14: 1 | AN14: 1 | AO14: 1 | AP14: 1 | AQ14: 1 | AR14: 91.58 | AS14: 1 | AT14: 1 | AU14: 1 | AV14: 1 | AW14: 1 | AX14: 39.52 | AY14: 1 | AZ14: 1 | BA14: 1 | BB14: 1 | BC14: 1 | BD14: 67.75 | BE14: 1 | BF14: 1 | BG14: 1 | BH14: 1 | BI14: 1 | BJ14: 109.39 | BK14: 1 | BL14: 1 | BM14: 1 | BN14: 1 | BO14: 1 | BP14: 130.8 | BQ14: 1 | BR14: 1 | BS14: 1 | BT14: 1 | BU14: 1 | BV14: 50.43 | BW14: 1 | BX14: 1 | BY14: 1 | BZ14: 1 | CA14: 1 | CB14: 58.35 | CC14: 1 | CD14: 1 | CE14: 1 | CF14: 1 | CG14: 1 | CL14: 1 | DH14: 12 | DI14: 13 | DJ14: 13 | DK14: 14 | DL14: 12 | DM14: =SUM(H14,N14,T14,Z14,AF14,AL14,AR14,AX14,BD14,BJ14,BP14,BV14,CB14,CH14,CN14,CT14,CZ14,DF14) -> 1470.87 | DN14: P | DO14: 0 | DP14: 0 | DQ14: 0 | DR14: 0 | DS14: =[1]VentillationCompta!X14 -> 21/11/2014
A15: 12 | B15: BEAUMONT Camille | C15: 0 | D15: 0 | E15: 0 | F15: 0 | G15: 0 | H15: 0 | I15: 0 | J15: 0 | K15: 0 | L15: 0 | M15: 0 | N15: 0 | O15: 0 | P15: 0 | Q15: 0 | R15: 0 | S15: 0 | T15: 0 | AU15: 1 | AV15: 1 | AY15: 1 | AZ15: 1 | BA15: 1 | BB15: 1 | BC15: 1 | BE15: 1 | BF15: 1 | BG15: 1 | BH15: 1 | BI15: 1 | BK15: 1 | BL15: 1 | BM15: 1 | BN15: 1 | BO15: 0 | BQ15: 1 | BR15: 1 | BS15: 1 | BT15: 1 | BU15: 1 | BW15: 1 | BX15: 1 | CA15: 1 | DH15: 5 | DI15: 5 | DJ15: 5 | DK15: 5 | DL15: 4 | DM15: 0 | DN15: P | DO15: 0 | DP15: 0 | DQ15: 0 | DR15: 0 | DS15: =[1]VentillationCompta!X15 -> 23/11/2014
A16: 13 | B16: DUCOURNEAU Bernard | C16: 0 | D16: 0 | E16: 0 | F16: 0 | G16: 0 | H16: 0 | I16: 0 | J16: 0 | K16: 0 | L16: 0 | M16: 0 | N16: 0 | O16: 0 | P16: 0 | Q16: 0 | R16: 0 | S16: 0 | T16: 0 | BM16: 1 | BN16: 1 | BQ16: 1 | BR16: 1 | BS16: 1 | BT16: 1 | BU16: 0 | BW16: 1 | BX16: 1 | BY16: 1 | BZ16: 1 | CC16: 1 | CD16: 1 | CE16: 1 | CF16: 1 | CI16: 0 | CL16: 1 | DH16: 3 | DI16: 3 | DJ16: 4 | DK16: 5 | DL16: 0 | DM16: 0 | DN16: V | DO16: 0 | DP16: 0 | DQ16: 0 | DR16: 71.1 | DS16: =[1]VentillationCompta!X16 -> 0
A17: 14 | B17: MERCIER Marie francoise | C17: 0 | D17: 0 | E17: 0 | F17: 0 | G17: 0 | H17: 0 | I17: 0 | J17: 0 | K17: 0 | L17: 0 | M17: 0 | N17: 0 | O17: 0 | P17: 0 | Q17: 0 | R17: 0 | S17: 0 | T17: 0 | W17: 1 | X17: 1 | Y17: 1 | AA17: 1 | AB17: 1 | AC17: 3 | AD17: 1 | AF17: 80.86 | AG17: 1 | AH17: 1 | AL17: 41.63 | AZ17: 1 | BC17: 1 | CE17: 1 | DH17: 2 | DI17: 3 | DJ17: 5 | DK17: 2 | DL17: 2 | DM17: 122.49 | DN17: P | DO17: 0 | DP17: 0 | DQ17: 0 | DR17: 0 | DS17: =[1]VentillationCompta!X17 -> 0
A18: 15 | B18: L48 A | C18: 0 | D18: 0 | E18: 0 | F18: 0 | G18: 0 | H18: 0 | I18: 0 | J18: 0 | K18: 0 | L18: 0 | M18: 0 | N18: 0 | O18: 0 | P18: 0 | Q18: 0 | R18: 0 | S18: 0 | T18: 0 | W18: 1 | X18: 1 | AA18: 1 | AB18: 1 | AE18: 0 | AO18: 1 | DH18: 1 | DI18: 1 | DJ18: 2 | DK18: 1 | DL18: 0 | DM18: 0 | DN18: V | DO18: 0 | DP18: 0 | DQ18: 0 | DR18: 24.13 | DS18: =[1]VentillationCompta!X18 -> 40401
A19: 16 | B19: FISCHER Geoffrey | C19: 0 | D19: 0 | E19: 0 | F19: 0 | G19: 0 | H19: 0 | I19: 0 | J19: 0 | K19: 0 | L19: 0 | M19: 0 | N19: 0 | O19: 0 | P19: 1 | Q19: 1 | R19: 1 | S19: 0 | T19: 0 | U19: 1 | V19: 1 | W19: 1 | X19: 1 | Y19: 1 | AA19: 1 | AB19: 1 | AC19: 1 | AD19: 1 | AG19: 1 | AH19: 1 | AI19: 1 | AJ19: 1 | AK19: 1 | AM19: 1 | AN19: 1 | AO19: 1 | AQ19: 1 | DH19: 4 | DI19: 5 | DJ19: 5 | DK19: 4 | DL19: 3 | DM19: 0 | DN19: P | DO19: 0 | DP19: 0 | DQ19: 0 | DR19: 74.28 | DS19: =[1]VentillationCompta!X19 -> 0
A20: 17 | B20: POLLY X | C20: 0 | D20: 0 | E20: 0 | F20: 0 | G20: 0 | H20: 0 | I20: 0 | J20: 0 | K20: 0 | L20: 0 | M20: 0 | N20: 0 | O20: 0 | P20: 0 | Q20: 0 | R20: 0 | S20: 0 | T20: 0 | BL20: 1 | BM20: 1 | BN20: 1 | BQ20: 1 | BR20: 1 | BS20: 1 | BT20: 1 | BU20: 1 | BW20: 1 | BY20: 1 | BZ20: 1 | CC20: 1 | CD20: 1 | CE20: 1 | CF20: 1 | CG20: 0 | CI20: 1 | CM20: 1 | DH20: 4 | DI20: =SUM(D20,J20,P20,V20,AB20,AH20,AN20,AT20,AZ20,BF20,BL20,BR20,BX20,CD20,CJ20,CP20,CV20,DB20) -> 3 | DJ20: 4 | DK20: 4 | DL20: 2 | DM20: 0 | DN20: V | DO20: 0 | DP20: 0 | DQ20: 0 | DR20: 65 | DS20: =[1]VentillationCompta!X20 -> 0
A21: 18 | B21: CA X | C21: 0 | D21: 0 | E21: 0 | F21: 0 | G21: 0 | H21: 0 | I21: 0 | J21: 0 | K21: 0 | L21: 0 | M21: 0 | N21: 0 | O21: 0 | P21: 0 | Q21: 0 | R21: 0 | S21: 0 | T21: 0 | DH21: 0 | DI21: 0 | DJ21: 0 | DK21: 0 | DL21: 0 | DM21: 0 | DN21: V | DO21: 0 | DP21: 0 | DQ21: 0 | DR21: 0 | DS21: =[1]VentillationCompta!X21 -> 0
A22: 19 | B22: FRED X | C22: 0 | D22: 0 | E22: 0 | F22: 0 | G22: 0 | H22: 0 | I22: 0 | J22: 0 | K22: 0 | L22: 0 | M22: 0 | N22: 0 | O22: 0 | P22: 0 | Q22: 0 | R22: 0 | S22: 0 | T22: 0 | BS22: 1 | BT22: 1 | BW22: 1 | BX22: 1 | BY22: 1 | BZ22: 1 | CC22: 1 | CD22: 1 | CE22: 1 | CF22: 1 | DH22: 2 | DI22: 2 | DJ22: 3 | DK22: 3 | DL22: 0 | DM22: 0 | DN22: V | DO22: 0 | DP22: CH | DQ22: 0 | DR22: 46.56 | DS22: =[1]VentillationCompta!X22 -> 0
A23: 20 | B23: FARIA Nicolas | C23: 0 | D23: 0 | E23: 0 | F23: 0 | G23: 0 | H23: 0 | I23: 0 | J23: 0 | K23: 0 | L23: 0 | M23: 0 | N23: 0 | O23: 0 | P23: 0 | Q23: 0 | R23: 0 | S23: 0 | T23: 0 | DH23: 0 | DI23: 0 | DJ23: 0 | DK23: 0 | DL23: 0 | DM23: 0 | DN23: P | DO23: 0 | DP23: 0 | DQ23: 0 | DR23: 0 | DS23: =[1]VentillationCompta!X23 -> 0
A24: 21 | B24: PASTOR Bernard | C24: 0 | D24: 0 | E24: 0 | F24: 0 | G24: 0 | H24: 0 | I24: 0 | J24: 0 | K24: 0 | L24: 0 | M24: 0 | N24: 0 | O24: 0 | P24: 0 | Q24: 0 | R24: 0 | S24: 0 | T24: 0 | AN24: 1 | AO24: 1 | AP24: 1 | AS24: 1 | AT24: 1 | AU24: 1 | AV24: 1 | AW24: 1 | AY24: 1 | AZ24: 1 | DH24: 2 | DI24: 3 | DJ24: 2 | DK24: 2 | DL24: 1 | DM24: 0 | DN24: P | DO24: 0 | DP24: CH | DQ24: 0 | DR24: 36.57 | DS24: =[1]VentillationCompta!X24 -> 0
A25: 22 | B25: GRABE Olivier | C25: 0 | D25: 0 | E25: 0 | F25: 0 | G25: 0 | H25: 0 | I25: 0 | J25: 0 | K25: 0 | L25: 0 | M25: 0 | N25: 55.83 | O25: 0 | P25: 1 | Q25: 0 | R25: 0 | S25: 0 | T25: 6.63 | BA25: 1 | BB25: 1 | BE25: 1 | BF25: 1 | BJ25: 5.5 | DH25: 1 | DI25: 2 | DJ25: 1 | DK25: 1 | DL25: 0 | DM25: 67.96 | DN25: P | DO25: 0 | DP25: 0 | DQ25: 0 | DR25: 0 | DS25: =[1]VentillationCompta!X25 -> 21/11/2014
A26: 23 | B26: MONTORIO Céline | C26: 0 | D26: 0 | E26: 0 | F26: 0 | G26: 0 | H26: 0 | I26: 0 | J26: 0 | K26: 0 | L26: 0 | M26: 0 | N26: 0 | O26: 0 | P26: 1 | Q26: 0 | R26: 0 | S26: 0 | T26: 0 | BA26: 1 | BB26: 1 | BE26: 1 | BF26: 1 | BI26: 0 | DH26: 1 | DI26: 2 | DJ26: 1 | DK26: 1 | DL26: 0 | DM26: 0 | DN26: P | DO26: 0 | DP26: 0 | DQ26: 0 | DR26: 0 | DS26: =[1]VentillationCompta!X26 -> 0
A27: 24 | B27: CATTARRINNUSI Paul | C27: 0 | D27: 0 | E27: 0 | F27: 0 | G27: 0 | H27: 0 | I27: 0 | J27: 0 | K27: 0 | L27: 0 | M27: 0 | N27: 0 | O27: 0 | P27: 1 | Q27: 1 | R27: 1 | S27: 1 | T27: 0 | U27: 1 | V27: 1 | W27: 1 | X27: 1 | Y27: 1 | AA27: 1 | AB27: 1 | AC27: 1 | AD27: 1 | AE27: 1 | AG27: 1 | AH27: 1 | AI27: 1 | AJ27: 1 | AK27: 1 | AM27: 1 | AN27: 1 | AO27: 1 | AQ27: 0 | DH27: 4 | DI27: 5 | DJ27: 5 | DK27: 4 | DL27: 4 | DM27: 0 | DN27: P | DO27: 0 | DP27: CH | DQ27: 0 | DR27: 76.06 | DS27: =[1]VentillationCompta!X27 -> 0
A28: 25 | B28: MAUREL Phillipe | C28: 0 | D28: 0 | E28: 0 | F28: 0 | G28: 0 | H28: 0 | I28: 0 | J28: 0 | K28: 0 | L28: 0 | M28: 0 | N28: 0 | O28: 0 | P28: 0 | Q28: 0 | R28: 0 | S28: 0 | T28: 0 | BI28: 1 | DH28: 0 | DI28: 0 | DJ28: 0 | DK28: 0 | DL28: 1 | DM28: 0 | DN28: P | DO28: 0 | DP28: 0 | DQ28: 0 | DR28: 0 | DS28: =[1]VentillationCompta!X28 -> 0
A29: 26 | B29: MAUREL Benjamin | C29: 0 | D29: 0 | E29: 0 | F29: 0 | G29: 0 | H29: 0 | I29: 0 | J29: 0 | K29: 0 | L29: 0 | M29: 0 | N29: 0 | O29: 0 | P29: 0 | Q29: 0 | R29: 0 | S29: 0 | T29: 0 | U29: 0 | V29: 1 | W29: 1 | X29: 1 | Y29: 1 | AA29: 1 | AB29: 1 | AC29: 1 | AD29: 1 | AE29: 1 | AG29: 1 | AH29: 1 | AI29: 1 | AJ29: 1 | AK29: 1 | AM29: 1 | AN29: 1 | AO29: 1 | AP29: 1 | AQ29: 1 | AS29: 1 | AT29: 1 | DH29: 4 | DI29: 5 | DJ29: 4 | DK29: 4 | DL29: 4 | DM29: 0 | DN29: P | DO29: 0 | DP29: 0 | DQ29: 0 | DR29: 71 | DS29: =[1]VentillationCompta!X29 -> 0
A30: 27 | B30: MICHELOT Pierre | C30: 0 | D30: 0 | E30: 0 | F30: 0 | G30: 0 | H30: 0 | I30: 0 | J30: 0 | K30: 1 | L30: 1 | M30: 0 | N30: 0 | O30: 1 | P30: 1 | Q30: 1 | R30: 1 | S30: 1 | T30: 0 | U30: 1 | V30: 1 | W30: 1 | X30: 1 | Y30: 1 | AA30: 1 | AB30: 1 | AC30: 1 | AD30: 1 | AE30: 1 | AG30: 1 | AH30: 1 | AI30: 1 | AJ30: 1 | AK30: 1 | AM30: 1 | AN30: 1 | AO30: 1 | DH30: 5 | DI30: 5 | DJ30: 6 | DK30: 5 | DL30: 4 | DM30: 0 | DN30: P | DO30: 0 | DP30: 0 | DQ30: 0 | DR30: 90.08 | DS30: =[1]VentillationCompta!X30 -> 0
A31: 28 | B31: MICHELOT Francois | C31: 0 | D31: 0 | E31: 0 | F31: 0 | G31: 0 | H31: 0 | I31: 0 | J31: 0 | K31: 2 | L31: 2 | M31: 0 | N31: 0 | O31: 2 | P31: 0 | Q31: 0 | R31: 0 | S31: 0 | T31: 0 | DH31: 2 | DI31: 0 | DJ31: 2 | DK31: 2 | DL31: 0 | DM31: 0 | DN31: V | DO31: 0 | DP31: 0 | DQ31: 0 | DR31: 28.03 | DS31: =[1]VentillationCompta!X31 -> 0
A32: 29 | B32: ISNARD Mathieu | C32: 0 | D32: 0 | E32: 0 | F32: 0 | G32: 0 | H32: 0 | I32: 0 | J32: 0 | K32: 0 | L32: 0 | M32: 0 | N32: 0 | O32: 0 | P32: 0 | Q32: 0 | R32: 0 | S32: 0 | T32: 0 | W32: 1 | X32: 1 | AA32: 1 | AB32: 1 | AC32: 1 | AD32: 1 | AE32: 0 | AG32: 1 | AH32: 1 | AI32: 1 | AJ32: 1 | AK32: 0 | AM32: 1 | AN32: 1 | DH32: 3 | DI32: 3 | DJ32: 3 | DK32: 3 | DL32: 0 | DM32: 0 | DN32: V | DO32: 0 | DP32: 0 | DQ32: 0 | DR32: 51 | DS32: =[1]VentillationCompta!X32 -> 0
A33: 30 | B33: LABADIE Louis | C33: 0 | D33: 0 | E33: 0 | F33: 0 | G33: 0 | H33: 0 | I33: 0 | J33: 0 | K33: 0 | L33: 0 | M33: 0 | N33: 0 | O33: 0 | P33: 1 | Q33: 1 | R33: 1 | S33: 1 | T33: 0 | U33: 1 | V33: 1 | W33: 1 | X33: 1 | Y33: 1 | AA33: 1 | AB33: 1 | AC33: 1 | AD33: 1 | AE33: 1 | AG33: 1 | AH33: 1 | AI33: 1 | AJ33: 1 | AK33: 1 | AM33: 1 | AN33: 1 | AO33: 2 | AQ33: 1 | DH33: 4 | DI33: 5 | DJ33: 6 | DK33: 4 | DL33: 5 | DM33: 0 | DN33: P | DO33: 0 | DP33: 0 | DQ33: 0 | DR33: 79.28 | DS33: =[1]VentillationCompta!X33 -> 0
A34: 31 | B34: MARTIN Yoan | C34: 0 | D34: 0 | E34: 0 | F34: 0 | G34: 0 | H34: 0 | I34: 0 | J34: 0 | K34: 0 | L34: 0 | M34: 0 | N34: 0 | O34: 0 | P34: 0 | Q34: 0 | R34: 0 | S34: 0 | T34: 0 | AZ34: 1 | BA34: 1 | BB34: 1 | BE34: 1 | BF34: 1 | BG34: 1 | BH34: 1 | BI34: 1 | BK34: 1 | BL34: 1 | BO34: 1 | DH34: 2 | DI34: 3 | DJ34: 2 | DK34: 2 | DL34: 2 | DM34: 0 | DN34: P | DO34: 0 | DP34: 0 | DQ34: 0 | DR34: 37.03 | DS34: =[1]VentillationCompta!X34 -> 0
A35: 32 | B35: FARIA Marie farnce | C35: 0 | D35: 0 | E35: 0 | F35: 0 | G35: 0 | H35: 0 | I35: 0 | J35: 0 | K35: 0 | L35: 0 | M35: 0 | N35: 0 | O35: 0 | P35: 0 | Q35: 0 | R35: 0 | S35: 0 | T35: 0 | AJ35: 0 | AP35: 0 | AS35: 0 | DH35: 0 | DI35: 0 | DJ35: 0 | DK35: 0 | DL35: 0 | DM35: 0 | DN35: P | DO35: 0 | DP35: 0 | DQ35: 0 | DR35: 0 | DS35: =[1]VentillationCompta!X35 -> 0
A36: 33 | B36: MARIF Ami | C36: 0 | D36: 0 | E36: 0 | F36: 0 | G36: 0 | H36: 0 | I36: 0 | J36: 0 | K36: 0 | L36: 0 | M36: 0 | N36: 0 | O36: 0 | P36: 0 | Q36: 0 | R36: 0 | S36: 0 | T36: 0 | BA36: 2 | BB36: 2 | BE36: 2 | BF36: 2 | DH36: 2 | DI36: 2 | DJ36: 2 | DK36: 2 | DL36: 0 | DM36: 0 | DN36: V | DO36: 0 | DP36: 0 | DQ36: 0 | DR36: 34 | DS36: =[1]VentillationCompta!X36 -> 0
A37: 34 | B37: MAJOT Laurent | C37: 0 | D37: 0 | E37: 0 | F37: 0 | G37: 0 | H37: 0 | I37: 0 | J37: 0 | K37: 0 | L37: 0 | M37: 0 | N37: 0 | O37: 0 | P37: 0 | Q37: 0 | R37: 0 | S37: 0 | T37: 0 | BS37: 1 | BT37: 1 | BW37: 1 | BX37: 1 | BY37: 1 | BZ37: 1 | DH37: 1 | DI37: 1 | DJ37: 2 | DK37: 2 | DL37: 0 | DM37: 0 | DN37: V | DO37: 0 | DP37: 0 | DQ37: 0 | DR37: 29.53 | DS37: =[1]VentillationCompta!X37 -> 21/11/2014
A38: 35 | B38: XX Xx | C38: 0 | D38: 0 | E38: 0 | F38: 0 | G38: 0 | H38: 0 | I38: 0 | J38: 0 | K38: 0 | L38: 0 | M38: 0 | N38: 0 | O38: 0 | P38: 0 | Q38: 0 | R38: 0 | S38: 0 | T38: 0 | U38: 0 | V38: 0 | W38: 0 | X38: 0 | Y38: 0 | Z38: 0 | AA38: 0 | AB38: 0 | AC38: 0 | AD38: 0 | AE38: 0 | AF38: 0 | AG38: 0 | AH38: 0 | AI38: 0 | AJ38: 0 | AK38: 0 | AL38: 0 | AM38: 0 | AN38: 0 | AO38: 0 | AP38: 0 | AQ38: 0 | AR38: 0 | AS38: 0 | AT38: 0 | AU38: 0 | AV38: 0 | AW38: 0 | AX38: 0 | AY38: 0 | AZ38: 0 | BA38: 0 | BB38: 0 | BC38: 0 | BD38: 0 | BE38: 0 | BF38: 0 | BG38: 0 | BH38: 0 | BI38: 0 | BJ38: 0 | BK38: 0 | BL38: 0 | BM38: 0 | BN38: 0 | BO38: 0 | BP38: 0 | BQ38: 0 | BR38: 0 | BS38: 0 | BT38: 0 | BU38: 0 | BV38: 0 | BW38: 0 | BX38: 0 | BY38: 0 | BZ38: 0 | CA38: 0 | CB38: 0 | CC38: 0 | CD38: 0 | CE38: 0 | CF38: 0 | CG38: 0 | CH38: 0 | CI38: 0 | CJ38: 0 | CK38: 0 | CL38: 0 | CM38: 0 | CN38: 0 | CO38: 0 | CP38: 0 | CQ38: 0 | CR38: 0 | CS38: 0 | CT38: 0 | CU38: 0 | CV38: 0 | CW38: 0 | CX38: 0 | CY38: 0 | CZ38: 0 | DA38: 0 | DB38: 0 | DC38: 0 | DD38: 0 | DE38: 0 | DF38: 0 | DH38: 0 | DI38: 0 | DJ38: 0 | DK38: 0 | DL38: 0 | DM38: 0 | DN38: P | DO38: 0 | DP38: 0 | DQ38: 0 | DR38: 0 | DS38: =[1]VentillationCompta!X38 -> 0
H39: 0 | DH39: 0 | DI39: 0 | DJ39: 0 | DK39: 0 | DL39: 0 | DM39: 0 | DO39: 0 | DP39: 0 | DQ39: 0 | DR39: 0 | DS39: =[1]VentillationCompta!X39 -> 0
H40: 0 | DH40: 0 | DI40: 0 | DJ40: 0 | DK40: 0 | DL40: 0 | DM40: 0 | DO40: 0 | DP40: 0 | DQ40: 0 | DR40: 0 | DS40: =[1]VentillationCompta!X40 -> 0
H41: 0 | DH41: 0 | DI41: 0 | DJ41: 0 | DK41: 0 | DL41: 0 | DM41: 0 | DO41: 0 | DP41: 0 | DQ41: 0 | DR41: 0 | DS41: =[1]VentillationCompta!X41 -> 0
H42: 0 | DH42: 0 | DI42: 0 | DJ42: 0 | DK42: 0 | DL42: 0 | DM42: 0 | DO42: 0 | DP42: 0 | DQ42: 0 | DR42: 0 | DS42: =[1]VentillationCompta!X42 -> 0
H43: 0 | DH43: 0 | DI43: 0 | DJ43: 0 | DK43: 0 | DL43: 0 | DM43: 0 | DO43: 0 | DP43: 0 | DQ43: 0 | DR43: 0 | DS43: =[1]VentillationCompta!X43 -> 0
H44: 0 | DH44: 0 | DI44: 0 | DJ44: 0 | DK44: 0 | DL44: 0 | DM44: 0 | DO44: 0 | DP44: 0 | DQ44: 0 | DR44: 0 | DS44: =[1]VentillationCompta!X44 -> 0
Z82: =SUM(Z48:Z77) -> 0
T84: =SUM(T63)+T62+T60+T50+T48 -> 0

Sheet FicheClubAcceuillant (hidden)
A2: Date d'enregistrement | B2: =TODAY() -> 2018-06-20
A4: Nom du Club | B4: =Parametres!$B$26 -> Aire sur l'Adour
A6: =Parametres!$B$23 -> Aéroclub de Luchon
A7: =Parametres!$A$2 -> 2018
A14: Civilité | B14: M
A16: Nom | B16: BOUZIGUES | C16: Prénom | D16: Patrick
A18: Date de naissance | C18: Profession
A20: Adresse complette | B20: - 64121 - MONTARDON
A22: Téléphone
A24: Mail
B26: jcferdinand@gmail.com
C28: PLANEUR
A29: Pilote | B29: N° de licence
A30: et
A31: Instructeur | B31: N° Instructeur, x = oui
B33: Visite médicale
B34: Fin Visite médicale
B35: Nombre d'heure montagne
C36: 1
A37: Nombre de jour de stage
B38: A payer au club | C38: =SUM(C36)*Parametres!AE5 -> 5
A41: Signature

Sheet DGAC (hidden)
D2: 36 | E2: DATE : | F2: 2021-04-27
D3: 36 | E3: HEURE : | F3: 18:57:29
E4: LIEU : N° | F4: Auch
B5: APPAREIL 1. PROPRIETAIRE 2. LOCATAIRE 3. EXPLOITANT | C5: Immatriculation : | D5: ZS-GDE
C6: Marque et type : | D6: JS1-C
C7: Aérodrome d’attache : | D7: Pole france / Armée de l'air
C8: Nom (ou raison sociale) :
C9: Adresse planeur :
B10: PILOTE | C10: Nom & Prénom (s) : | D10: Christophe - COUSSEAU
C11: Adresse : | D11: 33, allée Christian Martell 13300 Salon de provence
C12: Né le : | D12: 1983-12-05
C13: à :
C14: Profession :
C15: License N° : | D15: 36
C16: Certificat médical délivré le : | E16: Valable jusqu’au :
C17: Carnet de route à bord :
B18: Documents Accès Aide Memento Police Aéronautique Accès Aide Memento Police Aéronautique Accès Aide Memento Police Aéronautique Accès Aide Memento Police Aéronautique Accès Aide Memento Police Aéronautique Accès Aide Memento Police Aéronautique Accès Aide Memento Police Aéronautique | E18: Délivrance :
E19: Délivrance :
E20: Délivrance :
E22: Validité :
C23: Fiche de pesée Centrage à bord :
C24: Manuel de Vol à bord :
C25: Personne à prévenir :
C26: Nom & Prénom (s) :
C27: Téléphone :
B29: Date : | C29: =TODAY() -> 2018-06-20 | D29: Signature:

Sheet Parametres (hidden)
A1: Paramètres dates | C1: Saisir les sommes par ventillation des rubriques | R1: Banque | T1: Colonne=20 | U1: Code OACI | W1: Liste planeur et prix | Z1: Club | AA1: Maxi facturer | AB1: Frais Remorqué et treuil | AF1: Couleur texte | AK1: Dates et Durée et lieu effective | BA1: ID | BB1: FACTURES | BE1: Descriptif | BF1: Chemins des divers dossiers
A2: 2018 | C2: LOYER et charges | O2: 556 | R2: Crédit Mutuel | U2: Autres | W2: JANUS B-PR | X2: F-CEPR | Y2: 24 | Z2: Aire | AA2: 04:00:00 | AC2: Centiémes | AD2: Treuillé | AE2: Journée | AF2: J | BA2: RE | BB2: 101600
A3: 10 | C3: PRIX DE LA NUIT | M3: =SUM(O2)/M4 -> 14.63 | R3: La Poste | U3: Local | W3: LIBELLE | X3: F-CELG | Y3: 20 | Z3: Aire | AA3: 03:00:00 | AB3: Membres club | AC3: 1.8 | AD3: 9 | AF3: P | AJ3: Premier jour | AK3: =$AJ$16 -> 2018-10-20 | BE3: Relevé de compte pilotes | BF3: D:\Stage Aire\Stage-2018\ReleveCompte | BG3: BF3
A4: 17 | C4: Nombre de nuit estimé aux inscriptions | J4: =Licencies!$CV$2 -> 0 | K4: Réelles | M4: 38 | R4: Crédit Lyonnais | U4: Circuit | W4: PEGASE EU | X4: F-CHEU | Y4: 22 | Z4: Aire | AA4: 03:00:00 | AB4: Membres Extérieur | AC4: 2.2 | AD4: 10 | AF4: M | AJ4: Dernier jour | AK4: =$AJ$33 -> 2018-11-04 | BA4: ID | BB4: PLANCHE | BE4: Planches de vols par jours | BF4: D:\Stage Aire\Stage-2018\PDF-Planches | BG4: BF4
A5: =$AJ$16 -> 2018-10-20 | C5: PRIX petit déjeuner Matin | O5: 1.6 | R5: Banque Populaire | U5: LFDA | V5: Aire / Adour | W5: ASTIR | X5: F-CECC | Y5: 20 | Z5: Aire | AA5: 03:00:00 | AB5: Participation journaliére au club | AE5: 5 | AF5: S | AI5: Nombre de jours : | AK5: =$AJ$34 -> 16 | BA5: PL | BB5: 04-2015-01 | BE5: Factures pilotes | BF5: D:\Stage Aire\Stage-2018\PDF-FAC | BG5: BF5
C6: PRIX repas Midi | O6: 3.6 | R6: CIC | U6: LFDM | V6: Marmande | W6: CIRRUS | X6: F-CFDA | Y6: 20 | Z6: Aire | AA6: 03:00:00 | AF6: N | AI6: Lieu du stage : | AK6: =$AN$33 -> Luchon | BE6: Archives dossier | BF6: D:\Stage Aire\Stage-2018\Archives | BG6: BF6
C7: PRIX repas Soir | O7: 5.1 | R7: Crédit Agricole | U7: LFDT | V7: Tarbes | W7: TWIN | X7: F-CFYB | Y7: 20 | Z7: Aire | AA7: 03:00:00 | BE7: Dossier stages AIRE | BF7: D:\Stage Aire\Stage-2018 | BG7: BF7
C8: PRIX de la nuit | O8: =SUM(M3) -> 14.63 | R8: HSBC | U8: LFCO | V8: oloron | W8: Pegase VE | X8: F-CVVE | Y8: 22 | Z8: Aire | AA8: 03:00:00 | BE8: Fiche pilotes jours volés | BF8: D:\Stage Aire\Stage-2018\PDF-Fiche | BG8: BF8
C9: Frais divers convoyage ou autres = | R9: Caisse d'épargne | U9: LFCB | V9: Luchon | W9: Pegase EP | X9: F-CGEP | Y9: 20 | Z9: Luchon | AA9: 03:00:00
C10: Montant du convoyage par nuitées | O10: =SUM(K9)/M4 -> 0 | R10: Chéque Cadeaux | W10: Janus B-PI | X10: F-CEPI | Y10: 28 | Z10: Luchon | AA10: 03:00:00
C11: Relicat de 2015 printemps | M11: 0 | O11: =SUM(M11)/M4 -> 0 | R11: BNP Paribas | W11: ALLIANCE | X11: F-CJHH | Z11: Luchon | AA11: 03:00:00
R12: Société Générale | W12: ASK 21 | X12: F-CDCY | Z12: Bourg | AA12: 03:00:00
W13: Janus C | Y13: 28 | Z13: Luchon | AA13: 03:00:00
W14: LS6 | Y14: 25 | Z14: Luchon | AA14: 03:00:00 | AI14: DUREE, DATES et LIEUX
W15: SF28 18m Cellule | Y15: 20 | Z15: Luchon | AA15: 03:00:00 | AI15: Nombre de jours | AJ15: 16 | AK15: 1) Indiquer le nombre de jours prévu maximum 17 jours
W16: SF28 18m Moteur | Y16: 45 | Z16: Luchon | AA16: 03:00:00 | AI16: 1er jour | AJ16: 2018-10-20 | AM16: Lieu : | AN16: Luchon | AR16: =IF(AN16="",0,1) -> 1 | AS16: 2) MANUELLEMENT VEUILLEZ Indiquer la date au format 01/01/2000 en AJ16 ET LE NOM DU STAGE en AN 16
AI17: Jour 2 | AJ17: =IF(AJ15>1,AJ16+1,"") -> 2018-10-21 | AM17: =IF(AN17="","","Lieu :") -> Lieu : | AN17: =IF(AJ17="","",AN16) -> Luchon | AR17: 1 | AS17: =IF(AN17="","","(Affichage automatique : ne modifier que si nécessaire)") -> (Affichage automatique : ne modifier que si nécessaire)
B18: Nom du stage | R18: Mode de Payement | AI18: Jour 3 | AJ18: =IF(AJ15>2,AJ17+1,"") -> 2018-10-22 | AM18: Lieu : | AN18: Luchon | AR18: 1 | AS18: (Affichage automatique : ne modifier que si nécessaire)
B19: Stage vol à voile luchon Automne 2018 | R19: Chéque | AI19: Jour 4 | AJ19: =IF(AJ15>3,AJ18+1,"") -> 2018-10-23 | AM19: Lieu : | AN19: Luchon | AR19: 1 | AS19: (Affichage automatique : ne modifier que si nécessaire)
R20: Espece | AI20: Jour 5 | AJ20: =IF(AJ15>4,AJ19+1,"") -> 2018-10-24 | AM20: Lieu : | AN20: Luchon | AR20: 1 | AS20: =IF(AN20="","","(Affichage automatique : ne modifier que si nécessaire)") -> (Affichage automatique : ne modifier que si nécessaire)
R21: Chéque cadeau | AI21: Jour 6 | AJ21: =IF(AJ15>5,AJ20+1,"") -> 2018-10-25 | AM21: Lieu : | AN21: Luchon | AR21: 1 | AS21: (Affichage automatique : ne modifier que si nécessaire)
B22: Nom du club acceuillant | AI22: Jour 7 | AJ22: =IF(AJ15>6,AJ21+1,"") -> 2018-10-26 | AM22: Lieu : | AN22: Luchon | AR22: 1 | AS22: (Affichage automatique : ne modifier que si nécessaire)
B23: Aéroclub de Luchon | AI23: Jour 8 | AJ23: =IF(AJ15>7,AJ22+1,"") -> 2018-10-27 | AM23: Lieu : | AN23: Luchon | AR23: 1 | AS23: (Affichage automatique : ne modifier que si nécessaire)
AI24: Jour 9 | AJ24: =IF(AJ15>8,AJ23+1,"") -> 2018-10-28 | AM24: Lieu : | AN24: Luchon | AR24: 1 | AS24: (Affichage automatique : ne modifier que si nécessaire)
B25: Club en stage | AI25: Jour 10 | AJ25: =IF(AJ15>9,AJ24+1,"") -> 2018-10-29 | AM25: Lieu : | AN25: Luchon | AR25: 1 | AS25: (Affichage automatique : ne modifier que si nécessaire)
B26: Aire sur l'Adour | AI26: Jour 11 | AJ26: =IF(AJ15>10,AJ25+1,"") -> 2018-10-30 | AM26: Lieu : | AN26: Luchon | AR26: 1 | AS26: (Affichage automatique : ne modifier que si nécessaire)
AI27: Jour 12 | AJ27: =IF(AJ15>11,AJ26+1,"") -> 2018-10-31 | AM27: Lieu : | AN27: Luchon | AR27: 1 | AS27: (Affichage automatique : ne modifier que si nécessaire)
AI28: Jour 13 | AJ28: =IF(AJ15>12,AJ27+1,"") -> 2018-11-01 | AM28: Lieu : | AN28: Luchon | AR28: 1 | AS28: (Affichage automatique : ne modifier que si nécessaire)
AI29: Jour 14 | AJ29: =IF(AJ15>13,AJ28+1,"") -> 2018-11-02 | AM29: Lieu : | AN29: Luchon | AR29: 1 | AS29: (Affichage automatique : ne modifier que si nécessaire)
AI30: Jour 15 | AJ30: =IF(AJ15>14,AJ29+1,"") -> 2018-11-03 | AM30: Lieu : | AN30: Luchon | AR30: 1 | AS30: (Affichage automatique : ne modifier que si nécessaire)
AI31: Jour 16 | AJ31: =IF(AJ15>15,AJ30+1,"") -> 2018-11-04 | AM31: Lieu : | AN31: Luchon | AR31: 1 | AS31: (Affichage automatique : ne modifier que si nécessaire)
AI32: Jour 17 | AJ32: =IF(AJ15>16,AJ31+1,"") ->  | AN32: =IF(AJ32="","",AN31) ->  | AR32: 0
AI33: Dernier jour | AJ33: =IF($AJ15=17,AJ32,IF($AJ15=16,AJ31,IF($AJ15=15,AJ30,IF($AJ15=14,AJ29,IF($AJ15=13,AJ28,IF($AJ15=12,AJ27,IF($AJ15=11,AJ26,IF($AJ15=10,AJ25,IF($AJ15=9,AJ24,IF($AJ15=8,AJ23,IF($AJ15=7,AJ22,IF($AJ15=6,AJ21,IF($AJ15=5,AJ20,IF($AJ15=4,AJ19,IF($AJ15=3,AJ18,IF($AJ15=2,AJ17,IF($AJ15=1,AJ16,""))))))))))))))))) -> 2018-11-04 | AM33: Lieu : | AN33: =IF(AJ34=17,AN32,IF(AJ34=16,AN31,IF(AJ34=15,AN30,IF(AJ34=14,AN29,IF(AJ34=13,AN28,IF(AJ34=12,AN27,IF(AJ34=11,AN26,IF(AJ34=10,AN25,IF(AJ34=9,AN24,IF(AJ34=8,AN23,IF(AJ34=7,AN22,IF(AJ34=6,AN21,IF(AJ34=5,AN20,IF(AJ34=4,AN19,IF(AJ34=3,AN18,IF(AJ34=2,AN17,IF(AJ34=1,AN16,""))))))))))))))))) -> Luchon | AS33: Affichage automatique : ne pas modifier
AJ34: =SUM(AR16:AR32) -> 16 | AK34: Nombre de jours (contrôle)

Sheet VentillationCompta (hidden)
I1: SUIVIE DES FRAIS PAR PILOTES | AB1: Frais plateforme luchon | BA1: POUR CONTRÔLE DES SAISIES DES JOURNEES
B2: =[2]Feuil1!A126 -> 0 | C2: Satut stage | D2: =SUM(D4:D26) -> 0 | E2: =SUM(E4:E26) -> 24 | F2: =SUM(F4:F26) -> 20 | G2: =SUM(G4:G26) -> 0 | H2: =SUM(H4:H26) -> 3 | J2: =SUM(J4:J26) -> 0 | K2: =SUM(K4:K26) -> 86.4 | L2: =SUM(L4:L26) -> 102 | N2: =SUM(N4:N26) -> 188.4 | O2: =SUM(O4:O26) -> 0 | P2: =SUM(P4:P26) -> 188.4 | Q2: relicat piote N-1 | R2: =SUM(R4:R26) -> 63.79 | S2: =SUM(S4:S26) -> 0 | T2: Acompte 2 | U2: Solde provisoire | V2: Remboursement De trop perçu | W2: Solde Définitif | X2: Date saisi paiement | Y2: Payer Par CH / ESP | Z2: Banque | AA2: N° du chèque | AB2: =SUM(AB4:AB26) -> 15 | AC2: =SUM(AC4:AC26) -> 1 | AD2: Montant TREUILLE Aire | AE2: Nbr treuillé Luchon | AF2: Montant TREUILLE Luchon | AG2: Nbr centiémes Aire | AH2: Montant centième Aire | AI2: Nbr centiémes Luchon | AJ2: Montant centième Luchon | AK2: Montant cellules Luchon | AL2: =SUM(AL4:AL26) -> 25 | AM2: =SUM(AM4:AM26) -> 0 | AN2: Solde | AO2: =SUM(AO4:AO26) -> 0 | AP2: Payer Par CH / ESP | AQ2: Banque | AR2: N° Chéque | AS2: Date de Paiement | AT2: Descriptions des observations | AU2: Téléphone P | BA2: =DATE(Parametres!$A$2,Parametres!$A$3,Parametres!A4)+MOD(-DATE(Parametres!A2,Parametres!A3,-5),7) -> 2018-10-20 | BG2: =1+BA2 -> 2018-10-21 | BM2: =1+BG2 -> 2018-10-22 | BS2: =1+BM2 -> 2018-10-23 | BY2: =1+BS2 -> 2018-10-24 | CE2: =1+BY2 -> 2018-10-25 | CK2: =1+CE2 -> 2018-10-26 | CQ2: =1+CK2 -> 2018-10-27 | CW2: =1+CQ2 -> 2018-10-28 | DC2: =1+CW2 -> 2018-10-29 | DI2: =1+DC2 -> 2018-10-30 | DO2: =1+DI2 -> 2018-10-31 | DU2: =1+DO2 -> 2018-11-01 | EA2: =1+DU2 -> 2018-11-02 | EG2: =1+EA2 -> 2018-11-03 | EM2: =1+EG2 -> 2018-11-04 | ES2: =1+EM2 -> 2018-11-05 | EY2: =1+ES2 -> 2018-11-06
A3: Nbr | B3: Noms | D3: Matin | E3: Midi | F3: Soir | G3: Nuit | H3: Jour | J3: Matin | K3: Midi | L3: Soir | N3: Total en € des repas | O3: Total en € Des nuits | P3: Total dû | R3: Dépenses Fait par le pilote | S3: Acompte payé | AB3: TAXES CLUB | AC3: Nbr treuillé Aire | AL3: Total dû plateforme luchon | AM3: Avance Payé | AO3: Reste dû luchon | BA3: Matin | BB3: Midi | BC3: Soir | BD3: Nuit | BE3: Jour de vol Club | BF3: Frais Dépensé par pilote | BG3: Matin | BH3: Midi | BI3: Soir | BJ3: Nuit | BK3: Jour de vol Club | BL3: Frais Dépensé par pilote | BM3: Matin | BN3: Midi | BO3: Soir | BP3: Nuit | BQ3: Jour de vol Club | BR3: Frais Dépensé par pilote | BS3: Matin | BT3: Midi | BU3: Soir | BV3: Nuit | BW3: Jour de vol Club | BX3: Frais Dépensé par pilote | BY3: Matin | BZ3: Midi | CA3: Soir | CB3: Nuit | CC3: Jour de vol Club | CD3: Frais Dépensé par pilote | CE3: Matin | CF3: Midi | CG3: Soir | CH3: Nuit | CI3: Jour de vol Club | CJ3: Frais Dépensé par pilote | CK3: Matin | CL3: Midi | CM3: Soir | CN3: Nuit | CO3: Jour de vol Club | CP3: Frais Dépensé par pilote | CQ3: Matin | CR3: Midi | CS3: Soir | CT3: Nuit | CU3: Jour de vol Club | CV3: Frais Dépensé par pilote | CW3: Matin | CX3: Midi | CY3: Soir | CZ3: Nuit | DA3: Cotis Jour de vol Club | DB3: Frais Dépensé par pilote | DC3: Matin | DD3: Midi | DE3: Soir | DF3: Nuit | DG3: Cotis Jour de vol Club | DH3: Frais Dépensé par pilote | DI3: Matin | DJ3: Midi | DK3: Soir | DL3: Nuit | DM3: Cotis Jour de vol Club | DN3: Frais Dépensé par pilote | DO3: Matin | DP3: Midi | DQ3: Soir | DR3: Nuit | DS3: Cotis Jour de vol Club | DT3: Frais Dépensé par pilote | DU3: Matin | DV3: Midi | DW3: Soir | DX3: Nuit | DY3: Cotis Jour de vol Club | DZ3: Frais Dépensé par pilote | EA3: Matin | EB3: Midi | EC3: Soir | ED3: Nuit | EE3: Cotis Jour de vol Club | EF3: Frais Dépensé par pilote | EG3: Matin | EH3: Midi | EI3: Soir | EJ3: Nuit | EK3: Cotis Jour de vol Club | EL3: Frais Dépensé par pilote | EM3: Matin | EN3: Midi | EO3: Soir | EP3: Nuit | EQ3: Cotis Jour de vol Club | ER3: Frais Dépensé par pilote | ES3: Matin | ET3: Midi | EU3: Soir | EV3: Nuit | EW3: Cotis Jour de vol Club | EX3: Frais Dépensé par pilote | EY3: Matin | EZ3: Midi | FA3: Soir | FB3: Nuit | FC3: Cotis Jour de vol Club | FD3: Frais Dépensé par pilote
A4: 1 | B4: BIL Bill | C4: P | D4: =SUM(BA4+BG4+BM4+BS4+BY4+CE4+CK4+CQ4+CW4+DC4+DI4+DO4+DU4+EA4+EG4+EM4+ES4+EY4) -> 0 | E4: =SUM(BB4+BH4+BN4+BT4+BZ4+CF4+CL4+CR4+CX4+DD4+DJ4+DP4+DV4+EB4+EH4+EN4+ET4+EZ4) -> 16 | F4: =SUM(BC4+BI4+BO4+BU4+CA4+CG4+CM4+CS4+CY4+DE4+DK4+DQ4+DW4+EC4+EI4+EO4+EU4+FA4) -> 10 | G4: =SUM(BD4+BJ4+BP4+BV4+CB4+CH4+CN4+CT4+CZ4+DF4+DL4+DR4+DX4+ED4+EJ4+EP4+EV4+FB4) -> 0 | H4: =SUM(BE4+BK4+BQ4+BW4+CC4+CI4+CO4+CU4+DA4+DG4+DM4+DS4+DY4+EE4+EK4+EQ4+EW4+FC4) -> 2 | J4: =SUM(D4)*Parametres!O$5 -> 0 | K4: =SUM(E4)*Parametres!O$6 -> 57.6 | L4: =SUM(F4)*Parametres!O$7 -> 51 | M4: = | N4: =SUM(J4:L4) -> 108.6 | O4: =SUM(G4)*Parametres!O$8 -> 0 | P4: =SUM(N4:O4) -> 108.6 | R4: =SUM(BL4+BF4+BR4+BX4+CD4+CJ4+CP4+CV4+DB4+DH4+DN4+DT4+DZ4+EF4+EL4+ER4+EX4+FD4) -> 23.79 | AB4: =SUM(H4)*Parametres!AE$5 -> 10 | AC4: =IF(C4<>"P","",IF(C4="P",IF(ISNA(VLOOKUP(B4,SaisieVols!$Y$4:$AA$48,2,FALSE)),"",VLOOKUP(B4,SaisieVols!$Y$4:$AA$48,2,FALSE)))) -> 1 | AD4: =SUM(AC4)*Parametres!AD$4 -> 10 | AE4: =IF(C4<>"P","",IF(C4="P",IF(ISNA(VLOOKUP(B4,SaisieVols!$Y$4:$AC$48,4,FALSE)),"",VLOOKUP(B4,SaisieVols!$Y$4:$AC$48,4,FALSE)))) -> 0 | AF4: =SUM(AE4)*Parametres!AD$3 -> 0 | AG4: =IF(C4<>"P","",IF(C4="P",IF(ISNA(VLOOKUP(B4,SaisieVols!$Y$4:$AC$48,3,FALSE)),"",VLOOKUP(B4,SaisieVols!$Y$4:$AC$48,3,FALSE)))) -> 0 | AH4: =SUM(AG4)*Parametres!AC$4 -> 0 | AI4: =IF(C4<>"P","",IF(C4="P",IF(ISNA(VLOOKUP(B4,SaisieVols!$Y$4:$AC$48,5,FALSE)),"",VLOOKUP(B4,SaisieVols!$Y$4:$AC$48,5,FALSE)))) -> 0 | AJ4: =SUM(AI4)*Parametres!AC$3 -> 0 | AL4: =SUM(AB4)+AD4+AF4+AH4+AJ4 -> 20 | BA4: 0 | BB4: 4 | BC4: 0 | BD4: 0 | BE4: 1 | BF4: 0 | BG4: 0 | BH4: 4 | BI4: 0 | BJ4: 0 | BK4: 1 | BL4: 0 | BM4: 0 | BN4: 0 | BO4: 0 | BP4: 0 | BQ4: 0 | BR4: 0 | CA4: 1 | CF4: 1 | CG4: 1 | CL4: 1 | CM4: 1 | CP4: 23.79 | CR4: 1 | CS4: 1 | CY4: 1 | DD4: 1 | DE4: 1 | DJ4: 1 | DK4: 1 | DP4: 1 | DQ4: 1 | DV4: 1 | DW4: 1 | EB4: 1 | EC4: 1
A5: 2 | B5: XX Xx | C5: V | D5: 0 | E5: 8 | F5: 10 | G5: 0 | H5: 1 | J5: =SUM(D5)*Parametres!O$5 -> 0 | K5: =SUM(E5)*Parametres!O$6 -> 28.8 | L5: =SUM(F5)*Parametres!O$7 -> 51 | M5: = | N5: 79.8 | O5: =SUM(G5)*Parametres!O$8 -> 0 | P5: 79.8 | R5: 40 | AB5: =SUM(H5)*Parametres!AE$5 -> 5 | AC5: =IF(C5<>"P","",IF(C5="P",IF(ISNA(VLOOKUP(B5,SaisieVols!$Y$4:$AA$48,2,FALSE)),"",VLOOKUP(B5,SaisieVols!$Y$4:$AA$48,2,FALSE)))) ->  | AD5: =SUM(AC5)*Parametres!AD$4 -> 0 | AE5: =IF(C5<>"P","",IF(C5="P",IF(ISNA(VLOOKUP(B5,SaisieVols!$Y$4:$AC$48,4,FALSE)),"",VLOOKUP(B5,SaisieVols!$Y$4:$AC$48,4,FALSE)))) ->  | AF5: =SUM(AE5)*Parametres!AD$3 -> 0 | AG5: =IF(C5<>"P","",IF(C5="P",IF(ISNA(VLOOKUP(B5,SaisieVols!$Y$4:$AC$48,3,FALSE)),"",VLOOKUP(B5,SaisieVols!$Y$4:$AC$48,3,FALSE)))) ->  | AH5: =SUM(AG5)*Parametres!AC$4 -> 0 | AI5: =IF(C5<>"P","",IF(C5="P",IF(ISNA(VLOOKUP(B5,SaisieVols!$Y$4:$AC$48,5,FALSE)),"",VLOOKUP(B5,SaisieVols!$Y$4:$AC$48,5,FALSE)))) ->  | AJ5: =SUM(AI5)*Parametres!AC$3 -> 0 | AL5: 5 | BA5: 0 | BB5: 0 | BC5: 0 | BD5: 0 | BE5: 1 | BF5: 40 | BG5: 0 | BH5: 0 | BI5: 0 | BJ5: 0 | BK5: 0 | BL5: 0 | BM5: 0 | BN5: 0 | BO5: 0 | BP5: 0 | BQ5: 0 | BR5: 0 | BU5: 1 | BZ5: 1 | CA5: 1 | CF5: 1 | CG5: 1 | CL5: 1 | CM5: 1 | CR5: 1 | CS5: 1 | CY5: 1 | DD5: 1 | DE5: 1 | DJ5: 1 | DK5: 1 | DP5: 1 | DQ5: 1 | DV5: 1 | DW5: 1
A6: 3 | B6: YYY Yy | C6: P | D6: 0 | E6: 0 | F6: 0 | G6: 0 | H6: 0 | J6: =SUM(D6)*Parametres!O$5 -> 0 | K6: =SUM(E6)*Parametres!O$6 -> 0 | L6: =SUM(F6)*Parametres!O$7 -> 0 | M6: = | N6: 0 | O6: =SUM(G6)*Parametres!O$8 -> 0 | P6: 0 | R6: 0 | AB6: =SUM(H6)*Parametres!AE$5 -> 0 | AC6: =IF(C6<>"P","",IF(C6="P",IF(ISNA(VLOOKUP(B6,SaisieVols!$Y$4:$AA$48,2,FALSE)),"",VLOOKUP(B6,SaisieVols!$Y$4:$AA$48,2,FALSE)))) ->  | AD6: =SUM(AC6)*Parametres!AD$4 -> 0 | AE6: =IF(C6<>"P","",IF(C6="P",IF(ISNA(VLOOKUP(B6,SaisieVols!$Y$4:$AC$48,4,FALSE)),"",VLOOKUP(B6,SaisieVols!$Y$4:$AC$48,4,FALSE)))) ->  | AF6: =SUM(AE6)*Parametres!AD$3 -> 0 | AG6: =IF(C6<>"P","",IF(C6="P",IF(ISNA(VLOOKUP(B6,SaisieVols!$Y$4:$AC$48,3,FALSE)),"",VLOOKUP(B6,SaisieVols!$Y$4:$AC$48,3,FALSE)))) ->  | AH6: =SUM(AG6)*Parametres!AC$4 -> 0 | AI6: =IF(C6<>"P","",IF(C6="P",IF(ISNA(VLOOKUP(B6,SaisieVols!$Y$4:$AC$48,5,FALSE)),"",VLOOKUP(B6,SaisieVols!$Y$4:$AC$48,5,FALSE)))) ->  | AJ6: =SUM(AI6)*Parametres!AC$3 -> 0 | AL6: 0 | BA6: 0 | BB6: 0 | BC6: 0 | BD6: 0 | BE6: 0 | BF6: 0 | BG6: 0 | BH6: 0 | BI6: 0 | BJ6: 0 | BK6: 0 | BL6: 0 | BM6: 0 | BN6: 0 | BO6: 0 | BP6: 0 | BQ6: 0 | BR6: 0 | BS6: 0 | BT6: 0 | BU6: 0 | BV6: 0 | BW6: 0 | BX6: 0 | BY6: 0 | BZ6: 0 | CA6: 0 | CB6: 0 | CC6: 0 | CD6: 0 | CE6: 0 | CF6: 0 | CG6: 0 | CH6: 0 | CI6: 0 | CJ6: 0 | CK6: 0 | CL6: 0 | CM6: 0 | CN6: 0 | CO6: 0 | CP6: 0 | CQ6: 0 | CR6: 0 | CS6: 0 | CT6: 0 | CU6: 0 | CV6: 0 | CW6: 0 | CX6: 0 | CY6: 0 | CZ6: 0 | DA6: 0 | DB6: 0 | DC6: 0 | DD6: 0 | DE6: 0 | DF6: 0 | DG6: 0 | DH6: 0 | DI6: 0 | DJ6: 0 | DK6: 0 | DL6: 0 | DM6: 0 | DN6: 0 | DO6: 0 | DP6: 0 | DQ6: 0 | DR6: 0 | DS6: 0 | DT6: 0 | DU6: 0 | DV6: 0 | DW6: 0 | DX6: 0 | DY6: 0 | DZ6: 0 | EA6: 0 | EB6: 0 | EC6: 0 | ED6: 0 | EE6: 0 | EF6: 0 | EG6: 0 | EH6: 0 | EI6: 0 | EJ6: 0 | EK6: 0 | EL6: 0 | EM6: 0 | EN6: 0 | EO6: 0 | EP6: 0 | EQ6: 0 | ER6: 0 | ES6: 0 | ET6: 0 | EU6: 0 | EV6: 0 | EW6: 0 | EX6: 0 | EY6: 0 | EZ6: 0 | FA6: 0 | FB6: 0 | FC6: 0 | FD6: 0
D7: 0 | E7: 0 | F7: 0 | G7: 0 | H7: 0 | J7: =SUM(D7)*Parametres!O$5 -> 0 | K7: =SUM(E7)*Parametres!O$6 -> 0 | L7: =SUM(F7)*Parametres!O$7 -> 0 | M7: = | N7: 0 | O7: =SUM(G7)*Parametres!O$8 -> 0 | P7: 0 | R7: 0 | AB7: =SUM(H7)*Parametres!AE$5 -> 0 | AC7: =IF(C7<>"P","",IF(C7="P",IF(ISNA(VLOOKUP(B7,SaisieVols!$Y$4:$AA$48,2,FALSE)),"",VLOOKUP(B7,SaisieVols!$Y$4:$AA$48,2,FALSE)))) ->  | AD7: =SUM(AC7)*Parametres!AD$4 -> 0 | AE7: =IF(C7<>"P","",IF(C7="P",IF(ISNA(VLOOKUP(B7,SaisieVols!$Y$4:$AC$48,4,FALSE)),"",VLOOKUP(B7,SaisieVols!$Y$4:$AC$48,4,FALSE)))) ->  | AF7: =SUM(AE7)*Parametres!AD$3 -> 0 | AG7: =IF(C7<>"P","",IF(C7="P",IF(ISNA(VLOOKUP(B7,SaisieVols!$Y$4:$AC$48,3,FALSE)),"",VLOOKUP(B7,SaisieVols!$Y$4:$AC$48,3,FALSE)))) ->  | AH7: =SUM(AG7)*Parametres!AC$4 -> 0 | AI7: =IF(C7<>"P","",IF(C7="P",IF(ISNA(VLOOKUP(B7,SaisieVols!$Y$4:$AC$48,5,FALSE)),"",VLOOKUP(B7,SaisieVols!$Y$4:$AC$48,5,FALSE)))) ->  | AJ7: =SUM(AI7)*Parametres!AC$3 -> 0 | AL7: 0
D8: 0 | E8: 0 | F8: 0 | G8: 0 | H8: 0 | J8: =SUM(D8)*Parametres!O$5 -> 0 | K8: =SUM(E8)*Parametres!O$6 -> 0 | L8: =SUM(F8)*Parametres!O$7 -> 0 | M8: = | N8: 0 | O8: =SUM(G8)*Parametres!O$8 -> 0 | P8: 0 | R8: 0 | AB8: =SUM(H8)*Parametres!AE$5 -> 0 | AC8: =IF(C8<>"P","",IF(C8="P",IF(ISNA(VLOOKUP(B8,SaisieVols!$Y$4:$AA$48,2,FALSE)),"",VLOOKUP(B8,SaisieVols!$Y$4:$AA$48,2,FALSE)))) ->  | AD8: =SUM(AC8)*Parametres!AD$4 -> 0 | AE8: =IF(C8<>"P","",IF(C8="P",IF(ISNA(VLOOKUP(B8,SaisieVols!$Y$4:$AC$48,4,FALSE)),"",VLOOKUP(B8,SaisieVols!$Y$4:$AC$48,4,FALSE)))) ->  | AF8: =SUM(AE8)*Parametres!AD$3 -> 0 | AG8: =IF(C8<>"P","",IF(C8="P",IF(ISNA(VLOOKUP(B8,SaisieVols!$Y$4:$AC$48,3,FALSE)),"",VLOOKUP(B8,SaisieVols!$Y$4:$AC$48,3,FALSE)))) ->  | AH8: =SUM(AG8)*Parametres!AC$4 -> 0 | AI8: =IF(C8<>"P","",IF(C8="P",IF(ISNA(VLOOKUP(B8,SaisieVols!$Y$4:$AC$48,5,FALSE)),"",VLOOKUP(B8,SaisieVols!$Y$4:$AC$48,5,FALSE)))) ->  | AJ8: =SUM(AI8)*Parametres!AC$3 -> 0 | AL8: 0
D9: 0 | E9: 0 | F9: 0 | G9: 0 | H9: 0 | J9: =SUM(D9)*Parametres!O$5 -> 0 | K9: =SUM(E9)*Parametres!O$6 -> 0 | L9: =SUM(F9)*Parametres!O$7 -> 0 | M9: = | N9: 0 | O9: =SUM(G9)*Parametres!O$8 -> 0 | P9: 0 | R9: 0 | AB9: =SUM(H9)*Parametres!AE$5 -> 0 | AC9: =IF(C9<>"P","",IF(C9="P",IF(ISNA(VLOOKUP(B9,SaisieVols!$Y$4:$AA$48,2,FALSE)),"",VLOOKUP(B9,SaisieVols!$Y$4:$AA$48,2,FALSE)))) ->  | AD9: =SUM(AC9)*Parametres!AD$4 -> 0 | AE9: =IF(C9<>"P","",IF(C9="P",IF(ISNA(VLOOKUP(B9,SaisieVols!$Y$4:$AC$48,4,FALSE)),"",VLOOKUP(B9,SaisieVols!$Y$4:$AC$48,4,FALSE)))) ->  | AF9: =SUM(AE9)*Parametres!AD$3 -> 0 | AG9: =IF(C9<>"P","",IF(C9="P",IF(ISNA(VLOOKUP(B9,SaisieVols!$Y$4:$AC$48,3,FALSE)),"",VLOOKUP(B9,SaisieVols!$Y$4:$AC$48,3,FALSE)))) ->  | AH9: =SUM(AG9)*Parametres!AC$4 -> 0 | AI9: =IF(C9<>"P","",IF(C9="P",IF(ISNA(VLOOKUP(B9,SaisieVols!$Y$4:$AC$48,5,FALSE)),"",VLOOKUP(B9,SaisieVols!$Y$4:$AC$48,5,FALSE)))) ->  | AJ9: =SUM(AI9)*Parametres!AC$3 -> 0 | AL9: 0
D10: =SUM(BA10+BG10+BM10+BS10+BY10+CE10+CK10+CQ10+CW10+DC10+DI10+DO10+DU10+EA10+EG10+EM10+ES10+EY10) -> 0 | E10: =SUM(BB10+BH10+BN10+BT10+BZ10+CF10+CL10+CR10+CX10+DD10+DJ10+DP15+DV15+EB15+EH15+EN15+ET15+EZ15) -> 0 | F10: =SUM(BC10+BI10+BO10+BU10+CA10+CG10+CM10+CS10+CY10+DE10+DK10+DQ10+DW10+EC10+EI10+EO10+EU10+FA10) -> 0 | G10: =SUM(BD10+BJ10+BP10+BV10+CB10+CH10+CN10+CT10+CZ10+DF10+DL10+DR10+DX10+ED10+EJ10+EP10+EV10+FB10) -> 0 | H10: =SUM(BE10+BK10+BQ10+BW10+CC10+CI10+CO10+CU10+DA10+DG10+DM10+DS15+DY15+EE15+EK15+EQ15+EW15+FC15) -> 0 | J10: =SUM(D10)*Parametres!O$5 -> 0 | K10: =SUM(E10)*Parametres!O$6 -> 0 | L10: =SUM(F10)*Parametres!O$7 -> 0 | M10: = | N10: 0 | O10: =SUM(G10)*Parametres!O$8 -> 0 | P10: 0 | R10: 0 | AB10: =SUM(H10)*Parametres!AE$5 -> 0 | AC10: =IF(C10<>"P","",IF(C10="P",IF(ISNA(VLOOKUP(B10,SaisieVols!$Y$4:$AA$48,2,FALSE)),"",VLOOKUP(B10,SaisieVols!$Y$4:$AA$48,2,FALSE)))) ->  | AD10: =SUM(AC10)*Parametres!AD$4 -> 0 | AE10: =IF(C10<>"P","",IF(C10="P",IF(ISNA(VLOOKUP(B10,SaisieVols!$Y$4:$AC$48,4,FALSE)),"",VLOOKUP(B10,SaisieVols!$Y$4:$AC$48,4,FALSE)))) ->  | AF10: =SUM(AE10)*Parametres!AD$3 -> 0 | AG10: =IF(C10<>"P","",IF(C10="P",IF(ISNA(VLOOKUP(B10,SaisieVols!$Y$4:$AC$48,3,FALSE)),"",VLOOKUP(B10,SaisieVols!$Y$4:$AC$48,3,FALSE)))) ->  | AH10: =SUM(AG10)*Parametres!AC$4 -> 0 | AI10: =IF(C10<>"P","",IF(C10="P",IF(ISNA(VLOOKUP(B10,SaisieVols!$Y$4:$AC$48,5,FALSE)),"",VLOOKUP(B10,SaisieVols!$Y$4:$AC$48,5,FALSE)))) ->  | AJ10: =SUM(AI10)*Parametres!AC$3 -> 0 | AL10: 0
D11: 0 | E11: 0 | F11: 0 | G11: 0 | H11: 0 | J11: =SUM(D11)*Parametres!O$5 -> 0 | K11: =SUM(E11)*Parametres!O$6 -> 0 | L11: =SUM(F11)*Parametres!O$7 -> 0 | M11: = | N11: 0 | O11: =SUM(G11)*Parametres!O$8 -> 0 | P11: 0 | R11: 0 | AB11: =SUM(H11)*Parametres!AE$5 -> 0 | AC11: =IF(C11<>"P","",IF(C11="P",IF(ISNA(VLOOKUP(B11,SaisieVols!$Y$4:$AA$48,2,FALSE)),"",VLOOKUP(B11,SaisieVols!$Y$4:$AA$48,2,FALSE)))) ->  | AD11: =SUM(AC11)*Parametres!AD$4 -> 0 | AE11: =IF(C11<>"P","",IF(C11="P",IF(ISNA(VLOOKUP(B11,SaisieVols!$Y$4:$AC$48,4,FALSE)),"",VLOOKUP(B11,SaisieVols!$Y$4:$AC$48,4,FALSE)))) ->  | AF11: =SUM(AE11)*Parametres!AD$3 -> 0 | AG11: =IF(C11<>"P","",IF(C11="P",IF(ISNA(VLOOKUP(B11,SaisieVols!$Y$4:$AC$48,3,FALSE)),"",VLOOKUP(B11,SaisieVols!$Y$4:$AC$48,3,FALSE)))) ->  | AH11: =SUM(AG11)*Parametres!AC$4 -> 0 | AI11: =IF(C11<>"P","",IF(C11="P",IF(ISNA(VLOOKUP(B11,SaisieVols!$Y$4:$AC$48,5,FALSE)),"",VLOOKUP(B11,SaisieVols!$Y$4:$AC$48,5,FALSE)))) ->  | AJ11: =SUM(AI11)*Parametres!AC$3 -> 0 | AL11: 0
D12: 0 | E12: 0 | F12: 0 | G12: 0 | H12: 0 | J12: =SUM(D12)*Parametres!O$5 -> 0 | K12: =SUM(E12)*Parametres!O$6 -> 0 | L12: =SUM(F12)*Parametres!O$7 -> 0 | M12: = | N12: 0 | O12: =SUM(G12)*Parametres!O$8 -> 0 | P12: 0 | R12: 0 | AB12: =SUM(H12)*Parametres!AE$5 -> 0 | AC12: =IF(C12<>"P","",IF(C12="P",IF(ISNA(VLOOKUP(B12,SaisieVols!$Y$4:$AA$48,2,FALSE)),"",VLOOKUP(B12,SaisieVols!$Y$4:$AA$48,2,FALSE)))) ->  | AD12: =SUM(AC12)*Parametres!AD$4 -> 0 | AE12: =IF(C12<>"P","",IF(C12="P",IF(ISNA(VLOOKUP(B12,SaisieVols!$Y$4:$AC$48,4,FALSE)),"",VLOOKUP(B12,SaisieVols!$Y$4:$AC$48,4,FALSE)))) ->  | AF12: =SUM(AE12)*Parametres!AD$3 -> 0 | AG12: =IF(C12<>"P","",IF(C12="P",IF(ISNA(VLOOKUP(B12,SaisieVols!$Y$4:$AC$48,3,FALSE)),"",VLOOKUP(B12,SaisieVols!$Y$4:$AC$48,3,FALSE)))) ->  | AH12: =SUM(AG12)*Parametres!AC$4 -> 0 | AI12: =IF(C12<>"P","",IF(C12="P",IF(ISNA(VLOOKUP(B12,SaisieVols!$Y$4:$AC$48,5,FALSE)),"",VLOOKUP(B12,SaisieVols!$Y$4:$AC$48,5,FALSE)))) ->  | AJ12: =SUM(AI12)*Parametres!AC$3 -> 0 | AL12: 0
D13: 0 | E13: 0 | F13: =SUM(BC13+BI13+BO13+BU13+CA13+CG13+CM13+CS13+CY13+DE13+DK13+DQ18+DW18+EC18+EI18+EO18+EU18+FA18) -> 0 | G13: 0 | H13: 0 | J13: =SUM(D13)*Parametres!O$5 -> 0 | K13: =SUM(E13)*Parametres!O$6 -> 0 | L13: =SUM(F13)*Parametres!O$7 -> 0 | M13: = | N13: 0 | O13: =SUM(G13)*Parametres!O$8 -> 0 | P13: 0 | R13: 0 | AB13: =SUM(H13)*Parametres!AE$5 -> 0 | AC13: =IF(C13<>"P","",IF(C13="P",IF(ISNA(VLOOKUP(B13,SaisieVols!$Y$4:$AA$48,2,FALSE)),"",VLOOKUP(B13,SaisieVols!$Y$4:$AA$48,2,FALSE)))) ->  | AD13: =SUM(AC13)*Parametres!AD$4 -> 0 | AE13: =IF(C13<>"P","",IF(C13="P",IF(ISNA(VLOOKUP(B13,SaisieVols!$Y$4:$AC$48,4,FALSE)),"",VLOOKUP(B13,SaisieVols!$Y$4:$AC$48,4,FALSE)))) ->  | AF13: =SUM(AE13)*Parametres!AD$3 -> 0 | AG13: =IF(C13<>"P","",IF(C13="P",IF(ISNA(VLOOKUP(B13,SaisieVols!$Y$4:$AC$48,3,FALSE)),"",VLOOKUP(B13,SaisieVols!$Y$4:$AC$48,3,FALSE)))) ->  | AH13: =SUM(AG13)*Parametres!AC$4 -> 0 | AI13: =IF(C13<>"P","",IF(C13="P",IF(ISNA(VLOOKUP(B13,SaisieVols!$Y$4:$AC$48,5,FALSE)),"",VLOOKUP(B13,SaisieVols!$Y$4:$AC$48,5,FALSE)))) ->  | AJ13: =SUM(AI13)*Parametres!AC$3 -> 0 | AL13: 0
D14: 0 | E14: 0 | F14: 0 | G14: 0 | H14: 0 | J14: =SUM(D14)*Parametres!O$5 -> 0 | K14: =SUM(E14)*Parametres!O$6 -> 0 | L14: =SUM(F14)*Parametres!O$7 -> 0 | M14: = | N14: 0 | O14: =SUM(G14)*Parametres!O$8 -> 0 | P14: 0 | R14: 0 | AB14: =SUM(H14)*Parametres!AE$5 -> 0 | AC14: =IF(C14<>"P","",IF(C14="P",IF(ISNA(VLOOKUP(B14,SaisieVols!$Y$4:$AA$48,2,FALSE)),"",VLOOKUP(B14,SaisieVols!$Y$4:$AA$48,2,FALSE)))) ->  | AD14: =SUM(AC14)*Parametres!AD$4 -> 0 | AE14: =IF(C14<>"P","",IF(C14="P",IF(ISNA(VLOOKUP(B14,SaisieVols!$Y$4:$AC$48,4,FALSE)),"",VLOOKUP(B14,SaisieVols!$Y$4:$AC$48,4,FALSE)))) ->  | AF14: =SUM(AE14)*Parametres!AD$3 -> 0 | AG14: =IF(C14<>"P","",IF(C14="P",IF(ISNA(VLOOKUP(B14,SaisieVols!$Y$4:$AC$48,3,FALSE)),"",VLOOKUP(B14,SaisieVols!$Y$4:$AC$48,3,FALSE)))) ->  | AH14: =SUM(AG14)*Parametres!AC$4 -> 0 | AI14: =IF(C14<>"P","",IF(C14="P",IF(ISNA(VLOOKUP(B14,SaisieVols!$Y$4:$AC$48,5,FALSE)),"",VLOOKUP(B14,SaisieVols!$Y$4:$AC$48,5,FALSE)))) ->  | AJ14: =SUM(AI14)*Parametres!AC$3 -> 0 | AL14: 0
D15: 0 | E15: 0 | F15: 0 | G15: 0 | H15: 0 | J15: =SUM(D15)*Parametres!O$5 -> 0 | K15: =SUM(E15)*Parametres!O$6 -> 0 | L15: =SUM(F15)*Parametres!O$7 -> 0 | M15: = | N15: =SUM(J15:L15) -> 0 | O15: =SUM(G15)*Parametres!O$8 -> 0 | P15: =SUM(N15:O15) -> 0 | R15: 0 | AB15: =SUM(H15)*Parametres!AE$5 -> 0 | AC15: =IF(C15<>"P","",IF(C15="P",IF(ISNA(VLOOKUP(B15,SaisieVols!$Y$4:$AA$48,2,FALSE)),"",VLOOKUP(B15,SaisieVols!$Y$4:$AA$48,2,FALSE)))) ->  | AD15: =SUM(AC15)*Parametres!AD$4 -> 0 | AE15: =IF(C15<>"P","",IF(C15="P",IF(ISNA(VLOOKUP(B15,SaisieVols!$Y$4:$AC$48,4,FALSE)),"",VLOOKUP(B15,SaisieVols!$Y$4:$AC$48,4,FALSE)))) ->  | AF15: =SUM(AE15)*Parametres!AD$3 -> 0 | AG15: =IF(C15<>"P","",IF(C15="P",IF(ISNA(VLOOKUP(B15,SaisieVols!$Y$4:$AC$48,3,FALSE)),"",VLOOKUP(B15,SaisieVols!$Y$4:$AC$48,3,FALSE)))) ->  | AH15: =SUM(AG15)*Parametres!AC$4 -> 0 | AI15: =IF(C15<>"P","",IF(C15="P",IF(ISNA(VLOOKUP(B15,SaisieVols!$Y$4:$AC$48,5,FALSE)),"",VLOOKUP(B15,SaisieVols!$Y$4:$AC$48,5,FALSE)))) ->  | AJ15: =SUM(AI15)*Parametres!AC$3 -> 0 | AL15: 0
D16: 0 | E16: 0 | F16: 0 | G16: 0 | H16: 0 | J16: =SUM(D16)*Parametres!O$5 -> 0 | K16: =SUM(E16)*Parametres!O$6 -> 0 | L16: =SUM(F16)*Parametres!O$7 -> 0 | M16: = | N16: =SUM(J16:L16) -> 0 | O16: =SUM(G16)*Parametres!O$8 -> 0 | P16: =SUM(N16:O16) -> 0 | R16: 0 | AB16: =SUM(H16)*Parametres!AE$5 -> 0 | AC16: =IF(C16<>"P","",IF(C16="P",IF(ISNA(VLOOKUP(B16,SaisieVols!$Y$4:$AA$48,2,FALSE)),"",VLOOKUP(B16,SaisieVols!$Y$4:$AA$48,2,FALSE)))) ->  | AD16: =SUM(AC16)*Parametres!AD$4 -> 0 | AE16: =IF(C16<>"P","",IF(C16="P",IF(ISNA(VLOOKUP(B16,SaisieVols!$Y$4:$AC$48,4,FALSE)),"",VLOOKUP(B16,SaisieVols!$Y$4:$AC$48,4,FALSE)))) ->  | AF16: =SUM(AE16)*Parametres!AD$3 -> 0 | AG16: =IF(C16<>"P","",IF(C16="P",IF(ISNA(VLOOKUP(B16,SaisieVols!$Y$4:$AC$48,3,FALSE)),"",VLOOKUP(B16,SaisieVols!$Y$4:$AC$48,3,FALSE)))) ->  | AH16: =SUM(AG16)*Parametres!AC$4 -> 0 | AI16: =IF(C16<>"P","",IF(C16="P",IF(ISNA(VLOOKUP(B16,SaisieVols!$Y$4:$AC$48,5,FALSE)),"",VLOOKUP(B16,SaisieVols!$Y$4:$AC$48,5,FALSE)))) ->  | AJ16: =SUM(AI16)*Parametres!AC$3 -> 0 | AL16: 0
D17: 0 | E17: 0 | F17: 0 | G17: =SUM(BD17+BJ17+BP17+BV17+CB17+CH17+CN17+CT17+CZ17+DF17+DL17+DR22+DX22+ED22+EJ22+EP22+EV22+FB22) -> 0 | H17: 0 | J17: =SUM(D17)*Parametres!O$5 -> 0 | K17: =SUM(E17)*Parametres!O$6 -> 0 | L17: =SUM(F17)*Parametres!O$7 -> 0 | M17: = | N17: 0 | O17: =SUM(G17)*Parametres!O$8 -> 0 | P17: 0 | R17: 0 | AB17: =SUM(H17)*Parametres!AE$5 -> 0 | AC17: =IF(C17<>"P","",IF(C17="P",IF(ISNA(VLOOKUP(B17,SaisieVols!$Y$4:$AA$48,2,FALSE)),"",VLOOKUP(B17,SaisieVols!$Y$4:$AA$48,2,FALSE)))) ->  | AD17: =SUM(AC17)*Parametres!AD$4 -> 0 | AE17: =IF(C17<>"P","",IF(C17="P",IF(ISNA(VLOOKUP(B17,SaisieVols!$Y$4:$AC$48,4,FALSE)),"",VLOOKUP(B17,SaisieVols!$Y$4:$AC$48,4,FALSE)))) ->  | AF17: =SUM(AE17)*Parametres!AD$3 -> 0 | AG17: =IF(C17<>"P","",IF(C17="P",IF(ISNA(VLOOKUP(B17,SaisieVols!$Y$4:$AC$48,3,FALSE)),"",VLOOKUP(B17,SaisieVols!$Y$4:$AC$48,3,FALSE)))) ->  | AH17: =SUM(AG17)*Parametres!AC$4 -> 0 | AI17: =IF(C17<>"P","",IF(C17="P",IF(ISNA(VLOOKUP(B17,SaisieVols!$Y$4:$AC$48,5,FALSE)),"",VLOOKUP(B17,SaisieVols!$Y$4:$AC$48,5,FALSE)))) ->  | AJ17: =SUM(AI17)*Parametres!AC$3 -> 0 | AL17: 0
D18: 0 | E18: 0 | F18: 0 | G18: 0 | H18: 0 | J18: =SUM(D18)*Parametres!O$5 -> 0 | K18: =SUM(E18)*Parametres!O$6 -> 0 | L18: =SUM(F18)*Parametres!O$7 -> 0 | M18: = | N18: 0 | O18: =SUM(G18)*Parametres!O$8 -> 0 | P18: 0 | R18: 0 | AB18: =SUM(H18)*Parametres!AE$5 -> 0 | AC18: =IF(C18<>"P","",IF(C18="P",IF(ISNA(VLOOKUP(B18,SaisieVols!$Y$4:$AA$48,2,FALSE)),"",VLOOKUP(B18,SaisieVols!$Y$4:$AA$48,2,FALSE)))) ->  | AD18: =SUM(AC18)*Parametres!AD$4 -> 0 | AE18: =IF(C18<>"P","",IF(C18="P",IF(ISNA(VLOOKUP(B18,SaisieVols!$Y$4:$AC$48,4,FALSE)),"",VLOOKUP(B18,SaisieVols!$Y$4:$AC$48,4,FALSE)))) ->  | AF18: =SUM(AE18)*Parametres!AD$3 -> 0 | AG18: =IF(C18<>"P","",IF(C18="P",IF(ISNA(VLOOKUP(B18,SaisieVols!$Y$4:$AC$48,3,FALSE)),"",VLOOKUP(B18,SaisieVols!$Y$4:$AC$48,3,FALSE)))) ->  | AH18: =SUM(AG18)*Parametres!AC$4 -> 0 | AI18: =IF(C18<>"P","",IF(C18="P",IF(ISNA(VLOOKUP(B18,SaisieVols!$Y$4:$AC$48,5,FALSE)),"",VLOOKUP(B18,SaisieVols!$Y$4:$AC$48,5,FALSE)))) ->  | AJ18: =SUM(AI18)*Parametres!AC$3 -> 0 | AL18: 0
D19: 0 | E19: 0 | F19: 0 | G19: 0 | H19: 0 | J19: =SUM(D19)*Parametres!O$5 -> 0 | K19: =SUM(E19)*Parametres!O$6 -> 0 | L19: =SUM(F19)*Parametres!O$7 -> 0 | M19: = | N19: 0 | O19: =SUM(G19)*Parametres!O$8 -> 0 | P19: 0 | R19: 0 | AB19: =SUM(H19)*Parametres!AE$5 -> 0 | AC19: =IF(C19<>"P","",IF(C19="P",IF(ISNA(VLOOKUP(B19,SaisieVols!$Y$4:$AA$48,2,FALSE)),"",VLOOKUP(B19,SaisieVols!$Y$4:$AA$48,2,FALSE)))) ->  | AD19: =SUM(AC19)*Parametres!AD$4 -> 0 | AE19: =IF(C19<>"P","",IF(C19="P",IF(ISNA(VLOOKUP(B19,SaisieVols!$Y$4:$AC$48,4,FALSE)),"",VLOOKUP(B19,SaisieVols!$Y$4:$AC$48,4,FALSE)))) ->  | AF19: =SUM(AE19)*Parametres!AD$3 -> 0 | AG19: =IF(C19<>"P","",IF(C19="P",IF(ISNA(VLOOKUP(B19,SaisieVols!$Y$4:$AC$48,3,FALSE)),"",VLOOKUP(B19,SaisieVols!$Y$4:$AC$48,3,FALSE)))) ->  | AH19: =SUM(AG19)*Parametres!AC$4 -> 0 | AI19: =IF(C19<>"P","",IF(C19="P",IF(ISNA(VLOOKUP(B19,SaisieVols!$Y$4:$AC$48,5,FALSE)),"",VLOOKUP(B19,SaisieVols!$Y$4:$AC$48,5,FALSE)))) ->  | AJ19: =SUM(AI19)*Parametres!AC$3 -> 0 | AL19: 0
D20: 0 | E20: 0 | F20: 0 | G20: 0 | H20: 0 | J20: =SUM(D20)*Parametres!O$5 -> 0 | K20: =SUM(E20)*Parametres!O$6 -> 0 | L20: =SUM(F20)*Parametres!O$7 -> 0 | M20: = | N20: 0 | O20: =SUM(G20)*Parametres!O$8 -> 0 | P20: 0 | R20: 0 | AB20: =SUM(H20)*Parametres!AE$5 -> 0 | AC20: =IF(C20<>"P","",IF(C20="P",IF(ISNA(VLOOKUP(B20,SaisieVols!$Y$4:$AA$48,2,FALSE)),"",VLOOKUP(B20,SaisieVols!$Y$4:$AA$48,2,FALSE)))) ->  | AD20: =SUM(AC20)*Parametres!AD$4 -> 0 | AE20: =IF(C20<>"P","",IF(C20="P",IF(ISNA(VLOOKUP(B20,SaisieVols!$Y$4:$AC$48,4,FALSE)),"",VLOOKUP(B20,SaisieVols!$Y$4:$AC$48,4,FALSE)))) ->  | AF20: =SUM(AE20)*Parametres!AD$3 -> 0 | AG20: =IF(C20<>"P","",IF(C20="P",IF(ISNA(VLOOKUP(B20,SaisieVols!$Y$4:$AC$48,3,FALSE)),"",VLOOKUP(B20,SaisieVols!$Y$4:$AC$48,3,FALSE)))) ->  | AH20: =SUM(AG20)*Parametres!AC$4 -> 0 | AI20: =IF(C20<>"P","",IF(C20="P",IF(ISNA(VLOOKUP(B20,SaisieVols!$Y$4:$AC$48,5,FALSE)),"",VLOOKUP(B20,SaisieVols!$Y$4:$AC$48,5,FALSE)))) ->  | AJ20: =SUM(AI20)*Parametres!AC$3 -> 0 | AL20: 0
D21: 0 | E21: =SUM(BB21+BH21+BN21+BT21+BZ21+CF21+CL21+CR21+CX21+DD21+DJ21+DP37+DV37+EB37+EH37+EN37+ET37+EZ37) -> 0 | F21: 0 | G21: 0 | H21: 0 | J21: =SUM(D21)*Parametres!O$5 -> 0 | K21: =SUM(E21)*Parametres!O$6 -> 0 | L21: =SUM(F21)*Parametres!O$7 -> 0 | M21: = | N21: 0 | O21: =SUM(G21)*Parametres!O$8 -> 0 | P21: 0 | R21: 0 | AB21: =SUM(H21)*Parametres!AE$5 -> 0 | AC21: =IF(C21<>"P","",IF(C21="P",IF(ISNA(VLOOKUP(B21,SaisieVols!$Y$4:$AA$48,2,FALSE)),"",VLOOKUP(B21,SaisieVols!$Y$4:$AA$48,2,FALSE)))) ->  | AD21: =SUM(AC21)*Parametres!AD$4 -> 0 | AE21: =IF(C21<>"P","",IF(C21="P",IF(ISNA(VLOOKUP(B21,SaisieVols!$Y$4:$AC$48,4,FALSE)),"",VLOOKUP(B21,SaisieVols!$Y$4:$AC$48,4,FALSE)))) ->  | AF21: =SUM(AE21)*Parametres!AD$3 -> 0 | AG21: =IF(C21<>"P","",IF(C21="P",IF(ISNA(VLOOKUP(B21,SaisieVols!$Y$4:$AC$48,3,FALSE)),"",VLOOKUP(B21,SaisieVols!$Y$4:$AC$48,3,FALSE)))) ->  | AH21: =SUM(AG21)*Parametres!AC$4 -> 0 | AI21: =IF(C21<>"P","",IF(C21="P",IF(ISNA(VLOOKUP(B21,SaisieVols!$Y$4:$AC$48,5,FALSE)),"",VLOOKUP(B21,SaisieVols!$Y$4:$AC$48,5,FALSE)))) ->  | AJ21: =SUM(AI21)*Parametres!AC$3 -> 0 | AL21: 0
D22: 0 | E22: 0 | F22: 0 | G22: 0 | H22: 0 | J22: =SUM(D22)*Parametres!O$5 -> 0 | K22: =SUM(E22)*Parametres!O$6 -> 0 | L22: =SUM(F22)*Parametres!O$7 -> 0 | M22: = | N22: 0 | O22: =SUM(G22)*Parametres!O$8 -> 0 | P22: 0 | R22: 0 | AB22: =SUM(H22)*Parametres!AE$5 -> 0 | AC22: =IF(C22<>"P","",IF(C22="P",IF(ISNA(VLOOKUP(B22,SaisieVols!$Y$4:$AA$48,2,FALSE)),"",VLOOKUP(B22,SaisieVols!$Y$4:$AA$48,2,FALSE)))) ->  | AD22: =SUM(AC22)*Parametres!AD$4 -> 0 | AE22: =IF(C22<>"P","",IF(C22="P",IF(ISNA(VLOOKUP(B22,SaisieVols!$Y$4:$AC$48,4,FALSE)),"",VLOOKUP(B22,SaisieVols!$Y$4:$AC$48,4,FALSE)))) ->  | AF22: =SUM(AE22)*Parametres!AD$3 -> 0 | AG22: =IF(C22<>"P","",IF(C22="P",IF(ISNA(VLOOKUP(B22,SaisieVols!$Y$4:$AC$48,3,FALSE)),"",VLOOKUP(B22,SaisieVols!$Y$4:$AC$48,3,FALSE)))) ->  | AH22: =SUM(AG22)*Parametres!AC$4 -> 0 | AI22: =IF(C22<>"P","",IF(C22="P",IF(ISNA(VLOOKUP(B22,SaisieVols!$Y$4:$AC$48,5,FALSE)),"",VLOOKUP(B22,SaisieVols!$Y$4:$AC$48,5,FALSE)))) ->  | AJ22: =SUM(AI22)*Parametres!AC$3 -> 0 | AL22: 0
D23: 0 | E23: 0 | F23: 0 | G23: 0 | H23: 0 | J23: =SUM(D23)*Parametres!O$5 -> 0 | K23: =SUM(E23)*Parametres!O$6 -> 0 | L23: =SUM(F23)*Parametres!O$7 -> 0 | M23: = | N23: 0 | O23: =SUM(G23)*Parametres!O$8 -> 0 | P23: 0 | R23: 0 | AB23: =SUM(H23)*Parametres!AE$5 -> 0 | AC23: =IF(C23<>"P","",IF(C23="P",IF(ISNA(VLOOKUP(B23,SaisieVols!$Y$4:$AA$48,2,FALSE)),"",VLOOKUP(B23,SaisieVols!$Y$4:$AA$48,2,FALSE)))) ->  | AD23: =SUM(AC23)*Parametres!AD$4 -> 0 | AE23: =IF(C23<>"P","",IF(C23="P",IF(ISNA(VLOOKUP(B23,SaisieVols!$Y$4:$AC$48,4,FALSE)),"",VLOOKUP(B23,SaisieVols!$Y$4:$AC$48,4,FALSE)))) ->  | AF23: =SUM(AE23)*Parametres!AD$3 -> 0 | AG23: =IF(C23<>"P","",IF(C23="P",IF(ISNA(VLOOKUP(B23,SaisieVols!$Y$4:$AC$48,3,FALSE)),"",VLOOKUP(B23,SaisieVols!$Y$4:$AC$48,3,FALSE)))) ->  | AH23: =SUM(AG23)*Parametres!AC$4 -> 0 | AI23: =IF(C23<>"P","",IF(C23="P",IF(ISNA(VLOOKUP(B23,SaisieVols!$Y$4:$AC$48,5,FALSE)),"",VLOOKUP(B23,SaisieVols!$Y$4:$AC$48,5,FALSE)))) ->  | AJ23: =SUM(AI23)*Parametres!AC$3 -> 0 | AL23: 0
D24: 0 | E24: 0 | F24: 0 | G24: 0 | H24: 0 | J24: =SUM(D24)*Parametres!O$5 -> 0 | K24: =SUM(E24)*Parametres!O$6 -> 0 | L24: =SUM(F24)*Parametres!O$7 -> 0 | M24: = | N24: =SUM(J24:L24) -> 0 | O24: =SUM(G24)*Parametres!O$8 -> 0 | P24: =SUM(N24:O24) -> 0 | R24: 0 | AB24: =SUM(H24)*Parametres!AE$5 -> 0 | AC24: =IF(C24<>"P","",IF(C24="P",IF(ISNA(VLOOKUP(B24,SaisieVols!$Y$4:$AA$48,2,FALSE)),"",VLOOKUP(B24,SaisieVols!$Y$4:$AA$48,2,FALSE)))) ->  | AD24: =SUM(AC24)*Parametres!AD$4 -> 0 | AE24: =IF(C24<>"P","",IF(C24="P",IF(ISNA(VLOOKUP(B24,SaisieVols!$Y$4:$AC$48,4,FALSE)),"",VLOOKUP(B24,SaisieVols!$Y$4:$AC$48,4,FALSE)))) ->  | AF24: =SUM(AE24)*Parametres!AD$3 -> 0 | AG24: =IF(C24<>"P","",IF(C24="P",IF(ISNA(VLOOKUP(B24,SaisieVols!$Y$4:$AC$48,3,FALSE)),"",VLOOKUP(B24,SaisieVols!$Y$4:$AC$48,3,FALSE)))) ->  | AH24: =SUM(AG24)*Parametres!AC$4 -> 0 | AI24: =IF(C24<>"P","",IF(C24="P",IF(ISNA(VLOOKUP(B24,SaisieVols!$Y$4:$AC$48,5,FALSE)),"",VLOOKUP(B24,SaisieVols!$Y$4:$AC$48,5,FALSE)))) ->  | AJ24: =SUM(AI24)*Parametres!AC$3 -> 0 | AL24: =SUM(AB24+AD24+AF24+AH24+AJ24) -> 0
D25: 0 | E25: 0 | F25: 0 | G25: 0 | H25: 0 | J25: =SUM(D25)*Parametres!O$5 -> 0 | K25: =SUM(E25)*Parametres!O$6 -> 0 | L25: =SUM(F25)*Parametres!O$7 -> 0 | M25: = | N25: 0 | O25: =SUM(G25)*Parametres!O$8 -> 0 | P25: 0 | R25: =SUM(BL25+BF25+BR25+BX25+CD25+CJ25+CP25+CV25+DB25+DH25+DN25+DT41+DZ41+EF41+EL41+ER41+EX41+FD41) -> 0 | AB25: =SUM(H25)*Parametres!AE$5 -> 0 | AC25: =IF(C25<>"P","",IF(C25="P",IF(ISNA(VLOOKUP(B25,SaisieVols!$Y$4:$AA$48,2,FALSE)),"",VLOOKUP(B25,SaisieVols!$Y$4:$AA$48,2,FALSE)))) ->  | AD25: =SUM(AC25)*Parametres!AD$4 -> 0 | AE25: =IF(C25<>"P","",IF(C25="P",IF(ISNA(VLOOKUP(B25,SaisieVols!$Y$4:$AC$48,4,FALSE)),"",VLOOKUP(B25,SaisieVols!$Y$4:$AC$48,4,FALSE)))) ->  | AF25: =SUM(AE25)*Parametres!AD$3 -> 0 | AG25: =IF(C25<>"P","",IF(C25="P",IF(ISNA(VLOOKUP(B25,SaisieVols!$Y$4:$AC$48,3,FALSE)),"",VLOOKUP(B25,SaisieVols!$Y$4:$AC$48,3,FALSE)))) ->  | AH25: =SUM(AG25)*Parametres!AC$4 -> 0 | AI25: =IF(C25<>"P","",IF(C25="P",IF(ISNA(VLOOKUP(B25,SaisieVols!$Y$4:$AC$48,5,FALSE)),"",VLOOKUP(B25,SaisieVols!$Y$4:$AC$48,5,FALSE)))) ->  | AJ25: =SUM(AI25)*Parametres!AC$3 -> 0 | AL25: 0
D26: 0 | AB26: =SUM(H26)*Parametres!AE$5 -> 0 | AC26: =IF(C26<>"P","",IF(C26="P",IF(ISNA(VLOOKUP(B26,SaisieVols!$Y$4:$AA$48,2,FALSE)),"",VLOOKUP(B26,SaisieVols!$Y$4:$AA$48,2,FALSE)))) ->  | AD26: =SUM(AC26)*Parametres!AD$4 -> 0 | AE26: =IF(C26<>"P","",IF(C26="P",IF(ISNA(VLOOKUP(B26,SaisieVols!$Y$4:$AC$48,4,FALSE)),"",VLOOKUP(B26,SaisieVols!$Y$4:$AC$48,4,FALSE)))) ->  | AF26: =SUM(AE26)*Parametres!AD$3 -> 0 | AG26: =IF(C26<>"P","",IF(C26="P",IF(ISNA(VLOOKUP(B26,SaisieVols!$Y$4:$AC$48,3,FALSE)),"",VLOOKUP(B26,SaisieVols!$Y$4:$AC$48,3,FALSE)))) ->  | AH26: =SUM(AG26)*Parametres!AC$4 -> 0 | AI26: =IF(C26<>"P","",IF(C26="P",IF(ISNA(VLOOKUP(B26,SaisieVols!$Y$4:$AC$48,5,FALSE)),"",VLOOKUP(B26,SaisieVols!$Y$4:$AC$48,5,FALSE)))) ->  | AJ26: =SUM(AI26)*Parametres!AC$3 -> 0
D27: 0 | AB27: =SUM(H27)*Parametres!AE$5 -> 0 | AC27: =IF(C27<>"P","",IF(C27="P",IF(ISNA(VLOOKUP(B27,SaisieVols!$Y$4:$AA$48,2,FALSE)),"",VLOOKUP(B27,SaisieVols!$Y$4:$AA$48,2,FALSE)))) ->  | AD27: =SUM(AC27)*Parametres!AD$4 -> 0 | AE27: =IF(C27<>"P","",IF(C27="P",IF(ISNA(VLOOKUP(B27,SaisieVols!$Y$4:$AC$48,4,FALSE)),"",VLOOKUP(B27,SaisieVols!$Y$4:$AC$48,4,FALSE)))) ->  | AF27: =SUM(AE27)*Parametres!AD$3 -> 0 | AG27: =IF(C27<>"P","",IF(C27="P",IF(ISNA(VLOOKUP(B27,SaisieVols!$Y$4:$AC$48,3,FALSE)),"",VLOOKUP(B27,SaisieVols!$Y$4:$AC$48,3,FALSE)))) ->  | AH27: =SUM(AG27)*Parametres!AC$4 -> 0 | AI27: =IF(C27<>"P","",IF(C27="P",IF(ISNA(VLOOKUP(B27,SaisieVols!$Y$4:$AC$48,5,FALSE)),"",VLOOKUP(B27,SaisieVols!$Y$4:$AC$48,5,FALSE)))) ->  | AJ27: =SUM(AI27)*Parametres!AC$3 -> 0
D28: 0 | AB28: =SUM(H28)*Parametres!AE$5 -> 0 | AC28: =IF(C28<>"P","",IF(C28="P",IF(ISNA(VLOOKUP(B28,SaisieVols!$Y$4:$AA$48,2,FALSE)),"",VLOOKUP(B28,SaisieVols!$Y$4:$AA$48,2,FALSE)))) ->  | AD28: =SUM(AC28)*Parametres!AD$4 -> 0 | AE28: =IF(C28<>"P","",IF(C28="P",IF(ISNA(VLOOKUP(B28,SaisieVols!$Y$4:$AC$48,4,FALSE)),"",VLOOKUP(B28,SaisieVols!$Y$4:$AC$48,4,FALSE)))) ->  | AF28: =SUM(AE28)*Parametres!AD$3 -> 0 | AG28: =IF(C28<>"P","",IF(C28="P",IF(ISNA(VLOOKUP(B28,SaisieVols!$Y$4:$AC$48,3,FALSE)),"",VLOOKUP(B28,SaisieVols!$Y$4:$AC$48,3,FALSE)))) ->  | AH28: =SUM(AG28)*Parametres!AC$4 -> 0 | AI28: =IF(C28<>"P","",IF(C28="P",IF(ISNA(VLOOKUP(B28,SaisieVols!$Y$4:$AC$48,5,FALSE)),"",VLOOKUP(B28,SaisieVols!$Y$4:$AC$48,5,FALSE)))) ->  | AJ28: =SUM(AI28)*Parametres!AC$3 -> 0
D29: 0 | AB29: =SUM(H29)*Parametres!AE$5 -> 0 | AC29: =IF(C29<>"P","",IF(C29="P",IF(ISNA(VLOOKUP(B29,SaisieVols!$Y$4:$AA$48,2,FALSE)),"",VLOOKUP(B29,SaisieVols!$Y$4:$AA$48,2,FALSE)))) ->  | AD29: =SUM(AC29)*Parametres!AD$4 -> 0 | AE29: =IF(C29<>"P","",IF(C29="P",IF(ISNA(VLOOKUP(B29,SaisieVols!$Y$4:$AC$48,4,FALSE)),"",VLOOKUP(B29,SaisieVols!$Y$4:$AC$48,4,FALSE)))) ->  | AF29: =SUM(AE29)*Parametres!AD$3 -> 0 | AG29: =IF(C29<>"P","",IF(C29="P",IF(ISNA(VLOOKUP(B29,SaisieVols!$Y$4:$AC$48,3,FALSE)),"",VLOOKUP(B29,SaisieVols!$Y$4:$AC$48,3,FALSE)))) ->  | AH29: =SUM(AG29)*Parametres!AC$4 -> 0 | AI29: =IF(C29<>"P","",IF(C29="P",IF(ISNA(VLOOKUP(B29,SaisieVols!$Y$4:$AC$48,5,FALSE)),"",VLOOKUP(B29,SaisieVols!$Y$4:$AC$48,5,FALSE)))) ->  | AJ29: =SUM(AI29)*Parametres!AC$3 -> 0
D30: 0 | AB30: =SUM(H30)*Parametres!AE$5 -> 0 | AC30: =IF(C30<>"P","",IF(C30="P",IF(ISNA(VLOOKUP(B30,SaisieVols!$Y$4:$AA$48,2,FALSE)),"",VLOOKUP(B30,SaisieVols!$Y$4:$AA$48,2,FALSE)))) ->  | AD30: =SUM(AC30)*Parametres!AD$4 -> 0 | AE30: =IF(C30<>"P","",IF(C30="P",IF(ISNA(VLOOKUP(B30,SaisieVols!$Y$4:$AC$48,4,FALSE)),"",VLOOKUP(B30,SaisieVols!$Y$4:$AC$48,4,FALSE)))) ->  | AF30: =SUM(AE30)*Parametres!AD$3 -> 0 | AG30: =IF(C30<>"P","",IF(C30="P",IF(ISNA(VLOOKUP(B30,SaisieVols!$Y$4:$AC$48,3,FALSE)),"",VLOOKUP(B30,SaisieVols!$Y$4:$AC$48,3,FALSE)))) ->  | AH30: =SUM(AG30)*Parametres!AC$4 -> 0 | AI30: =IF(C30<>"P","",IF(C30="P",IF(ISNA(VLOOKUP(B30,SaisieVols!$Y$4:$AC$48,5,FALSE)),"",VLOOKUP(B30,SaisieVols!$Y$4:$AC$48,5,FALSE)))) ->  | AJ30: =SUM(AI30)*Parametres!AC$3 -> 0
D31: 0 | AB31: =SUM(H31)*Parametres!AE$5 -> 0 | AC31: =IF(C31<>"P","",IF(C31="P",IF(ISNA(VLOOKUP(B31,SaisieVols!$Y$4:$AA$48,2,FALSE)),"",VLOOKUP(B31,SaisieVols!$Y$4:$AA$48,2,FALSE)))) ->  | AD31: =SUM(AC31)*Parametres!AD$4 -> 0 | AE31: =IF(C31<>"P","",IF(C31="P",IF(ISNA(VLOOKUP(B31,SaisieVols!$Y$4:$AC$48,4,FALSE)),"",VLOOKUP(B31,SaisieVols!$Y$4:$AC$48,4,FALSE)))) ->  | AF31: =SUM(AE31)*Parametres!AD$3 -> 0 | AG31: =IF(C31<>"P","",IF(C31="P",IF(ISNA(VLOOKUP(B31,SaisieVols!$Y$4:$AC$48,3,FALSE)),"",VLOOKUP(B31,SaisieVols!$Y$4:$AC$48,3,FALSE)))) ->  | AH31: =SUM(AG31)*Parametres!AC$4 -> 0 | AI31: =IF(C31<>"P","",IF(C31="P",IF(ISNA(VLOOKUP(B31,SaisieVols!$Y$4:$AC$48,5,FALSE)),"",VLOOKUP(B31,SaisieVols!$Y$4:$AC$48,5,FALSE)))) ->  | AJ31: =SUM(AI31)*Parametres!AC$3 -> 0
D32: 0 | AB32: =SUM(H32)*Parametres!AE$5 -> 0 | AC32: =IF(C32<>"P","",IF(C32="P",IF(ISNA(VLOOKUP(B32,SaisieVols!$Y$4:$AA$48,2,FALSE)),"",VLOOKUP(B32,SaisieVols!$Y$4:$AA$48,2,FALSE)))) ->  | AD32: =SUM(AC32)*Parametres!AD$4 -> 0 | AE32: =IF(C32<>"P","",IF(C32="P",IF(ISNA(VLOOKUP(B32,SaisieVols!$Y$4:$AC$48,4,FALSE)),"",VLOOKUP(B32,SaisieVols!$Y$4:$AC$48,4,FALSE)))) ->  | AF32: =SUM(AE32)*Parametres!AD$3 -> 0 | AG32: =IF(C32<>"P","",IF(C32="P",IF(ISNA(VLOOKUP(B32,SaisieVols!$Y$4:$AC$48,3,FALSE)),"",VLOOKUP(B32,SaisieVols!$Y$4:$AC$48,3,FALSE)))) ->  | AH32: =SUM(AG32)*Parametres!AC$4 -> 0 | AI32: =IF(C32<>"P","",IF(C32="P",IF(ISNA(VLOOKUP(B32,SaisieVols!$Y$4:$AC$48,5,FALSE)),"",VLOOKUP(B32,SaisieVols!$Y$4:$AC$48,5,FALSE)))) ->  | AJ32: =SUM(AI32)*Parametres!AC$3 -> 0
D33: 0 | AB33: =SUM(H33)*Parametres!AE$5 -> 0 | AC33: =IF(C33<>"P","",IF(C33="P",IF(ISNA(VLOOKUP(B33,SaisieVols!$Y$4:$AA$48,2,FALSE)),"",VLOOKUP(B33,SaisieVols!$Y$4:$AA$48,2,FALSE)))) ->  | AD33: =SUM(AC33)*Parametres!AD$4 -> 0 | AE33: =IF(C33<>"P","",IF(C33="P",IF(ISNA(VLOOKUP(B33,SaisieVols!$Y$4:$AC$48,4,FALSE)),"",VLOOKUP(B33,SaisieVols!$Y$4:$AC$48,4,FALSE)))) ->  | AF33: =SUM(AE33)*Parametres!AD$3 -> 0 | AG33: =IF(C33<>"P","",IF(C33="P",IF(ISNA(VLOOKUP(B33,SaisieVols!$Y$4:$AC$48,3,FALSE)),"",VLOOKUP(B33,SaisieVols!$Y$4:$AC$48,3,FALSE)))) ->  | AH33: =SUM(AG33)*Parametres!AC$4 -> 0 | AI33: =IF(C33<>"P","",IF(C33="P",IF(ISNA(VLOOKUP(B33,SaisieVols!$Y$4:$AC$48,5,FALSE)),"",VLOOKUP(B33,SaisieVols!$Y$4:$AC$48,5,FALSE)))) ->  | AJ33: =SUM(AI33)*Parametres!AC$3 -> 0
D34: 0 | AB34: =SUM(H34)*Parametres!AE$5 -> 0 | AC34: =IF(C34<>"P","",IF(C34="P",IF(ISNA(VLOOKUP(B34,SaisieVols!$Y$4:$AA$48,2,FALSE)),"",VLOOKUP(B34,SaisieVols!$Y$4:$AA$48,2,FALSE)))) ->  | AD34: =SUM(AC34)*Parametres!AD$4 -> 0 | AE34: =IF(C34<>"P","",IF(C34="P",IF(ISNA(VLOOKUP(B34,SaisieVols!$Y$4:$AC$48,4,FALSE)),"",VLOOKUP(B34,SaisieVols!$Y$4:$AC$48,4,FALSE)))) ->  | AF34: =SUM(AE34)*Parametres!AD$3 -> 0 | AG34: =IF(C34<>"P","",IF(C34="P",IF(ISNA(VLOOKUP(B34,SaisieVols!$Y$4:$AC$48,3,FALSE)),"",VLOOKUP(B34,SaisieVols!$Y$4:$AC$48,3,FALSE)))) ->  | AH34: =SUM(AG34)*Parametres!AC$4 -> 0 | AI34: =IF(C34<>"P","",IF(C34="P",IF(ISNA(VLOOKUP(B34,SaisieVols!$Y$4:$AC$48,5,FALSE)),"",VLOOKUP(B34,SaisieVols!$Y$4:$AC$48,5,FALSE)))) ->  | AJ34: =SUM(AI34)*Parametres!AC$3 -> 0
D35: 0 | AB35: =SUM(H35)*Parametres!AE$5 -> 0 | AC35: =IF(C35<>"P","",IF(C35="P",IF(ISNA(VLOOKUP(B35,SaisieVols!$Y$4:$AA$48,2,FALSE)),"",VLOOKUP(B35,SaisieVols!$Y$4:$AA$48,2,FALSE)))) ->  | AD35: =SUM(AC35)*Parametres!AD$4 -> 0 | AE35: =IF(C35<>"P","",IF(C35="P",IF(ISNA(VLOOKUP(B35,SaisieVols!$Y$4:$AC$48,4,FALSE)),"",VLOOKUP(B35,SaisieVols!$Y$4:$AC$48,4,FALSE)))) ->  | AF35: =SUM(AE35)*Parametres!AD$3 -> 0 | AG35: =IF(C35<>"P","",IF(C35="P",IF(ISNA(VLOOKUP(B35,SaisieVols!$Y$4:$AC$48,3,FALSE)),"",VLOOKUP(B35,SaisieVols!$Y$4:$AC$48,3,FALSE)))) ->  | AH35: =SUM(AG35)*Parametres!AC$4 -> 0 | AI35: =IF(C35<>"P","",IF(C35="P",IF(ISNA(VLOOKUP(B35,SaisieVols!$Y$4:$AC$48,5,FALSE)),"",VLOOKUP(B35,SaisieVols!$Y$4:$AC$48,5,FALSE)))) ->  | AJ35: =SUM(AI35)*Parametres!AC$3 -> 0
D36: 0 | AB36: =SUM(H36)*Parametres!AE$5 -> 0 | AC36: =IF(C36<>"P","",IF(C36="P",IF(ISNA(VLOOKUP(B36,SaisieVols!$Y$4:$AA$48,2,FALSE)),"",VLOOKUP(B36,SaisieVols!$Y$4:$AA$48,2,FALSE)))) ->  | AD36: =SUM(AC36)*Parametres!AD$4 -> 0 | AE36: =IF(C36<>"P","",IF(C36="P",IF(ISNA(VLOOKUP(B36,SaisieVols!$Y$4:$AC$48,4,FALSE)),"",VLOOKUP(B36,SaisieVols!$Y$4:$AC$48,4,FALSE)))) ->  | AF36: =SUM(AE36)*Parametres!AD$3 -> 0 | AG36: =IF(C36<>"P","",IF(C36="P",IF(ISNA(VLOOKUP(B36,SaisieVols!$Y$4:$AC$48,3,FALSE)),"",VLOOKUP(B36,SaisieVols!$Y$4:$AC$48,3,FALSE)))) ->  | AH36: =SUM(AG36)*Parametres!AC$4 -> 0 | AI36: =IF(C36<>"P","",IF(C36="P",IF(ISNA(VLOOKUP(B36,SaisieVols!$Y$4:$AC$48,5,FALSE)),"",VLOOKUP(B36,SaisieVols!$Y$4:$AC$48,5,FALSE)))) ->  | AJ36: =SUM(AI36)*Parametres!AC$3 -> 0
D37: 0 | E37: =SUM(BB37+BH37+BN37+BT37+BZ37+CF37+CL37+CR37+CX37+DD37+DJ37+DP42+DV42+EB42+EH42+EN42+ET42+EZ42) -> 0 | F37: =SUM(BC37+BI37+BO37+BU37+CA37+CG37+CM37+CS37+CY37+DE37+DK37+DQ42+DW42+EC42+EI42+EO42+EU42+FA42) -> 0 | G37: =SUM(BD37+BJ37+BP37+BV37+CB37+CH37+CN37+CT37+CZ37+DF37+DL37+DR42+DX42+ED42+EJ42+EP42+EV42+FB42) -> 0 | H37: =SUM(BE37+BK37+BQ37+BW37+CC37+CI37+CO37+CU37+DA37+DG37+DM37+DS42+DY42+EE42+EK42+EQ42+EW42+FC42) -> 0 | J37: =SUM(D37)*Parametres!O$5 -> 0 | K37: =SUM(E37)*Parametres!O$6 -> 0 | L37: =SUM(F37)*Parametres!O$7 -> 0 | M37: = | N37: 0 | O37: =SUM(G37)*Parametres!O$8 -> 0 | P37: 0 | R37: =SUM(BL37+BF37+BR37+BX37+CD37+CJ37+CP37+CV37+DB37+DH37+DN37+DT42+DZ42+EF42+EL42+ER42+EX42+FD42) -> 0 | AB37: =SUM(H37)*Parametres!AE$5 -> 0 | AC37: =IF(C37<>"P","",IF(C37="P",IF(ISNA(VLOOKUP(B37,SaisieVols!$Y$4:$AA$48,2,FALSE)),"",VLOOKUP(B37,SaisieVols!$Y$4:$AA$48,2,FALSE)))) ->  | AD37: =SUM(AC37)*Parametres!AD$4 -> 0 | AE37: =IF(C37<>"P","",IF(C37="P",IF(ISNA(VLOOKUP(B37,SaisieVols!$Y$4:$AC$48,4,FALSE)),"",VLOOKUP(B37,SaisieVols!$Y$4:$AC$48,4,FALSE)))) ->  | AF37: =SUM(AE37)*Parametres!AD$3 -> 0 | AG37: =IF(C37<>"P","",IF(C37="P",IF(ISNA(VLOOKUP(B37,SaisieVols!$Y$4:$AC$48,3,FALSE)),"",VLOOKUP(B37,SaisieVols!$Y$4:$AC$48,3,FALSE)))) ->  | AH37: =SUM(AG37)*Parametres!AC$4 -> 0 | AI37: =IF(C37<>"P","",IF(C37="P",IF(ISNA(VLOOKUP(B37,SaisieVols!$Y$4:$AC$48,5,FALSE)),"",VLOOKUP(B37,SaisieVols!$Y$4:$AC$48,5,FALSE)))) ->  | AJ37: =SUM(AI37)*Parametres!AC$3 -> 0 | AL37: 0
D38: 0 | E38: 0 | F38: 0 | G38: 0 | H38: 0 | J38: =SUM(D38)*Parametres!O$5 -> 0 | K38: =SUM(E38)*Parametres!O$6 -> 0 | L38: =SUM(F38)*Parametres!O$7 -> 0 | M38: = | N38: 0 | O38: =SUM(G38)*Parametres!O$8 -> 0 | P38: 0 | R38: 0 | AB38: =SUM(H38)*Parametres!AE$5 -> 0 | AC38: =IF(C38<>"P","",IF(C38="P",IF(ISNA(VLOOKUP(B38,SaisieVols!$Y$4:$AA$48,2,FALSE)),"",VLOOKUP(B38,SaisieVols!$Y$4:$AA$48,2,FALSE)))) ->  | AD38: =SUM(AC38)*Parametres!AD$4 -> 0 | AE38: =IF(C38<>"P","",IF(C38="P",IF(ISNA(VLOOKUP(B38,SaisieVols!$Y$4:$AC$48,4,FALSE)),"",VLOOKUP(B38,SaisieVols!$Y$4:$AC$48,4,FALSE)))) ->  | AF38: =SUM(AE38)*Parametres!AD$3 -> 0 | AG38: =IF(C38<>"P","",IF(C38="P",IF(ISNA(VLOOKUP(B38,SaisieVols!$Y$4:$AC$48,3,FALSE)),"",VLOOKUP(B38,SaisieVols!$Y$4:$AC$48,3,FALSE)))) ->  | AH38: =SUM(AG38)*Parametres!AC$4 -> 0 | AI38: =IF(C38<>"P","",IF(C38="P",IF(ISNA(VLOOKUP(B38,SaisieVols!$Y$4:$AC$48,5,FALSE)),"",VLOOKUP(B38,SaisieVols!$Y$4:$AC$48,5,FALSE)))) ->  | AJ38: =SUM(AI38)*Parametres!AC$3 -> 0 | AL38: 0
D39: 0 | E39: 0 | F39: 0 | G39: 0 | H39: 0 | J39: =SUM(D39)*Parametres!O$5 -> 0 | K39: =SUM(E39)*Parametres!O$6 -> 0 | L39: =SUM(F39)*Parametres!O$7 -> 0 | M39: = | N39: 0 | O39: =SUM(G39)*Parametres!O$8 -> 0 | P39: 0 | R39: 0 | AB39: =SUM(H39)*Parametres!AE$5 -> 0 | AC39: =IF(C39<>"P","",IF(C39="P",IF(ISNA(VLOOKUP(B39,SaisieVols!$Y$4:$AA$48,2,FALSE)),"",VLOOKUP(B39,SaisieVols!$Y$4:$AA$48,2,FALSE)))) ->  | AD39: =SUM(AC39)*Parametres!AD$4 -> 0 | AE39: =IF(C39<>"P","",IF(C39="P",IF(ISNA(VLOOKUP(B39,SaisieVols!$Y$4:$AC$48,4,FALSE)),"",VLOOKUP(B39,SaisieVols!$Y$4:$AC$48,4,FALSE)))) ->  | AF39: =SUM(AE39)*Parametres!AD$3 -> 0 | AG39: =IF(C39<>"P","",IF(C39="P",IF(ISNA(VLOOKUP(B39,SaisieVols!$Y$4:$AC$48,3,FALSE)),"",VLOOKUP(B39,SaisieVols!$Y$4:$AC$48,3,FALSE)))) ->  | AH39: =SUM(AG39)*Parametres!AC$4 -> 0 | AI39: =IF(C39<>"P","",IF(C39="P",IF(ISNA(VLOOKUP(B39,SaisieVols!$Y$4:$AC$48,5,FALSE)),"",VLOOKUP(B39,SaisieVols!$Y$4:$AC$48,5,FALSE)))) ->  | AJ39: =SUM(AI39)*Parametres!AC$3 -> 0 | AL39: 0
D40: 0 | E40: 0 | F40: 0 | G40: 0 | H40: 0 | J40: =SUM(D40)*Parametres!O$5 -> 0 | K40: =SUM(E40)*Parametres!O$6 -> 0 | L40: =SUM(F40)*Parametres!O$7 -> 0 | M40: = | N40: 0 | O40: =SUM(G40)*Parametres!O$8 -> 0 | P40: 0 | R40: 0 | AB40: =SUM(H40)*Parametres!AE$5 -> 0 | AC40: =IF(C40<>"P","",IF(C40="P",IF(ISNA(VLOOKUP(B40,SaisieVols!$Y$4:$AA$48,2,FALSE)),"",VLOOKUP(B40,SaisieVols!$Y$4:$AA$48,2,FALSE)))) ->  | AD40: =SUM(AC40)*Parametres!AD$4 -> 0 | AE40: =IF(C40<>"P","",IF(C40="P",IF(ISNA(VLOOKUP(B40,SaisieVols!$Y$4:$AC$48,4,FALSE)),"",VLOOKUP(B40,SaisieVols!$Y$4:$AC$48,4,FALSE)))) ->  | AF40: =SUM(AE40)*Parametres!AD$3 -> 0 | AG40: =IF(C40<>"P","",IF(C40="P",IF(ISNA(VLOOKUP(B40,SaisieVols!$Y$4:$AC$48,3,FALSE)),"",VLOOKUP(B40,SaisieVols!$Y$4:$AC$48,3,FALSE)))) ->  | AH40: =SUM(AG40)*Parametres!AC$4 -> 0 | AI40: =IF(C40<>"P","",IF(C40="P",IF(ISNA(VLOOKUP(B40,SaisieVols!$Y$4:$AC$48,5,FALSE)),"",VLOOKUP(B40,SaisieVols!$Y$4:$AC$48,5,FALSE)))) ->  | AJ40: =SUM(AI40)*Parametres!AC$3 -> 0 | AL40: 0
D41: 0 | E41: 0 | F41: 0 | G41: 0 | H41: 0 | J41: =SUM(D41)*Parametres!O$5 -> 0 | K41: =SUM(E41)*Parametres!O$6 -> 0 | L41: =SUM(F41)*Parametres!O$7 -> 0 | M41: = | N41: 0 | O41: =SUM(G41)*Parametres!O$8 -> 0 | P41: 0 | R41: 0 | AB41: =SUM(H41)*Parametres!AE$5 -> 0 | AC41: =IF(C41<>"P","",IF(C41="P",IF(ISNA(VLOOKUP(B41,SaisieVols!$Y$4:$AA$48,2,FALSE)),"",VLOOKUP(B41,SaisieVols!$Y$4:$AA$48,2,FALSE)))) ->  | AD41: =SUM(AC41)*Parametres!AD$4 -> 0 | AE41: =IF(C41<>"P","",IF(C41="P",IF(ISNA(VLOOKUP(B41,SaisieVols!$Y$4:$AC$48,4,FALSE)),"",VLOOKUP(B41,SaisieVols!$Y$4:$AC$48,4,FALSE)))) ->  | AF41: =SUM(AE41)*Parametres!AD$3 -> 0 | AG41: =IF(C41<>"P","",IF(C41="P",IF(ISNA(VLOOKUP(B41,SaisieVols!$Y$4:$AC$48,3,FALSE)),"",VLOOKUP(B41,SaisieVols!$Y$4:$AC$48,3,FALSE)))) ->  | AH41: =SUM(AG41)*Parametres!AC$4 -> 0 | AI41: =IF(C41<>"P","",IF(C41="P",IF(ISNA(VLOOKUP(B41,SaisieVols!$Y$4:$AC$48,5,FALSE)),"",VLOOKUP(B41,SaisieVols!$Y$4:$AC$48,5,FALSE)))) ->  | AJ41: =SUM(AI41)*Parametres!AC$3 -> 0 | AL41: 0
D42: 0 | E42: 0 | F42: 0 | G42: 0 | H42: 0 | J42: =SUM(D42)*Parametres!O$5 -> 0 | K42: =SUM(E42)*Parametres!O$6 -> 0 | L42: =SUM(F42)*Parametres!O$7 -> 0 | M42: = | N42: 0 | O42: =SUM(G42)*Parametres!O$8 -> 0 | P42: 0 | R42: 0 | AB42: =SUM(H42)*Parametres!AE$5 -> 0 | AC42: =IF(C42<>"P","",IF(C42="P",IF(ISNA(VLOOKUP(B42,SaisieVols!$Y$4:$AA$48,2,FALSE)),"",VLOOKUP(B42,SaisieVols!$Y$4:$AA$48,2,FALSE)))) ->  | AD42: =SUM(AC42)*Parametres!AD$4 -> 0 | AE42: =IF(C42<>"P","",IF(C42="P",IF(ISNA(VLOOKUP(B42,SaisieVols!$Y$4:$AC$48,4,FALSE)),"",VLOOKUP(B42,SaisieVols!$Y$4:$AC$48,4,FALSE)))) ->  | AF42: =SUM(AE42)*Parametres!AD$3 -> 0 | AG42: =IF(C42<>"P","",IF(C42="P",IF(ISNA(VLOOKUP(B42,SaisieVols!$Y$4:$AC$48,3,FALSE)),"",VLOOKUP(B42,SaisieVols!$Y$4:$AC$48,3,FALSE)))) ->  | AH42: =SUM(AG42)*Parametres!AC$4 -> 0 | AI42: =IF(C42<>"P","",IF(C42="P",IF(ISNA(VLOOKUP(B42,SaisieVols!$Y$4:$AC$48,5,FALSE)),"",VLOOKUP(B42,SaisieVols!$Y$4:$AC$48,5,FALSE)))) ->  | AJ42: =SUM(AI42)*Parametres!AC$3 -> 0 | AL42: 0
D43: 0 | E43: =SUM(BB43+BH43+BN43+BT43+BZ43+CF43+CL43+CR43+CX43+DD43+DJ43+DP51+DV51+EB51+EH51+EN51+ET51+EZ51) -> 0 | F43: 0 | G43: 0 | H43: 0 | J43: =SUM(D43)*Parametres!O$5 -> 0 | K43: =SUM(E43)*Parametres!O$6 -> 0 | L43: =SUM(F43)*Parametres!O$7 -> 0 | M43: = | N43: 0 | O43: =SUM(G43)*Parametres!O$8 -> 0 | P43: 0 | R43: =SUM(BL43+BF43+BR43+BX43+CD43+CJ43+CP43+CV43+DB43+DH43+DN43+DT51+DZ51+EF51+EL51+ER51+EX51+FD51) -> 0 | AB43: =SUM(H43)*Parametres!AE$5 -> 0 | AC43: =IF(C43<>"P","",IF(C43="P",IF(ISNA(VLOOKUP(B43,SaisieVols!$Y$4:$AA$48,2,FALSE)),"",VLOOKUP(B43,SaisieVols!$Y$4:$AA$48,2,FALSE)))) ->  | AD43: =SUM(AC43)*Parametres!AD$4 -> 0 | AE43: =IF(C43<>"P","",IF(C43="P",IF(ISNA(VLOOKUP(B43,SaisieVols!$Y$4:$AC$48,4,FALSE)),"",VLOOKUP(B43,SaisieVols!$Y$4:$AC$48,4,FALSE)))) ->  | AF43: =SUM(AE43)*Parametres!AD$3 -> 0 | AG43: =IF(C43<>"P","",IF(C43="P",IF(ISNA(VLOOKUP(B43,SaisieVols!$Y$4:$AC$48,3,FALSE)),"",VLOOKUP(B43,SaisieVols!$Y$4:$AC$48,3,FALSE)))) ->  | AH43: =SUM(AG43)*Parametres!AC$4 -> 0 | AI43: =IF(C43<>"P","",IF(C43="P",IF(ISNA(VLOOKUP(B43,SaisieVols!$Y$4:$AC$48,5,FALSE)),"",VLOOKUP(B43,SaisieVols!$Y$4:$AC$48,5,FALSE)))) ->  | AJ43: =SUM(AI43)*Parametres!AC$3 -> 0 | AL43: 0
D44: 0 | E44: 0 | F44: 0 | G44: 0 | H44: 0 | J44: =SUM(D44)*Parametres!O$5 -> 0 | K44: =SUM(E44)*Parametres!O$6 -> 0 | L44: =SUM(F44)*Parametres!O$7 -> 0 | M44: = | N44: 0 | O44: =SUM(G44)*Parametres!O$8 -> 0 | P44: 0 | R44: =SUM(BL44+BF44+BR44+BX44+CD44+CJ44+CP44+CV44+DB44+DH44+DN44+DT52+DZ52+EF52+EL52+ER52+EX52+FD52) -> 0 | AB44: =SUM(H44)*Parametres!AE$5 -> 0 | AC44: =IF(C44<>"P","",IF(C44="P",IF(ISNA(VLOOKUP(B44,SaisieVols!$Y$4:$AA$48,2,FALSE)),"",VLOOKUP(B44,SaisieVols!$Y$4:$AA$48,2,FALSE)))) ->  | AD44: =SUM(AC44)*Parametres!AD$4 -> 0 | AE44: =IF(C44<>"P","",IF(C44="P",IF(ISNA(VLOOKUP(B44,SaisieVols!$Y$4:$AC$48,4,FALSE)),"",VLOOKUP(B44,SaisieVols!$Y$4:$AC$48,4,FALSE)))) ->  | AF44: =SUM(AE44)*Parametres!AD$3 -> 0 | AG44: =IF(C44<>"P","",IF(C44="P",IF(ISNA(VLOOKUP(B44,SaisieVols!$Y$4:$AC$48,3,FALSE)),"",VLOOKUP(B44,SaisieVols!$Y$4:$AC$48,3,FALSE)))) ->  | AH44: =SUM(AG44)*Parametres!AC$4 -> 0 | AI44: =IF(C44<>"P","",IF(C44="P",IF(ISNA(VLOOKUP(B44,SaisieVols!$Y$4:$AC$48,5,FALSE)),"",VLOOKUP(B44,SaisieVols!$Y$4:$AC$48,5,FALSE)))) ->  | AJ44: =SUM(AI44)*Parametres!AC$3 -> 0 | AL44: 0
D45: 0 | E45: 0 | F45: 0 | G45: 0 | H45: 0 | J45: =SUM(D45)*Parametres!O$5 -> 0 | K45: =SUM(E45)*Parametres!O$6 -> 0 | L45: =SUM(F45)*Parametres!O$7 -> 0 | M45: = | N45: 0 | O45: =SUM(G45)*Parametres!O$8 -> 0 | P45: 0 | R45: =SUM(BL45+BF45+BR45+BX45+CD45+CJ45+CP45+CV45+DB45+DH45+DN45+DT53+DZ53+EF53+EL53+ER53+EX53+FD53) -> 0 | AB45: =SUM(H45)*Parametres!AE$5 -> 0 | AC45: =IF(C45<>"P","",IF(C45="P",IF(ISNA(VLOOKUP(B45,SaisieVols!$Y$4:$AA$48,2,FALSE)),"",VLOOKUP(B45,SaisieVols!$Y$4:$AA$48,2,FALSE)))) ->  | AD45: =SUM(AC45)*Parametres!AD$4 -> 0 | AE45: =IF(C45<>"P","",IF(C45="P",IF(ISNA(VLOOKUP(B45,SaisieVols!$Y$4:$AC$48,4,FALSE)),"",VLOOKUP(B45,SaisieVols!$Y$4:$AC$48,4,FALSE)))) ->  | AF45: =SUM(AE45)*Parametres!AD$3 -> 0 | AG45: =IF(C45<>"P","",IF(C45="P",IF(ISNA(VLOOKUP(B45,SaisieVols!$Y$4:$AC$48,3,FALSE)),"",VLOOKUP(B45,SaisieVols!$Y$4:$AC$48,3,FALSE)))) ->  | AH45: =SUM(AG45)*Parametres!AC$4 -> 0 | AI45: =IF(C45<>"P","",IF(C45="P",IF(ISNA(VLOOKUP(B45,SaisieVols!$Y$4:$AC$48,5,FALSE)),"",VLOOKUP(B45,SaisieVols!$Y$4:$AC$48,5,FALSE)))) ->  | AJ45: =SUM(AI45)*Parametres!AC$3 -> 0 | AL45: 0
D46: 0 | E46: 0 | F46: 0 | G46: 0 | H46: 0 | J46: =SUM(D46)*Parametres!O$5 -> 0 | K46: =SUM(E46)*Parametres!O$6 -> 0 | L46: =SUM(F46)*Parametres!O$7 -> 0 | M46: = | N46: 0 | O46: =SUM(G46)*Parametres!O$8 -> 0 | P46: 0 | R46: =SUM(BL46+BF46+BR46+BX46+CD46+CJ46+CP46+CV46+DB46+DH46+DN46+DT54+DZ54+EF54+EL54+ER54+EX54+FD54) -> 0 | AB46: =SUM(H46)*Parametres!AE$5 -> 0 | AC46: =IF(C46<>"P","",IF(C46="P",IF(ISNA(VLOOKUP(B46,SaisieVols!$Y$4:$AA$48,2,FALSE)),"",VLOOKUP(B46,SaisieVols!$Y$4:$AA$48,2,FALSE)))) ->  | AD46: =SUM(AC46)*Parametres!AD$4 -> 0 | AE46: =IF(C46<>"P","",IF(C46="P",IF(ISNA(VLOOKUP(B46,SaisieVols!$Y$4:$AC$48,4,FALSE)),"",VLOOKUP(B46,SaisieVols!$Y$4:$AC$48,4,FALSE)))) ->  | AF46: =SUM(AE46)*Parametres!AD$3 -> 0 | AG46: =IF(C46<>"P","",IF(C46="P",IF(ISNA(VLOOKUP(B46,SaisieVols!$Y$4:$AC$48,3,FALSE)),"",VLOOKUP(B46,SaisieVols!$Y$4:$AC$48,3,FALSE)))) ->  | AH46: =SUM(AG46)*Parametres!AC$4 -> 0 | AI46: =IF(C46<>"P","",IF(C46="P",IF(ISNA(VLOOKUP(B46,SaisieVols!$Y$4:$AC$48,5,FALSE)),"",VLOOKUP(B46,SaisieVols!$Y$4:$AC$48,5,FALSE)))) ->  | AJ46: =SUM(AI46)*Parametres!AC$3 -> 0 | AL46: 0
D47: 0 | E47: =SUM(BB47+BH47+BN47+BT47+BZ47+CF47+CL47+CR47+CX47+DD47+DJ47+DP56+DV56+EB56+EH56+EN56+ET56+EZ56) -> 0 | F47: =SUM(BC47+BI47+BO47+BU47+CA47+CG47+CM47+CS47+CY47+DE47+DK47+DQ56+DW56+EC56+EI56+EO56+EU56+FA56) -> 0 | G47: =SUM(BD47+BJ47+BP47+BV47+CB47+CH47+CN47+CT47+CZ47+DF47+DL47+DR56+DX56+ED56+EJ56+EP56+EV56+FB56) -> 0 | H47: =SUM(BE47+BK47+BQ47+BW47+CC47+CI47+CO47+CU47+DA47+DG47+DM47+DS56+DY56+EE56+EK56+EQ56+EW56+FC56) -> 0 | J47: =SUM(D47)*Parametres!O$5 -> 0 | K47: =SUM(E47)*Parametres!O$6 -> 0 | L47: =SUM(F47)*Parametres!O$7 -> 0 | M47: = | N47: 0 | O47: =SUM(G47)*Parametres!O$8 -> 0 | P47: 0 | R47: =SUM(BL47+BF47+BR47+BX47+CD47+CJ47+CP47+CV47+DB47+DH47+DN47+DT56+DZ56+EF56+EL56+ER56+EX56+FD56) -> 0 | AB47: =SUM(H47)*Parametres!AE$5 -> 0 | AC47: =IF(C47<>"P","",IF(C47="P",IF(ISNA(VLOOKUP(B47,SaisieVols!$Y$4:$AA$48,2,FALSE)),"",VLOOKUP(B47,SaisieVols!$Y$4:$AA$48,2,FALSE)))) ->  | AD47: =SUM(AC47)*Parametres!AD$4 -> 0 | AE47: =IF(C47<>"P","",IF(C47="P",IF(ISNA(VLOOKUP(B47,SaisieVols!$Y$4:$AC$48,4,FALSE)),"",VLOOKUP(B47,SaisieVols!$Y$4:$AC$48,4,FALSE)))) ->  | AF47: =SUM(AE47)*Parametres!AD$3 -> 0 | AG47: =IF(C47<>"P","",IF(C47="P",IF(ISNA(VLOOKUP(B47,SaisieVols!$Y$4:$AC$48,3,FALSE)),"",VLOOKUP(B47,SaisieVols!$Y$4:$AC$48,3,FALSE)))) ->  | AH47: =SUM(AG47)*Parametres!AC$4 -> 0 | AI47: =IF(C47<>"P","",IF(C47="P",IF(ISNA(VLOOKUP(B47,SaisieVols!$Y$4:$AC$48,5,FALSE)),"",VLOOKUP(B47,SaisieVols!$Y$4:$AC$48,5,FALSE)))) ->  | AJ47: =SUM(AI47)*Parametres!AC$3 -> 0 | AL47: 0
D48: 0 | AB48: =SUM(H48)*Parametres!AE$5 -> 0 | AC48: =IF(C48<>"P","",IF(C48="P",IF(ISNA(VLOOKUP(B48,SaisieVols!$Y$4:$AA$48,2,FALSE)),"",VLOOKUP(B48,SaisieVols!$Y$4:$AA$48,2,FALSE)))) ->  | AD48: =SUM(AC48)*Parametres!AD$4 -> 0 | AE48: =IF(C48<>"P","",IF(C48="P",IF(ISNA(VLOOKUP(B48,SaisieVols!$Y$4:$AC$48,4,FALSE)),"",VLOOKUP(B48,SaisieVols!$Y$4:$AC$48,4,FALSE)))) ->  | AF48: =SUM(AE48)*Parametres!AD$3 -> 0 | AG48: =IF(C48<>"P","",IF(C48="P",IF(ISNA(VLOOKUP(B48,SaisieVols!$Y$4:$AC$48,3,FALSE)),"",VLOOKUP(B48,SaisieVols!$Y$4:$AC$48,3,FALSE)))) ->  | AH48: =SUM(AG48)*Parametres!AC$4 -> 0 | AI48: =IF(C48<>"P","",IF(C48="P",IF(ISNA(VLOOKUP(B48,SaisieVols!$Y$4:$AC$48,5,FALSE)),"",VLOOKUP(B48,SaisieVols!$Y$4:$AC$48,5,FALSE)))) ->  | AJ48: =SUM(AI48)*Parametres!AC$3 -> 0
D49: 0 | AB49: =SUM(H49)*Parametres!AE$5 -> 0 | AC49: =IF(C49<>"P","",IF(C49="P",IF(ISNA(VLOOKUP(B49,SaisieVols!$Y$4:$AA$48,2,FALSE)),"",VLOOKUP(B49,SaisieVols!$Y$4:$AA$48,2,FALSE)))) ->  | AD49: =SUM(AC49)*Parametres!AD$4 -> 0 | AE49: =IF(C49<>"P","",IF(C49="P",IF(ISNA(VLOOKUP(B49,SaisieVols!$Y$4:$AC$48,4,FALSE)),"",VLOOKUP(B49,SaisieVols!$Y$4:$AC$48,4,FALSE)))) ->  | AF49: =SUM(AE49)*Parametres!AD$3 -> 0 | AG49: =IF(C49<>"P","",IF(C49="P",IF(ISNA(VLOOKUP(B49,SaisieVols!$Y$4:$AC$48,3,FALSE)),"",VLOOKUP(B49,SaisieVols!$Y$4:$AC$48,3,FALSE)))) ->  | AH49: =SUM(AG49)*Parametres!AC$4 -> 0 | AI49: =IF(C49<>"P","",IF(C49="P",IF(ISNA(VLOOKUP(B49,SaisieVols!$Y$4:$AC$48,5,FALSE)),"",VLOOKUP(B49,SaisieVols!$Y$4:$AC$48,5,FALSE)))) ->  | AJ49: =SUM(AI49)*Parametres!AC$3 -> 0
D50: 0 | AB50: =SUM(H50)*Parametres!AE$5 -> 0 | AC50: =IF(C50<>"P","",IF(C50="P",IF(ISNA(VLOOKUP(B50,SaisieVols!$Y$4:$AA$48,2,FALSE)),"",VLOOKUP(B50,SaisieVols!$Y$4:$AA$48,2,FALSE)))) ->  | AD50: =SUM(AC50)*Parametres!AD$4 -> 0 | AE50: =IF(C50<>"P","",IF(C50="P",IF(ISNA(VLOOKUP(B50,SaisieVols!$Y$4:$AC$48,4,FALSE)),"",VLOOKUP(B50,SaisieVols!$Y$4:$AC$48,4,FALSE)))) ->  | AF50: =SUM(AE50)*Parametres!AD$3 -> 0 | AG50: =IF(C50<>"P","",IF(C50="P",IF(ISNA(VLOOKUP(B50,SaisieVols!$Y$4:$AC$48,3,FALSE)),"",VLOOKUP(B50,SaisieVols!$Y$4:$AC$48,3,FALSE)))) ->  | AH50: =SUM(AG50)*Parametres!AC$4 -> 0 | AI50: =IF(C50<>"P","",IF(C50="P",IF(ISNA(VLOOKUP(B50,SaisieVols!$Y$4:$AC$48,5,FALSE)),"",VLOOKUP(B50,SaisieVols!$Y$4:$AC$48,5,FALSE)))) ->  | AJ50: =SUM(AI50)*Parametres!AC$3 -> 0
D51: 0 | E51: =SUM(BB51+BH51+BN51+BT51+BZ51+CF51+CL51+CR51+CX51+DD51+DJ51+DP57+DV57+EB57+EH57+EN57+ET57+EZ57) -> 0 | F51: 0 | G51: 0 | H51: 0 | J51: =SUM(D51)*Parametres!O$5 -> 0 | K51: =SUM(E51)*Parametres!O$6 -> 0 | L51: =SUM(F51)*Parametres!O$7 -> 0 | M51: = | N51: 0 | O51: =SUM(G51)*Parametres!O$8 -> 0 | P51: 0 | R51: =SUM(BL51+BF51+BR51+BX51+CD51+CJ51+CP51+CV51+DB51+DH51+DN51+DT57+DZ57+EF57+EL57+ER57+EX57+FD57) -> 0 | AB51: =SUM(H51)*Parametres!AE$5 -> 0 | AC51: =IF(C51<>"P","",IF(C51="P",IF(ISNA(VLOOKUP(B51,SaisieVols!$Y$4:$AA$48,2,FALSE)),"",VLOOKUP(B51,SaisieVols!$Y$4:$AA$48,2,FALSE)))) ->  | AD51: =SUM(AC51)*Parametres!AD$4 -> 0 | AE51: =IF(C51<>"P","",IF(C51="P",IF(ISNA(VLOOKUP(B51,SaisieVols!$Y$4:$AC$48,4,FALSE)),"",VLOOKUP(B51,SaisieVols!$Y$4:$AC$48,4,FALSE)))) ->  | AF51: =SUM(AE51)*Parametres!AD$3 -> 0 | AG51: =IF(C51<>"P","",IF(C51="P",IF(ISNA(VLOOKUP(B51,SaisieVols!$Y$4:$AC$48,3,FALSE)),"",VLOOKUP(B51,SaisieVols!$Y$4:$AC$48,3,FALSE)))) ->  | AH51: =SUM(AG51)*Parametres!AC$4 -> 0 | AI51: =IF(C51<>"P","",IF(C51="P",IF(ISNA(VLOOKUP(B51,SaisieVols!$Y$4:$AC$48,5,FALSE)),"",VLOOKUP(B51,SaisieVols!$Y$4:$AC$48,5,FALSE)))) ->  | AJ51: =SUM(AI51)*Parametres!AC$3 -> 0 | AL51: 0
D52: 0 | E52: 0 | F52: 0 | G52: 0 | H52: 0 | J52: =SUM(D52)*Parametres!O$5 -> 0 | K52: =SUM(E52)*Parametres!O$6 -> 0 | L52: =SUM(F52)*Parametres!O$7 -> 0 | M52: = | N52: 0 | O52: =SUM(G52)*Parametres!O$8 -> 0 | P52: 0 | R52: =SUM(BL52+BF52+BR52+BX52+CD52+CJ52+CP52+CV52+DB52+DH52+DN52+DT58+DZ58+EF58+EL58+ER58+EX58+FD58) -> 0 | AB52: =SUM(H52)*Parametres!AE$5 -> 0 | AC52: =IF(C52<>"P","",IF(C52="P",IF(ISNA(VLOOKUP(B52,SaisieVols!$Y$4:$AA$48,2,FALSE)),"",VLOOKUP(B52,SaisieVols!$Y$4:$AA$48,2,FALSE)))) ->  | AD52: =SUM(AC52)*Parametres!AD$4 -> 0 | AE52: =IF(C52<>"P","",IF(C52="P",IF(ISNA(VLOOKUP(B52,SaisieVols!$Y$4:$AC$48,4,FALSE)),"",VLOOKUP(B52,SaisieVols!$Y$4:$AC$48,4,FALSE)))) ->  | AF52: =SUM(AE52)*Parametres!AD$3 -> 0 | AG52: =IF(C52<>"P","",IF(C52="P",IF(ISNA(VLOOKUP(B52,SaisieVols!$Y$4:$AC$48,3,FALSE)),"",VLOOKUP(B52,SaisieVols!$Y$4:$AC$48,3,FALSE)))) ->  | AH52: =SUM(AG52)*Parametres!AC$4 -> 0 | AI52: =IF(C52<>"P","",IF(C52="P",IF(ISNA(VLOOKUP(B52,SaisieVols!$Y$4:$AC$48,5,FALSE)),"",VLOOKUP(B52,SaisieVols!$Y$4:$AC$48,5,FALSE)))) ->  | AJ52: =SUM(AI52)*Parametres!AC$3 -> 0 | AL52: 0
D53: 0 | E53: 0 | F53: 0 | G53: 0 | H53: 0 | J53: =SUM(D53)*Parametres!O$5 -> 0 | K53: =SUM(E53)*Parametres!O$6 -> 0 | L53: =SUM(F53)*Parametres!O$7 -> 0 | M53: = | N53: 0 | O53: =SUM(G53)*Parametres!O$8 -> 0 | P53: 0 | R53: =SUM(BL53+BF53+BR53+BX53+CD53+CJ53+CP53+CV53+DB53+DH53+DN53+DT59+DZ59+EF59+EL59+ER59+EX59+FD59) -> 0 | AB53: =SUM(H53)*Parametres!AE$5 -> 0 | AC53: =IF(C53<>"P","",IF(C53="P",IF(ISNA(VLOOKUP(B53,SaisieVols!$Y$4:$AA$48,2,FALSE)),"",VLOOKUP(B53,SaisieVols!$Y$4:$AA$48,2,FALSE)))) ->  | AD53: =SUM(AC53)*Parametres!AD$4 -> 0 | AE53: =IF(C53<>"P","",IF(C53="P",IF(ISNA(VLOOKUP(B53,SaisieVols!$Y$4:$AC$48,4,FALSE)),"",VLOOKUP(B53,SaisieVols!$Y$4:$AC$48,4,FALSE)))) ->  | AF53: =SUM(AE53)*Parametres!AD$3 -> 0 | AG53: =IF(C53<>"P","",IF(C53="P",IF(ISNA(VLOOKUP(B53,SaisieVols!$Y$4:$AC$48,3,FALSE)),"",VLOOKUP(B53,SaisieVols!$Y$4:$AC$48,3,FALSE)))) ->  | AH53: =SUM(AG53)*Parametres!AC$4 -> 0 | AI53: =IF(C53<>"P","",IF(C53="P",IF(ISNA(VLOOKUP(B53,SaisieVols!$Y$4:$AC$48,5,FALSE)),"",VLOOKUP(B53,SaisieVols!$Y$4:$AC$48,5,FALSE)))) ->  | AJ53: =SUM(AI53)*Parametres!AC$3 -> 0 | AL53: 0
D54: 0 | E54: 0 | F54: 0 | G54: 0 | H54: 0 | J54: =SUM(D54)*Parametres!O$5 -> 0 | K54: =SUM(E54)*Parametres!O$6 -> 0 | L54: =SUM(F54)*Parametres!O$7 -> 0 | M54: = | N54: 0 | O54: =SUM(G54)*Parametres!O$8 -> 0 | P54: 0 | R54: =SUM(BL54+BF54+BR54+BX54+CD54+CJ54+CP54+CV54+DB54+DH54+DN54+DT60+DZ60+EF60+EL60+ER60+EX60+FD60) -> 0 | AB54: =SUM(H54)*Parametres!AE$5 -> 0 | AC54: =IF(C54<>"P","",IF(C54="P",IF(ISNA(VLOOKUP(B54,SaisieVols!$Y$4:$AA$48,2,FALSE)),"",VLOOKUP(B54,SaisieVols!$Y$4:$AA$48,2,FALSE)))) ->  | AD54: =SUM(AC54)*Parametres!AD$4 -> 0 | AE54: =IF(C54<>"P","",IF(C54="P",IF(ISNA(VLOOKUP(B54,SaisieVols!$Y$4:$AC$48,4,FALSE)),"",VLOOKUP(B54,SaisieVols!$Y$4:$AC$48,4,FALSE)))) ->  | AF54: =SUM(AE54)*Parametres!AD$3 -> 0 | AG54: =IF(C54<>"P","",IF(C54="P",IF(ISNA(VLOOKUP(B54,SaisieVols!$Y$4:$AC$48,3,FALSE)),"",VLOOKUP(B54,SaisieVols!$Y$4:$AC$48,3,FALSE)))) ->  | AH54: =SUM(AG54)*Parametres!AC$4 -> 0 | AI54: =IF(C54<>"P","",IF(C54="P",IF(ISNA(VLOOKUP(B54,SaisieVols!$Y$4:$AC$48,5,FALSE)),"",VLOOKUP(B54,SaisieVols!$Y$4:$AC$48,5,FALSE)))) ->  | AJ54: =SUM(AI54)*Parametres!AC$3 -> 0 | AL54: 0
D55: 0
D56: 0 | E56: 0 | F56: 0 | G56: 0 | H56: 0 | J56: =SUM(D56)*Parametres!O$5 -> 0 | K56: =SUM(E56)*Parametres!O$6 -> 0 | L56: =SUM(F56)*Parametres!O$7 -> 0 | M56: = | N56: 0 | O56: =SUM(G56)*Parametres!O$8 -> 0 | P56: 0 | R56: 0 | AB56: =SUM(H56)*Parametres!AE$5 -> 0 | AC56: =IF(C56<>"P","",IF(C56="P",IF(ISNA(VLOOKUP(B56,SaisieVols!$Y$4:$AA$48,2,FALSE)),"",VLOOKUP(B56,SaisieVols!$Y$4:$AA$48,2,FALSE)))) ->  | AD56: =SUM(AC56)*Parametres!AD$4 -> 0 | AE56: =IF(C56<>"P","",IF(C56="P",IF(ISNA(VLOOKUP(B56,SaisieVols!$Y$4:$AC$48,4,FALSE)),"",VLOOKUP(B56,SaisieVols!$Y$4:$AC$48,4,FALSE)))) ->  | AF56: =SUM(AE56)*Parametres!AD$3 -> 0 | AG56: =IF(C56<>"P","",IF(C56="P",IF(ISNA(VLOOKUP(B56,SaisieVols!$Y$4:$AC$48,3,FALSE)),"",VLOOKUP(B56,SaisieVols!$Y$4:$AC$48,3,FALSE)))) ->  | AH56: =SUM(AG56)*Parametres!AC$4 -> 0 | AI56: =IF(C56<>"P","",IF(C56="P",IF(ISNA(VLOOKUP(B56,SaisieVols!$Y$4:$AC$48,5,FALSE)),"",VLOOKUP(B56,SaisieVols!$Y$4:$AC$48,5,FALSE)))) ->  | AJ56: =SUM(AI56)*Parametres!AC$3 -> 0 | AL56: =SUM(AB56+AD56+AF56+AH56+AJ56) -> 0
D57: 0 | E57: 0 | F57: 0 | G57: 0 | H57: 0 | J57: =SUM(D57)*Parametres!O$5 -> 0 | K57: =SUM(E57)*Parametres!O$6 -> 0 | L57: =SUM(F57)*Parametres!O$7 -> 0 | M57: = | N57: 0 | O57: =SUM(G57)*Parametres!O$8 -> 0 | P57: 0 | R57: 0 | AB57: =SUM(H57)*Parametres!AE$5 -> 0 | AC57: =IF(C57<>"P","",IF(C57="P",IF(ISNA(VLOOKUP(B57,SaisieVols!$Y$4:$AA$48,2,FALSE)),"",VLOOKUP(B57,SaisieVols!$Y$4:$AA$48,2,FALSE)))) ->  | AD57: =SUM(AC57)*Parametres!AD$4 -> 0 | AE57: =IF(C57<>"P","",IF(C57="P",IF(ISNA(VLOOKUP(B57,SaisieVols!$Y$4:$AC$48,4,FALSE)),"",VLOOKUP(B57,SaisieVols!$Y$4:$AC$48,4,FALSE)))) ->  | AF57: =SUM(AE57)*Parametres!AD$3 -> 0 | AG57: =IF(C57<>"P","",IF(C57="P",IF(ISNA(VLOOKUP(B57,SaisieVols!$Y$4:$AC$48,3,FALSE)),"",VLOOKUP(B57,SaisieVols!$Y$4:$AC$48,3,FALSE)))) ->  | AH57: =SUM(AG57)*Parametres!AC$4 -> 0 | AI57: =IF(C57<>"P","",IF(C57="P",IF(ISNA(VLOOKUP(B57,SaisieVols!$Y$4:$AC$48,5,FALSE)),"",VLOOKUP(B57,SaisieVols!$Y$4:$AC$48,5,FALSE)))) ->  | AJ57: =SUM(AI57)*Parametres!AC$3 -> 0 | AL57: =SUM(AB57+AD57+AF57+AH57+AJ57) -> 0
I58: =SUM(#REF!) ->  | J58: =SUM(#REF!) ->  | K58: =SUM(#REF!) ->  | L58: =SUM(#REF!) ->  | M58: =SUM(#REF!) ->  | N58: =SUM(#REF!) ->  | O58: =SUM(#REF!) ->  | P58: =SUM(#REF!) ->  | Q58: =SUM(#REF!) ->  | R58: =SUM(R4:R57) -> 63.79 | S58: 0 | T58: 0 | U58: 0 | V58: 0 | W58: 0 | Y58: =SUM(Y4:Y57) -> 0 | AA58: =SUM(#REF!) ->  | AB58: =SUM(AB4:AB57) -> 15 | AC58: 1 | AD58: 10 | AE58: 0 | AF58: 0 | AG58: 0 | AH58: 0 | AI58: 0 | AJ58: 0 | AK58: 0 | AL58: 25 | AM58: 0 | AN58: 0 | AO58: 0 | AR58: =[2]Feuil1!T157 -> 0 | BA58: =SUM(BA4:BA57) -> 0 | BB58: 4 | BC58: 0 | BD58: 0 | BE58: 2 | BF58: 40 | BG58: 0 | BH58: 4 | BI58: 0 | BJ58: 0 | BK58: 1 | BL58: 0
S59: =SUM(S58)+T58 -> 0 | AM59: Total acompte | AR59: =[2]Feuil1!T158 -> 0
R60: =[2]Feuil1!N162 -> 0 | T60: =[2]Feuil1!P162 -> 0 | X60: =[2]Feuil1!Q162 -> 0 | AM60: =SUM(AM58)+AN58 -> 0 | AR60: =[2]Feuil1!T159 -> 0
U61: Solde caisse | V61: =SUM(S59+AM60) -> 0 | AR61: =[2]Feuil1!T160 -> 0 | AU61: =[2]Feuil1!W160 -> 0 | BA61: =[2]Feuil1!Y160 -> 0 | BB61: =[2]Feuil1!Z160 -> 0

Sheet Page essai (hidden)

Sheet CP (hidden)
A1: Villes | B1: CP | C1: Dep | D1: N° | E1: Région
A2: AAST | B2: 64460 | C2: PYRENEES ATLANTIQUES | D2: 64001 | E2: Nouvelle Aquitaine
A3: ABAINVILLE | B3: 55130 | C3: MEUSE | D3: 55001
A4: ABANCOURT | B4: 59265 | C4: NORD | D4: 59001
A5: ABANCOURT | B5: 60220 | C5: OISE | D5: 60001
A6: ABAUCOURT | B6: 54610 | C6: MEURTHE ET MOSELLE | D6: 54001
A7: ABAUCOURT HAUTECOURT | B7: 55400 | C7: MEUSE | D7: 55002
A8: ABBANS DESSOUS | B8: 25320 | C8: DOUBS | D8: 25001
A9: ABBANS DESSUS | B9: 25440 | C9: DOUBS | D9: 25002
A10: ABBARETZ | B10: 44170 | C10: LOIRE ATLANTIQUE | D10: 44001
A11: ABBAZIA | B11: 20243 | C11: CORSE | D11: 20937
A12: ABBECOURT | B12: 2300 | C12: AISNE | D12: 2001
A13: ABBECOURT | B13: 60430 | C13: OISE | D13: 60002
A14: ABBENANS | B14: 25340 | C14: DOUBS | D14: 25003
A15: ABBEVILLE | B15: 80100 | C15: SOMME | D15: 80001
A16: ABBEVILLE LA RIVIERE | B16: 91150 | C16: ESSONNE | D16: 91001
A17: ABBEVILLE LES CONFLANS | B17: 54800 | C17: MEURTHE ET MOSELLE | D17: 54002
A18: ABBEVILLE ST LUCIEN | B18: 60480 | C18: OISE | D18: 60003
A19: ABBEVILLERS | B19: 25310 | C19: DOUBS | D19: 25004
A20: ABEILHAN | B20: 34290 | C20: HERAULT | D20: 34001
A21: ABELCOURT | B21: 70300 | C21: HAUTE SAONE | D21: 70001
A22: ABERE | B22: 64160 | C22: PYRENEES ATLANTIQUES | D22: 64002 | E22: Nouvelle Aquitaine
A23: ABERGEMENT LA RONCE | B23: 39500 | C23: JURA | D23: 39001
A24: ABERGEMENT LE GRAND | B24: 39600 | C24: JURA | D24: 39002
A25: ABERGEMENT LE PETIT | B25: 39800 | C25: JURA | D25: 39003
A26: ABERGEMENT LES THESY | B26: 39110 | C26: JURA | D26: 39004
A27: ABERGEMENT ST JEAN | B27: 39120 | C27: JURA | D27: 39005
A28: ABERWRACH | B28: 29870 | C28: FINISTERE | D28: 29931
A29: ABIDOS | B29: 64150 | C29: PYRENEES ATLANTIQUES | D29: 64003 | E29: Nouvelle Aquitaine
A30: ABILLY | B30: 37160 | C30: INDRE ET LOIRE | D30: 37001
A31: ABITAIN | B31: 64390 | C31: PYRENEES ATLANTIQUES | D31: 64004 | E31: Nouvelle Aquitaine
A32: ABJAT SUR BANDIAT | B32: 24300 | C32: DORDOGNE | D32: 24001
A33: ABLAIN ST NAZAIRE | B33: 62153 | C33: PAS DE CALAIS | D33: 62001
A34: ABLAINCOURT PRESSOIRE | B34: 80320 | C34: SOMME | D34: 80002
A35: ABLAINZEVELLE | B35: 62116 | C35: PAS DE CALAIS | D35: 62002
A36: ABLANCOURT | B36: 51240 | C36: MARNE | D36: 51001
A37: ABLEIGES | B37: 95450 | C37: VAL D'OISE | D37: 95002
A38: ABLIS | B38: 78660 | C38: YVELINES | D38: 78003
A39: ABLON | B39: 14600 | C39: CALVADOS | D39: 14001
A40: ABLON SUR SEINE | B40: 94480 | C40: VAL DE MARNE | D40: 94001
A41: ABOEN | B41: 42380 | C41: LOIRE | D41: 42001
A42: ABONCOURT | B42: 54115 | C42: MEURTHE ET MOSELLE | D42: 54003
A43: ABONCOURT | B43: 57920 | C43: MOSELLE | D43: 57001
A44: ABONCOURT GESINCOURT | B44: 70500 | C44: HAUTE SAONE | D44: 70002
A45: ABONCOURT SUR SEILLE | B45: 57590 | C45: MOSELLE | D45: 57002
A46: ABONDANCE | B46: 74360 | C46: HAUTE SAVOIE | D46: 74001
A47: ABONDANT | B47: 28570 | C47: EURE ET LOIR | D47: 28001
A48: ABOS | B48: 64360 | C48: PYRENEES ATLANTIQUES | D48: 64005 | E48: Nouvelle Aquitaine
A49: ABRESCHVILLER | B49: 57560 | C49: MOSELLE | D49: 57003
A50: ABREST | B50: 3200 | C50: ALLIER | D50: 3001
A51: ABRIES | B51: 5460 | C51: HAUTES ALPES | D51: 5001
A52: ABSCON | B52: 59215 | C52: NORD | D52: 59002
A53: ABZAC | B53: 16500 | C53: CHARENTE | D53: 16001
A54: ABZAC | B54: 33230 | C54: GIRONDE | D54: 33001
A55: ACCOLANS | B55: 25250 | C55: DOUBS | D55: 25005
A56: ACCOLAY | B56: 89460 | C56: YONNE | D56: 89001
A57: ACCONS | B57: 7160 | C57: ARDECHE | D57: 7001
A58: ACCOUS | B58: 64490 | C58: PYRENEES ATLANTIQUES | D58: 64006 | E58: Nouvelle Aquitaine
A59: ACHAIN | B59: 57340 | C59: MOSELLE | D59: 57004
A60: ACHEN | B60: 57410 | C60: MOSELLE | D60: 57006
A61: ACHENHEIM | B61: 67204 | C61: BAS RHIN | D61: 67001
A62: ACHERES | B62: 18250 | C62: CHER | D62: 18001
A63: ACHERES | B63: 78260 | C63: YVELINES | D63: 78005
A64: ACHERES LA FORET | B64: 77760 | C64: SEINE ET MARNE | D64: 77001
A65: ACHERY | B65: 2800 | C65: AISNE | D65: 2002
A66: ACHEUX EN AMIENOIS | B66: 80560 | C66: SOMME | D66: 80003
A67: ACHEUX EN VIMEU | B67: 80210 | C67: SOMME | D67: 80004
A68: ACHEVILLE | B68: 62320 | C68: PAS DE CALAIS | D68: 62003
A69: ACHEY | B69: 70180 | C69: HAUTE SAONE | D69: 70003
A70: ACHICOURT | B70: 62217 | C70: PAS DE CALAIS | D70: 62004
A71: ACHIET LE GRAND | B71: 62121 | C71: PAS DE CALAIS | D71: 62005
A72: ACHIET LE PETIT | B72: 62121 | C72: PAS DE CALAIS | D72: 62006
A73: ACHUN | B73: 58110 | C73: NIEVRE | D73: 58001
A74: ACHY | B74: 60690 | C74: OISE | D74: 60004
A75: ACIGNE | B75: 35690 | C75: ILLE ET VILAINE | D75: 35001
A76: ACLOU | B76: 27800 | C76: EURE | D76: 27001
A77: ACON | B77: 27570 | C77: EURE | D77: 27002
A78: ACOUA | B78: 97600 | C78: MAYOTTE | D78: 98501
A79: ACQ | B79: 62144 | C79: PAS DE CALAIS | D79: 62007
A80: ACQUEVILLE | B80: 14220 | C80: CALVADOS | D80: 14002
A81: ACQUEVILLE | B81: 50440 | C81: MANCHE | D81: 50001
A82: ACQUIGNY | B82: 27400 | C82: EURE | D82: 27003
A83: ACQUIN WESTBECOURT | B83: 62380 | C83: PAS DE CALAIS | D83: 62008
A84: ACY | B84: 2200 | C84: AISNE | D84: 2003
A85: ACY EN MULTIEN | B85: 60620 | C85: OISE | D85: 60005
A86: ACY ROMANCE | B86: 8300 | C86: ARDENNES | D86: 8001
A87: ADAINCOURT | B87: 57580 | C87: MOSELLE | D87: 57007
A88: ADAINVILLE | B88: 78113 | C88: YVELINES | D88: 78006
A89: ADAM LES PASSAVANT | B89: 25360 | C89: DOUBS | D89: 25006
A90: ADAM LES VERCEL | B90: 25530 | C90: DOUBS | D90: 25007
A91: ADAMSWILLER | B91: 67320 | C91: BAS RHIN | D91: 67002
A92: ADAST | B92: 65260 | C92: HAUTES PYRENEES | D92: 65001
A93: ADE | B93: 65100 | C93: HAUTES PYRENEES | D93: 65002
A94: ADELANGE | B94: 57380 | C94: MOSELLE | D94: 57008
A95: ADELANS ET LE VAL DE BITH | B95: 70200 | C95: HAUTE SAONE | D95: 70004
A96: ADERVIELLE POUCHERGUES | B96: 65240 | C96: HAUTES PYRENEES | D96: 65003
A97: ADILLY | B97: 79200 | C97: DEUX SEVRES | D97: 79002
A98: ADINFER | B98: 62116 | C98: PAS DE CALAIS | D98: 62009
A99: ADISSAN | B99: 34230 | C99: HERAULT | D99: 34002
A100: ADOMPT | B100: 88270 | C100: VOSGES | D100: 88910
A101: ADON | B101: 45230 | C101: LOIRET | D101: 45001
A102: ADRIERS | B102: 86430 | C102: VIENNE | D102: 86001
A103: AEROPORT D ORLY | B103: 94390 | C103: VAL DE MARNE | D103: 94900
A104: AFA | B104: 20167 | C104: CORSE | D104: 20001
A105: AFAAHITI | B105: 98719 | C105: POLYNESIE FRANCAISE | D105: 98774
A106: AFFIEUX | B106: 19260 | C106: CORREZE | D106: 19001
A107: AFFLEVILLE | B107: 54800 | C107: MEURTHE ET MOSELLE | D107: 54004
A108: AFFOUX | B108: 69170 | C108: RHONE | D108: 69001
A109: AFFRACOURT | B109: 54740 | C109: MEURTHE ET MOSELLE | D109: 54005
A110: AFFRINGUES | B110: 62380 | C110: PAS DE CALAIS | D110: 62010
A111: AGASSAC | B111: 31230 | C111: HAUTE GARONNE | D111: 31001
A112: AGAY | B112: 83530 | C112: VAR | D112: 83920
A113: AGDE | B113: 34300 | C113: HERAULT | D113: 34003
A114: AGEL | B114: 34210 | C114: HERAULT | D114: 34004
A115: AGEN | B115: 47000 | C115: LOT ET GARONNE | D115: 47001
A116: AGEN D AVEYRON | B116: 12630 | C116: AVEYRON | D116: 12001
A117: AGENCOURT | B117: 21700 | C117: COTE D'OR | D117: 21001
A118: AGENVILLE | B118: 80370 | C118: SOMME | D118: 80005
A119: AGENVILLERS | B119: 80150 | C119: SOMME | D119: 80006
A120: AGEVILLE | B120: 52340 | C120: HAUTE MARNE | D120: 52001
A121: AGEY | B121: 21410 | C121: COTE D'OR | D121: 21002
A122: AGHIONE | B122: 20270 | C122: CORSE | D122: 20002
A123: AGINCOURT | B123: 54770 | C123: MEURTHE ET MOSELLE | D123: 54006
A124: AGME | B124: 47350 | C124: LOT ET GARONNE | D124: 47002
A125: AGNAC | B125: 47800 | C125: LOT ET GARONNE | D125: 47003
A126: AGNAT | B126: 43100 | C126: HAUTE LOIRE | D126: 43001
A127: AGNEAUX | B127: 50180 | C127: MANCHE | D127: 50002
A128: AGNETZ | B128: 60600 | C128: OISE | D128: 60007
A129: AGNEZ LES DUISANS | B129: 62161 | C129: PAS DE CALAIS | D129: 62011
A130: AGNICOURT ET SECHELLES | B130: 2340 | C130: AISNE | D130: 2004
A131: AGNIERES | B131: 62690 | C131: PAS DE CALAIS | D131: 62012
A132: AGNIERES | B132: 80290 | C132: SOMME | D132: 80007
A133: AGNIERES EN DEVOLUY | B133: 5250 | C133: HAUTES ALPES | D133: 5002
A134: AGNIN | B134: 38150 | C134: ISERE | D134: 38003
A135: AGNOS | B135: 64400 | C135: PYRENEES ATLANTIQUES | D135: 64007 | E135: Nouvelle Aquitaine
A136: AGNY | B136: 62217 | C136: PAS DE CALAIS | D136: 62013
A137: AGON COUTAINVILLE | B137: 50230 | C137: MANCHE | D137: 50003
A138: AGONAC | B138: 24460 | C138: DORDOGNE | D138: 24002
A139: AGONES | B139: 34190 | C139: HERAULT | D139: 34005
A140: AGONGES | B140: 3210 | C140: ALLIER | D140: 3002
A141: AGONNAY | B141: 17350 | C141: CHARENTE MARITIME | D141: 17001
A142: AGOS VIDALOS | B142: 65400 | C142: HAUTES PYRENEES | D142: 65004
A143: AGRIS | B143: 16110 | C143: CHARENTE | D143: 16003
A144: AGUDELLE | B144: 17500 | C144: CHARENTE MARITIME | D144: 17002
A145: AGUESSAC | B145: 12520 | C145: AVEYRON | D145: 12002
A146: AGUILCOURT | B146: 2190 | C146: AISNE | D146: 2005
A147: AGUTS | B147: 81470 | C147: TARN | D147: 81001
A148: AGY | B148: 14400 | C148: CALVADOS | D148: 14003
A149: AHAXE ALCIETTE BASCASSAN | B149: 64220 | C149: PYRENEES ATLANTIQUES | D149: 64008 | E149: Nouvelle Aquitaine
A150: AHETZE | B150: 64210 | C150: PYRENEES ATLANTIQUES | D150: 64009 | E150: Nouvelle Aquitaine
A151: AHEVILLE | B151: 88500 | C151: VOSGES | D151: 88002
A152: AHUILLE | B152: 53940 | C152: MAYENNE | D152: 53001
A153: AHUN | B153: 23150 | C153: CREUSE | D153: 23001
A154: AHUY | B154: 21121 | C154: COTE D'OR | D154: 21003
A155: AIBES | B155: 59149 | C155: NORD | D155: 59003
A156: AIBRE | B156: 25750 | C156: DOUBS | D156: 25008
A157: AICIRITS CAMOU SUHAST | B157: 64120 | C157: PYRENEES ATLANTIQUES | D157: 64010 | E157: Nouvelle Aquitaine
A158: AIFFRES | B158: 79230 | C158: DEUX SEVRES | D158: 79003
A159: AIGALIERS | B159: 30700 | C159: GARD | D159: 30001
A160: AIGLEMONT | B160: 8090 | C160: ARDENNES | D160: 8003
A161: AIGLEPIERRE | B161: 39110 | C161: JURA | D161: 39006
A162: AIGLEVILLE | B162: 27120 | C162: EURE | D162: 27004
A163: AIGLUN | B163: 4510 | C163: ALPES DE HAUTE PROVENCE | D163: 4001
A164: AIGLUN | B164: 6910 | C164: ALPES MARITIMES | D164: 6001
A165: AIGNAN | B165: 32290 | C165: GERS | D165: 32001
A166: AIGNAY LE DUC | B166: 21510 | C166: COTE D'OR | D166: 21004
A167: AIGNE | B167: 34210 | C167: HERAULT | D167: 34006
A168: AIGNE | B168: 72650 | C168: SARTHE | D168: 72001
A169: AIGNERVILLE | B169: 14710 | C169: CALVADOS | D169: 14004
A170: AIGNES | B170: 31550 | C170: HAUTE GARONNE | D170: 31002
A171: AIGNES ET PUYPEROUX | B171: 16190 | C171: CHARENTE | D171: 16004
A172: AIGNEVILLE | B172: 80210 | C172: SOMME | D172: 80008
A173: AIGNY | B173: 51150 | C173: MARNE | D173: 51003
A174: AIGONNAY | B174: 79370 | C174: DEUX SEVRES | D174: 79004
A175: AIGRE | B175: 16140 | C175: CHARENTE | D175: 16005
A176: AIGREFEUILLE | B176: 31280 | C176: HAUTE GARONNE | D176: 31003
A177: AIGREFEUILLE D AUNIS | B177: 17290 | C177: CHARENTE MARITIME | D177: 17003
A178: AIGREFEUILLE SUR MAINE | B178: 44140 | C178: LOIRE ATLANTIQUE | D178: 44002
A179: AIGREMONT | B179: 30350 | C179: GARD | D179: 30002
A180: AIGREMONT | B180: 52400 | C180: HAUTE MARNE | D180: 52002
A181: AIGREMONT | B181: 78240 | C181: YVELINES | D181: 78007
A182: AIGREMONT | B182: 89800 | C182: YONNE | D182: 89002
A183: AIGUEBELETTE LE LAC | B183: 73610 | C183: SAVOIE | D183: 73001
A184: AIGUEBELLE | B184: 73220 | C184: SAVOIE | D184: 73002
A185: AIGUEBLANCHE | B185: 73260 | C185: SAVOIE | D185: 73003
A186: AIGUEFONDE | B186: 81200 | C186: TARN | D186: 81002
A187: AIGUEPERSE | B187: 63260 | C187: PUY DE DOME | D187: 63001
A188: AIGUEPERSE | B188: 69790 | C188: RHONE | D188: 69002
A189: AIGUES JUNTES | B189: 9240 | C189: ARIEGE | D189: 9001
A190: AIGUES MORTES | B190: 30220 | C190: GARD | D190: 30003
A191: AIGUES VIVES | B191: 9600 | C191: ARIEGE | D191: 9002
A192: AIGUES VIVES | B192: 11800 | C192: AUDE | D192: 11001
A193: AIGUES VIVES | B193: 30670 | C193: GARD | D193: 30004
A194: AIGUES VIVES | B194: 34210 | C194: HERAULT | D194: 34007
A195: AIGUEZE | B195: 30760 | C195: GARD | D195: 30005
A196: AIGUILHE | B196: 43000 | C196: HAUTE LOIRE | D196: 43002
A197: AIGUILLES | B197: 5470 | C197: HAUTES ALPES | D197: 5003
A198: AIGUILLON | B198: 47190 | C198: LOT ET GARONNE | D198: 47004
A199: AIGUINES | B199: 83630 | C199: VAR | D199: 83002
A200: AIGURANDE | B200: 36140 | C200: INDRE | D200: 36001
... 4300 more rows

Sheet Planche de vol (hidden)
C1: VOL A VOILE | Q1: liste Déroulante | R1: Critères | S1: Extraction | T1: Nb Date | V1: Zone critère extraction lignes
L2: SEANCE DE VOL DU: | Q2: APERCU | R2: Date | S2: Date | T2: =COUNTA(S3:S313) -> 1 | V2: Date | W2: TYPE | X2: IMMAT | Y2: PILOTE | Z2: INSTRUCTEUR OU PAX | AA2: HEURE DECOLLAGE | AB2: HEURE ATT | AC2: DUREE DU VOL | AD2: Type de vol | AE2: T ou R | AF2: TREUIL | AG2: CENTIEME | AH2: EPREUVES ET CIRCUITS KMS PARCOURUS
C3: AERO-CLUB D'AIRE SUR L'ADOUR | Q3: IMPRESSION | R3: >0 | S3: 2017-10-31 | V3: 2017-11-01
Q4: IMP RECAP
C5: PLANEUR | G5: DUREE ET VENTILATION | K5: TREUIL OU REMORQUEUR | N5: OBSERVATIONS | Q5: 1
B6: Date | C6: TYPE | D6: IMMAT | E6: PILOTE | F6: INSTRUCTEUR OU PAX | G6: HEURE DECOLLAGE | H6: HEURE ATT | I6: DUREE DU VOL | J6: Type de vol | K6: T ou R | L6: TREUIL | M6: CENTIE, | N6: EPREUVES ET CIRCUITS KMS PARCOURUS | BB6: PILOTE | BC6: TREUIL | BD6: CENTIEME
B7: 2014-11-10 | C7: JANUS B | E7: FERDINAND bernard | F7: a bill | G7: 0.5833333333 | H7: 0.7083333333 | I7: =SUM(H7)-G7 -> 0.125 | K7: t | L7: 1 | M7: 18 | N7: 50/50 | BB7: FERDINAND bernard | BC7: =SUM(($E$7:$E$150=BB7)*($L$7:$L$150)) -> 1 | BD7: =SUM(($E$7:$E$150=BB7)*($M$7:$M$150)) -> 34
B8: 2014-11-11 | C8: JANUS B | E8: a bill | G8: 0.5 | H8: 0.7083333333 | I8: =SUM(H8)-G8 -> 0.2083333333 | L8: 1 | M8: 16 | BB8: toto toto | BC8: =SUM(($E$7:$E$150=BB8)*($L$7:$L$150)) -> 2 | BD8: =SUM(($E$7:$E$150=BB8)*($M$7:$M$150)) -> 20 | BE8: =SUM(($E$7:$E$150=BB8)*($L$7:$L$150)) -> 2
B9: 2014-11-12 | E9: FERDINAND bernard | G9: 14:10:00 | H9: 0.7291666667 | I9: =SUM(H9)-G9 -> 0.1388888889 | L9: 2 | M9: 16 | BB9: titi titi | BC9: =SUM(($E$7:$E$150=BB9)*($L$7:$L$150)) -> 1 | BD9: =SUM(($E$7:$E$150=BB9)*($M$7:$M$150)) -> 0
D10: =IF(C10="","",VLOOKUP(C10,Immat,2,FALSE)) ->  | E10: toto toto | F10: FERDINAND bernard | G10: 0.5069444444 | H10: 0.7569444444 | I10: =SUM(H10)-G10 -> 0.25 | L10: 2 | M10: 20 | BB10: a bill | BC10: =SUM(($E$7:$E$150=BB10)*($L$7:$L$150)) -> 1 | BD10: =SUM(($E$7:$E$150=BB10)*($M$7:$M$150)) -> 16
E11: titi titi | I11: 0 | L11: 1 | BB11: roro roro | BC11: =SUM(($E$7:$E$150=BB11)*($L$7:$L$150)) -> 1 | BD11: =SUM(($E$7:$E$150=BB11)*($M$7:$M$150)) -> 0
E12: roro roro | I12: 0 | L12: 1 | BB12: a f | BC12: =SUM(($E$7:$E$150=BB12)*($L$7:$L$150)) -> 0 | BD12: =SUM(($E$7:$E$150=BB12)*($M$7:$M$150)) -> 0
I13: 0 | BC13: =SUM(($E$7:$E$150=BB13)*($L$7:$L$150)) -> 0 | BD13: =SUM(($E$7:$E$150=BB13)*($M$7:$M$150)) -> 0
I14: 0 | BC14: =SUM(($E$7:$E$150=BB14)*($L$7:$L$150)) -> 0 | BD14: =SUM(($E$7:$E$150=BB14)*($M$7:$M$150)) -> 0
I15: 0 | BC15: =SUM(($E$7:$E$150=BB15)*($L$7:$L$150)) -> 0 | BD15: =SUM(($E$7:$E$150=BB15)*($M$7:$M$150)) -> 0 | BG15: =SUM(BC15:BF15) -> 0
I16: 0 | BC16: =SUM(($E$7:$E$150=BB16)*($L$7:$L$150)) -> 0 | BD16: =SUM(($E$7:$E$150=BB16)*($M$7:$M$150)) -> 0
I17: 0 | BC17: =SUM(($E$7:$E$150=BB17)*($L$7:$L$150)) -> 0 | BD17: =SUM(($E$7:$E$150=BB17)*($M$7:$M$150)) -> 0
I18: 0 | BC18: =SUM(($E$7:$E$150=BB18)*($L$7:$L$150)) -> 0 | BD18: =SUM(($E$7:$E$150=BB18)*($M$7:$M$150)) -> 0
I19: 0 | BC19: =SUM(($E$7:$E$150=BB19)*($L$7:$L$150)) -> 0 | BD19: =SUM(($E$7:$E$150=BB19)*($M$7:$M$150)) -> 0
I20: 0 | BC20: =SUM(($E$7:$E$150=BB20)*($L$7:$L$150)) -> 0 | BD20: =SUM(($E$7:$E$150=BB20)*($M$7:$M$150)) -> 0
I21: 0 | BC21: =SUM(($E$7:$E$150=BB21)*($L$7:$L$150)) -> 0 | BD21: =SUM(($E$7:$E$150=BB21)*($M$7:$M$150)) -> 0
I22: 0 | BC22: =SUM(($E$7:$E$150=BB22)*($L$7:$L$150)) -> 0 | BD22: =SUM(($E$7:$E$150=BB22)*($M$7:$M$150)) -> 0
I23: 0 | BC23: =SUM(($E$7:$E$150=BB23)*($L$7:$L$150)) -> 0 | BD23: =SUM(($E$7:$E$150=BB23)*($M$7:$M$150)) -> 0
I24: 0 | BC24: =SUM(($E$7:$E$150=BB24)*($L$7:$L$150)) -> 0 | BD24: =SUM(($E$7:$E$150=BB24)*($M$7:$M$150)) -> 0
I25: 0 | BC25: =SUM(($E$7:$E$150=BB25)*($L$7:$L$150)) -> 0 | BD25: =SUM(($E$7:$E$150=BB25)*($M$7:$M$150)) -> 0
I26: 0 | BC26: =SUM(($E$7:$E$150=BB26)*($L$7:$L$150)) -> 0 | BD26: =SUM(($E$7:$E$150=BB26)*($M$7:$M$150)) -> 0
I27: 0 | BC27: =SUM(($E$7:$E$150=BB27)*($L$7:$L$150)) -> 0 | BD27: =SUM(($E$7:$E$150=BB27)*($M$7:$M$150)) -> 0
I28: 0 | BC28: =SUM(($E$7:$E$150=BB28)*($L$7:$L$150)) -> 0 | BD28: =SUM(($E$7:$E$150=BB28)*($M$7:$M$150)) -> 0
I29: 0 | BC29: =SUM(($E$7:$E$150=BB29)*($L$7:$L$150)) -> 0 | BD29: =SUM(($E$7:$E$150=BB29)*($M$7:$M$150)) -> 0
I30: 0 | BC30: =SUM(($E$7:$E$150=BB30)*($L$7:$L$150)) -> 0 | BD30: =SUM(($E$7:$E$150=BB30)*($M$7:$M$150)) -> 0
I31: 0 | BC31: =SUM(($E$7:$E$150=BB31)*($L$7:$L$150)) -> 0 | BD31: =SUM(($E$7:$E$150=BB31)*($M$7:$M$150)) -> 0
I32: 0 | BC32: =SUM(($E$7:$E$150=BB32)*($L$7:$L$150)) -> 0 | BD32: =SUM(($E$7:$E$150=BB32)*($M$7:$M$150)) -> 0
I33: 0 | BC33: =SUM(($E$7:$E$150=BB33)*($L$7:$L$150)) -> 0 | BD33: =SUM(($E$7:$E$150=BB33)*($M$7:$M$150)) -> 0
I34: 0 | BC34: =SUM(($E$7:$E$150=BB34)*($L$7:$L$150)) -> 0 | BD34: =SUM(($E$7:$E$150=BB34)*($M$7:$M$150)) -> 0
I35: 0 | BC35: =SUM(($E$7:$E$150=BB35)*($L$7:$L$150)) -> 0 | BD35: =SUM(($E$7:$E$150=BB35)*($M$7:$M$150)) -> 0
I36: 0 | BC36: =SUM(($E$7:$E$150=BB36)*($L$7:$L$150)) -> 0 | BD36: =SUM(($E$7:$E$150=BB36)*($M$7:$M$150)) -> 0
I37: 0 | BC37: =SUM(($E$7:$E$150=BB37)*($L$7:$L$150)) -> 0 | BD37: =SUM(($E$7:$E$150=BB37)*($M$7:$M$150)) -> 0
I38: 0 | BC38: =SUM(($E$7:$E$150=BB38)*($L$7:$L$150)) -> 0 | BD38: =SUM(($E$7:$E$150=BB38)*($M$7:$M$150)) -> 0
I39: 0 | BC39: =SUM(($E$7:$E$150=BB39)*($L$7:$L$150)) -> 0 | BD39: =SUM(($E$7:$E$150=BB39)*($M$7:$M$150)) -> 0
D40: =IF(C40="","",VLOOKUP(C40,Immat,2,FALSE)) ->  | I40: 0
I41: 0
I42: 0
I43: 0
I44: 0
I45: 0
I46: 0
I47: 0
I48: 0
I49: 0
I50: 0
I51: 0
I52: 0
I53: 0
I54: 0
I55: 0
I56: 0
I57: 0
I58: 0
I59: 0
I60: 0
I61: 0
I62: 0
I63: 0
I64: 0
I65: 0
I66: 0
I67: 0
I68: 0
I69: 0
I70: 0
D71: =IF(C71="","",VLOOKUP(C71,Immat,2,FALSE)) ->  | I71: 0
I72: 0
I73: 0
I74: =SUM(H74)-G74 -> 0
I75: 0
I76: 0
I77: 0
I78: 0
I79: 0
I80: 0
I81: 0
I82: 0
I83: 0
I84: 0
I85: 0
I86: 0
I87: 0
I88: 0
I89: 0
I90: 0
I91: 0
I92: 0
I93: 0
I94: 0
I95: 0
I96: 0
I97: 0
I98: 0
I99: 0
I100: 0
I101: 0
I102: 0
I103: 0
I104: 0
I105: 0
I106: 0
I107: 0
I108: 0
I109: 0
I110: 0
I111: 0
I112: 0
I113: 0
I114: 0
I115: 0
I116: 0
I117: 0
I118: 0
I119: 0
I120: 0
I121: 0
I122: 0
I123: 0
I124: 0
I125: 0
I126: 0
I127: 0
I128: 0
I129: 0
I130: 0
I131: 0
I132: 0
I133: 0
I134: 0
I135: 0
I136: 0
I137: 0
I138: =SUM(H138)-G138 -> 0
I139: 0
I140: 0
I141: 0
I142: 0
I143: 0
I144: 0
I145: 0
I146: 0
I147: 0
I148: 0
I149: 0
I150: 0
C154: STAGE LUCHON AUTONNE 2013
C155: TEMPS DE VOL TOTAL STAGE
F157: TEMPS DE VOL PAR PILOTE | J157: TEMPS DE VOL PAR MACHINE
F158: Pilotes | G158: Solo | H158: Dbc OU Pax | K158: Machines | L158: Immat
F159: FERDINAND bernard | G159: =SUMIF(E7:E150,F159,I7:I150) -> 0.2638888889 | H159: =SUMIF(F7:F150,F159,I7:I150) -> 0.25 | K159: =[2]Fichiers!A2 -> JANUS B | L159: =[2]Fichiers!B2 -> F-CEPR | M159: =SUMIF(C7:C150,K159,I7:I150) -> 0.3333333333
F160: a bill | G160: =SUMIF(E7:E150,F160,I7:I150) -> 0.2083333333 | H160: =SUMIF(F7:F150,F160,I7:I150) -> 0.125 | K160: =[2]Fichiers!A3 -> LIBELLE | L160: =[2]Fichiers!B3 -> F-CELG | M160: =SUMIF(C7:C150,K160,I7:I150) -> 0
F161: =[2]Fichiers!E4 -> 0 | G161: =SUMIF(E7:E150,F161,I7:I150) -> 0 | H161: =SUMIF(F7:F150,F161,I7:I150) -> 0 | K161: =[2]Fichiers!A4 -> LS7 | L161: =[2]Fichiers!B4 -> F-CGYE | M161: =SUMIF(C7:C150,K161,I7:I150) -> 0
F162: =[2]Fichiers!E5 -> 0 | G162: =SUMIF(E7:E150,F162,I7:I150) -> 0 | H162: =SUMIF(F7:F150,F162,I7:I150) -> 0 | K162: =[2]Fichiers!A5 -> PEGASE | L162: =[2]Fichiers!B5 -> F-CHEU | M162: =SUMIF(C7:C150,K162,I7:I150) -> 0
F163: =[2]Fichiers!E6 -> 0 | G163: =SUMIF(E7:E150,F163,I7:I150) -> 0 | H163: =SUMIF(F7:F150,F163,I7:I150) -> 0 | K163: =[2]Fichiers!A6 -> ASTIR | L163: =[2]Fichiers!B6 -> F-CECC | M163: =SUMIF(C7:C150,K163,I7:I150) -> 0
F164: =[2]Fichiers!E7 -> 0 | G164: =SUMIF(E7:E150,F164,I7:I150) -> 0 | H164: =SUMIF(F7:F150,F164,I7:I150) -> 0 | K164: =[2]Fichiers!A7 -> CIRRUS | L164: =[2]Fichiers!B7 -> F-CFDA | M164: =SUMIF(C7:C150,K164,I7:I150) -> 0
F165: =[2]Fichiers!E8 -> 0 | G165: =SUMIF(E7:E150,F165,I7:I150) -> 0 | H165: =SUMIF(F7:F150,F165,I7:I150) -> 0 | K165: =[2]Fichiers!A8 -> TWIN | L165: =[2]Fichiers!B8 -> F-CFYB | M165: =SUMIF(C7:C150,K165,I7:I150) -> 0
F166: =[2]Fichiers!E9 -> 0 | G166: =SUMIF(E7:E150,F166,I7:I150) -> 0 | H166: =SUMIF(F7:F150,F166,I7:I150) -> 0 | K166: =[2]Fichiers!A9 -> ASK | L166: =[2]Fichiers!B9 -> F-CDCY | M166: =SUMIF(C7:C150,K166,I7:I150) -> 0
F167: =[2]Fichiers!E10 -> 0 | G167: =SUMIF(E7:E150,F167,I7:I150) -> 0 | H167: =SUMIF(F7:F150,F167,I7:I150) -> 0 | K167: =[2]Fichiers!A10 -> JANUS C | L167: =[2]Fichiers!B10 -> F-C | M167: =SUMIF(C7:C150,K167,I7:I150) -> 0
F168: =[2]Fichiers!E11 -> 0 | G168: =SUMIF(E7:E150,F168,I7:I150) -> 0 | H168: =SUMIF(F7:F150,F168,I7:I150) -> 0 | K168: =[2]Fichiers!A11 -> 0 | L168: =[2]Fichiers!B11 -> 0
F169: =[2]Fichiers!E12 -> 0 | G169: =SUMIF(E7:E150,F169,I7:I150) -> 0 | H169: =SUMIF(F7:F150,F169,I7:I150) -> 0 | K169: =[2]Fichiers!A12 -> 0 | L169: =[2]Fichiers!B12 -> 0
F170: =[2]Fichiers!E13 -> 0 | G170: =SUMIF(E7:E150,F170,I7:I150) -> 0 | H170: =SUMIF(F7:F150,F170,I7:I150) -> 0 | K170: =[2]Fichiers!A13 -> 0 | L170: =[2]Fichiers!B13 -> 0
F171: =[2]Fichiers!E14 -> 0 | G171: =SUMIF(E7:E150,F171,I7:I150) -> 0 | H171: =SUMIF(F7:F150,F171,I7:I150) -> 0 | K171: =[2]Fichiers!A14 -> 0 | L171: =[2]Fichiers!B14 -> 0
F172: =[2]Fichiers!E15 -> 0 | G172: =SUMIF(E7:E150,F172,I7:I150) -> 0 | H172: =SUMIF(F7:F150,F172,I7:I150) -> 0 | K172: =[2]Fichiers!A15 -> 0 | L172: =[2]Fichiers!B15 -> 0
F173: =[2]Fichiers!E16 -> 0 | G173: =SUMIF(E7:E150,F173,I7:I150) -> 0 | H173: =SUMIF(F7:F150,F173,I7:I150) -> 0 | K173: =[2]Fichiers!A16 -> 0 | L173: =[2]Fichiers!B16 -> 0
F174: =[2]Fichiers!E17 -> 0 | G174: =SUMIF(E7:E156,F174,I7:I156) -> 0 | H174: =SUMIF(F7:F150,F174,I7:I150) -> 0 | K174: =[2]Fichiers!A17 -> 0 | L174: =[2]Fichiers!B17 -> 0
F175: =[2]Fichiers!E18 -> 0 | G175: =SUMIF(E7:E150,F175,I7:I150) -> 0 | H175: =SUMIF(F7:F150,F175,I7:I150) -> 0 | K175: =[2]Fichiers!A18 -> 0 | L175: =[2]Fichiers!B18 -> 0
F176: =[2]Fichiers!E19 -> 0 | G176: =SUMIF(E8:E151,F176,I8:I151) -> 0 | H176: =SUMIF(F8:F151,F176,I8:I151) -> 0 | K176: =[2]Fichiers!A19 -> 0 | L176: =[2]Fichiers!B19 -> 0
F177: =[2]Fichiers!E20 -> 0 | G177: 0 | H177: =SUMIF(F9:F152,F177,I9:I152) -> 0 | K177: =[2]Fichiers!A20 -> 0 | L177: =[2]Fichiers!B20 -> 0
F178: =[2]Fichiers!E21 -> 0 | G178: 0 | H178: =SUMIF(F8:F153,F178,I10:I153) -> 0 | K178: =[2]Fichiers!A21 -> 0 | L178: =[2]Fichiers!B21 -> 0
F179: =[2]Fichiers!E22 -> 0 | G179: 0 | H179: 0 | K179: =[2]Fichiers!A22 -> 0 | L179: =[2]Fichiers!B22 -> 0
F180: =[2]Fichiers!E23 -> 0 | G180: 0 | H180: 0 | K180: =[2]Fichiers!A23 -> 0 | L180: =[2]Fichiers!B23 -> 0
F181: =[2]Fichiers!E24 -> 0 | G181: 0 | H181: 0 | K181: =[2]Fichiers!A24 -> 0 | L181: =[2]Fichiers!B24 -> 0
F182: =[2]Fichiers!E25 -> 0 | G182: 0 | H182: 0 | K182: =[2]Fichiers!A25 -> 0 | L182: =[2]Fichiers!B25 -> 0
F183: =[2]Fichiers!E26 -> 0 | G183: 0 | H183: 0 | K183: =[2]Fichiers!A26 -> 0 | L183: =[2]Fichiers!B26 -> 0
F184: =[2]Fichiers!E27 -> 0 | G184: 0 | H184: 0 | K184: =[2]Fichiers!A27 -> 0 | L184: =[2]Fichiers!B27 -> 0
F185: =[2]Fichiers!E28 -> 0 | G185: 0 | H185: 0 | K185: =[2]Fichiers!A28 -> 0 | L185: =[2]Fichiers!B28 -> 0
F186: =[2]Fichiers!E29 -> 0 | G186: 0 | H186: 0 | K186: =[2]Fichiers!A29 -> 0 | L186: =[2]Fichiers!B29 -> 0
F187: =[2]Fichiers!E30 -> 0 | G187: 0 | H187: 0 | K187: =[2]Fichiers!A30 -> 0 | L187: =[2]Fichiers!B30 -> 0
F188: =[2]Fichiers!E31 -> 0 | G188: 0 | H188: 0 | K188: =[2]Fichiers!A31 -> 0 | L188: =[2]Fichiers!B31 -> 0
F189: =[2]Fichiers!E32 -> 0 | G189: 0 | H189: 0 | K189: =[2]Fichiers!A32 -> 0 | L189: =[2]Fichiers!B32 -> 0
F190: =[2]Fichiers!E33 -> 0 | G190: 0 | H190: 0 | K190: =[2]Fichiers!A33 -> 0 | L190: =[2]Fichiers!B33 -> 0
F191: =[2]Fichiers!E34 -> 0 | G191: 0 | H191: 0 | K191: =[2]Fichiers!A34 -> 0 | L191: =[2]Fichiers!B34 -> 0
F192: =[2]Fichiers!E35 -> 0 | G192: 0 | H192: 0 | K192: =[2]Fichiers!A35 -> 0 | L192: =[2]Fichiers!B35 -> 0
F193: =[2]Fichiers!E36 -> 0 | G193: 0 | H193: 0 | K193: =[2]Fichiers!A36 -> 0 | L193: =[2]Fichiers!B36 -> 0
F194: =[2]Fichiers!E37 -> 0 | G194: 0 | H194: 0 | K194: =[2]Fichiers!A37 -> 0 | L194: =[2]Fichiers!B37 -> 0
F195: =[2]Fichiers!E38 -> 0 | G195: 0 | H195: 0 | K195: =[2]Fichiers!A38 -> 0 | L195: =[2]Fichiers!B38 -> 0
F196: Tot,colonne | G196: =SUM(G159:G195) -> 0.4722222222 | H196: =SUM(H159:H195) -> 0.375 | M196: =SUM(M159:M195) -> 0.3333333333

Sheet Relevé (hidden)
D1: Relevé édité le : mardi 19/06/2018
D3: Nom Prénom du Pilote
D4: XX Xx
D11: Numéro du relevé : | E11: RE 101599
A14: =Parametres!$B$19 -> Stage vol à voile luchon Automne 2018
A15: =Parametres!AK$3 -> 2018-10-20 | C15: =IF(Parametres!AK$5=1,"","au") -> au | D15: =IF(Parametres!AK$3=1,"",Parametres!AK$4) -> 2018-11-04
A16: Détail Frais Hébergement
A17: Nbr Petit dejeuné | B17: 0 | C17: Montant PtDej | D17: 0
A18: Nbr Repas Midi | B18: 8 | C18: Montant Midi | D18: 28.8
A19: Nbr repas soir | B19: 10 | C19: Montant Rep.Soir | D19: 51
A20: Nbr Nuitées | B20: 0 | C20: Montant Nuitées | D20: 0
C22: Total dû | D22: 79.8
C23: Frais engagé pilote | D23: 40
C24: Acompte 1
C25: Acompte 2
C26: Reste dû
C27: Payé le
C28: Par
C29: Banque
A31: Détail Frais plateforme
A32: Nbr de treuillés-A | C32: Solde treuillés | D32: 0
A33: Nbr Centiémes-A | C33: Solde Centiéme | D33: 0
A34: Nbr de treuillés-L | C34: Solde treuillés | D34: 0
A35: Nbr Centiémes-L | C35: Solde Centiéme | D35: 0
A36: Nbr Jours Volés | B36: 1 | C36: taxtes plateforme | D36: 5
C39: total Dû | D39: 5
C40: Acompte 1
C41: Acompte 2
C42: Reste Dû
C43: Payé le
C44: Par
C45: Nom Banque
C46: N° Chèque
C49: Total à Payer | D49: =SUM(D42)+D26 -> 0

Sheet ListeDesRelevés (hidden)
A1: Relevé de la Consultation des frais du stage par incrits
D2: Hebergement | I2: Plateforme
A3: N° relevé | B3: Date d'édition | C3: Noms prénoms | D3: Total Dû | E3: Dep par Pilote | F3: Acompte Payé | G3: Acompte 2 | H3: Solde Définitif | I3: Total Dû | J3: Acompte payé | K3: Solde Définitif

Sheet Centiéme heures (hidden)
A2: Page centiémes
B4: Membres club | C4: 1.8 | D4: 9
B5: Prix centiémes | C5: 2.2 | D5: 10
A6: Noms | B6: Centiémes | C6: Montant | D6: Treuil | E6: Montant | F6: Total
A7: ='Planche de vol'!BB7 -> FERDINAND bernard | B7: ='Planche de vol'!BD7 -> 34 | C7: =SUM(B7)*C5 -> 74.8 | D7: ='[2]Planche de vol'!BB7 -> 0 | E7: =SUM(D7)*D5 -> 0 | F7: =SUM(C7)+E7 -> 74.8
A8: ='Planche de vol'!BB8 -> toto toto | B8: ='Planche de vol'!BD8 -> 20 | C8: =SUM(B8)*C5 -> 44 | D8: ='[2]Planche de vol'!BB8 -> 0 | E8: =SUM(D8)*D5 -> 0 | F8: =SUM(C8)+E8 -> 44
A9: ='Planche de vol'!BB9 -> titi titi | B9: ='Planche de vol'!BD9 -> 0 | C9: =SUM(B9)*C5 -> 0 | D9: ='[2]Planche de vol'!BB9 -> 0 | E9: =SUM(D9)*D5 -> 0 | F9: 0
A10: ='Planche de vol'!BB10 -> a bill | B10: ='Planche de vol'!BD10 -> 16 | C10: =SUM(B10)*C5 -> 35.2 | D10: ='[2]Planche de vol'!BB10 -> 0 | E10: =SUM(D10)*D5 -> 0 | F10: 35.2
A11: ='Planche de vol'!BB11 -> roro roro | B11: ='Planche de vol'!BD11 -> 0 | C11: =SUM(B11)*C5 -> 0 | D11: ='[2]Planche de vol'!BB11 -> 0 | E11: =SUM(D11)*D5 -> 0 | F11: 0
A12: ='Planche de vol'!BB12 -> a f | B12: ='Planche de vol'!BD12 -> 0 | C12: =SUM(B12)*C5 -> 0 | D12: ='[2]Planche de vol'!BB12 -> 0 | E12: =SUM(D12)*D5 -> 0 | F12: 0
A13: ='Planche de vol'!BB13 -> 0 | B13: ='Planche de vol'!BD13 -> 0 | C13: =SUM(B13)*C5 -> 0 | D13: ='[2]Planche de vol'!BB13 -> 0 | E13: =SUM(D13)*D5 -> 0 | F13: 0
A14: ='Planche de vol'!BB14 -> 0 | B14: ='Planche de vol'!BD14 -> 0 | C14: =SUM(B14)*C5 -> 0 | D14: ='[2]Planche de vol'!BB14 -> 0 | E14: =SUM(D14)*D5 -> 0 | F14: 0
A15: ='Planche de vol'!BB15 -> 0 | B15: ='Planche de vol'!BD15 -> 0 | C15: =SUM(B15)*C5 -> 0 | D15: ='[2]Planche de vol'!BB15 -> 0 | E15: =SUM(D15)*D5 -> 0 | F15: 0
A16: ='Planche de vol'!BB16 -> 0 | B16: ='Planche de vol'!BD16 -> 0 | C16: =SUM(B16)*C5 -> 0 | D16: ='[2]Planche de vol'!BB16 -> 0 | E16: =SUM(D16)*D5 -> 0 | F16: 0
A17: ='Planche de vol'!BB17 -> 0 | B17: ='Planche de vol'!BD17 -> 0 | C17: =SUM(B17)*C5 -> 0 | D17: ='[2]Planche de vol'!BB17 -> 0 | E17: =SUM(D17)*D5 -> 0 | F17: 0
A18: ='Planche de vol'!BB18 -> 0 | B18: ='Planche de vol'!BD18 -> 0 | C18: =SUM(B18)*C5 -> 0 | D18: ='[2]Planche de vol'!BB18 -> 0 | E18: =SUM(D18)*D5 -> 0 | F18: 0
A19: ='Planche de vol'!BB19 -> 0 | B19: ='Planche de vol'!BD19 -> 0 | C19: =SUM(B19)*C5 -> 0 | D19: ='[2]Planche de vol'!BB19 -> 0 | E19: =SUM(D19)*D5 -> 0 | F19: 0
A20: ='Planche de vol'!BB20 -> 0 | B20: ='Planche de vol'!BD20 -> 0 | C20: =SUM(B20)*C5 -> 0 | D20: ='[2]Planche de vol'!BB20 -> 0 | E20: =SUM(D20)*D5 -> 0 | F20: 0
A21: ='Planche de vol'!BB21 -> 0 | B21: ='Planche de vol'!BD21 -> 0 | C21: =SUM(B21)*C5 -> 0 | D21: ='[2]Planche de vol'!BB21 -> 0 | E21: =SUM(D21)*D5 -> 0 | F21: 0
A22: ='Planche de vol'!BB22 -> 0 | B22: ='Planche de vol'!BD22 -> 0 | C22: =SUM(B22)*C5 -> 0 | D22: ='[2]Planche de vol'!BB22 -> 0 | E22: =SUM(D22)*D5 -> 0 | F22: 0
A23: ='Planche de vol'!BB23 -> 0 | B23: ='Planche de vol'!BD23 -> 0 | C23: =SUM(B23)*C5 -> 0 | D23: ='[2]Planche de vol'!BB23 -> 0 | E23: =SUM(D23)*D5 -> 0 | F23: 0
A24: ='Planche de vol'!BB24 -> 0 | B24: ='Planche de vol'!BD24 -> 0 | C24: =SUM(B24)*C5 -> 0 | D24: ='[2]Planche de vol'!BB24 -> 0 | E24: =SUM(D24)*D5 -> 0 | F24: 0
A25: ='Planche de vol'!BB25 -> 0 | B25: ='Planche de vol'!BD25 -> 0 | C25: =SUM(B25)*C5 -> 0 | D25: ='[2]Planche de vol'!BB25 -> 0 | E25: =SUM(D25)*D5 -> 0 | F25: 0
A26: ='Planche de vol'!BB26 -> 0 | B26: ='Planche de vol'!BD26 -> 0 | C26: =SUM(B26)*C5 -> 0 | D26: ='[2]Planche de vol'!BB26 -> 0 | E26: =SUM(D26)*D5 -> 0 | F26: 0
A27: ='Planche de vol'!BB27 -> 0 | B27: ='Planche de vol'!BD27 -> 0 | C27: =SUM(B27)*C5 -> 0 | D27: ='[2]Planche de vol'!BB27 -> 0 | E27: =SUM(D27)*D5 -> 0 | F27: 0
A28: ='Planche de vol'!BB28 -> 0 | B28: ='Planche de vol'!BD28 -> 0 | C28: =SUM(B28)*C5 -> 0 | D28: ='[2]Planche de vol'!BB28 -> 0 | E28: =SUM(D28)*D5 -> 0 | F28: 0
A29: ='Planche de vol'!BB29 -> 0 | B29: ='Planche de vol'!BD29 -> 0 | C29: =SUM(B29)*C5 -> 0 | D29: ='[2]Planche de vol'!BB29 -> 0 | E29: =SUM(D29)*D5 -> 0 | F29: 0
A30: ='Planche de vol'!BB30 -> 0 | B30: ='Planche de vol'!BD30 -> 0 | C30: =SUM(B30)*C5 -> 0 | D30: ='[2]Planche de vol'!BB30 -> 0 | E30: =SUM(D30)*D5 -> 0 | F30: 0
A31: ='Planche de vol'!BB31 -> 0 | B31: ='Planche de vol'!BD31 -> 0 | C31: =SUM(B31)*C5 -> 0 | D31: ='[2]Planche de vol'!BB31 -> 0 | E31: =SUM(D31)*D5 -> 0 | F31: 0
A32: ='Planche de vol'!BB32 -> 0 | B32: ='Planche de vol'!BD32 -> 0 | C32: =SUM(B32)*C5 -> 0 | D32: ='[2]Planche de vol'!BB32 -> 0 | E32: =SUM(D32)*D5 -> 0 | F32: 0
A33: ='Planche de vol'!BB33 -> 0 | B33: ='Planche de vol'!BD33 -> 0 | C33: =SUM(B33)*C5 -> 0 | D33: ='[2]Planche de vol'!BB33 -> 0 | E33: =SUM(D33)*D5 -> 0 | F33: 0
A34: ='Planche de vol'!BB34 -> 0 | B34: ='Planche de vol'!BD34 -> 0 | C34: =SUM(B34)*C5 -> 0 | D34: ='[2]Planche de vol'!BB34 -> 0 | E34: =SUM(D34)*D5 -> 0 | F34: 0
A35: ='Planche de vol'!BB35 -> 0 | B35: ='Planche de vol'!BD35 -> 0 | C35: =SUM(B35)*C5 -> 0 | D35: ='[2]Planche de vol'!BB35 -> 0 | E35: =SUM(D35)*D5 -> 0 | F35: 0
A36: ='Planche de vol'!BB36 -> 0 | B36: ='Planche de vol'!BD36 -> 0 | C36: =SUM(B36)*C5 -> 0 | D36: ='[2]Planche de vol'!BB36 -> 0 | E36: =SUM(D36)*D5 -> 0 | F36: 0
A37: ='Planche de vol'!BB37 -> 0 | B37: ='Planche de vol'!BD37 -> 0 | C37: =SUM(B37)*C5 -> 0 | D37: ='[2]Planche de vol'!BB37 -> 0 | E37: =SUM(D37)*D5 -> 0 | F37: 0
A38: ='Planche de vol'!BB38 -> 0 | B38: ='Planche de vol'!BD38 -> 0 | C38: =SUM(B38)*C5 -> 0 | D38: ='[2]Planche de vol'!BB38 -> 0 | E38: =SUM(D38)*D5 -> 0 | F38: 0
A39: ='Planche de vol'!BB39 -> 0 | B39: ='Planche de vol'!BD39 -> 0 | C39: =SUM(B39)*C5 -> 0 | D39: ='[2]Planche de vol'!BB39 -> 0 | E39: =SUM(D39)*D5 -> 0 | F39: 0

Sheet SaisieVols (hidden)
D2: PLANEUR | J2: DUREE ET VENTILATION | N2: TREUIL OU REMORQUEUR | R2: OBSERVATIONS | Y2: VENTILLATION PILOTES | AH2: =SUM(AH4:AH39) -> 0.08333333333 | AO2: Temps de vols par machines
A3: Nbr | B3: Code vols | C3: Date | D3: TYPE | E3: IMMAT | F3: Club | G3: Prix | H3: Pilotes | I3: INSTRUCTEUR OU PAX | J3: HEURE DECOLLAGE | K3: HEURE Atterissage | L3: DUREE DU VOL | M3: Type de vol | N3: T ou R | O3: TREUIL | P3: CENTIE, | Q3: Ratio entre pilote | R3: EPREUVES ET CIRCUITS KMS PARCOURUS | S3: Heures Maxi à facturer | T3: Montant Heures | U3: Max H Facturer | Y3: TYPE | Z3: Treuillé Ext Aire | AA3: Centiémes Ext Aire | AB3: Treuillé club luchon | AC3: Centiéme club luchon | AD3: Heures ext Aire | AE3: Heures club Luchon | AH3: Total heures pilotes | AI3: Montant luchon Treuillés | AJ3: Montant Luchon centiémes | AK3: Montant cellules Aire | AL3: Montant cellules Luchon | AO3: TYPE | AP3: IMMAT | AQ3: Club | AR3: Nbr d'heures faites
A4: 1 | B4: 19/06/2018 / BIL Bill / | C4: 19/06/2018 | D4: PEGASE EU | E4: F-CHEU | F4: Aire | G4: 22 | H4: BIL Bill | J4: 10:00 | K4: 12:00 | L4: 02:00:00 | M4: Local | N4: T | O4: 1 | S4: 0.125 | T4: 44.00 € | U4: 02:00 | Y4: =IF(ROWS(Y$3:Y3)<=SUM(IF(H$4:H$38<>"",1/COUNTIF(H$4:H$38,H$4:H$38))),INDEX(H$1:H$38,MIN(IF(COUNTIF(Y$3:Y3,H$4:H$38)=0,ROW(H$4:H$38)))),INDEX(I$1:I$38,MIN(IF((I$4:I$38<>"")*(COUNTIF(Y$3:Y3,I$4:I$38)=0),ROW(H$4:H$38))))) -> BIL Bill | Z4: =IF(Y4=0,"",SUMPRODUCT((F$4:F$76="Aire")*((H$4:H$76=Y4)+(I$4:I$76=Y4))*IF(O$4:O$76="",0,O$4:O$76)*((Q$4:Q$76="")+(Q$4:Q$76="50/50")/2))) -> 1 | AA4: =IF(Y4=0,"",SUMPRODUCT((F$4:F$56="Aire")*((H$4:H$56=Y4)+(I$4:I$56=Y4))*IF(P$4:P$56="",0,P$4:P$56)*((Q$4:Q$56="")+(Q$4:Q$56="50/50")/2))) -> 0 | AB4: =IF(Y4=0,"",SUMPRODUCT((F$4:F$4="Luchon")*((H$4:H$4=Y4)+(I$4:I$4=Y4))*IF(O$4:O$4="",0,O$4:O$4)*((Q$4:Q$4="")+(Q$4:Q$4="50/50")/2))) -> 0 | AC4: =IF(Y4=0,"",SUMPRODUCT((F$4:F$4="Luchon")*((H$4:H$4=Y4)+(I$4:I$4=Y4))*IF(P$4:P$4="",0,P$4:P$4)*((Q$4:Q$4="")+(Q$4:Q$4="50/50")/2))) -> 0 | AD4: =IF(Y4=0,"",SUMPRODUCT((F$4:F$38="Aire")*((H$4:H$38=Y4)+(I$4:I$38=Y4))*(L$4:L$38))) -> 0.08333333333 | AE4: =IF(Y4=0,"",SUMPRODUCT((F$4:F$4="Luchon")*((H$4:H$4=Y4)+(I$4:I$4=Y4))*(L$4:L$4))) -> 0 | AH4: =SUM(AD4:AE4) -> 0.08333333333 | AI4: =SUM(AB4)*Parametres!AD4 -> 0 | AJ4: =SUM(AC4)*Parametres!AC4 -> 0 | AK4: =IF(Y4=0,"",SUMPRODUCT((F$4:F$4="Aire")*((H$4:H$4=Y4)+(I$4:I$4=Y4))*IF(T$4:T$4="",0,T$4:T$4))) -> 44 | AL4: =IF(Y4=0,"",SUMPRODUCT((F$4:F$4="Luchon")*((H$4:H$4=Y4)+(I$4:I$4=Y4))*IF(T$4:T$4="",0,T$4:T$4))) -> 0 | AO4: =IF(ROWS(AO$3:AO3)<=SUM(IF(D$4:D$4<>"",COUNTIF(D$4:D$4,D$4:D$4))),INDEX(D$1:D$4,MIN(IF(COUNTIF(AO$3:AO3,D$4:D$4)=0,ROW(D$4:D$4))))) -> PEGASE EU | AP4: =IF(ROWS(AP$3:AP3)<=SUM(IF(E$4:E$4<>"",COUNTIF(E$4:E$4,E$4:E$4))),INDEX(E$1:E$4,MIN(IF(COUNTIF(AP$3:AP3,E$4:E$4)=0,ROW(E$4:E$4))))) -> F-CHEU | AQ4: =IF(AO4="","",VLOOKUP(AO4,Immat,4,FALSE)) -> Aire | AR4: =SUMIF(D4:D122,AO4,L4:L122) -> 0.08333333333
Y5: =IF(ROWS(Y$3:Y4)<=SUM(IF(H$4:H$38<>"",1/COUNTIF(H$4:H$38,H$4:H$38))),INDEX(H$1:H$38,MIN(IF(COUNTIF(Y$3:Y4,H$4:H$38)=0,ROW(H$4:H$38)))),INDEX(I$1:I$38,MIN(IF((I$4:I$38<>"")*(COUNTIF(Y$3:Y4,I$4:I$38)=0),ROW(H$4:H$38))))) -> 0 | Z5: =IF(Y5=0,"",SUMPRODUCT((F$4:F$76="Aire")*((H$4:H$76=Y5)+(I$4:I$76=Y5))*IF(O$4:O$76="",0,O$4:O$76)*((Q$4:Q$76="")+(Q$4:Q$76="50/50")/2))) ->  | AA5: =IF(Y5=0,"",SUMPRODUCT((F$4:F$56="Aire")*((H$4:H$56=Y5)+(I$4:I$56=Y5))*IF(P$4:P$56="",0,P$4:P$56)*((Q$4:Q$56="")+(Q$4:Q$56="50/50")/2))) ->  | AB5: =IF(Y5=0,"",SUMPRODUCT((F$4:F$4="Luchon")*((H$4:H$4=Y5)+(I$4:I$4=Y5))*IF(O$4:O$4="",0,O$4:O$4)*((Q$4:Q$4="")+(Q$4:Q$4="50/50")/2))) ->  | AC5: =IF(Y5=0,"",SUMPRODUCT((F$4:F$4="Luchon")*((H$4:H$4=Y5)+(I$4:I$4=Y5))*IF(P$4:P$4="",0,P$4:P$4)*((Q$4:Q$4="")+(Q$4:Q$4="50/50")/2))) ->  | AD5: =IF(Y5=0,"",SUMPRODUCT((F$4:F$38="Aire")*((H$4:H$38=Y5)+(I$4:I$38=Y5))*(L$4:L$38))) ->  | AE5: =IF(Y5=0,"",SUMPRODUCT((F$4:F$4="Luchon")*((H$4:H$4=Y5)+(I$4:I$4=Y5))*(L$4:L$4))) ->  | AH5: =SUM(AD5:AE5) -> 0 | AI5: =SUM(AB5)*Parametres!AD5 -> 0 | AJ5: =SUM(AC5)*Parametres!AC5 -> 0 | AK5: =IF(Y5=0,"",SUMPRODUCT((F$4:F$4="Aire")*((H$4:H$4=Y5)+(I$4:I$4=Y5))*IF(T$4:T$4="",0,T$4:T$4))) ->  | AL5: =IF(Y5=0,"",SUMPRODUCT((F$4:F$4="Luchon")*((H$4:H$4=Y5)+(I$4:I$4=Y5))*IF(T$4:T$4="",0,T$4:T$4))) ->  | AO5: =IF(ROWS(AO$3:AO4)<=SUM(IF(D$4:D$4<>"",COUNTIF(D$4:D$4,D$4:D$4))),INDEX(D$1:D$4,MIN(IF(COUNTIF(AO$3:AO4,D$4:D$4)=0,ROW(D$4:D$4))))) -> FALSE | AP5: =IF(ROWS(AP$3:AP4)<=SUM(IF(E$4:E$4<>"",COUNTIF(E$4:E$4,E$4:E$4))),INDEX(E$1:E$4,MIN(IF(COUNTIF(AP$3:AP4,E$4:E$4)=0,ROW(E$4:E$4))))) -> FALSE | AR5: =SUMIF(D4:D123,AO5,L4:L123) -> 0
Y6: =IF(ROWS(Y$3:Y5)<=SUM(IF(H$4:H$38<>"",1/COUNTIF(H$4:H$38,H$4:H$38))),INDEX(H$1:H$38,MIN(IF(COUNTIF(Y$3:Y5,H$4:H$38)=0,ROW(H$4:H$38)))),INDEX(I$1:I$38,MIN(IF((I$4:I$38<>"")*(COUNTIF(Y$3:Y5,I$4:I$38)=0),ROW(H$4:H$38))))) -> 0 | Z6: =IF(Y6=0,"",SUMPRODUCT((F$4:F$76="Aire")*((H$4:H$76=Y6)+(I$4:I$76=Y6))*IF(O$4:O$76="",0,O$4:O$76)*((Q$4:Q$76="")+(Q$4:Q$76="50/50")/2))) ->  | AA6: =IF(Y6=0,"",SUMPRODUCT((F$4:F$56="Aire")*((H$4:H$56=Y6)+(I$4:I$56=Y6))*IF(P$4:P$56="",0,P$4:P$56)*((Q$4:Q$56="")+(Q$4:Q$56="50/50")/2))) ->  | AB6: =IF(Y6=0,"",SUMPRODUCT((F$4:F$4="Luchon")*((H$4:H$4=Y6)+(I$4:I$4=Y6))*IF(O$4:O$4="",0,O$4:O$4)*((Q$4:Q$4="")+(Q$4:Q$4="50/50")/2))) ->  | AC6: =IF(Y6=0,"",SUMPRODUCT((F$4:F$4="Luchon")*((H$4:H$4=Y6)+(I$4:I$4=Y6))*IF(P$4:P$4="",0,P$4:P$4)*((Q$4:Q$4="")+(Q$4:Q$4="50/50")/2))) ->  | AD6: =IF(Y6=0,"",SUMPRODUCT((F$4:F$38="Aire")*((H$4:H$38=Y6)+(I$4:I$38=Y6))*(L$4:L$38))) ->  | AE6: =IF(Y6=0,"",SUMPRODUCT((F$4:F$4="Luchon")*((H$4:H$4=Y6)+(I$4:I$4=Y6))*(L$4:L$4))) ->  | AH6: 0 | AI6: =SUM(AB6)*Parametres!AD6 -> 0 | AJ6: =SUM(AC6)*Parametres!AC6 -> 0 | AK6: =IF(Y6=0,"",SUMPRODUCT((F$4:F$4="Aire")*((H$4:H$4=Y6)+(I$4:I$4=Y6))*IF(T$4:T$4="",0,T$4:T$4))) ->  | AL6: =IF(Y6=0,"",SUMPRODUCT((F$4:F$4="Luchon")*((H$4:H$4=Y6)+(I$4:I$4=Y6))*IF(T$4:T$4="",0,T$4:T$4))) ->  | AO6: =IF(ROWS(AO$3:AO5)<=SUM(IF(D$4:D$4<>"",COUNTIF(D$4:D$4,D$4:D$4))),INDEX(D$1:D$4,MIN(IF(COUNTIF(AO$3:AO5,D$4:D$4)=0,ROW(D$4:D$4))))) -> FALSE | AP6: =IF(ROWS(AP$3:AP5)<=SUM(IF(E$4:E$4<>"",COUNTIF(E$4:E$4,E$4:E$4))),INDEX(E$1:E$4,MIN(IF(COUNTIF(AP$3:AP5,E$4:E$4)=0,ROW(E$4:E$4))))) -> FALSE | AR6: =SUMIF(D4:D124,AO6,L4:L124) -> 0
Y7: =IF(ROWS(Y$3:Y6)<=SUM(IF(H$4:H$38<>"",1/COUNTIF(H$4:H$38,H$4:H$38))),INDEX(H$1:H$38,MIN(IF(COUNTIF(Y$3:Y6,H$4:H$38)=0,ROW(H$4:H$38)))),INDEX(I$1:I$38,MIN(IF((I$4:I$38<>"")*(COUNTIF(Y$3:Y6,I$4:I$38)=0),ROW(H$4:H$38))))) -> 0 | Z7: =IF(Y7=0,"",SUMPRODUCT((F$4:F$76="Aire")*((H$4:H$76=Y7)+(I$4:I$76=Y7))*IF(O$4:O$76="",0,O$4:O$76)*((Q$4:Q$76="")+(Q$4:Q$76="50/50")/2))) ->  | AA7: =IF(Y7=0,"",SUMPRODUCT((F$4:F$56="Aire")*((H$4:H$56=Y7)+(I$4:I$56=Y7))*IF(P$4:P$56="",0,P$4:P$56)*((Q$4:Q$56="")+(Q$4:Q$56="50/50")/2))) ->  | AB7: =IF(Y7=0,"",SUMPRODUCT((F$4:F$4="Luchon")*((H$4:H$4=Y7)+(I$4:I$4=Y7))*IF(O$4:O$4="",0,O$4:O$4)*((Q$4:Q$4="")+(Q$4:Q$4="50/50")/2))) ->  | AC7: =IF(Y7=0,"",SUMPRODUCT((F$4:F$4="Luchon")*((H$4:H$4=Y7)+(I$4:I$4=Y7))*IF(P$4:P$4="",0,P$4:P$4)*((Q$4:Q$4="")+(Q$4:Q$4="50/50")/2))) ->  | AD7: =IF(Y7=0,"",SUMPRODUCT((F$4:F$38="Aire")*((H$4:H$38=Y7)+(I$4:I$38=Y7))*(L$4:L$38))) ->  | AE7: =IF(Y7=0,"",SUMPRODUCT((F$4:F$4="Luchon")*((H$4:H$4=Y7)+(I$4:I$4=Y7))*(L$4:L$4))) ->  | AH7: 0 | AI7: =SUM(AB7)*Parametres!AD7 -> 0 | AJ7: =SUM(AC7)*Parametres!AC7 -> 0 | AK7: =IF(Y7=0,"",SUMPRODUCT((F$4:F$4="Aire")*((H$4:H$4=Y7)+(I$4:I$4=Y7))*IF(T$4:T$4="",0,T$4:T$4))) ->  | AL7: =IF(Y7=0,"",SUMPRODUCT((F$4:F$4="Luchon")*((H$4:H$4=Y7)+(I$4:I$4=Y7))*IF(T$4:T$4="",0,T$4:T$4))) ->  | AO7: =IF(ROWS(AO$3:AO6)<=SUM(IF(D$4:D$4<>"",COUNTIF(D$4:D$4,D$4:D$4))),INDEX(D$1:D$4,MIN(IF(COUNTIF(AO$3:AO6,D$4:D$4)=0,ROW(D$4:D$4))))) -> FALSE | AP7: =IF(ROWS(AP$3:AP6)<=SUM(IF(E$4:E$4<>"",COUNTIF(E$4:E$4,E$4:E$4))),INDEX(E$1:E$4,MIN(IF(COUNTIF(AP$3:AP6,E$4:E$4)=0,ROW(E$4:E$4))))) -> FALSE | AR7: =SUMIF(D4:D125,AO7,L4:L125) -> 0
Y8: =IF(ROWS(Y$3:Y7)<=SUM(IF(H$4:H$38<>"",1/COUNTIF(H$4:H$38,H$4:H$38))),INDEX(H$1:H$38,MIN(IF(COUNTIF(Y$3:Y7,H$4:H$38)=0,ROW(H$4:H$38)))),INDEX(I$1:I$38,MIN(IF((I$4:I$38<>"")*(COUNTIF(Y$3:Y7,I$4:I$38)=0),ROW(H$4:H$38))))) -> 0 | Z8: =IF(Y8=0,"",SUMPRODUCT((F$4:F$76="Aire")*((H$4:H$76=Y8)+(I$4:I$76=Y8))*IF(O$4:O$76="",0,O$4:O$76)*((Q$4:Q$76="")+(Q$4:Q$76="50/50")/2))) ->  | AA8: =IF(Y8=0,"",SUMPRODUCT((F$4:F$56="Aire")*((H$4:H$56=Y8)+(I$4:I$56=Y8))*IF(P$4:P$56="",0,P$4:P$56)*((Q$4:Q$56="")+(Q$4:Q$56="50/50")/2))) ->  | AB8: =IF(Y8=0,"",SUMPRODUCT((F$4:F$4="Luchon")*((H$4:H$4=Y8)+(I$4:I$4=Y8))*IF(O$4:O$4="",0,O$4:O$4)*((Q$4:Q$4="")+(Q$4:Q$4="50/50")/2))) ->  | AC8: =IF(Y8=0,"",SUMPRODUCT((F$4:F$4="Luchon")*((H$4:H$4=Y8)+(I$4:I$4=Y8))*IF(P$4:P$4="",0,P$4:P$4)*((Q$4:Q$4="")+(Q$4:Q$4="50/50")/2))) ->  | AD8: =IF(Y8=0,"",SUMPRODUCT((F$4:F$38="Aire")*((H$4:H$38=Y8)+(I$4:I$38=Y8))*(L$4:L$38))) ->  | AE8: =IF(Y8=0,"",SUMPRODUCT((F$4:F$4="Luchon")*((H$4:H$4=Y8)+(I$4:I$4=Y8))*(L$4:L$4))) ->  | AH8: 0 | AI8: =SUM(AB8)*Parametres!AD8 -> 0 | AJ8: =SUM(AC8)*Parametres!AC8 -> 0 | AK8: =IF(Y8=0,"",SUMPRODUCT((F$4:F$4="Aire")*((H$4:H$4=Y8)+(I$4:I$4=Y8))*IF(T$4:T$4="",0,T$4:T$4))) ->  | AL8: =IF(Y8=0,"",SUMPRODUCT((F$4:F$4="Luchon")*((H$4:H$4=Y8)+(I$4:I$4=Y8))*IF(T$4:T$4="",0,T$4:T$4))) ->  | AO8: =IF(ROWS(AO$3:AO7)<=SUM(IF(D$4:D$4<>"",COUNTIF(D$4:D$4,D$4:D$4))),INDEX(D$1:D$4,MIN(IF(COUNTIF(AO$3:AO7,D$4:D$4)=0,ROW(D$4:D$4))))) -> FALSE | AP8: =IF(ROWS(AP$3:AP7)<=SUM(IF(E$4:E$4<>"",COUNTIF(E$4:E$4,E$4:E$4))),INDEX(E$1:E$4,MIN(IF(COUNTIF(AP$3:AP7,E$4:E$4)=0,ROW(E$4:E$4))))) -> FALSE | AR8: =SUMIF(D5:D126,AO8,L5:L126) -> 0
Y9: =IF(ROWS(Y$3:Y8)<=SUM(IF(H$4:H$38<>"",1/COUNTIF(H$4:H$38,H$4:H$38))),INDEX(H$1:H$38,MIN(IF(COUNTIF(Y$3:Y8,H$4:H$38)=0,ROW(H$4:H$38)))),INDEX(I$1:I$38,MIN(IF((I$4:I$38<>"")*(COUNTIF(Y$3:Y8,I$4:I$38)=0),ROW(H$4:H$38))))) -> 0 | Z9: =IF(Y9=0,"",SUMPRODUCT((F$4:F$76="Aire")*((H$4:H$76=Y9)+(I$4:I$76=Y9))*IF(O$4:O$76="",0,O$4:O$76)*((Q$4:Q$76="")+(Q$4:Q$76="50/50")/2))) ->  | AA9: =IF(Y9=0,"",SUMPRODUCT((F$4:F$56="Aire")*((H$4:H$56=Y9)+(I$4:I$56=Y9))*IF(P$4:P$56="",0,P$4:P$56)*((Q$4:Q$56="")+(Q$4:Q$56="50/50")/2))) ->  | AB9: =IF(Y9=0,"",SUMPRODUCT((F$4:F$4="Luchon")*((H$4:H$4=Y9)+(I$4:I$4=Y9))*IF(O$4:O$4="",0,O$4:O$4)*((Q$4:Q$4="")+(Q$4:Q$4="50/50")/2))) ->  | AC9: =IF(Y9=0,"",SUMPRODUCT((F$4:F$4="Luchon")*((H$4:H$4=Y9)+(I$4:I$4=Y9))*IF(P$4:P$4="",0,P$4:P$4)*((Q$4:Q$4="")+(Q$4:Q$4="50/50")/2))) ->  | AD9: =IF(Y9=0,"",SUMPRODUCT((F$4:F$38="Aire")*((H$4:H$38=Y9)+(I$4:I$38=Y9))*(L$4:L$38))) ->  | AE9: =IF(Y9=0,"",SUMPRODUCT((F$4:F$4="Luchon")*((H$4:H$4=Y9)+(I$4:I$4=Y9))*(L$4:L$4))) ->  | AH9: 0 | AK9: =IF(Y9=0,"",SUMPRODUCT((F$4:F$4="Aire")*((H$4:H$4=Y9)+(I$4:I$4=Y9))*IF(T$4:T$4="",0,T$4:T$4))) ->  | AL9: =IF(Y9=0,"",SUMPRODUCT((F$4:F$4="Luchon")*((H$4:H$4=Y9)+(I$4:I$4=Y9))*IF(T$4:T$4="",0,T$4:T$4))) ->  | AO9: =IF(ROWS(AO$3:AO8)<=SUM(IF(D$4:D$4<>"",COUNTIF(D$4:D$4,D$4:D$4))),INDEX(D$1:D$4,MIN(IF(COUNTIF(AO$3:AO8,D$4:D$4)=0,ROW(D$4:D$4))))) -> FALSE | AP9: =IF(ROWS(AP$3:AP8)<=SUM(IF(E$4:E$4<>"",COUNTIF(E$4:E$4,E$4:E$4))),INDEX(E$1:E$4,MIN(IF(COUNTIF(AP$3:AP8,E$4:E$4)=0,ROW(E$4:E$4))))) -> FALSE | AQ9: =IF(AO9="","",VLOOKUP(AO9,Immat,4,FALSE)) ->  | AR9: =SUMIF(D5:D127,AO9,L5:L127) -> 0
Y10: =IF(ROWS(Y$3:Y9)<=SUM(IF(H$4:H$38<>"",1/COUNTIF(H$4:H$38,H$4:H$38))),INDEX(H$1:H$38,MIN(IF(COUNTIF(Y$3:Y9,H$4:H$38)=0,ROW(H$4:H$38)))),INDEX(I$1:I$38,MIN(IF((I$4:I$38<>"")*(COUNTIF(Y$3:Y9,I$4:I$38)=0),ROW(H$4:H$38))))) -> 0 | Z10: =IF(Y10=0,"",SUMPRODUCT((F$4:F$76="Aire")*((H$4:H$76=Y10)+(I$4:I$76=Y10))*IF(O$4:O$76="",0,O$4:O$76)*((Q$4:Q$76="")+(Q$4:Q$76="50/50")/2))) ->  | AA10: =IF(Y10=0,"",SUMPRODUCT((F$4:F$56="Aire")*((H$4:H$56=Y10)+(I$4:I$56=Y10))*IF(P$4:P$56="",0,P$4:P$56)*((Q$4:Q$56="")+(Q$4:Q$56="50/50")/2))) ->  | AB10: =IF(Y10=0,"",SUMPRODUCT((F$4:F$4="Luchon")*((H$4:H$4=Y10)+(I$4:I$4=Y10))*IF(O$4:O$4="",0,O$4:O$4)*((Q$4:Q$4="")+(Q$4:Q$4="50/50")/2))) ->  | AC10: =IF(Y10=0,"",SUMPRODUCT((F$4:F$4="Luchon")*((H$4:H$4=Y10)+(I$4:I$4=Y10))*IF(P$4:P$4="",0,P$4:P$4)*((Q$4:Q$4="")+(Q$4:Q$4="50/50")/2))) ->  | AD10: =IF(Y10=0,"",SUMPRODUCT((F$4:F$38="Aire")*((H$4:H$38=Y10)+(I$4:I$38=Y10))*(L$4:L$38))) ->  | AE10: =IF(Y10=0,"",SUMPRODUCT((F$4:F$4="Luchon")*((H$4:H$4=Y10)+(I$4:I$4=Y10))*(L$4:L$4))) ->  | AH10: 0 | AK10: =IF(Y10=0,"",SUMPRODUCT((F$4:F$4="Aire")*((H$4:H$4=Y10)+(I$4:I$4=Y10))*IF(T$4:T$4="",0,T$4:T$4))) ->  | AL10: =IF(Y10=0,"",SUMPRODUCT((F$4:F$4="Luchon")*((H$4:H$4=Y10)+(I$4:I$4=Y10))*IF(T$4:T$4="",0,T$4:T$4))) ->  | AO10: =IF(ROWS(AO$3:AO9)<=SUM(IF(D$4:D$4<>"",COUNTIF(D$4:D$4,D$4:D$4))),INDEX(D$1:D$4,MIN(IF(COUNTIF(AO$3:AO9,D$4:D$4)=0,ROW(D$4:D$4))))) -> FALSE | AP10: =IF(ROWS(AP$3:AP9)<=SUM(IF(E$4:E$4<>"",COUNTIF(E$4:E$4,E$4:E$4))),INDEX(E$1:E$4,MIN(IF(COUNTIF(AP$3:AP9,E$4:E$4)=0,ROW(E$4:E$4))))) -> FALSE | AR10: =SUMIF(D5:D128,AO10,L5:L128) -> 0
Y11: =IF(ROWS(Y$3:Y10)<=SUM(IF(H$4:H$38<>"",1/COUNTIF(H$4:H$38,H$4:H$38))),INDEX(H$1:H$38,MIN(IF(COUNTIF(Y$3:Y10,H$4:H$38)=0,ROW(H$4:H$38)))),INDEX(I$1:I$38,MIN(IF((I$4:I$38<>"")*(COUNTIF(Y$3:Y10,I$4:I$38)=0),ROW(H$4:H$38))))) -> 0 | Z11: =IF(Y11=0,"",SUMPRODUCT((F$4:F$76="Aire")*((H$4:H$76=Y11)+(I$4:I$76=Y11))*IF(O$4:O$76="",0,O$4:O$76)*((Q$4:Q$76="")+(Q$4:Q$76="50/50")/2))) ->  | AA11: =IF(Y11=0,"",SUMPRODUCT((F$4:F$56="Aire")*((H$4:H$56=Y11)+(I$4:I$56=Y11))*IF(P$4:P$56="",0,P$4:P$56)*((Q$4:Q$56="")+(Q$4:Q$56="50/50")/2))) ->  | AB11: =IF(Y11=0,"",SUMPRODUCT((F$4:F$4="Luchon")*((H$4:H$4=Y11)+(I$4:I$4=Y11))*IF(O$4:O$4="",0,O$4:O$4)*((Q$4:Q$4="")+(Q$4:Q$4="50/50")/2))) ->  | AC11: =IF(Y11=0,"",SUMPRODUCT((F$4:F$4="Luchon")*((H$4:H$4=Y11)+(I$4:I$4=Y11))*IF(P$4:P$4="",0,P$4:P$4)*((Q$4:Q$4="")+(Q$4:Q$4="50/50")/2))) ->  | AD11: =IF(Y11=0,"",SUMPRODUCT((F$4:F$38="Aire")*((H$4:H$38=Y11)+(I$4:I$38=Y11))*(L$4:L$38))) ->  | AE11: =IF(Y11=0,"",SUMPRODUCT((F$4:F$4="Luchon")*((H$4:H$4=Y11)+(I$4:I$4=Y11))*(L$4:L$4))) ->  | AH11: 0 | AK11: =IF(Y11=0,"",SUMPRODUCT((F$4:F$4="Aire")*((H$4:H$4=Y11)+(I$4:I$4=Y11))*IF(G$4:G$4="",0,G$4:G$4)*((Q$4:Q$4="")+(Q$4:Q$4="50/50")/2))) ->  | AL11: =IF(Y11=0,"",SUMPRODUCT((F$4:F$4="Luchon")*((H$4:H$4=Y11)+(I$4:I$4=Y11))*IF(G$4:G$4="",0,G$4:G$4)*((Q$4:Q$4="")+(Q$4:Q$4="50/50")/2))) ->  | AO11: =IF(ROWS(AO$3:AO10)<=SUM(IF(D$4:D$4<>"",COUNTIF(D$4:D$4,D$4:D$4))),INDEX(D$1:D$4,MIN(IF(COUNTIF(AO$3:AO10,D$4:D$4)=0,ROW(D$4:D$4))))) -> FALSE | AP11: =IF(ROWS(AP$3:AP10)<=SUM(IF(E$4:E$4<>"",COUNTIF(E$4:E$4,E$4:E$4))),INDEX(E$1:E$4,MIN(IF(COUNTIF(AP$3:AP10,E$4:E$4)=0,ROW(E$4:E$4))))) -> FALSE | AR11: =SUMIF(D5:D129,AO11,L5:L129) -> 0
Y12: =IF(ROWS(Y$3:Y11)<=SUM(IF(H$4:H$38<>"",1/COUNTIF(H$4:H$38,H$4:H$38))),INDEX(H$1:H$38,MIN(IF(COUNTIF(Y$3:Y11,H$4:H$38)=0,ROW(H$4:H$38)))),INDEX(I$1:I$38,MIN(IF((I$4:I$38<>"")*(COUNTIF(Y$3:Y11,I$4:I$38)=0),ROW(H$4:H$38))))) -> 0 | Z12: =IF(Y12=0,"",SUMPRODUCT((F$4:F$76="Aire")*((H$4:H$76=Y12)+(I$4:I$76=Y12))*IF(O$4:O$76="",0,O$4:O$76)*((Q$4:Q$76="")+(Q$4:Q$76="50/50")/2))) ->  | AA12: =IF(Y12=0,"",SUMPRODUCT((F$4:F$56="Aire")*((H$4:H$56=Y12)+(I$4:I$56=Y12))*IF(P$4:P$56="",0,P$4:P$56)*((Q$4:Q$56="")+(Q$4:Q$56="50/50")/2))) ->  | AB12: =IF(Y12=0,"",SUMPRODUCT((F$4:F$4="Luchon")*((H$4:H$4=Y12)+(I$4:I$4=Y12))*IF(O$4:O$4="",0,O$4:O$4)*((Q$4:Q$4="")+(Q$4:Q$4="50/50")/2))) ->  | AC12: =IF(Y12=0,"",SUMPRODUCT((F$4:F$4="Luchon")*((H$4:H$4=Y12)+(I$4:I$4=Y12))*IF(P$4:P$4="",0,P$4:P$4)*((Q$4:Q$4="")+(Q$4:Q$4="50/50")/2))) ->  | AD12: =IF(Y12=0,"",SUMPRODUCT((F$4:F$38="Aire")*((H$4:H$38=Y12)+(I$4:I$38=Y12))*(L$4:L$38))) ->  | AE12: =IF(Y12=0,"",SUMPRODUCT((F$4:F$4="Luchon")*((H$4:H$4=Y12)+(I$4:I$4=Y12))*(L$4:L$4))) ->  | AH12: 0 | AK12: =IF(Y12=0,"",SUMPRODUCT((F$4:F$4="Aire")*((H$4:H$4=Y12)+(I$4:I$4=Y12))*IF(G$4:G$4="",0,G$4:G$4)*((Q$4:Q$4="")+(Q$4:Q$4="50/50")/2))) ->  | AL12: =IF(Y12=0,"",SUMPRODUCT((F$4:F$4="Luchon")*((H$4:H$4=Y12)+(I$4:I$4=Y12))*IF(G$4:G$4="",0,G$4:G$4)*((Q$4:Q$4="")+(Q$4:Q$4="50/50")/2))) ->  | AO12: =IF(ROWS(AO$3:AO11)<=SUM(IF(D$4:D$4<>"",COUNTIF(D$4:D$4,D$4:D$4))),INDEX(D$1:D$4,MIN(IF(COUNTIF(AO$3:AO11,D$4:D$4)=0,ROW(D$4:D$4))))) -> FALSE | AP12: =IF(ROWS(AP$3:AP11)<=SUM(IF(E$4:E$4<>"",COUNTIF(E$4:E$4,E$4:E$4))),INDEX(E$1:E$4,MIN(IF(COUNTIF(AP$3:AP11,E$4:E$4)=0,ROW(E$4:E$4))))) -> FALSE | AR12: =SUMIF(D5:D130,AO12,L5:L130) -> 0
Y13: =IF(ROWS(Y$3:Y12)<=SUM(IF(H$4:H$38<>"",1/COUNTIF(H$4:H$38,H$4:H$38))),INDEX(H$1:H$38,MIN(IF(COUNTIF(Y$3:Y12,H$4:H$38)=0,ROW(H$4:H$38)))),INDEX(I$1:I$38,MIN(IF((I$4:I$38<>"")*(COUNTIF(Y$3:Y12,I$4:I$38)=0),ROW(H$4:H$38))))) -> 0 | Z13: =IF(Y13=0,"",SUMPRODUCT((F$4:F$76="Aire")*((H$4:H$76=Y13)+(I$4:I$76=Y13))*IF(O$4:O$76="",0,O$4:O$76)*((Q$4:Q$76="")+(Q$4:Q$76="50/50")/2))) ->  | AA13: =IF(Y13=0,"",SUMPRODUCT((F$4:F$56="Aire")*((H$4:H$56=Y13)+(I$4:I$56=Y13))*IF(P$4:P$56="",0,P$4:P$56)*((Q$4:Q$56="")+(Q$4:Q$56="50/50")/2))) ->  | AB13: =IF(Y13=0,"",SUMPRODUCT((F$4:F$4="Luchon")*((H$4:H$4=Y13)+(I$4:I$4=Y13))*IF(O$4:O$4="",0,O$4:O$4)*((Q$4:Q$4="")+(Q$4:Q$4="50/50")/2))) ->  | AC13: =IF(Y13=0,"",SUMPRODUCT((F$4:F$4="Luchon")*((H$4:H$4=Y13)+(I$4:I$4=Y13))*IF(P$4:P$4="",0,P$4:P$4)*((Q$4:Q$4="")+(Q$4:Q$4="50/50")/2))) ->  | AD13: =IF(Y13=0,"",SUMPRODUCT((F$4:F$38="Aire")*((H$4:H$38=Y13)+(I$4:I$38=Y13))*(L$4:L$38))) ->  | AE13: =IF(Y13=0,"",SUMPRODUCT((F$4:F$4="Luchon")*((H$4:H$4=Y13)+(I$4:I$4=Y13))*(L$4:L$4))) ->  | AH13: 0 | AK13: =IF(Y13=0,"",SUMPRODUCT((F$4:F$4="Aire")*((H$4:H$4=Y13)+(I$4:I$4=Y13))*IF(G$4:G$4="",0,G$4:G$4)*((Q$4:Q$4="")+(Q$4:Q$4="50/50")/2))) ->  | AL13: =IF(Y13=0,"",SUMPRODUCT((F$4:F$4="Luchon")*((H$4:H$4=Y13)+(I$4:I$4=Y13))*IF(G$4:G$4="",0,G$4:G$4)*((Q$4:Q$4="")+(Q$4:Q$4="50/50")/2))) ->  | AO13: =IF(ROWS(AO$3:AO12)<=SUM(IF(D$4:D$4<>"",COUNTIF(D$4:D$4,D$4:D$4))),INDEX(D$1:D$4,MIN(IF(COUNTIF(AO$3:AO12,D$4:D$4)=0,ROW(D$4:D$4))))) -> FALSE | AP13: =IF(ROWS(AP$3:AP12)<=SUM(IF(E$4:E$4<>"",COUNTIF(E$4:E$4,E$4:E$4))),INDEX(E$1:E$4,MIN(IF(COUNTIF(AP$3:AP12,E$4:E$4)=0,ROW(E$4:E$4))))) -> FALSE | AR13: =SUMIF(D5:D131,AO13,L5:L131) -> 0
Y14: =IF(ROWS(Y$3:Y13)<=SUM(IF(H$4:H$38<>"",1/COUNTIF(H$4:H$38,H$4:H$38))),INDEX(H$1:H$38,MIN(IF(COUNTIF(Y$3:Y13,H$4:H$38)=0,ROW(H$4:H$38)))),INDEX(I$1:I$38,MIN(IF((I$4:I$38<>"")*(COUNTIF(Y$3:Y13,I$4:I$38)=0),ROW(H$4:H$38))))) -> 0 | Z14: =IF(Y14=0,"",SUMPRODUCT((F$4:F$76="Aire")*((H$4:H$76=Y14)+(I$4:I$76=Y14))*IF(O$4:O$76="",0,O$4:O$76)*((Q$4:Q$76="")+(Q$4:Q$76="50/50")/2))) ->  | AA14: =IF(Y14=0,"",SUMPRODUCT((F$4:F$56="Aire")*((H$4:H$56=Y14)+(I$4:I$56=Y14))*IF(P$4:P$56="",0,P$4:P$56)*((Q$4:Q$56="")+(Q$4:Q$56="50/50")/2))) ->  | AB14: =IF(Y14=0,"",SUMPRODUCT((F$4:F$4="Luchon")*((H$4:H$4=Y14)+(I$4:I$4=Y14))*IF(O$4:O$4="",0,O$4:O$4)*((Q$4:Q$4="")+(Q$4:Q$4="50/50")/2))) ->  | AC14: =IF(Y14=0,"",SUMPRODUCT((F$4:F$4="Luchon")*((H$4:H$4=Y14)+(I$4:I$4=Y14))*IF(P$4:P$4="",0,P$4:P$4)*((Q$4:Q$4="")+(Q$4:Q$4="50/50")/2))) ->  | AD14: =IF(Y14=0,"",SUMPRODUCT((F$4:F$38="Aire")*((H$4:H$38=Y14)+(I$4:I$38=Y14))*(L$4:L$38))) ->  | AE14: =IF(Y14=0,"",SUMPRODUCT((F$4:F$4="Luchon")*((H$4:H$4=Y14)+(I$4:I$4=Y14))*(L$4:L$4))) ->  | AH14: 0 | AJ14: =SUMIF(H5:H132,AH14,L5:L132) -> 00:00:00 | AK14: =IF(Y14=0,"",SUMPRODUCT((F$4:F$4="Aire")*((H$4:H$4=Y14)+(I$4:I$4=Y14))*IF(G$4:G$4="",0,G$4:G$4)*((Q$4:Q$4="")+(Q$4:Q$4="50/50")/2))) ->  | AL14: =IF(Y14=0,"",SUMPRODUCT((F$4:F$4="Luchon")*((H$4:H$4=Y14)+(I$4:I$4=Y14))*IF(G$4:G$4="",0,G$4:G$4)*((Q$4:Q$4="")+(Q$4:Q$4="50/50")/2))) ->  | AO14: =IF(ROWS(AO$3:AO13)<=SUM(IF(D$4:D$4<>"",COUNTIF(D$4:D$4,D$4:D$4))),INDEX(D$1:D$4,MIN(IF(COUNTIF(AO$3:AO13,D$4:D$4)=0,ROW(D$4:D$4))))) -> FALSE | AP14: =IF(ROWS(AP$3:AP13)<=SUM(IF(E$4:E$4<>"",COUNTIF(E$4:E$4,E$4:E$4))),INDEX(E$1:E$4,MIN(IF(COUNTIF(AP$3:AP13,E$4:E$4)=0,ROW(E$4:E$4))))) -> FALSE | AR14: =SUMIF(D5:D132,AO14,L5:L132) -> 0
Y15: =IF(ROWS(Y$3:Y14)<=SUM(IF(H$4:H$38<>"",1/COUNTIF(H$4:H$38,H$4:H$38))),INDEX(H$1:H$38,MIN(IF(COUNTIF(Y$3:Y14,H$4:H$38)=0,ROW(H$4:H$38)))),INDEX(I$1:I$38,MIN(IF((I$4:I$38<>"")*(COUNTIF(Y$3:Y14,I$4:I$38)=0),ROW(H$4:H$38))))) -> 0 | Z15: =IF(Y15=0,"",SUMPRODUCT((F$4:F$76="Aire")*((H$4:H$76=Y15)+(I$4:I$76=Y15))*IF(O$4:O$76="",0,O$4:O$76)*((Q$4:Q$76="")+(Q$4:Q$76="50/50")/2))) ->  | AA15: =IF(Y15=0,"",SUMPRODUCT((F$4:F$56="Aire")*((H$4:H$56=Y15)+(I$4:I$56=Y15))*IF(P$4:P$56="",0,P$4:P$56)*((Q$4:Q$56="")+(Q$4:Q$56="50/50")/2))) ->  | AB15: =IF(Y15=0,"",SUMPRODUCT((F$4:F$4="Luchon")*((H$4:H$4=Y15)+(I$4:I$4=Y15))*IF(O$4:O$4="",0,O$4:O$4)*((Q$4:Q$4="")+(Q$4:Q$4="50/50")/2))) ->  | AC15: =IF(Y15=0,"",SUMPRODUCT((F$4:F$4="Luchon")*((H$4:H$4=Y15)+(I$4:I$4=Y15))*IF(P$4:P$4="",0,P$4:P$4)*((Q$4:Q$4="")+(Q$4:Q$4="50/50")/2))) ->  | AD15: =IF(Y15=0,"",SUMPRODUCT((F$4:F$38="Aire")*((H$4:H$38=Y15)+(I$4:I$38=Y15))*(L$4:L$38))) ->  | AE15: =IF(Y15=0,"",SUMPRODUCT((F$4:F$4="Luchon")*((H$4:H$4=Y15)+(I$4:I$4=Y15))*(L$4:L$4))) ->  | AH15: 0 | AJ15: =SUMIF(H5:H133,AH15,L5:L133) -> 00:00:00 | AK15: =IF(Y15=0,"",SUMPRODUCT((F$4:F$4="Aire")*((H$4:H$4=Y15)+(I$4:I$4=Y15))*IF(G$4:G$4="",0,G$4:G$4)*((Q$4:Q$4="")+(Q$4:Q$4="50/50")/2))) ->  | AL15: =IF(Y15=0,"",SUMPRODUCT((F$4:F$4="Luchon")*((H$4:H$4=Y15)+(I$4:I$4=Y15))*IF(G$4:G$4="",0,G$4:G$4)*((Q$4:Q$4="")+(Q$4:Q$4="50/50")/2))) ->  | AO15: =IF(ROWS(AO$3:AO14)<=SUM(IF(D$4:D$4<>"",COUNTIF(D$4:D$4,D$4:D$4))),INDEX(D$1:D$4,MIN(IF(COUNTIF(AO$3:AO14,D$4:D$4)=0,ROW(D$4:D$4))))) -> FALSE | AP15: =IF(ROWS(AP$3:AP14)<=SUM(IF(E$4:E$4<>"",COUNTIF(E$4:E$4,E$4:E$4))),INDEX(E$1:E$4,MIN(IF(COUNTIF(AP$3:AP14,E$4:E$4)=0,ROW(E$4:E$4))))) -> FALSE | AR15: =SUMIF(D5:D133,AO15,L5:L133) -> 0
Y16: =IF(ROWS(Y$3:Y15)<=SUM(IF(H$4:H$38<>"",1/COUNTIF(H$4:H$38,H$4:H$38))),INDEX(H$1:H$38,MIN(IF(COUNTIF(Y$3:Y15,H$4:H$38)=0,ROW(H$4:H$38)))),INDEX(I$1:I$38,MIN(IF((I$4:I$38<>"")*(COUNTIF(Y$3:Y15,I$4:I$38)=0),ROW(H$4:H$38))))) -> 0 | Z16: =IF(Y16=0,"",SUMPRODUCT((F$4:F$76="Aire")*((H$4:H$76=Y16)+(I$4:I$76=Y16))*IF(O$4:O$76="",0,O$4:O$76)*((Q$4:Q$76="")+(Q$4:Q$76="50/50")/2))) ->  | AA16: =IF(Y16=0,"",SUMPRODUCT((F$4:F$56="Aire")*((H$4:H$56=Y16)+(I$4:I$56=Y16))*IF(P$4:P$56="",0,P$4:P$56)*((Q$4:Q$56="")+(Q$4:Q$56="50/50")/2))) ->  | AB16: =IF(Y16=0,"",SUMPRODUCT((F$4:F$4="Luchon")*((H$4:H$4=Y16)+(I$4:I$4=Y16))*IF(O$4:O$4="",0,O$4:O$4)*((Q$4:Q$4="")+(Q$4:Q$4="50/50")/2))) ->  | AC16: =IF(Y16=0,"",SUMPRODUCT((F$4:F$4="Luchon")*((H$4:H$4=Y16)+(I$4:I$4=Y16))*IF(P$4:P$4="",0,P$4:P$4)*((Q$4:Q$4="")+(Q$4:Q$4="50/50")/2))) ->  | AD16: =IF(Y16=0,"",SUMPRODUCT((F$4:F$38="Aire")*((H$4:H$38=Y16)+(I$4:I$38=Y16))*(L$4:L$38))) ->  | AE16: =IF(Y16=0,"",SUMPRODUCT((F$4:F$4="Luchon")*((H$4:H$4=Y16)+(I$4:I$4=Y16))*(L$4:L$4))) ->  | AH16: 0 | AJ16: =SUMIF(H5:H135,AH16,L5:L135) -> 00:00:00 | AK16: =IF(Y16=0,"",SUMPRODUCT((F$4:F$4="Aire")*((H$4:H$4=Y16)+(I$4:I$4=Y16))*IF(G$4:G$4="",0,G$4:G$4)*((Q$4:Q$4="")+(Q$4:Q$4="50/50")/2))) ->  | AL16: =IF(Y16=0,"",SUMPRODUCT((F$4:F$4="Luchon")*((H$4:H$4=Y16)+(I$4:I$4=Y16))*IF(G$4:G$4="",0,G$4:G$4)*((Q$4:Q$4="")+(Q$4:Q$4="50/50")/2))) ->  | AO16: =IF(ROWS(AO$3:AO15)<=SUM(IF(D$4:D$4<>"",COUNTIF(D$4:D$4,D$4:D$4))),INDEX(D$1:D$4,MIN(IF(COUNTIF(AO$3:AO15,D$4:D$4)=0,ROW(D$4:D$4))))) -> FALSE | AP16: =IF(ROWS(AP$3:AP15)<=SUM(IF(E$4:E$4<>"",COUNTIF(E$4:E$4,E$4:E$4))),INDEX(E$1:E$4,MIN(IF(COUNTIF(AP$3:AP15,E$4:E$4)=0,ROW(E$4:E$4))))) -> FALSE | AR16: =SUMIF(D5:D135,AO16,L5:L135) -> 0
Y17: =IF(ROWS(Y$3:Y16)<=SUM(IF(H$4:H$38<>"",1/COUNTIF(H$4:H$38,H$4:H$38))),INDEX(H$1:H$38,MIN(IF(COUNTIF(Y$3:Y16,H$4:H$38)=0,ROW(H$4:H$38)))),INDEX(I$1:I$38,MIN(IF((I$4:I$38<>"")*(COUNTIF(Y$3:Y16,I$4:I$38)=0),ROW(H$4:H$38))))) -> 0 | Z17: =IF(Y17=0,"",SUMPRODUCT((F$4:F$76="Aire")*((H$4:H$76=Y17)+(I$4:I$76=Y17))*IF(O$4:O$76="",0,O$4:O$76)*((Q$4:Q$76="")+(Q$4:Q$76="50/50")/2))) ->  | AA17: =IF(Y17=0,"",SUMPRODUCT((F$4:F$56="Aire")*((H$4:H$56=Y17)+(I$4:I$56=Y17))*IF(P$4:P$56="",0,P$4:P$56)*((Q$4:Q$56="")+(Q$4:Q$56="50/50")/2))) ->  | AB17: =IF(Y17=0,"",SUMPRODUCT((F$4:F$4="Luchon")*((H$4:H$4=Y17)+(I$4:I$4=Y17))*IF(O$4:O$4="",0,O$4:O$4)*((Q$4:Q$4="")+(Q$4:Q$4="50/50")/2))) ->  | AC17: =IF(Y17=0,"",SUMPRODUCT((F$4:F$4="Luchon")*((H$4:H$4=Y17)+(I$4:I$4=Y17))*IF(P$4:P$4="",0,P$4:P$4)*((Q$4:Q$4="")+(Q$4:Q$4="50/50")/2))) ->  | AD17: =IF(Y17=0,"",SUMPRODUCT((F$4:F$38="Aire")*((H$4:H$38=Y17)+(I$4:I$38=Y17))*(L$4:L$38))) ->  | AE17: =IF(Y17=0,"",SUMPRODUCT((F$4:F$4="Luchon")*((H$4:H$4=Y17)+(I$4:I$4=Y17))*(L$4:L$4))) ->  | AH17: 0 | AJ17: =SUMIF(H5:H136,AH17,L5:L136) -> 00:00:00 | AK17: =IF(Y17=0,"",SUMPRODUCT((F$4:F$4="Aire")*((H$4:H$4=Y17)+(I$4:I$4=Y17))*IF(G$4:G$4="",0,G$4:G$4)*((Q$4:Q$4="")+(Q$4:Q$4="50/50")/2))) ->  | AL17: =IF(Y17=0,"",SUMPRODUCT((F$4:F$4="Luchon")*((H$4:H$4=Y17)+(I$4:I$4=Y17))*IF(G$4:G$4="",0,G$4:G$4)*((Q$4:Q$4="")+(Q$4:Q$4="50/50")/2))) ->  | AO17: =IF(ROWS(AO$3:AO16)<=SUM(IF(D$4:D$4<>"",COUNTIF(D$4:D$4,D$4:D$4))),INDEX(D$1:D$4,MIN(IF(COUNTIF(AO$3:AO16,D$4:D$4)=0,ROW(D$4:D$4))))) -> FALSE | AP17: =IF(ROWS(AP$3:AP16)<=SUM(IF(E$4:E$4<>"",COUNTIF(E$4:E$4,E$4:E$4))),INDEX(E$1:E$4,MIN(IF(COUNTIF(AP$3:AP16,E$4:E$4)=0,ROW(E$4:E$4))))) -> FALSE | AR17: =SUMIF(D5:D136,AO17,L5:L136) -> 0
Y18: =IF(ROWS(Y$3:Y17)<=SUM(IF(H$4:H$38<>"",1/COUNTIF(H$4:H$38,H$4:H$38))),INDEX(H$1:H$38,MIN(IF(COUNTIF(Y$3:Y17,H$4:H$38)=0,ROW(H$4:H$38)))),INDEX(I$1:I$38,MIN(IF((I$4:I$38<>"")*(COUNTIF(Y$3:Y17,I$4:I$38)=0),ROW(H$4:H$38))))) -> 0 | Z18: =IF(Y18=0,"",SUMPRODUCT((F$4:F$76="Aire")*((H$4:H$76=Y18)+(I$4:I$76=Y18))*IF(O$4:O$76="",0,O$4:O$76)*((Q$4:Q$76="")+(Q$4:Q$76="50/50")/2))) ->  | AA18: =IF(Y18=0,"",SUMPRODUCT((F$4:F$56="Aire")*((H$4:H$56=Y18)+(I$4:I$56=Y18))*IF(P$4:P$56="",0,P$4:P$56)*((Q$4:Q$56="")+(Q$4:Q$56="50/50")/2))) ->  | AB18: =IF(Y18=0,"",SUMPRODUCT((F$4:F$4="Luchon")*((H$4:H$4=Y18)+(I$4:I$4=Y18))*IF(O$4:O$4="",0,O$4:O$4)*((Q$4:Q$4="")+(Q$4:Q$4="50/50")/2))) ->  | AC18: =IF(Y18=0,"",SUMPRODUCT((F$4:F$4="Luchon")*((H$4:H$4=Y18)+(I$4:I$4=Y18))*IF(P$4:P$4="",0,P$4:P$4)*((Q$4:Q$4="")+(Q$4:Q$4="50/50")/2))) ->  | AD18: =IF(Y18=0,"",SUMPRODUCT((F$4:F$38="Aire")*((H$4:H$38=Y18)+(I$4:I$38=Y18))*(L$4:L$38))) ->  | AE18: =IF(Y18=0,"",SUMPRODUCT((F$4:F$4="Luchon")*((H$4:H$4=Y18)+(I$4:I$4=Y18))*(L$4:L$4))) ->  | AH18: 0 | AJ18: =SUMIF(H5:H137,AH18,L5:L137) -> 00:00:00 | AK18: =IF(Y18=0,"",SUMPRODUCT((F$4:F$4="Aire")*((H$4:H$4=Y18)+(I$4:I$4=Y18))*IF(G$4:G$4="",0,G$4:G$4)*((Q$4:Q$4="")+(Q$4:Q$4="50/50")/2))) ->  | AL18: =IF(Y18=0,"",SUMPRODUCT((F$4:F$4="Luchon")*((H$4:H$4=Y18)+(I$4:I$4=Y18))*IF(G$4:G$4="",0,G$4:G$4)*((Q$4:Q$4="")+(Q$4:Q$4="50/50")/2))) ->  | AO18: =IF(ROWS(AO$3:AO17)<=SUM(IF(D$4:D$4<>"",COUNTIF(D$4:D$4,D$4:D$4))),INDEX(D$1:D$4,MIN(IF(COUNTIF(AO$3:AO17,D$4:D$4)=0,ROW(D$4:D$4))))) -> FALSE | AP18: =IF(ROWS(AP$3:AP17)<=SUM(IF(E$4:E$4<>"",COUNTIF(E$4:E$4,E$4:E$4))),INDEX(E$1:E$4,MIN(IF(COUNTIF(AP$3:AP17,E$4:E$4)=0,ROW(E$4:E$4))))) -> FALSE | AR18: =SUMIF(D5:D137,AO18,L5:L137) -> 0
Y19: =IF(ROWS(Y$3:Y18)<=SUM(IF(H$4:H$38<>"",1/COUNTIF(H$4:H$38,H$4:H$38))),INDEX(H$1:H$38,MIN(IF(COUNTIF(Y$3:Y18,H$4:H$38)=0,ROW(H$4:H$38)))),INDEX(I$1:I$38,MIN(IF((I$4:I$38<>"")*(COUNTIF(Y$3:Y18,I$4:I$38)=0),ROW(H$4:H$38))))) -> 0 | Z19: =IF(Y19=0,"",SUMPRODUCT((F$4:F$76="Aire")*((H$4:H$76=Y19)+(I$4:I$76=Y19))*IF(O$4:O$76="",0,O$4:O$76)*((Q$4:Q$76="")+(Q$4:Q$76="50/50")/2))) ->  | AA19: =IF(Y19=0,"",SUMPRODUCT((F$4:F$56="Aire")*((H$4:H$56=Y19)+(I$4:I$56=Y19))*IF(P$4:P$56="",0,P$4:P$56)*((Q$4:Q$56="")+(Q$4:Q$56="50/50")/2))) ->  | AB19: =IF(Y19=0,"",SUMPRODUCT((F$4:F$4="Luchon")*((H$4:H$4=Y19)+(I$4:I$4=Y19))*IF(O$4:O$4="",0,O$4:O$4)*((Q$4:Q$4="")+(Q$4:Q$4="50/50")/2))) ->  | AC19: =IF(Y19=0,"",SUMPRODUCT((F$4:F$4="Luchon")*((H$4:H$4=Y19)+(I$4:I$4=Y19))*IF(P$4:P$4="",0,P$4:P$4)*((Q$4:Q$4="")+(Q$4:Q$4="50/50")/2))) ->  | AD19: =IF(Y19=0,"",SUMPRODUCT((F$4:F$38="Aire")*((H$4:H$38=Y19)+(I$4:I$38=Y19))*(L$4:L$38))) ->  | AE19: =IF(Y19=0,"",SUMPRODUCT((F$4:F$4="Luchon")*((H$4:H$4=Y19)+(I$4:I$4=Y19))*(L$4:L$4))) ->  | AH19: 0 | AJ19: =SUMIF(H5:H139,AH19,L5:L139) -> 00:00:00 | AK19: =IF(Y19=0,"",SUMPRODUCT((F$4:F$4="Aire")*((H$4:H$4=Y19)+(I$4:I$4=Y19))*IF(G$4:G$4="",0,G$4:G$4)*((Q$4:Q$4="")+(Q$4:Q$4="50/50")/2))) ->  | AL19: =IF(Y19=0,"",SUMPRODUCT((F$4:F$4="Luchon")*((H$4:H$4=Y19)+(I$4:I$4=Y19))*IF(G$4:G$4="",0,G$4:G$4)*((Q$4:Q$4="")+(Q$4:Q$4="50/50")/2))) ->  | AO19: =IF(ROWS(AO$3:AO18)<=SUM(IF(D$4:D$4<>"",COUNTIF(D$4:D$4,D$4:D$4))),INDEX(D$1:D$4,MIN(IF(COUNTIF(AO$3:AO18,D$4:D$4)=0,ROW(D$4:D$4))))) -> FALSE | AP19: =IF(ROWS(AP$3:AP18)<=SUM(IF(E$4:E$4<>"",COUNTIF(E$4:E$4,E$4:E$4))),INDEX(E$1:E$4,MIN(IF(COUNTIF(AP$3:AP18,E$4:E$4)=0,ROW(E$4:E$4))))) -> FALSE | AR19: =SUMIF(D5:D139,AO19,L5:L139) -> 0
Y20: =IF(ROWS(Y$3:Y19)<=SUM(IF(H$4:H$38<>"",1/COUNTIF(H$4:H$38,H$4:H$38))),INDEX(H$1:H$38,MIN(IF(COUNTIF(Y$3:Y19,H$4:H$38)=0,ROW(H$4:H$38)))),INDEX(I$1:I$38,MIN(IF((I$4:I$38<>"")*(COUNTIF(Y$3:Y19,I$4:I$38)=0),ROW(H$4:H$38))))) -> 0 | Z20: =IF(Y20=0,"",SUMPRODUCT((F$4:F$76="Aire")*((H$4:H$76=Y20)+(I$4:I$76=Y20))*IF(O$4:O$76="",0,O$4:O$76)*((Q$4:Q$76="")+(Q$4:Q$76="50/50")/2))) ->  | AA20: =IF(Y20=0,"",SUMPRODUCT((F$4:F$56="Aire")*((H$4:H$56=Y20)+(I$4:I$56=Y20))*IF(P$4:P$56="",0,P$4:P$56)*((Q$4:Q$56="")+(Q$4:Q$56="50/50")/2))) ->  | AB20: =IF(Y20=0,"",SUMPRODUCT((F$4:F$4="Luchon")*((H$4:H$4=Y20)+(I$4:I$4=Y20))*IF(O$4:O$4="",0,O$4:O$4)*((Q$4:Q$4="")+(Q$4:Q$4="50/50")/2))) ->  | AC20: =IF(Y20=0,"",SUMPRODUCT((F$4:F$4="Luchon")*((H$4:H$4=Y20)+(I$4:I$4=Y20))*IF(P$4:P$4="",0,P$4:P$4)*((Q$4:Q$4="")+(Q$4:Q$4="50/50")/2))) ->  | AD20: =IF(Y20=0,"",SUMPRODUCT((F$4:F$38="Aire")*((H$4:H$38=Y20)+(I$4:I$38=Y20))*(L$4:L$38))) ->  | AE20: =IF(Y20=0,"",SUMPRODUCT((F$4:F$4="Luchon")*((H$4:H$4=Y20)+(I$4:I$4=Y20))*(L$4:L$4))) ->  | AH20: 0 | AJ20: =SUMIF(H5:H140,AH20,L5:L140) -> 00:00:00 | AK20: =IF(Y20=0,"",SUMPRODUCT((F$4:F$4="Aire")*((H$4:H$4=Y20)+(I$4:I$4=Y20))*IF(G$4:G$4="",0,G$4:G$4)*((Q$4:Q$4="")+(Q$4:Q$4="50/50")/2))) ->  | AL20: =IF(Y20=0,"",SUMPRODUCT((F$4:F$4="Luchon")*((H$4:H$4=Y20)+(I$4:I$4=Y20))*IF(G$4:G$4="",0,G$4:G$4)*((Q$4:Q$4="")+(Q$4:Q$4="50/50")/2))) ->  | AO20: =IF(ROWS(AO$3:AO19)<=SUM(IF(D$4:D$4<>"",COUNTIF(D$4:D$4,D$4:D$4))),INDEX(D$1:D$4,MIN(IF(COUNTIF(AO$3:AO19,D$4:D$4)=0,ROW(D$4:D$4))))) -> FALSE | AP20: =IF(ROWS(AP$3:AP19)<=SUM(IF(E$4:E$4<>"",COUNTIF(E$4:E$4,E$4:E$4))),INDEX(E$1:E$4,MIN(IF(COUNTIF(AP$3:AP19,E$4:E$4)=0,ROW(E$4:E$4))))) -> FALSE | AR20: =SUMIF(D5:D140,AO20,L5:L140) -> 0
Y21: =IF(ROWS(Y$3:Y20)<=SUM(IF(H$4:H$38<>"",1/COUNTIF(H$4:H$38,H$4:H$38))),INDEX(H$1:H$38,MIN(IF(COUNTIF(Y$3:Y20,H$4:H$38)=0,ROW(H$4:H$38)))),INDEX(I$1:I$38,MIN(IF((I$4:I$38<>"")*(COUNTIF(Y$3:Y20,I$4:I$38)=0),ROW(H$4:H$38))))) -> 0 | Z21: =IF(Y21=0,"",SUMPRODUCT((F$4:F$76="Aire")*((H$4:H$76=Y21)+(I$4:I$76=Y21))*IF(O$4:O$76="",0,O$4:O$76)*((Q$4:Q$76="")+(Q$4:Q$76="50/50")/2))) ->  | AA21: =IF(Y21=0,"",SUMPRODUCT((F$4:F$56="Aire")*((H$4:H$56=Y21)+(I$4:I$56=Y21))*IF(P$4:P$56="",0,P$4:P$56)*((Q$4:Q$56="")+(Q$4:Q$56="50/50")/2))) ->  | AB21: =IF(Y21=0,"",SUMPRODUCT((F$4:F$4="Luchon")*((H$4:H$4=Y21)+(I$4:I$4=Y21))*IF(O$4:O$4="",0,O$4:O$4)*((Q$4:Q$4="")+(Q$4:Q$4="50/50")/2))) ->  | AC21: =IF(Y21=0,"",SUMPRODUCT((F$4:F$4="Luchon")*((H$4:H$4=Y21)+(I$4:I$4=Y21))*IF(P$4:P$4="",0,P$4:P$4)*((Q$4:Q$4="")+(Q$4:Q$4="50/50")/2))) ->  | AD21: =IF(Y21=0,"",SUMPRODUCT((F$4:F$38="Aire")*((H$4:H$38=Y21)+(I$4:I$38=Y21))*(L$4:L$38))) ->  | AE21: =IF(Y21=0,"",SUMPRODUCT((F$4:F$4="Luchon")*((H$4:H$4=Y21)+(I$4:I$4=Y21))*(L$4:L$4))) ->  | AH21: 0 | AJ21: =SUMIF(H5:H141,AH21,L5:L141) -> 00:00:00 | AK21: =IF(Y21=0,"",SUMPRODUCT((F$4:F$4="Aire")*((H$4:H$4=Y21)+(I$4:I$4=Y21))*IF(G$4:G$4="",0,G$4:G$4)*((Q$4:Q$4="")+(Q$4:Q$4="50/50")/2))) ->  | AL21: =IF(Y21=0,"",SUMPRODUCT((F$4:F$4="Luchon")*((H$4:H$4=Y21)+(I$4:I$4=Y21))*IF(G$4:G$4="",0,G$4:G$4)*((Q$4:Q$4="")+(Q$4:Q$4="50/50")/2))) ->  | AO21: =IF(ROWS(AO$3:AO20)<=SUM(IF(D$4:D$4<>"",COUNTIF(D$4:D$4,D$4:D$4))),INDEX(D$1:D$4,MIN(IF(COUNTIF(AO$3:AO20,D$4:D$4)=0,ROW(D$4:D$4))))) -> FALSE | AP21: =IF(ROWS(AP$3:AP20)<=SUM(IF(E$4:E$4<>"",COUNTIF(E$4:E$4,E$4:E$4))),INDEX(E$1:E$4,MIN(IF(COUNTIF(AP$3:AP20,E$4:E$4)=0,ROW(E$4:E$4))))) -> FALSE | AR21: =SUMIF(D5:D141,AO21,L5:L141) -> 0
Y22: =IF(ROWS(Y$3:Y21)<=SUM(IF(H$4:H$38<>"",1/COUNTIF(H$4:H$38,H$4:H$38))),INDEX(H$1:H$38,MIN(IF(COUNTIF(Y$3:Y21,H$4:H$38)=0,ROW(H$4:H$38)))),INDEX(I$1:I$38,MIN(IF((I$4:I$38<>"")*(COUNTIF(Y$3:Y21,I$4:I$38)=0),ROW(H$4:H$38))))) -> 0 | Z22: =IF(Y22=0,"",SUMPRODUCT((F$4:F$76="Aire")*((H$4:H$76=Y22)+(I$4:I$76=Y22))*IF(O$4:O$76="",0,O$4:O$76)*((Q$4:Q$76="")+(Q$4:Q$76="50/50")/2))) ->  | AA22: =IF(Y22=0,"",SUMPRODUCT((F$4:F$56="Aire")*((H$4:H$56=Y22)+(I$4:I$56=Y22))*IF(P$4:P$56="",0,P$4:P$56)*((Q$4:Q$56="")+(Q$4:Q$56="50/50")/2))) ->  | AB22: =IF(Y22=0,"",SUMPRODUCT((F$4:F$4="Luchon")*((H$4:H$4=Y22)+(I$4:I$4=Y22))*IF(O$4:O$4="",0,O$4:O$4)*((Q$4:Q$4="")+(Q$4:Q$4="50/50")/2))) ->  | AC22: =IF(Y22=0,"",SUMPRODUCT((F$4:F$4="Luchon")*((H$4:H$4=Y22)+(I$4:I$4=Y22))*IF(P$4:P$4="",0,P$4:P$4)*((Q$4:Q$4="")+(Q$4:Q$4="50/50")/2))) ->  | AD22: =IF(Y22=0,"",SUMPRODUCT((F$4:F$38="Aire")*((H$4:H$38=Y22)+(I$4:I$38=Y22))*(L$4:L$38))) ->  | AE22: =IF(Y22=0,"",SUMPRODUCT((F$4:F$4="Luchon")*((H$4:H$4=Y22)+(I$4:I$4=Y22))*(L$4:L$4))) ->  | AH22: 0 | AJ22: =SUMIF(H5:H142,AH22,L5:L142) -> 00:00:00 | AK22: =IF(Y22=0,"",SUMPRODUCT((F$4:F$4="Aire")*((H$4:H$4=Y22)+(I$4:I$4=Y22))*IF(G$4:G$4="",0,G$4:G$4)*((Q$4:Q$4="")+(Q$4:Q$4="50/50")/2))) ->  | AL22: =IF(Y22=0,"",SUMPRODUCT((F$4:F$4="Luchon")*((H$4:H$4=Y22)+(I$4:I$4=Y22))*IF(G$4:G$4="",0,G$4:G$4)*((Q$4:Q$4="")+(Q$4:Q$4="50/50")/2))) ->  | AO22: =IF(ROWS(AO$3:AO21)<=SUM(IF(D$4:D$4<>"",COUNTIF(D$4:D$4,D$4:D$4))),INDEX(D$1:D$4,MIN(IF(COUNTIF(AO$3:AO21,D$4:D$4)=0,ROW(D$4:D$4))))) -> FALSE | AP22: =IF(ROWS(AP$3:AP21)<=SUM(IF(E$4:E$4<>"",COUNTIF(E$4:E$4,E$4:E$4))),INDEX(E$1:E$4,MIN(IF(COUNTIF(AP$3:AP21,E$4:E$4)=0,ROW(E$4:E$4))))) -> FALSE | AR22: =SUMIF(D5:D142,AO22,L5:L142) -> 0
Y23: =IF(ROWS(Y$3:Y22)<=SUM(IF(H$4:H$38<>"",1/COUNTIF(H$4:H$38,H$4:H$38))),INDEX(H$1:H$38,MIN(IF(COUNTIF(Y$3:Y22,H$4:H$38)=0,ROW(H$4:H$38)))),INDEX(I$1:I$38,MIN(IF((I$4:I$38<>"")*(COUNTIF(Y$3:Y22,I$4:I$38)=0),ROW(H$4:H$38))))) -> 0 | Z23: =IF(Y23=0,"",SUMPRODUCT((F$4:F$76="Aire")*((H$4:H$76=Y23)+(I$4:I$76=Y23))*IF(O$4:O$76="",0,O$4:O$76)*((Q$4:Q$76="")+(Q$4:Q$76="50/50")/2))) ->  | AA23: =IF(Y23=0,"",SUMPRODUCT((F$4:F$56="Aire")*((H$4:H$56=Y23)+(I$4:I$56=Y23))*IF(P$4:P$56="",0,P$4:P$56)*((Q$4:Q$56="")+(Q$4:Q$56="50/50")/2))) ->  | AB23: =IF(Y23=0,"",SUMPRODUCT((F$4:F$4="Luchon")*((H$4:H$4=Y23)+(I$4:I$4=Y23))*IF(O$4:O$4="",0,O$4:O$4)*((Q$4:Q$4="")+(Q$4:Q$4="50/50")/2))) ->  | AC23: =IF(Y23=0,"",SUMPRODUCT((F$4:F$4="Luchon")*((H$4:H$4=Y23)+(I$4:I$4=Y23))*IF(P$4:P$4="",0,P$4:P$4)*((Q$4:Q$4="")+(Q$4:Q$4="50/50")/2))) ->  | AD23: =IF(Y23=0,"",SUMPRODUCT((F$4:F$38="Aire")*((H$4:H$38=Y23)+(I$4:I$38=Y23))*(L$4:L$38))) ->  | AE23: =IF(Y23=0,"",SUMPRODUCT((F$4:F$4="Luchon")*((H$4:H$4=Y23)+(I$4:I$4=Y23))*(L$4:L$4))) ->  | AH23: 0 | AJ23: =SUMIF(H5:H143,AH23,L5:L143) -> 00:00:00 | AK23: =IF(Y23=0,"",SUMPRODUCT((F$4:F$4="Aire")*((H$4:H$4=Y23)+(I$4:I$4=Y23))*IF(G$4:G$4="",0,G$4:G$4)*((Q$4:Q$4="")+(Q$4:Q$4="50/50")/2))) ->  | AL23: =IF(Y23=0,"",SUMPRODUCT((F$4:F$4="Luchon")*((H$4:H$4=Y23)+(I$4:I$4=Y23))*IF(G$4:G$4="",0,G$4:G$4)*((Q$4:Q$4="")+(Q$4:Q$4="50/50")/2))) ->  | AO23: =IF(ROWS(AO$3:AO22)<=SUM(IF(D$4:D$4<>"",COUNTIF(D$4:D$4,D$4:D$4))),INDEX(D$1:D$4,MIN(IF(COUNTIF(AO$3:AO22,D$4:D$4)=0,ROW(D$4:D$4))))) -> FALSE | AP23: =IF(ROWS(AP$3:AP22)<=SUM(IF(E$4:E$4<>"",COUNTIF(E$4:E$4,E$4:E$4))),INDEX(E$1:E$4,MIN(IF(COUNTIF(AP$3:AP22,E$4:E$4)=0,ROW(E$4:E$4))))) -> FALSE | AR23: =SUMIF(D5:D143,AO23,L5:L143) -> 0
Y24: =IF(ROWS(Y$3:Y23)<=SUM(IF(H$4:H$38<>"",1/COUNTIF(H$4:H$38,H$4:H$38))),INDEX(H$1:H$38,MIN(IF(COUNTIF(Y$3:Y23,H$4:H$38)=0,ROW(H$4:H$38)))),INDEX(I$1:I$38,MIN(IF((I$4:I$38<>"")*(COUNTIF(Y$3:Y23,I$4:I$38)=0),ROW(H$4:H$38))))) -> 0 | Z24: =IF(Y24=0,"",SUMPRODUCT((F$4:F$76="Aire")*((H$4:H$76=Y24)+(I$4:I$76=Y24))*IF(O$4:O$76="",0,O$4:O$76)*((Q$4:Q$76="")+(Q$4:Q$76="50/50")/2))) ->  | AA24: =IF(Y24=0,"",SUMPRODUCT((F$4:F$56="Aire")*((H$4:H$56=Y24)+(I$4:I$56=Y24))*IF(P$4:P$56="",0,P$4:P$56)*((Q$4:Q$56="")+(Q$4:Q$56="50/50")/2))) ->  | AB24: =IF(Y24=0,"",SUMPRODUCT((F$4:F$4="Luchon")*((H$4:H$4=Y24)+(I$4:I$4=Y24))*IF(O$4:O$4="",0,O$4:O$4)*((Q$4:Q$4="")+(Q$4:Q$4="50/50")/2))) ->  | AC24: =IF(Y24=0,"",SUMPRODUCT((F$4:F$4="Luchon")*((H$4:H$4=Y24)+(I$4:I$4=Y24))*IF(P$4:P$4="",0,P$4:P$4)*((Q$4:Q$4="")+(Q$4:Q$4="50/50")/2))) ->  | AD24: =IF(Y24=0,"",SUMPRODUCT((F$4:F$38="Aire")*((H$4:H$38=Y24)+(I$4:I$38=Y24))*(L$4:L$38))) ->  | AE24: =IF(Y24=0,"",SUMPRODUCT((F$4:F$4="Luchon")*((H$4:H$4=Y24)+(I$4:I$4=Y24))*(L$4:L$4))) ->  | AH24: 0 | AJ24: =SUMIF(H5:H144,AH24,L5:L144) -> 00:00:00 | AK24: =IF(Y24=0,"",SUMPRODUCT((F$4:F$4="Aire")*((H$4:H$4=Y24)+(I$4:I$4=Y24))*IF(G$4:G$4="",0,G$4:G$4)*((Q$4:Q$4="")+(Q$4:Q$4="50/50")/2))) ->  | AL24: =IF(Y24=0,"",SUMPRODUCT((F$4:F$4="Luchon")*((H$4:H$4=Y24)+(I$4:I$4=Y24))*IF(G$4:G$4="",0,G$4:G$4)*((Q$4:Q$4="")+(Q$4:Q$4="50/50")/2))) ->  | AO24: =IF(ROWS(AO$3:AO23)<=SUM(IF(D$4:D$4<>"",COUNTIF(D$4:D$4,D$4:D$4))),INDEX(D$1:D$4,MIN(IF(COUNTIF(AO$3:AO23,D$4:D$4)=0,ROW(D$4:D$4))))) -> FALSE | AP24: =IF(ROWS(AP$3:AP23)<=SUM(IF(E$4:E$4<>"",COUNTIF(E$4:E$4,E$4:E$4))),INDEX(E$1:E$4,MIN(IF(COUNTIF(AP$3:AP23,E$4:E$4)=0,ROW(E$4:E$4))))) -> FALSE | AR24: =SUMIF(D5:D144,AO24,L5:L144) -> 0
Y25: =IF(ROWS(Y$3:Y24)<=SUM(IF(H$4:H$38<>"",1/COUNTIF(H$4:H$38,H$4:H$38))),INDEX(H$1:H$38,MIN(IF(COUNTIF(Y$3:Y24,H$4:H$38)=0,ROW(H$4:H$38)))),INDEX(I$1:I$38,MIN(IF((I$4:I$38<>"")*(COUNTIF(Y$3:Y24,I$4:I$38)=0),ROW(H$4:H$38))))) -> 0 | Z25: =IF(Y25=0,"",SUMPRODUCT((F$4:F$76="Aire")*((H$4:H$76=Y25)+(I$4:I$76=Y25))*IF(O$4:O$76="",0,O$4:O$76)*((Q$4:Q$76="")+(Q$4:Q$76="50/50")/2))) ->  | AA25: =IF(Y25=0,"",SUMPRODUCT((F$4:F$56="Aire")*((H$4:H$56=Y25)+(I$4:I$56=Y25))*IF(P$4:P$56="",0,P$4:P$56)*((Q$4:Q$56="")+(Q$4:Q$56="50/50")/2))) ->  | AB25: =IF(Y25=0,"",SUMPRODUCT((F$4:F$4="Luchon")*((H$4:H$4=Y25)+(I$4:I$4=Y25))*IF(O$4:O$4="",0,O$4:O$4)*((Q$4:Q$4="")+(Q$4:Q$4="50/50")/2))) ->  | AC25: =IF(Y25=0,"",SUMPRODUCT((F$4:F$4="Luchon")*((H$4:H$4=Y25)+(I$4:I$4=Y25))*IF(P$4:P$4="",0,P$4:P$4)*((Q$4:Q$4="")+(Q$4:Q$4="50/50")/2))) ->  | AD25: =IF(Y25=0,"",SUMPRODUCT((F$4:F$38="Aire")*((H$4:H$38=Y25)+(I$4:I$38=Y25))*(L$4:L$38))) ->  | AE25: =IF(Y25=0,"",SUMPRODUCT((F$4:F$4="Luchon")*((H$4:H$4=Y25)+(I$4:I$4=Y25))*(L$4:L$4))) ->  | AH25: 0 | AJ25: =SUMIF(H5:H145,AH25,L5:L145) -> 00:00:00 | AK25: =IF(Y25=0,"",SUMPRODUCT((F$4:F$4="Aire")*((H$4:H$4=Y25)+(I$4:I$4=Y25))*IF(G$4:G$4="",0,G$4:G$4)*((Q$4:Q$4="")+(Q$4:Q$4="50/50")/2))) ->  | AL25: =IF(Y25=0,"",SUMPRODUCT((F$4:F$4="Luchon")*((H$4:H$4=Y25)+(I$4:I$4=Y25))*IF(G$4:G$4="",0,G$4:G$4)*((Q$4:Q$4="")+(Q$4:Q$4="50/50")/2))) ->  | AO25: =IF(ROWS(AO$3:AO24)<=SUM(IF(D$4:D$4<>"",COUNTIF(D$4:D$4,D$4:D$4))),INDEX(D$1:D$4,MIN(IF(COUNTIF(AO$3:AO24,D$4:D$4)=0,ROW(D$4:D$4))))) -> FALSE | AP25: =IF(ROWS(AP$3:AP24)<=SUM(IF(E$4:E$4<>"",COUNTIF(E$4:E$4,E$4:E$4))),INDEX(E$1:E$4,MIN(IF(COUNTIF(AP$3:AP24,E$4:E$4)=0,ROW(E$4:E$4))))) -> FALSE | AR25: =SUMIF(D5:D145,AO25,L5:L145) -> 0
Y26: =IF(ROWS(Y$3:Y25)<=SUM(IF(H$4:H$38<>"",1/COUNTIF(H$4:H$38,H$4:H$38))),INDEX(H$1:H$38,MIN(IF(COUNTIF(Y$3:Y25,H$4:H$38)=0,ROW(H$4:H$38)))),INDEX(I$1:I$38,MIN(IF((I$4:I$38<>"")*(COUNTIF(Y$3:Y25,I$4:I$38)=0),ROW(H$4:H$38))))) -> 0 | Z26: =IF(Y26=0,"",SUMPRODUCT((F$4:F$76="Aire")*((H$4:H$76=Y26)+(I$4:I$76=Y26))*IF(O$4:O$76="",0,O$4:O$76)*((Q$4:Q$76="")+(Q$4:Q$76="50/50")/2))) ->  | AA26: =IF(Y26=0,"",SUMPRODUCT((F$4:F$56="Aire")*((H$4:H$56=Y26)+(I$4:I$56=Y26))*IF(P$4:P$56="",0,P$4:P$56)*((Q$4:Q$56="")+(Q$4:Q$56="50/50")/2))) ->  | AB26: =IF(Y26=0,"",SUMPRODUCT((F$4:F$4="Luchon")*((H$4:H$4=Y26)+(I$4:I$4=Y26))*IF(O$4:O$4="",0,O$4:O$4)*((Q$4:Q$4="")+(Q$4:Q$4="50/50")/2))) ->  | AC26: =IF(Y26=0,"",SUMPRODUCT((F$4:F$4="Luchon")*((H$4:H$4=Y26)+(I$4:I$4=Y26))*IF(P$4:P$4="",0,P$4:P$4)*((Q$4:Q$4="")+(Q$4:Q$4="50/50")/2))) ->  | AD26: =IF(Y26=0,"",SUMPRODUCT((F$4:F$38="Aire")*((H$4:H$38=Y26)+(I$4:I$38=Y26))*(L$4:L$38))) ->  | AE26: =IF(Y26=0,"",SUMPRODUCT((F$4:F$4="Luchon")*((H$4:H$4=Y26)+(I$4:I$4=Y26))*(L$4:L$4))) ->  | AH26: 0 | AJ26: =SUMIF(H5:H146,AH26,L5:L146) -> 00:00:00 | AK26: =IF(Y26=0,"",SUMPRODUCT((F$4:F$4="Aire")*((H$4:H$4=Y26)+(I$4:I$4=Y26))*IF(G$4:G$4="",0,G$4:G$4)*((Q$4:Q$4="")+(Q$4:Q$4="50/50")/2))) ->  | AL26: =IF(Y26=0,"",SUMPRODUCT((F$4:F$4="Luchon")*((H$4:H$4=Y26)+(I$4:I$4=Y26))*IF(G$4:G$4="",0,G$4:G$4)*((Q$4:Q$4="")+(Q$4:Q$4="50/50")/2))) ->  | AO26: =IF(ROWS(AO$3:AO25)<=SUM(IF(D$4:D$4<>"",COUNTIF(D$4:D$4,D$4:D$4))),INDEX(D$1:D$4,MIN(IF(COUNTIF(AO$3:AO25,D$4:D$4)=0,ROW(D$4:D$4))))) -> FALSE | AP26: =IF(ROWS(AP$3:AP25)<=SUM(IF(E$4:E$4<>"",COUNTIF(E$4:E$4,E$4:E$4))),INDEX(E$1:E$4,MIN(IF(COUNTIF(AP$3:AP25,E$4:E$4)=0,ROW(E$4:E$4))))) -> FALSE | AR26: =SUMIF(D5:D146,AO26,L5:L146) -> 0
Y27: =IF(ROWS(Y$3:Y26)<=SUM(IF(H$4:H$38<>"",1/COUNTIF(H$4:H$38,H$4:H$38))),INDEX(H$1:H$38,MIN(IF(COUNTIF(Y$3:Y26,H$4:H$38)=0,ROW(H$4:H$38)))),INDEX(I$1:I$38,MIN(IF((I$4:I$38<>"")*(COUNTIF(Y$3:Y26,I$4:I$38)=0),ROW(H$4:H$38))))) -> 0 | Z27: =IF(Y27=0,"",SUMPRODUCT((F$4:F$76="Aire")*((H$4:H$76=Y27)+(I$4:I$76=Y27))*IF(O$4:O$76="",0,O$4:O$76)*((Q$4:Q$76="")+(Q$4:Q$76="50/50")/2))) ->  | AA27: =IF(Y27=0,"",SUMPRODUCT((F$4:F$56="Aire")*((H$4:H$56=Y27)+(I$4:I$56=Y27))*IF(P$4:P$56="",0,P$4:P$56)*((Q$4:Q$56="")+(Q$4:Q$56="50/50")/2))) ->  | AB27: =IF(Y27=0,"",SUMPRODUCT((F$4:F$4="Luchon")*((H$4:H$4=Y27)+(I$4:I$4=Y27))*IF(O$4:O$4="",0,O$4:O$4)*((Q$4:Q$4="")+(Q$4:Q$4="50/50")/2))) ->  | AC27: =IF(Y27=0,"",SUMPRODUCT((F$4:F$4="Luchon")*((H$4:H$4=Y27)+(I$4:I$4=Y27))*IF(P$4:P$4="",0,P$4:P$4)*((Q$4:Q$4="")+(Q$4:Q$4="50/50")/2))) ->  | AD27: =IF(Y27=0,"",SUMPRODUCT((F$4:F$38="Aire")*((H$4:H$38=Y27)+(I$4:I$38=Y27))*(L$4:L$38))) ->  | AE27: =IF(Y27=0,"",SUMPRODUCT((F$4:F$4="Luchon")*((H$4:H$4=Y27)+(I$4:I$4=Y27))*(L$4:L$4))) ->  | AH27: 0 | AJ27: =SUMIF(H5:H147,AH27,L5:L147) -> 00:00:00 | AK27: =IF(Y27=0,"",SUMPRODUCT((F$4:F$4="Aire")*((H$4:H$4=Y27)+(I$4:I$4=Y27))*IF(G$4:G$4="",0,G$4:G$4)*((Q$4:Q$4="")+(Q$4:Q$4="50/50")/2))) ->  | AL27: =IF(Y27=0,"",SUMPRODUCT((F$4:F$4="Luchon")*((H$4:H$4=Y27)+(I$4:I$4=Y27))*IF(G$4:G$4="",0,G$4:G$4)*((Q$4:Q$4="")+(Q$4:Q$4="50/50")/2))) ->  | AO27: =IF(ROWS(AO$3:AO26)<=SUM(IF(D$4:D$4<>"",COUNTIF(D$4:D$4,D$4:D$4))),INDEX(D$1:D$4,MIN(IF(COUNTIF(AO$3:AO26,D$4:D$4)=0,ROW(D$4:D$4))))) -> FALSE | AP27: =IF(ROWS(AP$3:AP26)<=SUM(IF(E$4:E$4<>"",COUNTIF(E$4:E$4,E$4:E$4))),INDEX(E$1:E$4,MIN(IF(COUNTIF(AP$3:AP26,E$4:E$4)=0,ROW(E$4:E$4))))) -> FALSE | AR27: =SUMIF(D5:D147,AO27,L5:L147) -> 0
Y28: =IF(ROWS(Y$3:Y27)<=SUM(IF(H$4:H$38<>"",1/COUNTIF(H$4:H$38,H$4:H$38))),INDEX(H$1:H$38,MIN(IF(COUNTIF(Y$3:Y27,H$4:H$38)=0,ROW(H$4:H$38)))),INDEX(I$1:I$38,MIN(IF((I$4:I$38<>"")*(COUNTIF(Y$3:Y27,I$4:I$38)=0),ROW(H$4:H$38))))) -> 0 | Z28: =IF(Y28=0,"",SUMPRODUCT((F$4:F$76="Aire")*((H$4:H$76=Y28)+(I$4:I$76=Y28))*IF(O$4:O$76="",0,O$4:O$76)*((Q$4:Q$76="")+(Q$4:Q$76="50/50")/2))) ->  | AA28: =IF(Y28=0,"",SUMPRODUCT((F$4:F$56="Aire")*((H$4:H$56=Y28)+(I$4:I$56=Y28))*IF(P$4:P$56="",0,P$4:P$56)*((Q$4:Q$56="")+(Q$4:Q$56="50/50")/2))) ->  | AB28: =IF(Y28=0,"",SUMPRODUCT((F$4:F$4="Luchon")*((H$4:H$4=Y28)+(I$4:I$4=Y28))*IF(O$4:O$4="",0,O$4:O$4)*((Q$4:Q$4="")+(Q$4:Q$4="50/50")/2))) ->  | AC28: =IF(Y28=0,"",SUMPRODUCT((F$4:F$4="Luchon")*((H$4:H$4=Y28)+(I$4:I$4=Y28))*IF(P$4:P$4="",0,P$4:P$4)*((Q$4:Q$4="")+(Q$4:Q$4="50/50")/2))) ->  | AD28: =IF(Y28=0,"",SUMPRODUCT((F$4:F$38="Aire")*((H$4:H$38=Y28)+(I$4:I$38=Y28))*(L$4:L$38))) ->  | AE28: =IF(Y28=0,"",SUMPRODUCT((F$4:F$4="Luchon")*((H$4:H$4=Y28)+(I$4:I$4=Y28))*(L$4:L$4))) ->  | AH28: 0 | AJ28: =SUMIF(H5:H148,AH28,L5:L148) -> 00:00:00 | AK28: =IF(Y28=0,"",SUMPRODUCT((F$4:F$4="Aire")*((H$4:H$4=Y28)+(I$4:I$4=Y28))*IF(G$4:G$4="",0,G$4:G$4)*((Q$4:Q$4="")+(Q$4:Q$4="50/50")/2))) ->  | AL28: =IF(Y28=0,"",SUMPRODUCT((F$4:F$4="Luchon")*((H$4:H$4=Y28)+(I$4:I$4=Y28))*IF(G$4:G$4="",0,G$4:G$4)*((Q$4:Q$4="")+(Q$4:Q$4="50/50")/2))) ->  | AO28: =IF(ROWS(AO$3:AO27)<=SUM(IF(D$4:D$4<>"",COUNTIF(D$4:D$4,D$4:D$4))),INDEX(D$1:D$4,MIN(IF(COUNTIF(AO$3:AO27,D$4:D$4)=0,ROW(D$4:D$4))))) -> FALSE | AP28: =IF(ROWS(AP$3:AP27)<=SUM(IF(E$4:E$4<>"",COUNTIF(E$4:E$4,E$4:E$4))),INDEX(E$1:E$4,MIN(IF(COUNTIF(AP$3:AP27,E$4:E$4)=0,ROW(E$4:E$4))))) -> FALSE | AR28: =SUMIF(D5:D148,AO28,L5:L148) -> 0
Y29: =IF(ROWS(Y$3:Y28)<=SUM(IF(H$4:H$38<>"",1/COUNTIF(H$4:H$38,H$4:H$38))),INDEX(H$1:H$38,MIN(IF(COUNTIF(Y$3:Y28,H$4:H$38)=0,ROW(H$4:H$38)))),INDEX(I$1:I$38,MIN(IF((I$4:I$38<>"")*(COUNTIF(Y$3:Y28,I$4:I$38)=0),ROW(H$4:H$38))))) -> 0 | Z29: =IF(Y29=0,"",SUMPRODUCT((F$4:F$76="Aire")*((H$4:H$76=Y29)+(I$4:I$76=Y29))*IF(O$4:O$76="",0,O$4:O$76)*((Q$4:Q$76="")+(Q$4:Q$76="50/50")/2))) ->  | AA29: =IF(Y29=0,"",SUMPRODUCT((F$4:F$4="Aire")*((H$4:H$4=Y29)+(I$4:I$4=Y29))*IF(P$4:P$4="",0,P$4:P$4)*((Q$4:Q$4="")+(Q$4:Q$4="50/50")/2))) ->  | AB29: =IF(Y29=0,"",SUMPRODUCT((F$4:F$4="Luchon")*((H$4:H$4=Y29)+(I$4:I$4=Y29))*IF(O$4:O$4="",0,O$4:O$4)*((Q$4:Q$4="")+(Q$4:Q$4="50/50")/2))) ->  | AC29: =IF(Y29=0,"",SUMPRODUCT((F$4:F$4="Luchon")*((H$4:H$4=Y29)+(I$4:I$4=Y29))*IF(P$4:P$4="",0,P$4:P$4)*((Q$4:Q$4="")+(Q$4:Q$4="50/50")/2))) ->  | AD29: =IF(Y29=0,"",SUMPRODUCT((F$4:F$38="Aire")*((H$4:H$38=Y29)+(I$4:I$38=Y29))*(L$4:L$38))) ->  | AE29: =IF(Y29=0,"",SUMPRODUCT((F$4:F$4="Luchon")*((H$4:H$4=Y29)+(I$4:I$4=Y29))*(L$4:L$4))) ->  | AH29: 0 | AJ29: =SUMIF(H5:H149,AH29,L5:L149) -> 00:00:00 | AK29: =IF(Y29=0,"",SUMPRODUCT((F$4:F$4="Aire")*((H$4:H$4=Y29)+(I$4:I$4=Y29))*IF(G$4:G$4="",0,G$4:G$4)*((Q$4:Q$4="")+(Q$4:Q$4="50/50")/2))) ->  | AL29: =IF(Y29=0,"",SUMPRODUCT((F$4:F$4="Luchon")*((H$4:H$4=Y29)+(I$4:I$4=Y29))*IF(G$4:G$4="",0,G$4:G$4)*((Q$4:Q$4="")+(Q$4:Q$4="50/50")/2))) -> 
Y30: =IF(ROWS(Y$3:Y29)<=SUM(IF(H$4:H$38<>"",1/COUNTIF(H$4:H$38,H$4:H$38))),INDEX(H$1:H$38,MIN(IF(COUNTIF(Y$3:Y29,H$4:H$38)=0,ROW(H$4:H$38)))),INDEX(I$1:I$38,MIN(IF((I$4:I$38<>"")*(COUNTIF(Y$3:Y29,I$4:I$38)=0),ROW(H$4:H$38))))) -> 0 | Z30: =IF(Y30=0,"",SUMPRODUCT((F$4:F$76="Aire")*((H$4:H$76=Y30)+(I$4:I$76=Y30))*IF(O$4:O$76="",0,O$4:O$76)*((Q$4:Q$76="")+(Q$4:Q$76="50/50")/2))) ->  | AA30: =IF(Y30=0,"",SUMPRODUCT((F$4:F$4="Aire")*((H$4:H$4=Y30)+(I$4:I$4=Y30))*IF(P$4:P$4="",0,P$4:P$4)*((Q$4:Q$4="")+(Q$4:Q$4="50/50")/2))) ->  | AB30: =IF(Y30=0,"",SUMPRODUCT((F$4:F$4="Luchon")*((H$4:H$4=Y30)+(I$4:I$4=Y30))*IF(O$4:O$4="",0,O$4:O$4)*((Q$4:Q$4="")+(Q$4:Q$4="50/50")/2))) ->  | AC30: =IF(Y30=0,"",SUMPRODUCT((F$4:F$4="Luchon")*((H$4:H$4=Y30)+(I$4:I$4=Y30))*IF(P$4:P$4="",0,P$4:P$4)*((Q$4:Q$4="")+(Q$4:Q$4="50/50")/2))) ->  | AD30: =IF(Y30=0,"",SUMPRODUCT((F$4:F$4="Aire")*((H$4:H$4=Y30)+(I$4:I$4=Y30))*(L$4:L$4))) ->  | AE30: =IF(Y30=0,"",SUMPRODUCT((F$4:F$4="Luchon")*((H$4:H$4=Y30)+(I$4:I$4=Y30))*(L$4:L$4))) ->  | AH30: 0 | AJ30: =SUMIF(H5:H150,AH30,L5:L150) -> 00:00:00 | AK30: =IF(Y30=0,"",SUMPRODUCT((F$4:F$4="Aire")*((H$4:H$4=Y30)+(I$4:I$4=Y30))*IF(G$4:G$4="",0,G$4:G$4)*((Q$4:Q$4="")+(Q$4:Q$4="50/50")/2))) ->  | AL30: =IF(Y30=0,"",SUMPRODUCT((F$4:F$4="Luchon")*((H$4:H$4=Y30)+(I$4:I$4=Y30))*IF(G$4:G$4="",0,G$4:G$4)*((Q$4:Q$4="")+(Q$4:Q$4="50/50")/2))) -> 
Y31: =IF(ROWS(Y$3:Y30)<=SUM(IF(H$4:H$38<>"",1/COUNTIF(H$4:H$38,H$4:H$38))),INDEX(H$1:H$38,MIN(IF(COUNTIF(Y$3:Y30,H$4:H$38)=0,ROW(H$4:H$38)))),INDEX(I$1:I$38,MIN(IF((I$4:I$38<>"")*(COUNTIF(Y$3:Y30,I$4:I$38)=0),ROW(H$4:H$38))))) -> 0 | Z31: =IF(Y31=0,"",SUMPRODUCT((F$4:F$76="Aire")*((H$4:H$76=Y31)+(I$4:I$76=Y31))*IF(O$4:O$76="",0,O$4:O$76)*((Q$4:Q$76="")+(Q$4:Q$76="50/50")/2))) ->  | AA31: =IF(Y31=0,"",SUMPRODUCT((F$4:F$4="Aire")*((H$4:H$4=Y31)+(I$4:I$4=Y31))*IF(P$4:P$4="",0,P$4:P$4)*((Q$4:Q$4="")+(Q$4:Q$4="50/50")/2))) ->  | AB31: =IF(Y31=0,"",SUMPRODUCT((F$4:F$4="Luchon")*((H$4:H$4=Y31)+(I$4:I$4=Y31))*IF(O$4:O$4="",0,O$4:O$4)*((Q$4:Q$4="")+(Q$4:Q$4="50/50")/2))) ->  | AC31: =IF(Y31=0,"",SUMPRODUCT((F$4:F$4="Luchon")*((H$4:H$4=Y31)+(I$4:I$4=Y31))*IF(P$4:P$4="",0,P$4:P$4)*((Q$4:Q$4="")+(Q$4:Q$4="50/50")/2))) ->  | AD31: =IF(Y31=0,"",SUMPRODUCT((F$4:F$4="Aire")*((H$4:H$4=Y31)+(I$4:I$4=Y31))*(L$4:L$4))) ->  | AE31: =IF(Y31=0,"",SUMPRODUCT((F$4:F$4="Luchon")*((H$4:H$4=Y31)+(I$4:I$4=Y31))*(L$4:L$4))) ->  | AH31: 0 | AJ31: =SUMIF(H5:H151,AH31,L5:L151) -> 00:00:00 | AK31: =IF(Y31=0,"",SUMPRODUCT((F$4:F$4="Aire")*((H$4:H$4=Y31)+(I$4:I$4=Y31))*IF(G$4:G$4="",0,G$4:G$4)*((Q$4:Q$4="")+(Q$4:Q$4="50/50")/2))) ->  | AL31: =IF(Y31=0,"",SUMPRODUCT((F$4:F$4="Luchon")*((H$4:H$4=Y31)+(I$4:I$4=Y31))*IF(G$4:G$4="",0,G$4:G$4)*((Q$4:Q$4="")+(Q$4:Q$4="50/50")/2))) -> 
Y32: =IF(ROWS(Y$3:Y31)<=SUM(IF(H$4:H$38<>"",1/COUNTIF(H$4:H$38,H$4:H$38))),INDEX(H$1:H$38,MIN(IF(COUNTIF(Y$3:Y31,H$4:H$38)=0,ROW(H$4:H$38)))),INDEX(I$1:I$38,MIN(IF((I$4:I$38<>"")*(COUNTIF(Y$3:Y31,I$4:I$38)=0),ROW(H$4:H$38))))) -> 0 | Z32: =IF(Y32=0,"",SUMPRODUCT((F$4:F$76="Aire")*((H$4:H$76=Y32)+(I$4:I$76=Y32))*IF(O$4:O$76="",0,O$4:O$76)*((Q$4:Q$76="")+(Q$4:Q$76="50/50")/2))) ->  | AA32: =IF(Y32=0,"",SUMPRODUCT((F$4:F$4="Aire")*((H$4:H$4=Y32)+(I$4:I$4=Y32))*IF(P$4:P$4="",0,P$4:P$4)*((Q$4:Q$4="")+(Q$4:Q$4="50/50")/2))) ->  | AB32: =IF(Y32=0,"",SUMPRODUCT((F$4:F$4="Luchon")*((H$4:H$4=Y32)+(I$4:I$4=Y32))*IF(O$4:O$4="",0,O$4:O$4)*((Q$4:Q$4="")+(Q$4:Q$4="50/50")/2))) ->  | AC32: =IF(Y32=0,"",SUMPRODUCT((F$4:F$4="Luchon")*((H$4:H$4=Y32)+(I$4:I$4=Y32))*IF(P$4:P$4="",0,P$4:P$4)*((Q$4:Q$4="")+(Q$4:Q$4="50/50")/2))) ->  | AD32: =IF(Y32=0,"",SUMPRODUCT((F$4:F$4="Aire")*((H$4:H$4=Y32)+(I$4:I$4=Y32))*(L$4:L$4))) ->  | AE32: =IF(Y32=0,"",SUMPRODUCT((F$4:F$4="Luchon")*((H$4:H$4=Y32)+(I$4:I$4=Y32))*(L$4:L$4))) ->  | AH32: 0 | AJ32: =SUMIF(H5:H152,AH32,L5:L152) -> 00:00:00 | AK32: =IF(Y32=0,"",SUMPRODUCT((F$4:F$4="Aire")*((H$4:H$4=Y32)+(I$4:I$4=Y32))*IF(G$4:G$4="",0,G$4:G$4)*((Q$4:Q$4="")+(Q$4:Q$4="50/50")/2))) ->  | AL32: =IF(Y32=0,"",SUMPRODUCT((F$4:F$4="Luchon")*((H$4:H$4=Y32)+(I$4:I$4=Y32))*IF(G$4:G$4="",0,G$4:G$4)*((Q$4:Q$4="")+(Q$4:Q$4="50/50")/2))) -> 
Y33: =IF(ROWS(Y$3:Y32)<=SUM(IF(H$4:H$38<>"",1/COUNTIF(H$4:H$38,H$4:H$38))),INDEX(H$1:H$38,MIN(IF(COUNTIF(Y$3:Y32,H$4:H$38)=0,ROW(H$4:H$38)))),INDEX(I$1:I$38,MIN(IF((I$4:I$38<>"")*(COUNTIF(Y$3:Y32,I$4:I$38)=0),ROW(H$4:H$38))))) -> 0 | Z33: =IF(Y33=0,"",SUMPRODUCT((F$4:F$76="Aire")*((H$4:H$76=Y33)+(I$4:I$76=Y33))*IF(O$4:O$76="",0,O$4:O$76)*((Q$4:Q$76="")+(Q$4:Q$76="50/50")/2))) ->  | AA33: =IF(Y33=0,"",SUMPRODUCT((F$4:F$4="Aire")*((H$4:H$4=Y33)+(I$4:I$4=Y33))*IF(P$4:P$4="",0,P$4:P$4)*((Q$4:Q$4="")+(Q$4:Q$4="50/50")/2))) ->  | AB33: =IF(Y33=0,"",SUMPRODUCT((F$4:F$4="Luchon")*((H$4:H$4=Y33)+(I$4:I$4=Y33))*IF(O$4:O$4="",0,O$4:O$4)*((Q$4:Q$4="")+(Q$4:Q$4="50/50")/2))) ->  | AC33: =IF(Y33=0,"",SUMPRODUCT((F$4:F$4="Luchon")*((H$4:H$4=Y33)+(I$4:I$4=Y33))*IF(P$4:P$4="",0,P$4:P$4)*((Q$4:Q$4="")+(Q$4:Q$4="50/50")/2))) ->  | AD33: =IF(Y33=0,"",SUMPRODUCT((F$4:F$4="Aire")*((H$4:H$4=Y33)+(I$4:I$4=Y33))*(L$4:L$4))) ->  | AE33: =IF(Y33=0,"",SUMPRODUCT((F$4:F$4="Luchon")*((H$4:H$4=Y33)+(I$4:I$4=Y33))*(L$4:L$4))) ->  | AH33: 0 | AJ33: =SUMIF(H5:H153,AH33,L5:L153) -> 00:00:00 | AK33: =IF(Y33=0,"",SUMPRODUCT((F$4:F$4="Aire")*((H$4:H$4=Y33)+(I$4:I$4=Y33))*IF(G$4:G$4="",0,G$4:G$4)*((Q$4:Q$4="")+(Q$4:Q$4="50/50")/2))) ->  | AL33: =IF(Y33=0,"",SUMPRODUCT((F$4:F$4="Luchon")*((H$4:H$4=Y33)+(I$4:I$4=Y33))*IF(G$4:G$4="",0,G$4:G$4)*((Q$4:Q$4="")+(Q$4:Q$4="50/50")/2))) -> 
Y34: =IF(ROWS(Y$3:Y33)<=SUM(IF(H$4:H$38<>"",1/COUNTIF(H$4:H$38,H$4:H$38))),INDEX(H$1:H$38,MIN(IF(COUNTIF(Y$3:Y33,H$4:H$38)=0,ROW(H$4:H$38)))),INDEX(I$1:I$38,MIN(IF((I$4:I$38<>"")*(COUNTIF(Y$3:Y33,I$4:I$38)=0),ROW(H$4:H$38))))) -> 0 | Z34: =IF(Y34=0,"",SUMPRODUCT((F$4:F$76="Aire")*((H$4:H$76=Y34)+(I$4:I$76=Y34))*IF(O$4:O$76="",0,O$4:O$76)*((Q$4:Q$76="")+(Q$4:Q$76="50/50")/2))) ->  | AA34: =IF(Y34=0,"",SUMPRODUCT((F$4:F$4="Aire")*((H$4:H$4=Y34)+(I$4:I$4=Y34))*IF(P$4:P$4="",0,P$4:P$4)*((Q$4:Q$4="")+(Q$4:Q$4="50/50")/2))) ->  | AB34: =IF(Y34=0,"",SUMPRODUCT((F$4:F$4="Luchon")*((H$4:H$4=Y34)+(I$4:I$4=Y34))*IF(O$4:O$4="",0,O$4:O$4)*((Q$4:Q$4="")+(Q$4:Q$4="50/50")/2))) ->  | AC34: =IF(Y34=0,"",SUMPRODUCT((F$4:F$4="Luchon")*((H$4:H$4=Y34)+(I$4:I$4=Y34))*IF(P$4:P$4="",0,P$4:P$4)*((Q$4:Q$4="")+(Q$4:Q$4="50/50")/2))) ->  | AD34: =IF(Y34=0,"",SUMPRODUCT((F$4:F$4="Aire")*((H$4:H$4=Y34)+(I$4:I$4=Y34))*(L$4:L$4))) ->  | AE34: =IF(Y34=0,"",SUMPRODUCT((F$4:F$4="Luchon")*((H$4:H$4=Y34)+(I$4:I$4=Y34))*(L$4:L$4))) ->  | AH34: 0 | AJ34: =SUMIF(H5:H154,AH34,L5:L154) -> 00:00:00 | AK34: =IF(Y34=0,"",SUMPRODUCT((F$4:F$4="Aire")*((H$4:H$4=Y34)+(I$4:I$4=Y34))*IF(G$4:G$4="",0,G$4:G$4)*((Q$4:Q$4="")+(Q$4:Q$4="50/50")/2))) ->  | AL34: =IF(Y34=0,"",SUMPRODUCT((F$4:F$4="Luchon")*((H$4:H$4=Y34)+(I$4:I$4=Y34))*IF(G$4:G$4="",0,G$4:G$4)*((Q$4:Q$4="")+(Q$4:Q$4="50/50")/2))) -> 
Y35: =IF(ROWS(Y$3:Y34)<=SUM(IF(H$4:H$38<>"",1/COUNTIF(H$4:H$38,H$4:H$38))),INDEX(H$1:H$38,MIN(IF(COUNTIF(Y$3:Y34,H$4:H$38)=0,ROW(H$4:H$38)))),INDEX(I$1:I$38,MIN(IF((I$4:I$38<>"")*(COUNTIF(Y$3:Y34,I$4:I$38)=0),ROW(H$4:H$38))))) -> 0 | Z35: =IF(Y35=0,"",SUMPRODUCT((F$4:F$76="Aire")*((H$4:H$76=Y35)+(I$4:I$76=Y35))*IF(O$4:O$76="",0,O$4:O$76)*((Q$4:Q$76="")+(Q$4:Q$76="50/50")/2))) ->  | AA35: =IF(Y35=0,"",SUMPRODUCT((F$4:F$4="Aire")*((H$4:H$4=Y35)+(I$4:I$4=Y35))*IF(P$4:P$4="",0,P$4:P$4)*((Q$4:Q$4="")+(Q$4:Q$4="50/50")/2))) ->  | AB35: =IF(Y35=0,"",SUMPRODUCT((F$4:F$4="Luchon")*((H$4:H$4=Y35)+(I$4:I$4=Y35))*IF(O$4:O$4="",0,O$4:O$4)*((Q$4:Q$4="")+(Q$4:Q$4="50/50")/2))) ->  | AC35: =IF(Y35=0,"",SUMPRODUCT((F$4:F$4="Luchon")*((H$4:H$4=Y35)+(I$4:I$4=Y35))*IF(P$4:P$4="",0,P$4:P$4)*((Q$4:Q$4="")+(Q$4:Q$4="50/50")/2))) ->  | AD35: =IF(Y35=0,"",SUMPRODUCT((F$4:F$4="Aire")*((H$4:H$4=Y35)+(I$4:I$4=Y35))*(L$4:L$4))) ->  | AE35: =IF(Y35=0,"",SUMPRODUCT((F$4:F$4="Luchon")*((H$4:H$4=Y35)+(I$4:I$4=Y35))*(L$4:L$4))) ->  | AH35: 0 | AJ35: =SUMIF(H5:H155,AH35,L5:L155) -> 00:00:00 | AK35: =IF(Y35=0,"",SUMPRODUCT((F$4:F$4="Aire")*((H$4:H$4=Y35)+(I$4:I$4=Y35))*IF(G$4:G$4="",0,G$4:G$4)*((Q$4:Q$4="")+(Q$4:Q$4="50/50")/2))) ->  | AL35: =IF(Y35=0,"",SUMPRODUCT((F$4:F$4="Luchon")*((H$4:H$4=Y35)+(I$4:I$4=Y35))*IF(G$4:G$4="",0,G$4:G$4)*((Q$4:Q$4="")+(Q$4:Q$4="50/50")/2))) -> 
Y36: =IF(ROWS(Y$3:Y35)<=SUM(IF(H$4:H$38<>"",1/COUNTIF(H$4:H$38,H$4:H$38))),INDEX(H$1:H$38,MIN(IF(COUNTIF(Y$3:Y35,H$4:H$38)=0,ROW(H$4:H$38)))),INDEX(I$1:I$38,MIN(IF((I$4:I$38<>"")*(COUNTIF(Y$3:Y35,I$4:I$38)=0),ROW(H$4:H$38))))) -> 0 | Z36: =IF(Y36=0,"",SUMPRODUCT((F$4:F$4="Aire")*((H$4:H$4=Y36)+(I$4:I$4=Y36))*IF(O$4:O$4="",0,O$4:O$4)*((Q$4:Q$4="")+(Q$4:Q$4="50/50")/2))) ->  | AA36: =IF(Y36=0,"",SUMPRODUCT((F$4:F$4="Aire")*((H$4:H$4=Y36)+(I$4:I$4=Y36))*IF(P$4:P$4="",0,P$4:P$4)*((Q$4:Q$4="")+(Q$4:Q$4="50/50")/2))) ->  | AB36: =IF(Y36=0,"",SUMPRODUCT((F$4:F$4="Luchon")*((H$4:H$4=Y36)+(I$4:I$4=Y36))*IF(O$4:O$4="",0,O$4:O$4)*((Q$4:Q$4="")+(Q$4:Q$4="50/50")/2))) ->  | AC36: =IF(Y36=0,"",SUMPRODUCT((F$4:F$4="Luchon")*((H$4:H$4=Y36)+(I$4:I$4=Y36))*IF(P$4:P$4="",0,P$4:P$4)*((Q$4:Q$4="")+(Q$4:Q$4="50/50")/2))) ->  | AD36: =IF(Y36=0,"",SUMPRODUCT((F$4:F$4="Aire")*((H$4:H$4=Y36)+(I$4:I$4=Y36))*(L$4:L$4))) ->  | AE36: =IF(Y36=0,"",SUMPRODUCT((F$4:F$4="Luchon")*((H$4:H$4=Y36)+(I$4:I$4=Y36))*(L$4:L$4))) ->  | AH36: 0 | AJ36: =SUMIF(H5:H156,AH36,L5:L156) -> 00:00:00 | AK36: =IF(Y36=0,"",SUMPRODUCT((F$4:F$4="Aire")*((H$4:H$4=Y36)+(I$4:I$4=Y36))*IF(G$4:G$4="",0,G$4:G$4)*((Q$4:Q$4="")+(Q$4:Q$4="50/50")/2))) ->  | AL36: =IF(Y36=0,"",SUMPRODUCT((F$4:F$4="Luchon")*((H$4:H$4=Y36)+(I$4:I$4=Y36))*IF(G$4:G$4="",0,G$4:G$4)*((Q$4:Q$4="")+(Q$4:Q$4="50/50")/2))) -> 
Y37: =IF(ROWS(Y$3:Y36)<=SUM(IF(H$4:H$38<>"",1/COUNTIF(H$4:H$38,H$4:H$38))),INDEX(H$1:H$38,MIN(IF(COUNTIF(Y$3:Y36,H$4:H$38)=0,ROW(H$4:H$38)))),INDEX(I$1:I$38,MIN(IF((I$4:I$38<>"")*(COUNTIF(Y$3:Y36,I$4:I$38)=0),ROW(H$4:H$38))))) -> 0 | Z37: =IF(Y37=0,"",SUMPRODUCT((F$4:F$4="Aire")*((H$4:H$4=Y37)+(I$4:I$4=Y37))*IF(O$4:O$4="",0,O$4:O$4)*((Q$4:Q$4="")+(Q$4:Q$4="50/50")/2))) ->  | AA37: =IF(Y37=0,"",SUMPRODUCT((F$4:F$4="Aire")*((H$4:H$4=Y37)+(I$4:I$4=Y37))*IF(P$4:P$4="",0,P$4:P$4)*((Q$4:Q$4="")+(Q$4:Q$4="50/50")/2))) ->  | AB37: =IF(Y37=0,"",SUMPRODUCT((F$4:F$4="Luchon")*((H$4:H$4=Y37)+(I$4:I$4=Y37))*IF(O$4:O$4="",0,O$4:O$4)*((Q$4:Q$4="")+(Q$4:Q$4="50/50")/2))) ->  | AC37: =IF(Y37=0,"",SUMPRODUCT((F$4:F$4="Luchon")*((H$4:H$4=Y37)+(I$4:I$4=Y37))*IF(P$4:P$4="",0,P$4:P$4)*((Q$4:Q$4="")+(Q$4:Q$4="50/50")/2))) ->  | AD37: =IF(Y37=0,"",SUMPRODUCT((F$4:F$4="Aire")*((H$4:H$4=Y37)+(I$4:I$4=Y37))*(L$4:L$4))) ->  | AE37: =IF(Y37=0,"",SUMPRODUCT((F$4:F$4="Luchon")*((H$4:H$4=Y37)+(I$4:I$4=Y37))*(L$4:L$4))) ->  | AH37: 0 | AJ37: =SUMIF(H5:H157,AH37,L5:L157) -> 00:00:00 | AK37: =IF(Y37=0,"",SUMPRODUCT((F$4:F$4="Aire")*((H$4:H$4=Y37)+(I$4:I$4=Y37))*IF(G$4:G$4="",0,G$4:G$4)*((Q$4:Q$4="")+(Q$4:Q$4="50/50")/2))) ->  | AL37: =IF(Y37=0,"",SUMPRODUCT((F$4:F$4="Luchon")*((H$4:H$4=Y37)+(I$4:I$4=Y37))*IF(G$4:G$4="",0,G$4:G$4)*((Q$4:Q$4="")+(Q$4:Q$4="50/50")/2))) -> 
Y38: =IF(ROWS(Y$3:Y37)<=SUM(IF(H$4:H$38<>"",1/COUNTIF(H$4:H$38,H$4:H$38))),INDEX(H$1:H$38,MIN(IF(COUNTIF(Y$3:Y37,H$4:H$38)=0,ROW(H$4:H$38)))),INDEX(I$1:I$38,MIN(IF((I$4:I$38<>"")*(COUNTIF(Y$3:Y37,I$4:I$38)=0),ROW(H$4:H$38))))) -> 0 | Z38: =IF(Y38=0,"",SUMPRODUCT((F$4:F$4="Aire")*((H$4:H$4=Y38)+(I$4:I$4=Y38))*IF(O$4:O$4="",0,O$4:O$4)*((Q$4:Q$4="")+(Q$4:Q$4="50/50")/2))) ->  | AA38: =IF(Y38=0,"",SUMPRODUCT((F$4:F$4="Aire")*((H$4:H$4=Y38)+(I$4:I$4=Y38))*IF(P$4:P$4="",0,P$4:P$4)*((Q$4:Q$4="")+(Q$4:Q$4="50/50")/2))) ->  | AB38: =IF(Y38=0,"",SUMPRODUCT((F$4:F$4="Luchon")*((H$4:H$4=Y38)+(I$4:I$4=Y38))*IF(O$4:O$4="",0,O$4:O$4)*((Q$4:Q$4="")+(Q$4:Q$4="50/50")/2))) ->  | AC38: =IF(Y38=0,"",SUMPRODUCT((F$4:F$4="Luchon")*((H$4:H$4=Y38)+(I$4:I$4=Y38))*IF(P$4:P$4="",0,P$4:P$4)*((Q$4:Q$4="")+(Q$4:Q$4="50/50")/2))) ->  | AD38: =IF(Y38=0,"",SUMPRODUCT((F$4:F$4="Aire")*((H$4:H$4=Y38)+(I$4:I$4=Y38))*(L$4:L$4))) ->  | AE38: =IF(Y38=0,"",SUMPRODUCT((F$4:F$4="Luchon")*((H$4:H$4=Y38)+(I$4:I$4=Y38))*(L$4:L$4))) ->  | AH38: 0 | AJ38: =SUMIF(H5:H158,AH38,L5:L158) -> 00:00:00 | AK38: =IF(Y38=0,"",SUMPRODUCT((F$4:F$4="Aire")*((H$4:H$4=Y38)+(I$4:I$4=Y38))*IF(G$4:G$4="",0,G$4:G$4)*((Q$4:Q$4="")+(Q$4:Q$4="50/50")/2))) ->  | AL38: =IF(Y38=0,"",SUMPRODUCT((F$4:F$4="Luchon")*((H$4:H$4=Y38)+(I$4:I$4=Y38))*IF(G$4:G$4="",0,G$4:G$4)*((Q$4:Q$4="")+(Q$4:Q$4="50/50")/2))) -> 
Y39: =IF(ROWS(Y$3:Y38)<=SUM(IF(H$4:H$38<>"",1/COUNTIF(H$4:H$38,H$4:H$38))),INDEX(H$1:H$38,MIN(IF(COUNTIF(Y$3:Y38,H$4:H$38)=0,ROW(H$4:H$38)))),INDEX(I$1:I$38,MIN(IF((I$4:I$38<>"")*(COUNTIF(Y$3:Y38,I$4:I$38)=0),ROW(H$4:H$38))))) -> 0 | Z39: =IF(Y39=0,"",SUMPRODUCT((F$4:F$4="Aire")*((H$4:H$4=Y39)+(I$4:I$4=Y39))*IF(O$4:O$4="",0,O$4:O$4)*((Q$4:Q$4="")+(Q$4:Q$4="50/50")/2))) ->  | AA39: =IF(Y39=0,"",SUMPRODUCT((F$4:F$4="Aire")*((H$4:H$4=Y39)+(I$4:I$4=Y39))*IF(P$4:P$4="",0,P$4:P$4)*((Q$4:Q$4="")+(Q$4:Q$4="50/50")/2))) ->  | AB39: =IF(Y39=0,"",SUMPRODUCT((F$4:F$4="Luchon")*((H$4:H$4=Y39)+(I$4:I$4=Y39))*IF(O$4:O$4="",0,O$4:O$4)*((Q$4:Q$4="")+(Q$4:Q$4="50/50")/2))) ->  | AC39: =IF(Y39=0,"",SUMPRODUCT((F$4:F$4="Luchon")*((H$4:H$4=Y39)+(I$4:I$4=Y39))*IF(P$4:P$4="",0,P$4:P$4)*((Q$4:Q$4="")+(Q$4:Q$4="50/50")/2))) ->  | AD39: =IF(Y39=0,"",SUMPRODUCT((F$4:F$4="Aire")*((H$4:H$4=Y39)+(I$4:I$4=Y39))*(L$4:L$4))) ->  | AE39: =IF(Y39=0,"",SUMPRODUCT((F$4:F$4="Luchon")*((H$4:H$4=Y39)+(I$4:I$4=Y39))*(L$4:L$4))) ->  | AH39: 0 | AJ39: =SUMIF(H5:H159,AH39,L5:L159) -> 00:00:00 | AK39: =IF(Y39=0,"",SUMPRODUCT((F$4:F$4="Aire")*((H$4:H$4=Y39)+(I$4:I$4=Y39))*IF(G$4:G$4="",0,G$4:G$4)*((Q$4:Q$4="")+(Q$4:Q$4="50/50")/2))) ->  | AL39: =IF(Y39=0,"",SUMPRODUCT((F$4:F$4="Luchon")*((H$4:H$4=Y39)+(I$4:I$4=Y39))*IF(G$4:G$4="",0,G$4:G$4)*((Q$4:Q$4="")+(Q$4:Q$4="50/50")/2))) -> 
Y40: =IF(ROWS(Y$3:Y39)<=SUM(IF(H$4:H$38<>"",1/COUNTIF(H$4:H$38,H$4:H$38))),INDEX(H$1:H$38,MIN(IF(COUNTIF(Y$3:Y39,H$4:H$38)=0,ROW(H$4:H$38)))),INDEX(I$1:I$38,MIN(IF((I$4:I$38<>"")*(COUNTIF(Y$3:Y39,I$4:I$38)=0),ROW(H$4:H$38))))) -> 0 | Z40: =IF(Y40=0,"",SUMPRODUCT((F$4:F$4="Aire")*((H$4:H$4=Y40)+(I$4:I$4=Y40))*IF(O$4:O$4="",0,O$4:O$4)*((Q$4:Q$4="")+(Q$4:Q$4="50/50")/2))) ->  | AA40: =IF(Y40=0,"",SUMPRODUCT((F$4:F$4="Aire")*((H$4:H$4=Y40)+(I$4:I$4=Y40))*IF(P$4:P$4="",0,P$4:P$4)*((Q$4:Q$4="")+(Q$4:Q$4="50/50")/2))) ->  | AB40: =IF(Y40=0,"",SUMPRODUCT((F$4:F$4="Luchon")*((H$4:H$4=Y40)+(I$4:I$4=Y40))*IF(O$4:O$4="",0,O$4:O$4)*((Q$4:Q$4="")+(Q$4:Q$4="50/50")/2))) ->  | AC40: =IF(Y40=0,"",SUMPRODUCT((F$4:F$4="Luchon")*((H$4:H$4=Y40)+(I$4:I$4=Y40))*IF(P$4:P$4="",0,P$4:P$4)*((Q$4:Q$4="")+(Q$4:Q$4="50/50")/2))) ->  | AD40: =IF(Y40=0,"",SUMPRODUCT((F$4:F$4="Aire")*((H$4:H$4=Y40)+(I$4:I$4=Y40))*(L$4:L$4))) ->  | AE40: =IF(Y40=0,"",SUMPRODUCT((F$4:F$4="Luchon")*((H$4:H$4=Y40)+(I$4:I$4=Y40))*(L$4:L$4))) ->  | AH40: 0 | AJ40: =SUMIF(H5:H160,AH40,L5:L160) -> 00:00:00 | AK40: =IF(Y40=0,"",SUMPRODUCT((F$4:F$4="Aire")*((H$4:H$4=Y40)+(I$4:I$4=Y40))*IF(G$4:G$4="",0,G$4:G$4)*((Q$4:Q$4="")+(Q$4:Q$4="50/50")/2))) ->  | AL40: =IF(Y40=0,"",SUMPRODUCT((F$4:F$4="Luchon")*((H$4:H$4=Y40)+(I$4:I$4=Y40))*IF(G$4:G$4="",0,G$4:G$4)*((Q$4:Q$4="")+(Q$4:Q$4="50/50")/2))) -> 
Y41: =IF(ROWS(Y$3:Y40)<=SUM(IF(H$4:H$38<>"",1/COUNTIF(H$4:H$38,H$4:H$38))),INDEX(H$1:H$38,MIN(IF(COUNTIF(Y$3:Y40,H$4:H$38)=0,ROW(H$4:H$38)))),INDEX(I$1:I$38,MIN(IF((I$4:I$38<>"")*(COUNTIF(Y$3:Y40,I$4:I$38)=0),ROW(H$4:H$38))))) -> 0 | Z41: =IF(Y41=0,"",SUMPRODUCT((F$4:F$4="Aire")*((H$4:H$4=Y41)+(I$4:I$4=Y41))*IF(O$4:O$4="",0,O$4:O$4)*((Q$4:Q$4="")+(Q$4:Q$4="50/50")/2))) ->  | AA41: =IF(Y41=0,"",SUMPRODUCT((F$4:F$4="Aire")*((H$4:H$4=Y41)+(I$4:I$4=Y41))*IF(P$4:P$4="",0,P$4:P$4)*((Q$4:Q$4="")+(Q$4:Q$4="50/50")/2))) ->  | AB41: =IF(Y41=0,"",SUMPRODUCT((F$4:F$4="Luchon")*((H$4:H$4=Y41)+(I$4:I$4=Y41))*IF(O$4:O$4="",0,O$4:O$4)*((Q$4:Q$4="")+(Q$4:Q$4="50/50")/2))) ->  | AC41: =IF(Y41=0,"",SUMPRODUCT((F$4:F$4="Luchon")*((H$4:H$4=Y41)+(I$4:I$4=Y41))*IF(P$4:P$4="",0,P$4:P$4)*((Q$4:Q$4="")+(Q$4:Q$4="50/50")/2))) ->  | AD41: =IF(Y41=0,"",SUMPRODUCT((F$4:F$4="Aire")*((H$4:H$4=Y41)+(I$4:I$4=Y41))*(L$4:L$4))) ->  | AE41: =IF(Y41=0,"",SUMPRODUCT((F$4:F$4="Luchon")*((H$4:H$4=Y41)+(I$4:I$4=Y41))*(L$4:L$4))) ->  | AH41: 0 | AJ41: =SUMIF(H5:H161,AH41,L5:L161) -> 00:00:00 | AK41: =IF(Y41=0,"",SUMPRODUCT((F$4:F$4="Aire")*((H$4:H$4=Y41)+(I$4:I$4=Y41))*IF(G$4:G$4="",0,G$4:G$4)*((Q$4:Q$4="")+(Q$4:Q$4="50/50")/2))) ->  | AL41: =IF(Y41=0,"",SUMPRODUCT((F$4:F$4="Luchon")*((H$4:H$4=Y41)+(I$4:I$4=Y41))*IF(G$4:G$4="",0,G$4:G$4)*((Q$4:Q$4="")+(Q$4:Q$4="50/50")/2))) -> 
Y42: =IF(ROWS(Y$3:Y41)<=SUM(IF(H$4:H$38<>"",1/COUNTIF(H$4:H$38,H$4:H$38))),INDEX(H$1:H$38,MIN(IF(COUNTIF(Y$3:Y41,H$4:H$38)=0,ROW(H$4:H$38)))),INDEX(I$1:I$38,MIN(IF((I$4:I$38<>"")*(COUNTIF(Y$3:Y41,I$4:I$38)=0),ROW(H$4:H$38))))) -> 0 | Z42: =IF(Y42=0,"",SUMPRODUCT((F$4:F$4="Aire")*((H$4:H$4=Y42)+(I$4:I$4=Y42))*IF(O$4:O$4="",0,O$4:O$4)*((Q$4:Q$4="")+(Q$4:Q$4="50/50")/2))) ->  | AA42: =IF(Y42=0,"",SUMPRODUCT((F$4:F$4="Aire")*((H$4:H$4=Y42)+(I$4:I$4=Y42))*IF(P$4:P$4="",0,P$4:P$4)*((Q$4:Q$4="")+(Q$4:Q$4="50/50")/2))) ->  | AB42: =IF(Y42=0,"",SUMPRODUCT((F$4:F$4="Luchon")*((H$4:H$4=Y42)+(I$4:I$4=Y42))*IF(O$4:O$4="",0,O$4:O$4)*((Q$4:Q$4="")+(Q$4:Q$4="50/50")/2))) ->  | AC42: =IF(Y42=0,"",SUMPRODUCT((F$4:F$4="Luchon")*((H$4:H$4=Y42)+(I$4:I$4=Y42))*IF(P$4:P$4="",0,P$4:P$4)*((Q$4:Q$4="")+(Q$4:Q$4="50/50")/2))) ->  | AD42: =IF(Y42=0,"",SUMPRODUCT((F$4:F$4="Aire")*((H$4:H$4=Y42)+(I$4:I$4=Y42))*(L$4:L$4))) ->  | AE42: =IF(Y42=0,"",SUMPRODUCT((F$4:F$4="Luchon")*((H$4:H$4=Y42)+(I$4:I$4=Y42))*(L$4:L$4))) ->  | AH42: 0 | AJ42: =SUMIF(H5:H162,AH42,L5:L162) -> 00:00:00 | AK42: =IF(Y42=0,"",SUMPRODUCT((F$4:F$4="Aire")*((H$4:H$4=Y42)+(I$4:I$4=Y42))*IF(G$4:G$4="",0,G$4:G$4)*((Q$4:Q$4="")+(Q$4:Q$4="50/50")/2))) ->  | AL42: =IF(Y42=0,"",SUMPRODUCT((F$4:F$4="Luchon")*((H$4:H$4=Y42)+(I$4:I$4=Y42))*IF(G$4:G$4="",0,G$4:G$4)*((Q$4:Q$4="")+(Q$4:Q$4="50/50")/2))) -> 
Y43: =IF(ROWS(Y$3:Y42)<=SUM(IF(H$4:H$38<>"",1/COUNTIF(H$4:H$38,H$4:H$38))),INDEX(H$1:H$38,MIN(IF(COUNTIF(Y$3:Y42,H$4:H$38)=0,ROW(H$4:H$38)))),INDEX(I$1:I$38,MIN(IF((I$4:I$38<>"")*(COUNTIF(Y$3:Y42,I$4:I$38)=0),ROW(H$4:H$38))))) -> 0 | Z43: =IF(Y43=0,"",SUMPRODUCT((F$4:F$4="Aire")*((H$4:H$4=Y43)+(I$4:I$4=Y43))*IF(O$4:O$4="",0,O$4:O$4)*((Q$4:Q$4="")+(Q$4:Q$4="50/50")/2))) ->  | AA43: =IF(Y43=0,"",SUMPRODUCT((F$4:F$4="Aire")*((H$4:H$4=Y43)+(I$4:I$4=Y43))*IF(P$4:P$4="",0,P$4:P$4)*((Q$4:Q$4="")+(Q$4:Q$4="50/50")/2))) ->  | AB43: =IF(Y43=0,"",SUMPRODUCT((F$4:F$4="Luchon")*((H$4:H$4=Y43)+(I$4:I$4=Y43))*IF(O$4:O$4="",0,O$4:O$4)*((Q$4:Q$4="")+(Q$4:Q$4="50/50")/2))) ->  | AC43: =IF(Y43=0,"",SUMPRODUCT((F$4:F$4="Luchon")*((H$4:H$4=Y43)+(I$4:I$4=Y43))*IF(P$4:P$4="",0,P$4:P$4)*((Q$4:Q$4="")+(Q$4:Q$4="50/50")/2))) ->  | AD43: =IF(Y43=0,"",SUMPRODUCT((F$4:F$4="Aire")*((H$4:H$4=Y43)+(I$4:I$4=Y43))*(L$4:L$4))) ->  | AE43: =IF(Y43=0,"",SUMPRODUCT((F$4:F$4="Luchon")*((H$4:H$4=Y43)+(I$4:I$4=Y43))*(L$4:L$4))) ->  | AH43: 0 | AJ43: =SUMIF(H5:H163,AH43,L5:L163) -> 00:00:00 | AK43: =IF(Y43=0,"",SUMPRODUCT((F$4:F$4="Aire")*((H$4:H$4=Y43)+(I$4:I$4=Y43))*IF(G$4:G$4="",0,G$4:G$4)*((Q$4:Q$4="")+(Q$4:Q$4="50/50")/2))) ->  | AL43: =IF(Y43=0,"",SUMPRODUCT((F$4:F$4="Luchon")*((H$4:H$4=Y43)+(I$4:I$4=Y43))*IF(G$4:G$4="",0,G$4:G$4)*((Q$4:Q$4="")+(Q$4:Q$4="50/50")/2))) -> 
Y44: =IF(ROWS(Y$3:Y43)<=SUM(IF(H$4:H$38<>"",1/COUNTIF(H$4:H$38,H$4:H$38))),INDEX(H$1:H$38,MIN(IF(COUNTIF(Y$3:Y43,H$4:H$38)=0,ROW(H$4:H$38)))),INDEX(I$1:I$38,MIN(IF((I$4:I$38<>"")*(COUNTIF(Y$3:Y43,I$4:I$38)=0),ROW(H$4:H$38))))) -> 0 | Z44: =IF(Y44=0,"",SUMPRODUCT((F$4:F$4="Aire")*((H$4:H$4=Y44)+(I$4:I$4=Y44))*IF(O$4:O$4="",0,O$4:O$4)*((Q$4:Q$4="")+(Q$4:Q$4="50/50")/2))) ->  | AA44: =IF(Y44=0,"",SUMPRODUCT((F$4:F$4="Aire")*((H$4:H$4=Y44)+(I$4:I$4=Y44))*IF(P$4:P$4="",0,P$4:P$4)*((Q$4:Q$4="")+(Q$4:Q$4="50/50")/2))) ->  | AB44: =IF(Y44=0,"",SUMPRODUCT((F$4:F$4="Luchon")*((H$4:H$4=Y44)+(I$4:I$4=Y44))*IF(O$4:O$4="",0,O$4:O$4)*((Q$4:Q$4="")+(Q$4:Q$4="50/50")/2))) ->  | AC44: =IF(Y44=0,"",SUMPRODUCT((F$4:F$4="Luchon")*((H$4:H$4=Y44)+(I$4:I$4=Y44))*IF(P$4:P$4="",0,P$4:P$4)*((Q$4:Q$4="")+(Q$4:Q$4="50/50")/2))) ->  | AD44: =IF(Y44=0,"",SUMPRODUCT((F$4:F$4="Aire")*((H$4:H$4=Y44)+(I$4:I$4=Y44))*(L$4:L$4))) ->  | AE44: =IF(Y44=0,"",SUMPRODUCT((F$4:F$4="Luchon")*((H$4:H$4=Y44)+(I$4:I$4=Y44))*(L$4:L$4))) ->  | AH44: 0 | AJ44: =SUMIF(H5:H164,AH44,L5:L164) -> 00:00:00 | AK44: =IF(Y44=0,"",SUMPRODUCT((F$4:F$4="Aire")*((H$4:H$4=Y44)+(I$4:I$4=Y44))*IF(G$4:G$4="",0,G$4:G$4)*((Q$4:Q$4="")+(Q$4:Q$4="50/50")/2))) ->  | AL44: =IF(Y44=0,"",SUMPRODUCT((F$4:F$4="Luchon")*((H$4:H$4=Y44)+(I$4:I$4=Y44))*IF(G$4:G$4="",0,G$4:G$4)*((Q$4:Q$4="")+(Q$4:Q$4="50/50")/2))) -> 
Y45: =IF(ROWS(Y$3:Y44)<=SUM(IF(H$4:H$38<>"",1/COUNTIF(H$4:H$38,H$4:H$38))),INDEX(H$1:H$38,MIN(IF(COUNTIF(Y$3:Y44,H$4:H$38)=0,ROW(H$4:H$38)))),INDEX(I$1:I$38,MIN(IF((I$4:I$38<>"")*(COUNTIF(Y$3:Y44,I$4:I$38)=0),ROW(H$4:H$38))))) -> 0 | Z45: =IF(Y45=0,"",SUMPRODUCT((F$4:F$4="Aire")*((H$4:H$4=Y45)+(I$4:I$4=Y45))*IF(O$4:O$4="",0,O$4:O$4)*((Q$4:Q$4="")+(Q$4:Q$4="50/50")/2))) ->  | AA45: =IF(Y45=0,"",SUMPRODUCT((F$4:F$4="Aire")*((H$4:H$4=Y45)+(I$4:I$4=Y45))*IF(P$4:P$4="",0,P$4:P$4)*((Q$4:Q$4="")+(Q$4:Q$4="50/50")/2))) ->  | AB45: =IF(Y45=0,"",SUMPRODUCT((F$4:F$4="Luchon")*((H$4:H$4=Y45)+(I$4:I$4=Y45))*IF(O$4:O$4="",0,O$4:O$4)*((Q$4:Q$4="")+(Q$4:Q$4="50/50")/2))) ->  | AC45: =IF(Y45=0,"",SUMPRODUCT((F$4:F$4="Luchon")*((H$4:H$4=Y45)+(I$4:I$4=Y45))*IF(P$4:P$4="",0,P$4:P$4)*((Q$4:Q$4="")+(Q$4:Q$4="50/50")/2))) ->  | AD45: =IF(Y45=0,"",SUMPRODUCT((F$4:F$4="Aire")*((H$4:H$4=Y45)+(I$4:I$4=Y45))*(L$4:L$4))) ->  | AE45: =IF(Y45=0,"",SUMPRODUCT((F$4:F$4="Luchon")*((H$4:H$4=Y45)+(I$4:I$4=Y45))*(L$4:L$4))) ->  | AH45: 0 | AJ45: =SUMIF(H5:H165,AH45,L5:L165) -> 00:00:00 | AK45: =IF(Y45=0,"",SUMPRODUCT((F$4:F$4="Aire")*((H$4:H$4=Y45)+(I$4:I$4=Y45))*IF(G$4:G$4="",0,G$4:G$4)*((Q$4:Q$4="")+(Q$4:Q$4="50/50")/2))) ->  | AL45: =IF(Y45=0,"",SUMPRODUCT((F$4:F$4="Luchon")*((H$4:H$4=Y45)+(I$4:I$4=Y45))*IF(G$4:G$4="",0,G$4:G$4)*((Q$4:Q$4="")+(Q$4:Q$4="50/50")/2))) -> 
Y46: =IF(ROWS(Y$3:Y45)<=SUM(IF(H$4:H$38<>"",1/COUNTIF(H$4:H$38,H$4:H$38))),INDEX(H$1:H$38,MIN(IF(COUNTIF(Y$3:Y45,H$4:H$38)=0,ROW(H$4:H$38)))),INDEX(I$1:I$38,MIN(IF((I$4:I$38<>"")*(COUNTIF(Y$3:Y45,I$4:I$38)=0),ROW(H$4:H$38))))) -> 0 | Z46: =IF(Y46=0,"",SUMPRODUCT((F$4:F$4="Aire")*((H$4:H$4=Y46)+(I$4:I$4=Y46))*IF(O$4:O$4="",0,O$4:O$4)*((Q$4:Q$4="")+(Q$4:Q$4="50/50")/2))) ->  | AA46: =IF(Y46=0,"",SUMPRODUCT((F$4:F$4="Aire")*((H$4:H$4=Y46)+(I$4:I$4=Y46))*IF(P$4:P$4="",0,P$4:P$4)*((Q$4:Q$4="")+(Q$4:Q$4="50/50")/2))) ->  | AB46: =IF(Y46=0,"",SUMPRODUCT((F$4:F$4="Luchon")*((H$4:H$4=Y46)+(I$4:I$4=Y46))*IF(O$4:O$4="",0,O$4:O$4)*((Q$4:Q$4="")+(Q$4:Q$4="50/50")/2))) ->  | AC46: =IF(Y46=0,"",SUMPRODUCT((F$4:F$4="Luchon")*((H$4:H$4=Y46)+(I$4:I$4=Y46))*IF(P$4:P$4="",0,P$4:P$4)*((Q$4:Q$4="")+(Q$4:Q$4="50/50")/2))) ->  | AD46: =IF(Y46=0,"",SUMPRODUCT((F$4:F$4="Aire")*((H$4:H$4=Y46)+(I$4:I$4=Y46))*(L$4:L$4))) ->  | AE46: =IF(Y46=0,"",SUMPRODUCT((F$4:F$4="Luchon")*((H$4:H$4=Y46)+(I$4:I$4=Y46))*(L$4:L$4))) ->  | AH46: 0 | AJ46: =SUMIF(H5:H166,AH46,L5:L166) -> 00:00:00 | AK46: =IF(Y46=0,"",SUMPRODUCT((F$4:F$4="Aire")*((H$4:H$4=Y46)+(I$4:I$4=Y46))*IF(G$4:G$4="",0,G$4:G$4)*((Q$4:Q$4="")+(Q$4:Q$4="50/50")/2))) ->  | AL46: =IF(Y46=0,"",SUMPRODUCT((F$4:F$4="Luchon")*((H$4:H$4=Y46)+(I$4:I$4=Y46))*IF(G$4:G$4="",0,G$4:G$4)*((Q$4:Q$4="")+(Q$4:Q$4="50/50")/2))) -> 
Y47: =IF(ROWS(Y$3:Y46)<=SUM(IF(H$4:H$38<>"",1/COUNTIF(H$4:H$38,H$4:H$38))),INDEX(H$1:H$38,MIN(IF(COUNTIF(Y$3:Y46,H$4:H$38)=0,ROW(H$4:H$38)))),INDEX(I$1:I$38,MIN(IF((I$4:I$38<>"")*(COUNTIF(Y$3:Y46,I$4:I$38)=0),ROW(H$4:H$38))))) -> 0 | Z47: =IF(Y47=0,"",SUMPRODUCT((F$4:F$4="Aire")*((H$4:H$4=Y47)+(I$4:I$4=Y47))*IF(O$4:O$4="",0,O$4:O$4)*((Q$4:Q$4="")+(Q$4:Q$4="50/50")/2))) ->  | AA47: =IF(Y47=0,"",SUMPRODUCT((F$4:F$4="Aire")*((H$4:H$4=Y47)+(I$4:I$4=Y47))*IF(P$4:P$4="",0,P$4:P$4)*((Q$4:Q$4="")+(Q$4:Q$4="50/50")/2))) ->  | AB47: =IF(Y47=0,"",SUMPRODUCT((F$4:F$4="Luchon")*((H$4:H$4=Y47)+(I$4:I$4=Y47))*IF(O$4:O$4="",0,O$4:O$4)*((Q$4:Q$4="")+(Q$4:Q$4="50/50")/2))) ->  | AC47: =IF(Y47=0,"",SUMPRODUCT((F$4:F$4="Luchon")*((H$4:H$4=Y47)+(I$4:I$4=Y47))*IF(P$4:P$4="",0,P$4:P$4)*((Q$4:Q$4="")+(Q$4:Q$4="50/50")/2))) ->  | AD47: =IF(Y47=0,"",SUMPRODUCT((F$4:F$4="Aire")*((H$4:H$4=Y47)+(I$4:I$4=Y47))*(L$4:L$4))) ->  | AE47: =IF(Y47=0,"",SUMPRODUCT((F$4:F$4="Luchon")*((H$4:H$4=Y47)+(I$4:I$4=Y47))*(L$4:L$4))) ->  | AH47: 0 | AJ47: =SUMIF(H5:H167,AH47,L5:L167) -> 00:00:00 | AK47: =IF(Y47=0,"",SUMPRODUCT((F$4:F$4="Aire")*((H$4:H$4=Y47)+(I$4:I$4=Y47))*IF(G$4:G$4="",0,G$4:G$4)*((Q$4:Q$4="")+(Q$4:Q$4="50/50")/2))) ->  | AL47: =IF(Y47=0,"",SUMPRODUCT((F$4:F$4="Luchon")*((H$4:H$4=Y47)+(I$4:I$4=Y47))*IF(G$4:G$4="",0,G$4:G$4)*((Q$4:Q$4="")+(Q$4:Q$4="50/50")/2))) -> 
Y48: =IF(ROWS(Y$3:Y47)<=SUM(IF(H$4:H$38<>"",1/COUNTIF(H$4:H$38,H$4:H$38))),INDEX(H$1:H$38,MIN(IF(COUNTIF(Y$3:Y47,H$4:H$38)=0,ROW(H$4:H$38)))),INDEX(I$1:I$38,MIN(IF((I$4:I$38<>"")*(COUNTIF(Y$3:Y47,I$4:I$38)=0),ROW(H$4:H$38))))) -> 0 | Z48: =IF(Y48=0,"",SUMPRODUCT((F$4:F$4="Aire")*((H$4:H$4=Y48)+(I$4:I$4=Y48))*IF(O$4:O$4="",0,O$4:O$4)*((Q$4:Q$4="")+(Q$4:Q$4="50/50")/2))) ->  | AA48: =IF(Y48=0,"",SUMPRODUCT((F$4:F$4="Aire")*((H$4:H$4=Y48)+(I$4:I$4=Y48))*IF(P$4:P$4="",0,P$4:P$4)*((Q$4:Q$4="")+(Q$4:Q$4="50/50")/2))) ->  | AB48: =IF(Y48=0,"",SUMPRODUCT((F$4:F$4="Luchon")*((H$4:H$4=Y48)+(I$4:I$4=Y48))*IF(O$4:O$4="",0,O$4:O$4)*((Q$4:Q$4="")+(Q$4:Q$4="50/50")/2))) ->  | AC48: =IF(Y48=0,"",SUMPRODUCT((F$4:F$4="Luchon")*((H$4:H$4=Y48)+(I$4:I$4=Y48))*IF(P$4:P$4="",0,P$4:P$4)*((Q$4:Q$4="")+(Q$4:Q$4="50/50")/2))) ->  | AD48: =IF(Y48=0,"",SUMPRODUCT((F$4:F$4="Aire")*((H$4:H$4=Y48)+(I$4:I$4=Y48))*(L$4:L$4))) ->  | AE48: =IF(Y48=0,"",SUMPRODUCT((F$4:F$4="Luchon")*((H$4:H$4=Y48)+(I$4:I$4=Y48))*(L$4:L$4))) ->  | AH48: 0 | AJ48: =SUMIF(H5:H169,AH48,L5:L169) -> 00:00:00 | AK48: =IF(Y48=0,"",SUMPRODUCT((F$4:F$4="Aire")*((H$4:H$4=Y48)+(I$4:I$4=Y48))*IF(G$4:G$4="",0,G$4:G$4)*((Q$4:Q$4="")+(Q$4:Q$4="50/50")/2))) ->  | AL48: =IF(Y48=0,"",SUMPRODUCT((F$4:F$4="Luchon")*((H$4:H$4=Y48)+(I$4:I$4=Y48))*IF(G$4:G$4="",0,G$4:G$4)*((Q$4:Q$4="")+(Q$4:Q$4="50/50")/2))) -> 
Z49: =SUM(Z4:Z48) -> 1 | AA49: =SUM(AA4:AA48) -> 0 | AB49: =SUM(AB4:AB48) -> 0 | AC49: =SUM(AC4:AC48) -> 0 | AH49: =SUM(AH4:AH48) -> 0.08333333333 | AI49: =SUM(AI4:AI48) -> 0 | AJ49: =SUM(AJ4:AJ48) -> 0 | AK49: =SUM(AK4:AK48) -> 44 | AL49: =SUM(AL4:AL48) -> 0
AB51: =SUM(AB49)*Parametres!AD3 -> 0 | AC51: =SUM(AC49)*Parametres!AC3 -> 0 | AH51: =SUM(AI4:AI48) -> 0
AB53: =SUM(AB49)*Parametres!AD3 -> 0 | AH53: =SUM(AJ49) -> 0
AB54: =SUM(AC49)*Parametres!AD3 -> 0

Sheet CodeOACI (hidden)
A3: Code OACI | B3: Code AITA | C3: Nom de l'aérodrome | D3: Ville desservie | E3: Dépt | F3: Alt. en m | G3: Nb de pistes | H3: Remarque
B4: JAH | C4: Héliport d'Aubagne - Agora | D4: Aubagne | E4: 13 | H4: héliport
B5: JCA | C5: Héliport de Nice - La Croisette | D5: Nice | E5: 6 | H5: héliport
B6: JEV | C6: Héliport d'Évry | D6: Évry | E6: 91 | H6: héliport
B7: JLP | C7: Héliport de Juan-les-Pins | D7: Juan-les-Pins | E7: 6 | H7: héliport
B8: JPU | C8: Héliport de Paris - La Défense | D8: Paris | E8: 92 | H8: héliport
A9: FMCZ | B9: DZA | C9: Aérodrome de Dzaoudzi Pamandzi | D9: Dzaoudzi | E9: 976 | F9: 7 | G9: 1
A10: FMEE | B10: RUN | C10: Aéroport Roland Garros Réunion | D10: Saint-Denis Gillot | E10: 974 | F10: 20 | G10: 2
A11: FMEP | B11: ZSE | C11: Aéroport de Pierrefonds | D11: Saint-Pierre | E11: 974 | F11: 18 | G11: 1
A12: LF34 | C12: Base aérienne de Moussoulens | D12: Moussoulens | E12: 11 | F12: 177 | G12: 1 | H12: militaire
A13: LFAB | B13: DPE | C13: Aéroport de Dieppe - Saint-Aubin | D13: Dieppe | E13: 76 | F13: 104 | G13: 2
A14: LFAC | B14: CQF | C14: Aéroport de Calais - Dunkerque | D14: Calais | E14: 62 | F14: 3 | G14: 1
A15: LFAD | C15: Aéroport de Compiègne - Margny | D15: Compiègne | E15: 60 | F15: 96 | G15: 1
A16: LFAE | C16: Aérodrome d'Eu - Mers - Le Tréport | D16: Eu | E16: 76 | F16: 99 | G16: 1 | H16: usage restreint
A17: LFAF | C17: Aéroport de Laon - Chambry | D17: Laon | E17: 2 | F17: 78 | G17: 2
A18: LFAG | C18: Aéroport de Peronne - Saint-Quentin | D18: Péronne | E18: 80 | F18: 89 | G18: 1
A19: LFAI | C19: Aéroport de Nangis Les Loges | D19: Nangis | E19: 77 | F19: 130 | G19: 2
A20: LFAJ | C20: Aéroport d'Argentan | D20: Argentan | E20: 61 | F20: 177 | G20: 1
A21: LFAK | C21: Aérodrome de Dunkerque - Les Moëres | D21: Dunkerque | E21: 59 | F21: -1 | G21: 1 | H21: usage restreint
A22: LFAL | C22: Aérodrome de La Flèche - Thorée-les-Pins | D22: La Flèche | E22: 72 | F22: 36 | G22: 1 | H22: usage restreint
A23: LFAM | C23: Aéroport de Berck-sur-Mer | D23: Berck | E23: 62 | F23: 9 | G23: 2
A24: LFAN | C24: Aérodrome de Condé-sur-Noireau | D24: Condé-sur-Noireau | E24: 14 | F24: 254 | H24: désaffecté
A25: LFAO | C25: Aéroport de Bagnoles-de-l'Orne - Couterne | D25: Bagnoles-de-l'Orne | E25: 61 | F25: 218 | G25: 1
A26: LFAP | C26: Aérodrome de Rethel - Perthes | D26: Rethel | E26: 8 | F26: 126 | G26: 1 | H26: usage restreint
A27: LFAQ | C27: Aérodrome d'Albert - Bray | D27: Albert | E27: 80 | F27: 110 | G27: 1 | H27: usage restreint
A28: LFAR | C28: Aérodrome de Montdidier | D28: Montdidier | E28: 80 | F28: 109 | G28: 1 | H28: usage restreint
A29: LFAS | C29: Aérodrome de Falaise Mont d'Eraines | D29: Falaise | E29: 14 | F29: 156 | G29: 1 | H29: usage restreint
A30: LFAT | B30: LTQ | C30: Aéroport du Touquet-Paris-Plage | D30: Le Touquet-Paris-Plage | E30: 62 | F30: 10 | G30: 1
A31: LFAU | C31: Aérodrome de Vauville | D31: Vauville | E31: 50 | F31: 138 | G31: 1 | H31: usage restreint
A32: LFAV | C32: Aéroport de Valenciennes - Denain | D32: Valenciennes | E32: 59 | F32: 53 | G32: 3
A33: LFAW | C33: Aérodrome de Villerupt | D33: Villerupt | E33: 54 | F33: 397 | G33: 1 | H33: usage restreint
A34: LFAX | C34: Aéroport de Mortagne-au-Perche | D34: Mortagne-au-Perche | E34: 61 | F34: 270 | G34: 1
A35: LFAY | C35: Aéroport d'Amiens - Glisy | D35: Amiens | E35: 80 | F35: 63 | G35: 2
A36: LFBA | B36: AGF | C36: Aéroport Agen-La Garenne | D36: Agen | E36: 47 | F36: 62 | G36: 1
A37: LFBC | C37: Base aérienne de Cazaux | D37: La Teste-de-Buch | E37: 33 | F37: 25 | G37: 1 | H37: militaire
A38: LFBD | B38: BOD | C38: Aéroport de Bordeaux - Mérignac | D38: Bordeaux | E38: 33 | F38: 50 | G38: 2
A39: LFBE | B39: EGC | C39: Aéroport Bergerac-Roumanière | D39: Bergerac | E39: 24 | F39: 52 | G39: 2
A40: LFBF | C40: Base aérienne de Toulouse - Francazal | D40: Toulouse | E40: 31 | F40: 163 | G40: 1 | H40: militaire
A41: LFBG | B41: CNG | C41: Base aérienne de Cognac Châteaubernard | D41: Cognac | E41: 16 | F41: 31 | G41: 3 | H41: militaire
A42: LFBH | B42: LRH | C42: Aéroport de La Rochelle - île de Ré | D42: La Rochelle | E42: 17 | F42: 22 | G42: 1
A43: LFBI | B43: PIS | C43: Aéroport de Poitiers-Biard | D43: Poitiers | E43: 86 | F43: 128 | G43: 3
A44: LFBJ | C44: Aéroport de Saint-Junien | D44: Saint-Junien | E44: 87 | F44: 274 | G44: 1
A45: LFBK | B45: MCU | C45: Aéroport de Montluçon Guéret | D45: Montluçon | E45: 23 | F45: 412 | G45: 2
A46: LFBL | B46: LIG | C46: Aéroport de Limoges Bellegarde | D46: Limoges | E46: 87 | F46: 396 | G46: 2
A47: LFBM | C47: Base aérienne 118 Mont-de-Marsan | D47: Mont-de-Marsan | E47: 40 | F47: 61 | G47: 1 | H47: militaire
A48: LFBN | B48: NIT | C48: Aéroport de Niort Souché | D48: Niort | E48: 79 | F48: 61 | G48: 2
A49: LFBO | B49: TLS | C49: Aéroport Toulouse Blagnac | D49: Toulouse | E49: 31 | F49: 152 | G49: 2
A50: LFBP | B50: PUF | C50: Aéroport Pau-Pyrénées | D50: Pau | E50: 64 | F50: 187 | G50: 1
A51: LFBR | C51: Aérodrome de Muret-Lherm | D51: Muret | E51: 31 | F51: 189 | G51: 3
A52: LFBS | C52: Aéroport de Biscarrosse - Parentis | D52: Biscarrosse | E52: 40 | F52: 29 | G52: 3
A53: LFBT | B53: LDE | C53: Aéroport de Tarbes-Lourdes-Pyrénées | D53: Tarbes | E53: 65 | F53: 384 | G53: 1
A54: LFBU | B54: ANG | C54: Aéroport d'Angoulême - Brie - Champniers | D54: Angoulême | E54: 16 | F54: 132 | G54: 2
A55: LFBV | B55: BVE | C55: Aéroport de Brive La Roche | D55: Brive-la-Gaillarde | E55: 19 | F55: 116 | G55: 2
A56: LFBX | B56: PGX | C56: Aéroport Périgueux-Bassillac | D56: Périgueux | E56: 24 | F56: 99 | G56: 2
A57: LFBY | C57: Aéroport de Dax - Seyresse | D57: Dax | E57: 40 | F57: 32 | G57: 1
A58: LFBZ | B58: BIQ | C58: Aéroport de Biarritz-Anglet-Bayonne | D58: Biarritz | E58: 64 | F58: 74 | G58: 1
A59: LFCA | C59: Aéroport de Châtellerault Targé | D59: Châtellerault | E59: 86 | F59: 63 | G59: 1
A60: LFCB | C60: Aéroport de Bagnères-de-Luchon | D60: Bagnères-de-Luchon | E60: 31 | F60: 618 | G60: 1
A61: LFCC | B61: ZAO | C61: Aéroport de Cahors - Lalbenque | D61: Cahors | E61: 46 | F61: 277 | G61: 2
A62: LFCD | C62: Aéroport d'Andernos-les-Bains | D62: Andernos-les-Bains | E62: 33 | F62: 20 | G62: 1
A63: LFCE | C63: Aéroport de Guéret - Saint-Laurent | D63: Guéret | E63: 23 | F63: 367 | G63: 1
A64: LFCF | C64: Aéroport de Figeac - Livernon | D64: Figeac | E64: 46 | F64: 331 | G64: 1
A65: LFCG | C65: Aéroport de Saint-Girons - Antichan | D65: Saint-Girons | E65: 9 | F65: 416 | G65: 3
A66: LFCH | C66: Aéroport d'Arcachon - La Teste-de-Buch | D66: Arcachon | E66: 33 | F66: 14 | G66: 2
A67: LFCI | B67: LBI | C67: Aéroport d'Albi Le Sequestre | D67: Albi | E67: 81 | F67: 171 | G67: 1
A68: LFCJ | C68: Aéroport de Jonzac - Neulles | D68: Jonzac | E68: 17 | F68: 39 | G68: 3
A69: LFCK | B69: DCM | C69: Aéroport de Castres Mazamet | D69: Castres | E69: 81 | F69: 239 | G69: 1
A70: LFCL | C70: Aéroport de Toulouse - Lasbordes | D70: Toulouse | E70: 31 | F70: 139 | G70: 1
A71: LFCM | C71: Aéroport de Millau Larzac | D71: Millau | E71: 12 | F71: 794 | G71: 1
A72: LFCN | C72: Aéroport de Nogaro | D72: Nogaro | E72: 32 | F72: 92 | G72: 2
A73: LFCO | C73: Aéroport d'Oloron - Herrère | D73: Oloron-Sainte-Marie | E73: 64 | F73: 299 | G73: 2
A74: LFCP | C74: Aéroport de Pons - Avy | D74: Pons | E74: 17 | F74: 35 | G74: 1
A75: LFCQ | C75: Aéroport de Graulhet - Montdragon | D75: Graulhet | E75: 81 | F75: 177 | G75: 2
A76: LFCR | B76: RDZ | C76: Aéroport de Rodez Marcillac | D76: Rodez | E76: 12 | F76: 582 | G76: 2
A77: LFCS | C77: Aéroport de Bordeaux - Léognan - Saucats | D77: Bordeaux | E77: 33 | F77: 57 | G77: 2
A78: LFCT | C78: Aéroport de Thouars | D78: Thouars | E78: 79 | F78: 103 | G78: 2
A79: LFCU | C79: Aéroport d'Ussel - Thalamy | D79: Ussel | E79: 19 | F79: 740 | G79: 2
A80: LFCV | C80: Aéroport de Villefranche-de-Rouergue | D80: Villefranche-de-Rouergue | E80: 12 | F80: 334 | G80: 1
A81: LFCW | C81: Aéroport de Villeneuve-sur-Lot | D81: Villeneuve-sur-Lot | E81: 47 | F81: 57 | G81: 1
A82: LFCX | C82: Aéroport de Castelsarrasin - Moissac | D82: Castelsarrasin | E82: 82 | F82: 74 | G82: 2
A83: LFCY | B83: RYN | C83: Aéroport de Royan - Médis | D83: Royan | E83: 17 | F83: 21 | G83: 2
A84: LFCZ | C84: Aéroport de Mimizan | D84: Mimizan | E84: 40 | F84: 49 | G84: 1
A85: LFDA | C85: Aéroport d'Aire-sur-l'Adour | D85: Aire-sur-l'Adour | E85: 40 | F85: 78 | G85: 2
A86: LFDB | C86: Aéroport de Montauban | D86: Montauban | E86: 82 | F86: 106 | G86: 1
A87: LFDC | C87: Aéroport de Montendre - Marcillac | D87: Montendre | E87: 33 | F87: 45 | G87: 1
A88: LFDE | C88: Aéroport d'Égletons | D88: Égletons | E88: 19 | F88: 566 | G88: 2
A89: LFDF | C89: Aéroport de Sainte-Foy-la-Grande | D89: Sainte-Foy-la-Grande | E89: 24 | F89: 85 | G89: 1
A90: LFDG | C90: Aéroport de Gaillac - Lisle -sur-Tarn | D90: Gaillac | E90: 81 | F90: 135 | G90: 1
A91: LFDH | C91: Aéroport d'Auch Lamothe | D91: Auch | E91: 32 | F91: 125 | G91: 2
A92: LFDI | C92: Aéroport de Libourne - Artigues-de-Lussac | D92: Libourne | E92: 33 | F92: 47 | G92: 2
A93: LFDJ | C93: Aéroport de Pamiers - Les Pujols | D93: Pamiers | E93: 9 | F93: 339 | G93: 1
A94: LFDK | C94: Aéroport de Soulac-sur-Mer | D94: Soulac-sur-Mer | E94: 33 | F94: 2 | G94: 1
A95: LFDL | C95: Aéroport de Loudun | D95: Loudun | E95: 86 | F95: 96 | G95: 1
A96: LFDM | C96: Aéroport de Marmande - Virazeil | D96: Marmande | E96: 47 | F96: 32 | G96: 2
A97: LFDN | B97: RCO | C97: Aéroport de Rochefort - Saint-Agnant | D97: Rochefort | E97: 17 | F97: 17 | G97: 2
A98: LFDO | C98: Aérodrome de Bordeaux – Souge | D98: Bordeaux | E98: 33 | F98: 42 | H98: désaffecté
A99: LFDP | C99: Aéroport de Saint-Pierre-d'Oléron | D99: Saint-Pierre-d'Oléron | E99: 17 | F99: 6 | G99: 1
A100: LFDQ | C100: Aérodrome de Castelnau Magnoac | D100: Castelnau-Magnoac | E100: 65 | F100: 299 | G100: 1 | H100: usage restreint
A101: LFDR | C101: Aéroport de La Réole - Floudès | D101: La Réole | E101: 33 | F101: 13 | G101: 1
A102: LFDS | C102: Aéroport de Sarlat - Domme | D102: Sarlat-la-Canéda | E102: 24 | F102: 298 | G102: 2
A103: LFDT | C103: Aéroport de Tarbes - Laloubère | D103: Tarbes | E103: 65 | F103: 327 | G103: 2
A104: LFDU | C104: Aéroport de Lesparre - Saint-Laurent-de-Médoc | D104: Lesparre-Médoc | E104: 33 | F104: 32 | G104: 1
A105: LFDV | C105: Aéroport de Couhé Vérac | D105: Couhé | E105: 86 | F105: 152 | G105: 1
A106: LFDW | C106: Aéroport de Chauvigny | D106: Chauvigny | E106: 86 | F106: 134 | G106: 1
A107: LFDX | C107: Aéroport de Fumel - Montayral | D107: Fumel | E107: 47 | F107: 210 | G107: 1
A108: LFDY | C108: Aérodrome de Bordeaux - Yvrac | D108: Bordeaux | E108: 33 | F108: 73 | G108: 1 | H108: usage restreint
A109: LFEA | C109: Aéroport de Belle-Île | D109: Le Palais | E109: 56 | F109: 52 | G109: 1
A110: LFEB | C110: Aéroport de Dinan - Trélivan | D110: Dinan | E110: 22 | F110: 120 | G110: 1
A111: LFEC | C111: Aéroport d'Ouessant | D111: Ouessant | E111: 29 | F111: 42 | G111: 1
A112: LFED | C112: Aéroport de Pontivy | D112: Pontivy | E112: 56 | F112: 124 | G112: 1
A113: LFEF | C113: Aéroport d'Amboise - Dierre | D113: Amboise | E113: 37 | F113: 53 | G113: 2
A114: LFEG | C114: Aéroport d'Argenton-sur-Creuse | D114: Argenton-sur-Creuse | E114: 36 | F114: 202 | G114: 2
A115: LFEH | C115: Aéroport d'Aubigny-sur-Nère | D115: Aubigny-sur-Nère | E115: 18 | F115: 192 | G115: 1
A116: LFEI | C116: Aéroport de Briare Chatillon | D116: Briare | E116: 45 | F116: 163 | G116: 1
A117: LFEJ | C117: Aéroport de Châteauroux - Villers | D117: Châteauroux | E117: 36 | F117: 165 | G117: 1
A118: LFEK | C118: Aéroport d'Issoudun Le Fay | D118: Issoudun | E118: 36 | F118: 161 | G118: 3
A119: LFEL | C119: Aéroport du Blanc | D119: Le Blanc | E119: 36 | F119: 116 | G119: 2
A120: LFEM | C120: Aéroport de Montargis - Vimory | D120: Montargis | E120: 45 | F120: 93 | G120: 3
A121: LFEN | C121: Aéroport de Tours - Sorigny | D121: Tours | E121: 37 | F121: 91 | G121: 2
A122: LFEP | C122: Aérodrome de Pouilly - Maconge | D122: Pouilly-en-Auxois | E122: 21 | F122: 430 | G122: 1 | H122: usage restreint
A123: LFEQ | C123: Aéroport de Quiberon | D123: Quiberon | E123: 56 | F123: 11 | G123: 1
A124: LFER | C124: Aéroport de Redon - Bains-sur-Oust | D124: Redon | E124: 35 | F124: 67 | G124: 1
A125: LFES | C125: Aéroport de Guiscriff - Scaër | D125: Guiscriff | E125: 56 | F125: 174 | G125: 1
A126: LFET | C126: Aéroport de Til-Châtel | D126: Til-Châtel | E126: 21 | F126: 286 | G126: 2
A127: LFEU | C127: Aéroport de Bar-le-Duc - Les Hauts-de-Chée | D127: Bar-le-Duc | E127: 55 | F127: 274 | G127: 1
A128: LFEV | C128: Aéroport de Gray Saint-Adrien | D128: Gray | E128: 70 | F128: 206 | G128: 2
A129: LFEW | C129: Aéroport de Saulieu - Liernais | D129: Saulieu | E129: 21 | F129: 522 | G129: 1
A130: LFEX | C130: Aérodrome de Nancy - Azelot | D130: Nancy | E130: 54 | F130: 291 | G130: 2 | H130: usage restreint
A131: LFEY | B131: IDY | C131: Aéroport de l'Île-d'Yeu | D131: L'Île-d'Yeu | E131: 85 | F131: 24 | G131: 2
A132: LFEZ | C132: Aérodrome de Nancy - Malzéville | D132: Nancy | E132: 54 | F132: 380 | G132: 3 | H132: usage restreint
A133: LFFB | C133: Aérodrome de Buno-Bonnevaux | D133: Buno-Bonnevaux | E133: 91 | F133: 127 | G133: 2 | H133: usage restreint
A134: LFFC | C134: Aérodrome de Mantes - Chérence | D134: Mantes-la-Jolie | E134: 95 | F134: 156 | G134: 2 | H134: usage restreint
A135: LFFD | C135: Aérodrome de Saint-André-de-l'Eure | D135: Saint-André-de-l'Eure | E135: 27 | F135: 149 | G135: 2 | H135: usage restreint
A136: LFFE | C136: Aérodrome d'Enghien - Moisselles | D136: Enghien-les-Bains | E136: 95 | F136: 102 | G136: 2 | H136: usage restreint
A137: LFFG | C137: Aérodrome de La Ferté-Gaucher | D137: La Ferté-Gaucher | E137: 77 | F137: 163 | G137: 1 | H137: usage restreint
A138: LFFH | C138: Aérodrome de Château-Thierry - Belleau | D138: Château-Thierry | E138: 2 | F138: 220 | G138: 1 | H138: usage restreint
A139: LFFI | C139: Aéroport d'Ancenis | D139: Ancenis | E139: 44 | F139: 33 | G139: 1
A140: LFFJ | C140: Aérodrome de Joinville - Mussey | D140: Joinville | E140: 52 | F140: 313 | G140: 1 | H140: usage restreint
A141: LFFK | C141: Aéroport de Fontenay-le-Comte | D141: Fontenay-le-Comte | E141: 85 | F141: 25 | G141: 1
A142: LFFL | C142: Aérodrome de Bailleau-Armenonville | D142: Bailleau-Armenonville | E142: 28 | F142: 154 | G142: 2 | H142: usage restreint
A143: LFFM | C143: Aérodrome de Lamotte-Beuvron | D143: Lamotte-Beuvron | E143: 41 | F143: 125 | G143: 1 | H143: usage restreint
A144: LFFN | C144: Aéroport de Brienne-le-Château | D144: Brienne-le-Château | E144: 10 | F144: 116 | G144: 2
A145: LFFP | C145: Aérodrome de Pithiviers | D145: Pithiviers | E145: 45 | F145: 119 | G145: 1 | H145: usage restreint
A146: LFFQ | C146: Aérodrome de La Ferté-Alais | D146: La Ferté-Alais | E146: 91 | F146: 138 | G146: 1 | H146: usage restreint
A147: LFFR | C147: Aérodrome de Bar-sur-Seine | D147: Bar-sur-Seine | E147: 10 | F147: 285 | G147: 1 | H147: usage restreint
A148: LFFT | C148: Aérodrome de Neufchâteau Rouceux | D148: Neufchâteau | E148: 88 | F148: 374 | G148: 1 | H148: usage restreint
A149: LFFU | C149: Aéroport de Châteauneuf-sur-Cher | D149: Châteauneuf-sur-Cher | E149: 18 | F149: 167 | G149: 1
A150: LFFV | C150: Aérodrome de Vierzon - Méreau | D150: Vierzon | E150: 18 | F150: 131 | G150: 1 | H150: usage restreint
A151: LFFW | C151: Aéroport de Montaigu - Saint-Georges | D151: Montaigu | E151: 85 | F151: 56 | G151: 2
A152: LFFX | C152: Aérodrome de Tournus - Cuisery | D152: Tournus | E152: 71 | F152: 210 | G152: 1 | H152: usage restreint
A153: LFFY | C153: Aérodrome d'Étrépagny | D153: Étrépagny | E153: 27 | F153: 93 | G153: 1 | H153: usage restreint
A154: LFFZ | C154: Aéroport de Sézanne - Saint-Remy | D154: Sézanne | E154: 51 | F154: 108 | G154: 2
A155: LFGA | B155: CMR | C155: Aéroport de Colmar - Houssen | D155: Colmar | E155: 68 | F155: 192 | G155: 2
A156: LFGB | C156: Aéroport de Mulhouse - Habsheim | D156: Mulhouse | E156: 68 | F156: 240 | G156: 4
A157: LFGC | C157: Aéroport de Strasbourg Neuhof | D157: Strasbourg | E157: 67 | F157: 139 | G157: 2
A158: LFGD | C158: Aérodrome d'Arbois | D158: Arbois | E158: 39 | F158: 266 | G158: 1 | H158: usage restreint
A159: LFGE | C159: Aéroport d'Avallon | D159: Avallon | E159: 89 | F159: 239 | G159: 1
A160: LFGF | C160: Aéroport de Beaune Challanges | D160: Beaune | E160: 21 | F160: 199 | G160: 2
A161: LFGG | C161: Aéroport de Belfort - Chaux | D161: Belfort | E161: 90 | F161: 417 | G161: 2
A162: LFGH | C162: Aéroport de Cosne-sur-Loire | D162: Cosne-Cours-sur-Loire | E162: 58 | F162: 176 | G162: 1
A163: LFGI | B163: DIJ | C163: Aéroport de Dijon - Darois | D163: Dijon | E163: 21 | F163: 483 | G163: 2
A164: LFGJ | B164: DLE | C164: Aéroport de Dole - Tavaux | D164: Dole | E164: 39 | F164: 196 | G164: 2
A165: LFGK | C165: Aéroport de Joigny | D165: Joigny | E165: 89 | F165: 223 | G165: 2
A166: LFGL | C166: Aéroport de Lons-le-Saunier - Courlaoux | D166: Lons-le-Saunier | E166: 39 | F166: 232 | G166: 1
A167: LFGM | C167: Aéroport de Montceau-les-Mines - Pouilloux | D167: Montceau-les-Mines | E167: 71 | F167: 314 | G167: 1
A168: LFGN | C168: Aéroport de Paray-le-Monial | D168: Paray-le-Monial | E168: 71 | F168: 305 | G168: 1
A169: LFGO | C169: Aéroport de Pont-sur-Yonne | D169: Pont-sur-Yonne | E169: 89 | F169: 70 | G169: 2
A170: LFGP | C170: Aéroport de Saint-Florentin - Chéu | D170: Saint-Florentin | E170: 89 | F170: 108 | G170: 3
A171: LFGQ | C171: Aéroport de Semur-en-Auxois | D171: Semur-en-Auxois | E171: 21 | F171: 320 | G171: 2
A172: LFGR | C172: Aéroport de Doncourt-lès-Conflans | D172: Doncourt-lès-Conflans | E172: 54 | F172: 246 | G172: 1
A173: LFGS | C173: Aéroport de Longuyon - Villette | D173: Longuyon | E173: 54 | F173: 351 | G173: 1
A174: LFGT | C174: Aéroport de Sarrebourg - Buhl | D174: Sarrebourg | E174: 57 | F174: 266 | G174: 2
A175: LFGU | C175: Aéroport de Sarreguemines Neunkirch | D175: Sarreguemines | E175: 57 | F175: 263 | G175: 2
A176: LFGV | C176: Aéroport de Thionville - Yutz | D176: Thionville | E176: 57 | F176: 157 | G176: 2
A177: LFGW | C177: Aéroport de Verdun Le Rozelier | D177: Verdun | E177: 55 | F177: 374 | G177: 2
A178: LFGX | C178: Aérodrome de Champagnole - Crotenay | D178: Champagnole | E178: 39 | F178: 531 | G178: 1 | H178: usage restreint
A179: LFGY | C179: Aérodrome de Saint-Dié - Remomeix | D179: Saint-Dié-des-Vosges | E179: 88 | F179: 361 | G179: 1
A180: LFGZ | C180: Aérodrome de Nuits-Saint-Georges | D180: Nuits-Saint-Georges | E180: 21 | F180: 242 | G180: 1 | H180: usage restreint
A181: LFHA | C181: Aéroport d'Issoire - Le Broc | D181: Issoire | E181: 63 | F181: 377 | G181: 2
A182: LFHC | C182: Aéroport de Pérouges - Meximieux | D182: Pérouges | E182: 1 | F182: 213 | G182: 1
A183: LFHD | C183: Aéroport de Pierrelatte | D183: Pierrelatte | E183: 26 | F183: 60 | G183: 2
A184: LFHE | C184: Aéroport de Romans - Saint-Paul | D184: Romans-sur-Isère | E184: 26 | F184: 181 | G184: 3
A185: LFHF | C185: Aérodrome de Ruoms | D185: Ruoms | E185: 7 | F185: 110 | G185: 1 | H185: usage restreint
A186: LFHG | C186: Aéroport de Saint-Chamond - L'Horme | D186: Saint-Chamond | E186: 42 | F186: 395 | G186: 1
A187: LFHH | C187: Aéroport de Vienne Reventin | D187: Vienne | E187: 38 | F187: 219 | G187: 1
A188: LFHI | C188: Aéroport de Morestel | D188: Morestel | E188: 38 | F188: 245 | G188: 1
A189: LFHJ | C189: Aérodrome de Lyon - Corbas | D189: Lyon | E189: 69 | F189: 198 | G189: 2 | H189: usage restreint
A190: LFHL | C190: Aéroport de Langogne - Lespéron | D190: Langogne | E190: 7 | F190: 1014 | G190: 1
A191: LFHM | B191: MVV | C191: Aérodrome de Megève | D191: Megève | E191: 74 | F191: 1470 | G191: 1 | H191: usage restreint
A192: LFHN | C192: Aéroport de Bellegarde Vouvray | D192: Bellegarde-sur-Valserine | E192: 1 | F192: 494 | G192: 2
A193: LFHO | B193: OBS | C193: Aéroport d'Aubenas Ardèche méridionale | D193: Aubenas | E193: 7 | F193: 280 | G193: 1
A194: LFHP | B194: LPY | C194: Aéroport du Puy - Loudes | D194: Le Puy-en-Velay | E194: 43 | F194: 832 | G194: 2
A195: LFHQ | C195: Aéroport de Saint-Flour - Coltines | D195: Saint-Flour | E195: 15 | F195: 979 | G195: 1
A196: LFHR | C196: Aéroport de Brioude - Beaumont | D196: Brioude | E196: 43 | F196: 452 | G196: 2
A197: LFHS | C197: Aéroport de Bourg - Ceyzériat | D197: Bourg-en-Bresse | E197: 1 | F197: 260 | G197: 2
A198: LFHT | C198: Aéroport d'Ambert Le Poyet | D198: Ambert | E198: 63 | F198: 562 | G198: 1
A199: LFHU | B199: AHZ | C199: Aérodrome de l'Alpe d'Huez | D199: Huez | E199: 38 | F199: 1859 | G199: 1 | H199: usage restreint
A200: LFHV | C200: Aéroport de Villefranche - Tarare | D200: Tarare | E200: 69 | F200: 327 | G200: 2
A201: LFHW | C201: Aérodrome de Belleville - Villié-Morgon | D201: Belleville | E201: 69 | F201: 214 | G201: 1 | H201: usage restreint
A202: LFHX | C202: Aéroport de Lapalisse - Périgny | D202: Lapalisse | E202: 3 | F202: 316 | G202: 1
... 344 more rows

Sheet Adresse logements (hidden)
E1: Adresses logements
A3: Noms | B3: N° Tél | C3: Lieux | F3: Objet | G3: Date | H3: Prix
A4: chalets-luchon-peyragudes | B4: 05.61.79.88.44 | C4: Garin | D4: http://www.chalets-luchon-peyragudes.com/chalets.html | E4: Chalet 8 personnes | F4: Couchages | G4: 2015-10-18 | H4: 253/semaine | I4: année 2015/10

Sheet Répartition planeurs (hidden)
A2: Ventillations des planeurs par pilotes
A4: Planeurs | B4: Immat. | C4: Pilote | D4: Club

Sheet Ordre de décollage (hidden)
A2: Ordre de position des planeurs sur la grille de départ
A4: Immatriculation | B4: Pilote | C4: Club

Sheet Tab Dépenses (hidden)
A1: Frais et dépenses du stage
A3: Date | B3: Noms | C3: Montant | D3: Objet

Sheet Graphique heures par planeurs (hidden)

Sheet GraphHeuresPilotes (hidden)

Sheet Aide (hidden)
D2: Bonjour, ne pas intervenir sur les pages tout passe par les formulaires alors ATTENTION AU MANIPULATION attention au projet et bibliothèque manquante dans VBA outils -->références décocher manquante
B4: Menu | D4: A l'ouverture du fichier vous arrivez sur ATTENTION vous lisez et valider
D5: Vous arrivez sur le menu du classeur
A7: 1 | B7: En premier temps | D7: Ouvrir la feuille ( Gestion des paramètres)
D8: Attention aux notations en rouge
D9: Mettre à jour ( Paramètres dates) { année en cours , mois du stage, jours en moins = nombre de jour avant le début du stage, Date est automatique ne pas modifier }
D10: Mettre à jour (Saisir les sommes par ventillation des rubriques)
D11: Mettre à jour (Nom du stage )
D12: Mettre à jour ( les noms des banques)
D13: Mettre à jour ( Liste planeur et prix)
D14: Mettre à jour (Frais Remorqué et treuil)
D15: Mettre à jour (Dates et Durée et lieu effective )
D16: ID et Facture (ne rien modifier)
A18: 2 | B18: Gestion des participants | D18: En cliquant sur le menu ( gestion des participants) vous arrivez sur la feuille de la gestion des stagiaires (licencies) Vous cliquez sur (Formulaire de gestion des inscrits) vous remplissez le formulaire,
D19: Pour un nouveau Stagiaire ( cliquez sur nouveau stagiaire +)
D21: Page 1 ( Infos stagiaire)
D22: Statut au stage {1} Pilotes = pilotes planeurs Statut au stage {2} Visiteurs = pilotes ULM, Avion, gens de passage, invités
D23: Statut du pilote = ( vous cochez les informations relative au pilote ou au stagiaire)
D24: Le reste des informations sont à remplir aussi le nom et prénom sont obligatoire (car cela induit sur tout le classeur) pour les calculs automatiques
D26: Page 2 ( Saisie des Journées de présences)
D27: Au-dessous de chaque intitulé Journée est afficher la date du jour qui est automatique
D28: Cocher les cases suivant les présences du pilote
D30: Page 3 ( Saisie de la Comptabilité )
D31: Au-dessous de chaque intitulé Journée est afficher la date du jour qui est automatique comme pour la page 2
D32: Mettre les prestations de la journée suivant les pilotes choisi ( chiffres uniquement )
D34: En fin de saisi des informations du pilote ou des modifications de toutes les pages faire ( Valider/Modifier ) pour enregistrer les informations saisies vous faites idem pour les autres pilotes
A40: 3 | B40: Ventillation compta | D40: En cliquant sur le menu ( gestion de la comptabilités) vous arrivez sur la feuille de la gestion de la comptabilité (VentillationCompta)
D42: Page 1 ( Suivi hébergement comptabilité )
D43: Choisir un nom et ventilé le paiement, date, caisse, acompte, du pilote ou les autres participants
D45: Page 2 (Saisie de la compta des vols) de la plateforme
D46: Choisir un nom et ventilé le paiement, date, acompte1, acompte2, du pilote ou les autres participants
D48: En fin de saisi des informations du pilote ou des modifications faite sur la page ou autres pages faire (Valider/Modifier) pour enregistrer les informations saisie du pilote, vous choisisez un autre pilote avec la liste de gauche vous faites les modifications et valider idem pour les autres pilotes,
A53: 4 | B53: Gestion des vols | D53: En cliquant sur le menu ( Gestion des vols) vous arrivez sur la feuille de la gestion de (SaisiVols) Vous cliquez sur (Gestion des vols) vous remplissez le formulaire
D55: Page 1 (Saisie des vols)
D56: --Pour ajouter un nouveau Vol cliquez sur ( Ajouter un vol +) et remplissez le formulaire --Pour une mise à jour d'un pilote vous choisisez un nom et vous modifier la fiche en prenent soin d'enregistrer par (Valider/Modifier)
D58: En fin de saisi des informations du vol ou des modifications faire (Valider/Modifier) pour enregistré les informations saisies, Pour créer un autre vol cliquez sur ( Ajouter un vol +) vous remplissez la fiche et vous faite (Valider/Modifier) pour enregistré le vol, idem pour les autres vols,
A61: 5 | B61: Liste Des Relevés | D61: En cliquant sur ce menu apparait la liste des relevés éditer pour les pilotes ne rien modifier,!!!
D62: Vous pouvez éditer cette page avec le bouton il sortira une page en PDF que vous pouvez imprimé
A66: 6 | B66: Menu Graphique | D66: Ce menu permet de visualiser les graphiques heures pilotes et planeurs et les imprimer
A71: 7 | B71: Synthése comptabilité | D71: Ce menu sert à vérifier la balance des comptes total du stage , hors plateforme,
A75: 8 | B75: Liste appartements | D75: Ce menu sert à afficher et à saisir les appartements que nous avons loués
A79: 9 | B79: Menu de la partie compta | C79: ce menu est ouvert depuis la page | D79: Ce menu est ouvert depuis la page ( Ventillation Compta )
D91: Vous pouvez depuis ce menu faire la gestion des (inscrits et faire la gestion des paiements )
D92: Le menu (Visualisation compte) sert à éditer et l'impression des comptes pilotes
A96: 10 | B96: Visualisation compte | D96: A l'ouverture du formulaire (Visualisation compte) vous avez la compta du stagiaire, vous pouvez l'imprimer avec le logo imprimante et le remettre au stagiaire
A101: 11 | B101: Tableau de bord | D101: A l'ouverture du formulaire ce présente la visualisation de la compta de la plateforme en cliquant sur (Bilan compta plateforme)
D115: Sur le haut (Effacement inscrit ) attention au manipulation de ce programme il efface tout !!!

Sheet Icones (hidden)

Sheet Feuil1 (hidden)

Sheet Feuil2 (hidden)
C4: =SUM(C5:C17) -> 44
B5: FERDINAND Jean claude | C5: 6
B6: BOUZIGUES Patrick | C6: 10
B7: PASTOR Bernard | C7: 3
B8: CATTARINUSSI Paul | C8: 4
B9: HERNANDEZ Sylvain | C9: 3
B10: MAUREL Bengamin | C10: 6
C11: 0
B12: MICHELOT Pierre | C12: 4
B13: MULLER Klaus | C13: 3
C14: 0
C15: 0
B16: BERTELLI Bernard | C16: 4
B17: MIMAUD Eric | C17: 1
